Workbook

Sheet Summary
D1: Voltage PQ Management Strategy | H1: Section Check: | I1: =IF(COUNTA($A$8:$A$833)=COUNTIF($A$8:$A$833,0),"Ok","Check") -> Check | L1: Overall Check: | M1: Ok | O1: Legend: | P1: Input | Q1: Internal | R1: Select | S1: Calculation
D2: =RIGHT(CELL("filename",D1),LEN(CELL("filename",D1))-FIND("]",CELL("filename",D1))) -> Summary
B6: Copyright Jemena Limited. All rights reserved. Jemena is not liable for any loss caused by reliance on this document.
B8: Summary
A11: A | D11: EDCOP 5% NON-COMPLIANCE (FUNCTIONAL COMPLIANCE) | F11: Option 1 | G11: Option 2 | H11: Option 3 | I11: Option 4 | K11: Notes:
D12: Total Cost (2027-2031) | E12: $ million | F12: 0 | G12: =Option_2A!$K$23 -> 24.75889145 | H12: =Option_3A!$K$23 -> 25.33506 | I12: =Option_4!$K$23 -> 23.24931855 | K12: Option 1 - Do Nothing
D13: Present Value Cost (2027-2031) | E13: $ million | F13: 0 | G13: =Option_2A!$L$23 -> 18.67173641 | H13: =Option_3A!$L$23 -> 19.16240942 | I13: =Option_4!$L$23 -> 17.91907917 | K13: ="Option 2 - DVM, VAr controllers and reactors" -> Option 2 - DVM, VAr controllers and reactors
D14: Forecast EDCOP Compliance (end of 2031) | E14: per cent | F14: =Compliance!$R$43 -> 0.07839959462 | G14: =Option_2A!$R$36 -> 0.04501037782 | H14: =G14 -> 0.04501037782 | I14: =Option_4!$R$36 -> 0.05859317334 | K14: Option 3 - Traditional augmentation
K15: Option 4 - DVM only
A16: B | D16: EDCOP 4% NON-COMPLIANCE (MAINTAINING PERFORMANCE) | F16: Option 1 | G16: Option 2 | H16: Option 3 | I16: Option 4 | K16: (Includes proactive and reactive programs)
D17: Total Cost (2027-2031) | E17: $ million | F17: 0 | G17: =Option_2B!$K$23 -> 25.94955009 | H17: =Option_3B!$K$23 -> 26.40926 | I17: =Option_4!$K$23 -> 23.24931855
D18: Present Value Cost (2027-2031) | E18: $ million | F18: 0 | G18: =Option_2B!$L$23 -> 19.68789212 | H18: =Option_3B!$L$23 -> 20.07938735 | I18: =Option_4!$L$23 -> 17.91907917 | K18: <--- PREFERRED OPTION IS MAINTAINING PERFORMANCE OPTION 2
D19: Forecast EDCOP Compliance (end of 2031) | E19: per cent | F19: =Compliance!$R$43 -> 0.07839959462 | G19: =Option_2B!$R$36 -> 0.03788193611 | H19: =G19 -> 0.03788193611 | I19: =Option_4!$R$36 -> 0.05859317334
A21: C | D21: EDCOP 3% NON-COMPLIANCE (IMPROVED PERFORMANCE) | F21: Option 1 | G21: Option 2 | H21: Option 3 | I21: Option 4
D22: Total Cost (2027-2031) | E22: $ million | F22: 0 | G22: =Option_2C!$K$23 -> 29.1055689 | H22: =Option_3C!$K$23 -> 30.08363 | I22: =Option_4!$K$23 -> 23.24931855
D23: Present Value Cost (2027-2031) | E23: $ million | F23: 0 | G23: =Option_2C!$L$23 -> 22.26585566 | H23: =Option_3C!$L$23 -> 23.08085243 | I23: =Option_4!$L$23 -> 17.91907917
D24: Forecast EDCOP Compliance (end of 2031) | E24: per cent | F24: =Compliance!$R$43 -> 0.07839959462 | G24: =Option_2C!$R$36 -> 0.02576192638 | H24: =G24 -> 0.02576192638 | I24: =Option_4!$R$36 -> 0.05859317334
A26: D | D26: EDCOP 2% NON-COMPLIANCE (ON PAR WITH VIC DNSP PEERS) | F26: Option 1 | G26: Option 2 | H26: Option 3 | I26: Option 4
D27: Total Cost (2027-2031) | E27: $ million | F27: 0 | G27: =Option_2D!$K$23 -> 45.52303099 | H27: =Option_3D!$K$23 -> 50.49343 | I27: =Option_4!$K$23 -> 23.24931855
D28: Present Value Cost (2027-2031) | E28: $ million | F28: 0 | G28: =Option_2D!$L$23 -> 34.12171255 | H28: =Option_3D!$L$23 -> 37.96395066 | I28: =Option_4!$L$23 -> 17.91907917
D29: Forecast EDCOP Compliance (end of 2031) | E29: per cent | F29: =Compliance!$R$43 -> 0.07839959462 | G29: =Option_2D!$R$36 -> 0.0197177558 | H29: =G29 -> 0.0197177558 | I29: =Option_4!$R$36 -> 0.05859317334
B31: End
B833: End

Sheet General
D1: Voltage PQ Management Strategy | H1: Section Check: | I1: =IF(COUNTA($A$8:$A$857)=COUNTIF($A$8:$A$857,0),"Ok","Check") -> Ok | L1: Overall Check: | M1: Ok | O1: Legend: | P1: Input | Q1: Internal | R1: Select | S1: Calculation
D2: =RIGHT(CELL("filename",D1),LEN(CELL("filename",D1))-FIND("]",CELL("filename",D1))) -> General
B6: Copyright Jemena Limited. All rights reserved. Jemena is not liable for any loss caused by reliance on this document.
B8: General Assumptions
C10: =B8 -> General Assumptions
D12: =C10 -> General Assumptions | E12: Source | F12: Unit | G12: Basis
D13: EDCOP Compliance Benefit of DVM | E13: AM | F13: %/% | G13: ESC Voltage Reporting | J13: =1-1%/3.79% -> 0.7361477573
D14: Discount Rate | E14: AM | F14: Per cent | G14: n/a | J14: 0.055
D15: Assessment Period Years | E15: AM | F15: Years | G15: n/a | J15: 5
D16: Next Regulatory Period | E16: AM | F16: Year | G16: n/a | J16: 2027
D17: EDCOP / Overvoltage Compliance Scaling | E17: AM | F17: %/% | G17: EDC / AMI reports | J17: =3.79%/Compliance!$AG$43 -> 0.9857277661
B19: Option
C21: Calculations
D23: Discount Ratios
D25: Year | E25: Discount Ratio
D27: 2024 | E27: 1
D28: =D27+1 -> 2025 | E28: =E27*1/(1+$J$14) -> 0.9478672986
D29: 2026 | E29: 0.8984524157
D30: 2027 | E30: 0.8516136642
D31: 2028 | E31: 0.8072167433
D32: 2029 | E32: 0.7651343538
D33: 2030 | E33: 0.725245833
D34: 2031 | E34: 0.6874368086
D35: 2032 | E35: 0.6515988707
D36: 2033 | E36: 0.6176292613
D37: 2034 | E37: 0.5854305794
D38: 2035 | E38: 0.5549105018
D39: 2036 | E39: 0.5259815183
D40: 2037 | E40: 0.4985606809
D41: 2038 | E41: 0.4725693658
D42: 2039 | E42: 0.4479330481
D43: 2040 | E43: 0.4245810883
D44: 2041 | E44: 0.4024465292
D45: 2042 | E45: 0.3814659044
D46: 2043 | E46: 0.3615790563
D47: 2044 | E47: 0.3427289633
D48: 2045 | E48: 0.3248615766
D49: 2046 | E49: 0.307925665
D50: 2047 | E50: 0.2918726683
D51: 2048 | E51: 0.2766565576
D52: 2049 | E52: 0.2622337039
D53: 2050 | E53: 0.2485627525
B55: End
B857: End

Sheet Under-Voltage Cost Estimation
B3: Direct Costs only
D4: 20-21 | E4: 21-22 | F4: 22-23 | G4: 23-24 | H4: 24-25 | I4: Total | J4: Status | L4: Number of PQ substations addressed
I5: $ | J5: @30/6/25
B7: BAA-PQA-000034 | C7: Active Voltage Control | D7: =VLOOKUP(B7,'[1]2020-21'!G:J,4,0) -> 44520.99 | E7: =VLOOKUP(B7,'[1]2021-22'!G:I,3,0) -> 35880.56 | I7: =SUM(D7:H7) -> 80401.55 | J7: CLSD
B8: BAA-PQA-000039 | C8: MINOR PQA WORK | D8: =VLOOKUP(B8,'[1]2020-21'!G:J,4,0) -> 19742.14 | I8: 19742.14 | J8: CLSD
B9: BAA-PQA-000040 | C9: RELIEF OF HOME-TAIT & COLLINGWOOD-HOME | D9: =VLOOKUP(B9,'[1]2020-21'!G:J,4,0) -> 5365.06 | E9: =VLOOKUP(B9,'[1]2021-22'!G:I,3,0) -> 17545.24 | F9: =VLOOKUP(B9,'[1]2022-23'!G:J,4,0) -> 158804.68 | G9: =VLOOKUP(B9,'[1]2023-24'!G:J,4,0) -> 237667.03 | I9: 419382.01 | J9: CLSD | L9: 2
B10: BAA-PQA-000042 | C10: RELIEF OF FEHON-SOMERVILLE | D10: =VLOOKUP(B10,'[1]2020-21'!G:J,4,0) -> 111102.62 | E10: =VLOOKUP(B10,'[1]2021-22'!G:I,3,0) -> 180686.77 | I10: 291789.39 | J10: CLSD
B11: BAA-PQA-000043 | C11: RELIEF OF CARROL-ORRONG & CARROL-WHITELA | E11: =VLOOKUP(B11,'[1]2021-22'!G:I,3,0) -> 111152.08 | F11: =VLOOKUP(B11,'[1]2022-23'!G:J,4,0) -> 13955.36 | I11: 125107.44 | J11: CLSD
B12: BAA-PQA-000044 | C12: RELIEF OF GRAHAM 138-SYLVIA | D12: =VLOOKUP(B12,'[1]2020-21'!G:J,4,0) -> 185295.45 | E12: =VLOOKUP(B12,'[1]2021-22'!G:I,3,0) -> 44433.2 | I12: 229728.65 | J12: CLSD
B13: BAA-PQA-000046 | C13: RELIEF OF ALOHA-WATT | D13: =VLOOKUP(B13,'[1]2020-21'!G:J,4,0) -> 134980.12 | I13: 134980.12 | J13: CLSD
B14: BAA-PQA-000047 | C14: RELIEF OF WEBB-QUEENSVILLE | D14: =VLOOKUP(B14,'[1]2020-21'!G:J,4,0) -> 119774.03 | E14: =VLOOKUP(B14,'[1]2021-22'!G:I,3,0) -> 23687.09 | I14: =SUM(E14:H14) -> 23687.09 | J14: CLSD
B15: BAA-PQA-000049 | C15: RELIEF OF MELBOURNE-PASCO | E15: =VLOOKUP(B15,'[1]2021-22'!G:I,3,0) -> 15208.41 | F15: =VLOOKUP(B15,'[1]2022-23'!G:J,4,0) -> 228908.12 | G15: =VLOOKUP(B15,'[1]2023-24'!G:J,4,0) -> 110436.13 | I15: 354552.66 | J15: CLSD | L15: 2
B16: BAA-PQA-000050 | C16: RELIEF OF MELROSE-SOMERS | F16: =VLOOKUP(B16,'[1]2022-23'!G:J,4,0) -> 12586.6 | G16: =VLOOKUP(B16,'[1]2023-24'!G:J,4,0) -> 200723.27 | I16: 213309.87 | J16: CLSD | L16: 2
B17: BAA-PQA-000051 | C17: RELIEF OF FINLAYSON-BRAIDHILL | F17: =VLOOKUP(B17,'[1]2022-23'!G:J,4,0) -> 19512.93 | G17: =VLOOKUP(B17,'[1]2023-24'!G:J,4,0) -> 360099.83 | I17: 379612.76 | J17: CLSD | L17: 1
B18: BAA-PQA-000052 | C18: RELIEF OF SUSSEX-NEWCASTLE | F18: =VLOOKUP(B18,'[1]2022-23'!G:J,4,0) -> 281.26 | G18: =VLOOKUP(B18,'[1]2023-24'!G:J,4,0) -> 196471.56 | H18: =VLOOKUP(B18,'[1]2024-25'!G:J,4,0) -> 338355.31 | I18: 535108.13 | J18: =VLOOKUP(B18,'[1]2024-25'!G:I,3,0) -> CLSD | L18: 2
B19: BAA-PQA-000053 | C19: RELIEF OF KIERNAN_UPP HEIDELBERG | F19: =VLOOKUP(B19,'[1]2022-23'!G:J,4,0) -> 211.3 | G19: =VLOOKUP(B19,'[1]2023-24'!G:J,4,0) -> 41030.3 | H19: =VLOOKUP(B19,'[1]2024-25'!G:J,4,0) -> 442127.56 | I19: 483369.16 | J19: =VLOOKUP(B19,'[1]2024-25'!G:I,3,0) -> CLSD | L19: 1
B20: BAA-PQA-000054 | C20: RELIEF OF WESTGATE-HATTER | F20: =VLOOKUP(B20,'[1]2022-23'!G:J,4,0) -> 211.3 | G20: =VLOOKUP(B20,'[1]2023-24'!G:J,4,0) -> 120758.15 | H20: =VLOOKUP(B20,'[1]2024-25'!G:J,4,0) -> 122692.42 | I20: 243661.87 | J20: =VLOOKUP(B20,'[1]2024-25'!G:I,3,0) -> CLSD | L20: 2
B21: BAA-PQA-000055 | C21: RELIEF OF MCCRAE-ELSEY | F21: =VLOOKUP(B21,'[1]2022-23'!G:J,4,0) -> 211.3 | G21: =VLOOKUP(B21,'[1]2023-24'!G:J,4,0) -> 36652.36 | H21: =VLOOKUP(B21,'[1]2024-25'!G:J,4,0) -> 908946.63 | I21: 945810.29 | J21: =VLOOKUP(B21,'[1]2024-25'!G:I,3,0) -> CLSD | L21: 2
B22: BAA-PQA-000056 | C22: RELIEF OF ERIC-ADA | F22: =VLOOKUP(B22,'[1]2022-23'!G:J,4,0) -> 281.26 | G22: =VLOOKUP(B22,'[1]2023-24'!G:J,4,0) -> 245404.18 | H22: =VLOOKUP(B22,'[1]2024-25'!G:J,4,0) -> 102400.93 | I22: 348086.37 | J22: =VLOOKUP(B22,'[1]2024-25'!G:I,3,0) -> CLSD | L22: 2
B23: BAA-PQA-000057 | C23: RE LOCATE THE PQM METER | G23: =VLOOKUP(B23,'[1]2023-24'!G:J,4,0) -> 21731.64 | I23: 21731.64 | J23: CLSD
B24: BAA-PQA-000061 | C24: RELIEF OF KITCHENER-MURRAY | G24: =VLOOKUP(B24,'[1]2023-24'!G:J,4,0) -> 2644.83 | H24: =VLOOKUP(B24,'[1]2024-25'!G:J,4,0) -> 714725.46 | I24: 717370.29 | J24: =VLOOKUP(B24,'[1]2024-25'!G:I,3,0) -> REL
B25: BAA-PQA-000062 | C25: RELIEF OF PLENTY RESERVOIR COLLEGE | G25: =VLOOKUP(B25,'[1]2023-24'!G:J,4,0) -> 12692.34 | H25: =VLOOKUP(B25,'[1]2024-25'!G:J,4,0) -> 143069.45 | I25: 155761.79 | J25: =VLOOKUP(B25,'[1]2024-25'!G:I,3,0) -> REL
B26: BAA-PQA-000068 | C26: RELIEF OF WAIORA-DOUGHARTY | H26: =VLOOKUP(B26,'[1]2024-25'!G:J,4,0) -> 74060.24 | I26: 74060.24 | J26: =VLOOKUP(B26,'[1]2024-25'!G:I,3,0) -> REL
B27: BAA-PQA-000070 | C27: RELIEF OF BEAUCHAMP-HIGH | H27: =VLOOKUP(B27,'[1]2024-25'!G:J,4,0) -> 280.78 | I27: 280.78 | J27: =VLOOKUP(B27,'[1]2024-25'!G:I,3,0) -> REL
B28: BAA-PQA-000071 | C28: RELIEF OF BLENHEIM-WOODS | H28: =VLOOKUP(B28,'[1]2024-25'!G:J,4,0) -> 438096.33 | I28: 438096.33 | J28: =VLOOKUP(B28,'[1]2024-25'!G:I,3,0) -> REL
B29: BAA-PQA-000072 | C29: YARRA BEND FF ELSPEC G4 EOF PQM RELOC | H29: =VLOOKUP(B29,'[1]2024-25'!G:J,4,0) -> 25 | I29: 25 | J29: =VLOOKUP(B29,'[1]2024-25'!G:I,3,0) -> REL
B30: BAA-PQA-000073 | C30: RELIEF OF ST LEONARDS-EPSOM | H30: =VLOOKUP(B30,'[1]2024-25'!G:J,4,0) -> 148147.92 | I30: 148147.92 | J30: =VLOOKUP(B30,'[1]2024-25'!G:I,3,0) -> REL
B31: BAA-PQA-000074 | C31: RELIEF OF O'CONNOR-WHITBY | H31: =VLOOKUP(B31,'[1]2024-25'!G:J,4,0) -> 95837.23 | I31: 95837.23 | J31: =VLOOKUP(B31,'[1]2024-25'!G:I,3,0) -> REL
B32: BAA-PQA-000075 | C32: RELIEF OF HAWDON-BROWN | H32: =VLOOKUP(B32,'[1]2024-25'!G:J,4,0) -> 5720.73 | I32: 5720.73 | J32: =VLOOKUP(B32,'[1]2024-25'!G:I,3,0) -> REL
B33: BAA-PQA-000076 | C33: RELIEF OF JOFFRE-KENT | H33: =VLOOKUP(B33,'[1]2024-25'!G:J,4,0) -> 13697.82 | I33: 13697.82 | J33: =VLOOKUP(B33,'[1]2024-25'!G:I,3,0) -> REL
B34: BAA-PQA-000077 | C34: RELIEF OF CHALLIS-JUBILLEE | H34: =VLOOKUP(B34,'[1]2024-25'!G:J,4,0) -> 5038.9 | I34: 5038.9 | J34: =VLOOKUP(B34,'[1]2024-25'!G:I,3,0) -> REL
B35: BAA-PQA-000083 | C35: RELIEF OF WATT-THE AVENUE | H35: =VLOOKUP(B35,'[1]2024-25'!G:J,4,0) -> 256.73 | I35: 256.73 | J35: =VLOOKUP(B35,'[1]2024-25'!G:I,3,0) -> REL
B36: BAA-PQA-000085 | C36: RELIEF OF THORPE-WOODS | H36: =VLOOKUP(B36,'[1]2024-25'!G:J,4,0) -> 455.04 | I36: 455.04 | J36: =VLOOKUP(B36,'[1]2024-25'!G:I,3,0) -> REL
H41: Total | I41: =SUM(I9,I15,I16,I17,I18,I19,I20,I21,I22) -> 3922893.12 | L41: =SUM(L9,L15,L16,L17,L18,L19,L20,L21,L22) -> 16
H42: Unit cost ($2024, direct cost without overheads, per DSS with PQA) | I42: =I41/L41 -> 245180.82
H45: Augmentation required to deliver 15.98% under-voltage improvement with updated DSS augmentation unit rate of $245k per DSS
H46: Unit cost ($2024, direct cost without overheads, per DSS with PQA) | I46: =I42 -> 245180.82
H47: Number of DSS augmentation to deliver 15.98% improvement to meet 5% compliance | I47: 35
H48: One-off total capex required to deliver improvement to maintain EDCoP under-voltage 5% compliance ($2024, direct cost without overheads) | I48: =I46*I47 -> 8581328.7

Sheet Option_4
D1: Voltage PQ Management Strategy | H1: Section Check: | I1: =IF(COUNTA($A$8:$A$127)=COUNTIF($A$8:$A$127,0),"Ok","Check") -> Ok | L1: Overall Check: | M1: Ok | O1: Legend: | P1: Input | Q1: Internal | R1: Select | S1: Calculation
D2: =Summary!$K15 -> Option 4 - DVM only
B6: Copyright Jemena Limited. All rights reserved. Jemena is not liable for any loss caused by reliance on this document.
B8: General Assumptions
C10: =B8 -> General Assumptions
D12: =C10 -> General Assumptions | E12: Source | F12: Unit | G12: Basis
J13: Start | K13: End
D14: Next Regulatory Period | E14: AM | F14: Year | G14: n/a | J14: =General!J16 -> 2027 | K14: =J14+4 -> 2031
D15: This Regulatory Period | E15: AM | F15: Year | G15: n/a | J15: =K15-4 -> 2022 | K15: =J14-1 -> 2026
B17: Option
C19: Summary
D21: =C19&" ($M)" -> Summary ($M) | E21: Period | J21: Total DVM Cost | K21: Total Cost | L21: PV Total Cost
D23: =D14 -> Next Regulatory Period | E23: =$J$14&" - "&$K$14 -> 2027 - 2031 | J23: =SUMIFS($K$72:$K$103,$J$72:$J$103,">="&J14,$J$72:$J$103,"<="&K14) -> 14.09656855 | K23: =SUMIFS($K$37:$K$124,$J$37:$J$124,">="&$J14,$J$37:$J$124,"<="&$K14) -> 23.24931855 | L23: =SUMIFS($L$37:$L$124,$J$37:$J$124,">="&$J14,$J$37:$J$124,"<="&$K14) -> 17.91907917
D24: =D15 -> This Regulatory Period | E24: =$J$15&" - "&$K$15 -> 2022 - 2026 | J24: =SUMIFS($K$72:$K$103,$J$72:$J$103,">="&J15,$J$72:$J$103,"<="&K15) -> 7.511157003 | K24: =SUMIFS($K$37:$K$124,$J$37:$J$124,">="&$J15,$J$37:$J$124,"<="&$K15) -> 7.511157003 | L24: =SUMIFS($L$37:$L$124,$J$37:$J$124,">="&$J15,$J$37:$J$124,"<="&$K15) -> 7.239633912
C26: Inputs
D28: =C26 -> Inputs | E28: Source | F28: Unit
I29: Year | J29: 2024 | K29: =J29+1 -> 2025 | L29: =K29+1 -> 2026 | M29: 2027 | N29: 2028 | O29: 2029 | P29: 2030 | Q29: 2031 | R29: 2032
D30: VRR replacement per TX ($M) | E30: AM | F30: $M | I30: Unit Rate | J30: 0.2072553912 | K30: 0.218380026 | L30: 0.2301017863 | M30: 0.230875732 | N30: 0.2371350002 | O30: 0.2370089385 | P30: 0.2368829439 | Q30: 0.2367570162 | R30: 0.2366311555
D31: DVM Integration per ZSS ($M) | E31: AM | F31: $M | I31: Unit Rate | J31: 0.4578389395 | K31: 0.4876642334 | L31: 0.5194324555 | M31: 0.5238314488 | N31: 0.5423304445 | O31: 0.5415392179 | P31: 0.5407491456 | Q31: 0.539960226 | R31: 0.5391724574
I32: Reconcile | J32: =SUMIF($J$72:$J$101,J$29,$K$72:$K$101) -> 1.330188661 | K32: =SUMIF($J$72:$J$101,K$29,$K$72:$K$101) -> 1.412088519 | L32: 1.499068484 | M32: 2.725873006 | N32: 2.338396334 | O32: 3.892740782 | P32: 5.139558425 | Q32: 0 | R32: 0
C33: Calculations
M34: Forecast Compliance
D35: =D2 -> Option 4 - DVM only | J35: Indicative Year | K35: Cost ($M) | L35: PV Cost ($M) | M35: =M71 -> 2027 | N35: 2028 | O35: 2029 | P35: 2030 | Q35: 2031 | R35: 2032
D36: PROJECT & LOCATION | I36: TOTAL | J36: =J14&" - "&J14+General!J15-1 -> 2027 - 2031 | K36: =SUMIFS(K$37:K$124,$J$37:$J$124,">="&$J$14,$J$37:$J$124,"<="&J14+General!J15-1) -> 23.24931855 | L36: =SUMIFS(L$37:L$124,$J$37:$J$124,">="&$J$14,$J$37:$J$124,"<="&J14+General!J15-1) -> 17.91907917 | M36: =Compliance!M43-SUM(M72:M101) -> 0.04319823253 | N36: =Compliance!N43-SUM(N72:N101) -> 0.02602340414 | O36: =Compliance!O43-SUM(O72:O101) -> 0.02975915356 | P36: =Compliance!P43-SUM(P72:P101) -> 0.03725858062 | Q36: =Compliance!Q43-SUM(Q72:Q101) -> 0.04646582887 | R36: =Compliance!R43-SUM(R72:R101) -> 0.05859317334
D37: =Option_2D!D37 -> Reactors
D43: =Option_2D!D43 -> VAr controllers
D55: =Option_2D!D55 -> Traditional for voltage spread to support DVM
D56: =Option_2D!D56 -> EPN | J56: =Option_2D!J56 -> 2027 | K56: =Option_2D!K56 -> 0.04107 | L56: =Option_2D!L56 -> 0.03497577319
D57: =Option_2D!D57 -> EP0 | J57: =Option_2D!J57 -> 2027 | K57: =Option_2D!K57 -> 0.04107 | L57: =Option_2D!L57 -> 0.03497577319
D58: =Option_2D!D58 -> AW0 | J58: =Option_2D!J58 -> 2028 | K58: =Option_2D!K58 -> 0.04107 | L58: =Option_2D!L58 -> 0.03315239165
D59: =Option_2D!D59 -> NS0 | J59: =Option_2D!J59 -> 2028 | K59: =Option_2D!K59 -> 0.04107 | L59: =Option_2D!L59 -> 0.03315239165
D60: =Option_2D!D60 -> FT0 | J60: =Option_2D!J60 -> 2028 | K60: =Option_2D!K60 -> 0.04107 | L60: =Option_2D!L60 -> 0.03315239165
D61: =Option_2D!D61 -> TMA | J61: =Option_2D!J61 -> 2028 | K61: =Option_2D!K61 -> 0.04107 | L61: =Option_2D!L61 -> 0.03315239165
D62: =Option_2D!D62 -> TH0 | J62: =Option_2D!J62 -> 2029 | K62: =Option_2D!K62 -> 0.04107 | L62: =Option_2D!L62 -> 0.03142406791
D63: =Option_2D!D63 -> PTN | J63: =Option_2D!J63 -> 2029 | K63: =Option_2D!K63 -> 0.04107 | L63: =Option_2D!L63 -> 0.03142406791
D64: =Option_2D!D64 -> YVE | J64: =Option_2D!J64 -> 2029 | K64: =Option_2D!K64 -> 0.04107 | L64: =Option_2D!L64 -> 0.03142406791
D65: =Option_2D!D65 -> FF0 | J65: =Option_2D!J65 -> 2029 | K65: =Option_2D!K65 -> 0.04107 | L65: =Option_2D!L65 -> 0.03142406791
D66: =Option_2D!D66 -> BY0 | J66: =Option_2D!J66 -> 2029 | K66: =Option_2D!K66 -> 0.04107 | L66: =Option_2D!L66 -> 0.03142406791
D67: =Option_2D!D67 -> ES0 | J67: =Option_2D!J67 -> 2030 | K67: =Option_2D!K67 -> 0.04107 | L67: =Option_2D!L67 -> 0.02978584636
D68: =Option_2D!D68 -> HB0 | J68: =Option_2D!J68 -> 2031 | K68: =Option_2D!K68 -> 0.04107 | L68: =Option_2D!L68 -> 0.02823302973
D69: =Option_2D!D69 -> PV0 | J69: =Option_2D!J69 -> 2031 | K69: =Option_2D!K69 -> 0.04107 | L69: =Option_2D!L69 -> 0.02823302973
D70: =Option_2D!D70 -> BMS | J70: =Option_2D!J70 -> 2031 | K70: =Option_2D!K70 -> 0.04107 | L70: =Option_2D!L70 -> 0.02823302973
D71: =Option_2D!D71 -> DVM Rollout | M71: =Option_2D!M71 -> 2027 | N71: =Option_2D!N71 -> 2028 | O71: =Option_2D!O71 -> 2029 | P71: =Option_2D!P71 -> 2030 | Q71: =Option_2D!Q71 -> 2031 | R71: =Option_2D!R71 -> 2032
D72: =Option_2D!D72 -> AW0 | J72: =Option_2D!J72 -> 2024 | K72: =Option_2D!K72 -> 0.4578389395 | L72: =Option_2D!L72 -> 0.4578389395 | M72: =IFERROR(HLOOKUP(MAX(VLOOKUP(VLOOKUP($D72,Compliance!$D$11:$E$41,2,FALSE),OLTC_Taps!$D$147:$K$173,6,FALSE),1),{1,2,3,4,5,6,7,8,9;0,0.5,0.75,1,1,1,1,1,1},2,FALSE),0)* IF(ISERROR(VLOOKUP($D72,Option_2D!$F$38:$F$54,1,FALSE)),1,0)* Option_2D!M72 -> 0.001524614886 | N72: =IFERROR(HLOOKUP(MAX(VLOOKUP(VLOOKUP($D72,Compliance!$D$11:$E$41,2,FALSE),OLTC_Taps!$D$147:$K$173,6,FALSE),1),{1,2,3,4,5,6,7,8,9;0,0.5,0.75,1,1,1,1,1,1},2,FALSE),0)* IF(ISERROR(VLOOKUP($D72,Option_2D!$F$38:$F$54,1,FALSE)),1,0)* Option_2D!N72 -> 0.001524614886 | O72: =IFERROR(HLOOKUP(MAX(VLOOKUP(VLOOKUP($D72,Compliance!$D$11:$E$41,2,FALSE),OLTC_Taps!$D$147:$K$173,6,FALSE),1),{1,2,3,4,5,6,7,8,9;0,0.5,0.75,1,1,1,1,1,1},2,FALSE),0)* IF(ISERROR(VLOOKUP($D72,Option_2D!$F$38:$F$54,1,FALSE)),1,0)* Option_2D!O72 -> 0.001524614886 | P72: =IFERROR(HLOOKUP(MAX(VLOOKUP(VLOOKUP($D72,Compliance!$D$11:$E$41,2,FALSE),OLTC_Taps!$D$147:$K$173,7,FALSE),1),{1,2,3,4,5,6,7,8,9;0,0.5,0.75,1,1,1,1,1,1},2,FALSE),0)* IF(ISERROR(VLOOKUP($D72,Option_2D!$F$38:$F$54,1,FALSE)),1,0)* Option_2D!P72 -> 0.001143461164 | Q72: =IFERROR(HLOOKUP(MAX(VLOOKUP(VLOOKUP($D72,Compliance!$D$11:$E$41,2,FALSE),OLTC_Taps!$D$147:$K$173,7,FALSE),1),{1,2,3,4,5,6,7,8,9;0,0.5,0.75,1,1,1,1,1,1},2,FALSE),0)* IF(ISERROR(VLOOKUP($D72,Option_2D!$F$38:$F$54,1,FALSE)),1,0)* Option_2D!Q72 -> 0.001143461164 | R72: =IFERROR(HLOOKUP(MAX(VLOOKUP(VLOOKUP($D72,Compliance!$D$11:$E$41,2,FALSE),OLTC_Taps!$D$147:$K$173,7,FALSE),1),{1,2,3,4,5,6,7,8,9;0,0.5,0.75,1,1,1,1,1,1},2,FALSE),0)* IF(ISERROR(VLOOKUP($D72,Option_2D!$F$38:$F$54,1,FALSE)),1,0)* Option_2D!R72 -> 0.001143461164
D73: =Option_2D!D73 -> CS0 | J73: =Option_2D!J73 -> 2024 | K73: =Option_2D!K73 -> 0.8723497219 | L73: =Option_2D!L73 -> 0.8723497219 | M73: =IFERROR(HLOOKUP(MAX(VLOOKUP(VLOOKUP($D73,Compliance!$D$11:$E$41,2,FALSE),OLTC_Taps!$D$147:$K$173,6,FALSE),1),{1,2,3,4,5,6,7,8,9;0,0.5,0.75,1,1,1,1,1,1},2,FALSE),0)* IF(ISERROR(VLOOKUP($D73,Option_2D!$F$38:$F$54,1,FALSE)),1,0)* Option_2D!M73 -> 0 | N73: =IFERROR(HLOOKUP(MAX(VLOOKUP(VLOOKUP($D73,Compliance!$D$11:$E$41,2,FALSE),OLTC_Taps!$D$147:$K$173,6,FALSE),1),{1,2,3,4,5,6,7,8,9;0,0.5,0.75,1,1,1,1,1,1},2,FALSE),0)* IF(ISERROR(VLOOKUP($D73,Option_2D!$F$38:$F$54,1,FALSE)),1,0)* Option_2D!N73 -> 0 | O73: =IFERROR(HLOOKUP(MAX(VLOOKUP(VLOOKUP($D73,Compliance!$D$11:$E$41,2,FALSE),OLTC_Taps!$D$147:$K$173,6,FALSE),1),{1,2,3,4,5,6,7,8,9;0,0.5,0.75,1,1,1,1,1,1},2,FALSE),0)* IF(ISERROR(VLOOKUP($D73,Option_2D!$F$38:$F$54,1,FALSE)),1,0)* Option_2D!O73 -> 0 | P73: =IFERROR(HLOOKUP(MAX(VLOOKUP(VLOOKUP($D73,Compliance!$D$11:$E$41,2,FALSE),OLTC_Taps!$D$147:$K$173,7,FALSE),1),{1,2,3,4,5,6,7,8,9;0,0.5,0.75,1,1,1,1,1,1},2,FALSE),0)* IF(ISERROR(VLOOKUP($D73,Option_2D!$F$38:$F$54,1,FALSE)),1,0)* Option_2D!P73 -> 0 | Q73: =IFERROR(HLOOKUP(MAX(VLOOKUP(VLOOKUP($D73,Compliance!$D$11:$E$41,2,FALSE),OLTC_Taps!$D$147:$K$173,7,FALSE),1),{1,2,3,4,5,6,7,8,9;0,0.5,0.75,1,1,1,1,1,1},2,FALSE),0)* IF(ISERROR(VLOOKUP($D73,Option_2D!$F$38:$F$54,1,FALSE)),1,0)* Option_2D!Q73 -> 0 | R73: =IFERROR(HLOOKUP(MAX(VLOOKUP(VLOOKUP($D73,Compliance!$D$11:$E$41,2,FALSE),OLTC_Taps!$D$147:$K$173,7,FALSE),1),{1,2,3,4,5,6,7,8,9;0,0.5,0.75,1,1,1,1,1,1},2,FALSE),0)* IF(ISERROR(VLOOKUP($D73,Option_2D!$F$38:$F$54,1,FALSE)),1,0)* Option_2D!R73 -> 0
D74: =Option_2D!D74 -> PTN | J74: =Option_2D!J74 -> 2025 | K74: =Option_2D!K74 -> 0.4876642334 | L74: =Option_2D!L74 -> 0.4622409796 | M74: =IFERROR(HLOOKUP(MAX(VLOOKUP(VLOOKUP($D74,Compliance!$D$11:$E$41,2,FALSE),OLTC_Taps!$D$147:$K$173,6,FALSE),1),{1,2,3,4,5,6,7,8,9;0,0.5,0.75,1,1,1,1,1,1},2,FALSE),0)* IF(ISERROR(VLOOKUP($D74,Option_2D!$F$38:$F$54,1,FALSE)),1,0)* Option_2D!M74 -> 0.0009319604346 | N74: =IFERROR(HLOOKUP(MAX(VLOOKUP(VLOOKUP($D74,Compliance!$D$11:$E$41,2,FALSE),OLTC_Taps!$D$147:$K$173,6,FALSE),1),{1,2,3,4,5,6,7,8,9;0,0.5,0.75,1,1,1,1,1,1},2,FALSE),0)* IF(ISERROR(VLOOKUP($D74,Option_2D!$F$38:$F$54,1,FALSE)),1,0)* Option_2D!N74 -> 0.0009319604346 | O74: =IFERROR(HLOOKUP(MAX(VLOOKUP(VLOOKUP($D74,Compliance!$D$11:$E$41,2,FALSE),OLTC_Taps!$D$147:$K$173,6,FALSE),1),{1,2,3,4,5,6,7,8,9;0,0.5,0.75,1,1,1,1,1,1},2,FALSE),0)* IF(ISERROR(VLOOKUP($D74,Option_2D!$F$38:$F$54,1,FALSE)),1,0)* Option_2D!O74 -> 0.0009319604346 | P74: =IFERROR(HLOOKUP(MAX(VLOOKUP(VLOOKUP($D74,Compliance!$D$11:$E$41,2,FALSE),OLTC_Taps!$D$147:$K$173,7,FALSE),1),{1,2,3,4,5,6,7,8,9;0,0.5,0.75,1,1,1,1,1,1},2,FALSE),0)* IF(ISERROR(VLOOKUP($D74,Option_2D!$F$38:$F$54,1,FALSE)),1,0)* Option_2D!P74 -> 0.0009319604346 | Q74: =IFERROR(HLOOKUP(MAX(VLOOKUP(VLOOKUP($D74,Compliance!$D$11:$E$41,2,FALSE),OLTC_Taps!$D$147:$K$173,7,FALSE),1),{1,2,3,4,5,6,7,8,9;0,0.5,0.75,1,1,1,1,1,1},2,FALSE),0)* IF(ISERROR(VLOOKUP($D74,Option_2D!$F$38:$F$54,1,FALSE)),1,0)* Option_2D!Q74 -> 0.0009319604346 | R74: =IFERROR(HLOOKUP(MAX(VLOOKUP(VLOOKUP($D74,Compliance!$D$11:$E$41,2,FALSE),OLTC_Taps!$D$147:$K$173,7,FALSE),1),{1,2,3,4,5,6,7,8,9;0,0.5,0.75,1,1,1,1,1,1},2,FALSE),0)* IF(ISERROR(VLOOKUP($D74,Option_2D!$F$38:$F$54,1,FALSE)),1,0)* Option_2D!R74 -> 0.0009319604346
D75: =Option_2D!D75 -> HB0 | J75: =Option_2D!J75 -> 2025 | K75: =Option_2D!K75 -> 0.9244242854 | L75: =Option_2D!L75 -> 0.8305512324 | M75: =IFERROR(HLOOKUP(MAX(VLOOKUP(VLOOKUP($D75,Compliance!$D$11:$E$41,2,FALSE),OLTC_Taps!$D$147:$K$173,6,FALSE),1),{1,2,3,4,5,6,7,8,9;0,0.5,0.75,1,1,1,1,1,1},2,FALSE),0)* IF(ISERROR(VLOOKUP($D75,Option_2D!$F$38:$F$54,1,FALSE)),1,0)* Option_2D!M75 -> 0.0001492946327 | N75: =IFERROR(HLOOKUP(MAX(VLOOKUP(VLOOKUP($D75,Compliance!$D$11:$E$41,2,FALSE),OLTC_Taps!$D$147:$K$173,6,FALSE),1),{1,2,3,4,5,6,7,8,9;0,0.5,0.75,1,1,1,1,1,1},2,FALSE),0)* IF(ISERROR(VLOOKUP($D75,Option_2D!$F$38:$F$54,1,FALSE)),1,0)* Option_2D!N75 -> 0.0001492946327 | O75: =IFERROR(HLOOKUP(MAX(VLOOKUP(VLOOKUP($D75,Compliance!$D$11:$E$41,2,FALSE),OLTC_Taps!$D$147:$K$173,6,FALSE),1),{1,2,3,4,5,6,7,8,9;0,0.5,0.75,1,1,1,1,1,1},2,FALSE),0)* IF(ISERROR(VLOOKUP($D75,Option_2D!$F$38:$F$54,1,FALSE)),1,0)* Option_2D!O75 -> 0.0001492946327 | P75: =IFERROR(HLOOKUP(MAX(VLOOKUP(VLOOKUP($D75,Compliance!$D$11:$E$41,2,FALSE),OLTC_Taps!$D$147:$K$173,7,FALSE),1),{1,2,3,4,5,6,7,8,9;0,0.5,0.75,1,1,1,1,1,1},2,FALSE),0)* IF(ISERROR(VLOOKUP($D75,Option_2D!$F$38:$F$54,1,FALSE)),1,0)* Option_2D!P75 -> 0.0001492946327 | Q75: =IFERROR(HLOOKUP(MAX(VLOOKUP(VLOOKUP($D75,Compliance!$D$11:$E$41,2,FALSE),OLTC_Taps!$D$147:$K$173,7,FALSE),1),{1,2,3,4,5,6,7,8,9;0,0.5,0.75,1,1,1,1,1,1},2,FALSE),0)* IF(ISERROR(VLOOKUP($D75,Option_2D!$F$38:$F$54,1,FALSE)),1,0)* Option_2D!Q75 -> 0.0001492946327 | R75: =IFERROR(HLOOKUP(MAX(VLOOKUP(VLOOKUP($D75,Compliance!$D$11:$E$41,2,FALSE),OLTC_Taps!$D$147:$K$173,7,FALSE),1),{1,2,3,4,5,6,7,8,9;0,0.5,0.75,1,1,1,1,1,1},2,FALSE),0)* IF(ISERROR(VLOOKUP($D75,Option_2D!$F$38:$F$54,1,FALSE)),1,0)* Option_2D!R75 -> 0.0001492946327
D76: =Option_2D!D76 -> SBY | J76: =Option_2D!J76 -> 2026 | K76: =Option_2D!K76 -> 0.5194324555 | L76: =Option_2D!L76 -> 0.4666853445 | M76: =IFERROR(HLOOKUP(MAX(VLOOKUP(VLOOKUP($D76,Compliance!$D$11:$E$41,2,FALSE),OLTC_Taps!$D$147:$K$173,6,FALSE),1),{1,2,3,4,5,6,7,8,9;0,0.5,0.75,1,1,1,1,1,1},2,FALSE),0)* IF(ISERROR(VLOOKUP($D76,Option_2D!$F$38:$F$54,1,FALSE)),1,0)* Option_2D!M76 -> 0 | N76: =IFERROR(HLOOKUP(MAX(VLOOKUP(VLOOKUP($D76,Compliance!$D$11:$E$41,2,FALSE),OLTC_Taps!$D$147:$K$173,6,FALSE),1),{1,2,3,4,5,6,7,8,9;0,0.5,0.75,1,1,1,1,1,1},2,FALSE),0)* IF(ISERROR(VLOOKUP($D76,Option_2D!$F$38:$F$54,1,FALSE)),1,0)* Option_2D!N76 -> 0 | O76: =IFERROR(HLOOKUP(MAX(VLOOKUP(VLOOKUP($D76,Compliance!$D$11:$E$41,2,FALSE),OLTC_Taps!$D$147:$K$173,6,FALSE),1),{1,2,3,4,5,6,7,8,9;0,0.5,0.75,1,1,1,1,1,1},2,FALSE),0)* IF(ISERROR(VLOOKUP($D76,Option_2D!$F$38:$F$54,1,FALSE)),1,0)* Option_2D!O76 -> 0 | P76: =IFERROR(HLOOKUP(MAX(VLOOKUP(VLOOKUP($D76,Compliance!$D$11:$E$41,2,FALSE),OLTC_Taps!$D$147:$K$173,7,FALSE),1),{1,2,3,4,5,6,7,8,9;0,0.5,0.75,1,1,1,1,1,1},2,FALSE),0)* IF(ISERROR(VLOOKUP($D76,Option_2D!$F$38:$F$54,1,FALSE)),1,0)* Option_2D!P76 -> 0 | Q76: =IFERROR(HLOOKUP(MAX(VLOOKUP(VLOOKUP($D76,Compliance!$D$11:$E$41,2,FALSE),OLTC_Taps!$D$147:$K$173,7,FALSE),1),{1,2,3,4,5,6,7,8,9;0,0.5,0.75,1,1,1,1,1,1},2,FALSE),0)* IF(ISERROR(VLOOKUP($D76,Option_2D!$F$38:$F$54,1,FALSE)),1,0)* Option_2D!Q76 -> 0 | R76: =IFERROR(HLOOKUP(MAX(VLOOKUP(VLOOKUP($D76,Compliance!$D$11:$E$41,2,FALSE),OLTC_Taps!$D$147:$K$173,7,FALSE),1),{1,2,3,4,5,6,7,8,9;0,0.5,0.75,1,1,1,1,1,1},2,FALSE),0)* IF(ISERROR(VLOOKUP($D76,Option_2D!$F$38:$F$54,1,FALSE)),1,0)* Option_2D!R76 -> 0
D77: =Option_2D!D77 -> FE0 | J77: =Option_2D!J77 -> 2026 | K77: =Option_2D!K77 -> 0.9796360282 | L77: =Option_2D!L77 -> 0.880156356 | M77: =IFERROR(HLOOKUP(MAX(VLOOKUP(VLOOKUP($D77,Compliance!$D$11:$E$41,2,FALSE),OLTC_Taps!$D$147:$K$173,6,FALSE),1),{1,2,3,4,5,6,7,8,9;0,0.5,0.75,1,1,1,1,1,1},2,FALSE),0)* IF(ISERROR(VLOOKUP($D77,Option_2D!$F$38:$F$54,1,FALSE)),1,0)* Option_2D!M77 -> 0.0007796497487 | N77: =IFERROR(HLOOKUP(MAX(VLOOKUP(VLOOKUP($D77,Compliance!$D$11:$E$41,2,FALSE),OLTC_Taps!$D$147:$K$173,6,FALSE),1),{1,2,3,4,5,6,7,8,9;0,0.5,0.75,1,1,1,1,1,1},2,FALSE),0)* IF(ISERROR(VLOOKUP($D77,Option_2D!$F$38:$F$54,1,FALSE)),1,0)* Option_2D!N77 -> 0.0007796497487 | O77: =IFERROR(HLOOKUP(MAX(VLOOKUP(VLOOKUP($D77,Compliance!$D$11:$E$41,2,FALSE),OLTC_Taps!$D$147:$K$173,6,FALSE),1),{1,2,3,4,5,6,7,8,9;0,0.5,0.75,1,1,1,1,1,1},2,FALSE),0)* IF(ISERROR(VLOOKUP($D77,Option_2D!$F$38:$F$54,1,FALSE)),1,0)* Option_2D!O77 -> 0.0007796497487 | P77: =IFERROR(HLOOKUP(MAX(VLOOKUP(VLOOKUP($D77,Compliance!$D$11:$E$41,2,FALSE),OLTC_Taps!$D$147:$K$173,7,FALSE),1),{1,2,3,4,5,6,7,8,9;0,0.5,0.75,1,1,1,1,1,1},2,FALSE),0)* IF(ISERROR(VLOOKUP($D77,Option_2D!$F$38:$F$54,1,FALSE)),1,0)* Option_2D!P77 -> 0.0005847373115 | Q77: =IFERROR(HLOOKUP(MAX(VLOOKUP(VLOOKUP($D77,Compliance!$D$11:$E$41,2,FALSE),OLTC_Taps!$D$147:$K$173,7,FALSE),1),{1,2,3,4,5,6,7,8,9;0,0.5,0.75,1,1,1,1,1,1},2,FALSE),0)* IF(ISERROR(VLOOKUP($D77,Option_2D!$F$38:$F$54,1,FALSE)),1,0)* Option_2D!Q77 -> 0.0005847373115 | R77: =IFERROR(HLOOKUP(MAX(VLOOKUP(VLOOKUP($D77,Compliance!$D$11:$E$41,2,FALSE),OLTC_Taps!$D$147:$K$173,7,FALSE),1),{1,2,3,4,5,6,7,8,9;0,0.5,0.75,1,1,1,1,1,1},2,FALSE),0)* IF(ISERROR(VLOOKUP($D77,Option_2D!$F$38:$F$54,1,FALSE)),1,0)* Option_2D!R77 -> 0.0005847373115
D78: =Option_2D!D78 -> NS0 | J78: =Option_2D!J78 -> 2027 | K78: =Option_2D!K78 -> 0.5238314488 | L78: =Option_2D!L78 -> 0.4461020195 | M78: =IFERROR(HLOOKUP(MAX(VLOOKUP(VLOOKUP($D78,Compliance!$D$11:$E$41,2,FALSE),OLTC_Taps!$D$147:$K$173,6,FALSE),1),{1,2,3,4,5,6,7,8,9;0,0.5,0.75,1,1,1,1,1,1},2,FALSE),0)* IF(ISERROR(VLOOKUP($D78,Option_2D!$F$38:$F$54,1,FALSE)),1,0)* Option_2D!M78 -> 0 | N78: =IFERROR(HLOOKUP(MAX(VLOOKUP(VLOOKUP($D78,Compliance!$D$11:$E$41,2,FALSE),OLTC_Taps!$D$147:$K$173,6,FALSE),1),{1,2,3,4,5,6,7,8,9;0,0.5,0.75,1,1,1,1,1,1},2,FALSE),0)* IF(ISERROR(VLOOKUP($D78,Option_2D!$F$38:$F$54,1,FALSE)),1,0)* Option_2D!N78 -> 0.01486612616 | O78: =IFERROR(HLOOKUP(MAX(VLOOKUP(VLOOKUP($D78,Compliance!$D$11:$E$41,2,FALSE),OLTC_Taps!$D$147:$K$173,6,FALSE),1),{1,2,3,4,5,6,7,8,9;0,0.5,0.75,1,1,1,1,1,1},2,FALSE),0)* IF(ISERROR(VLOOKUP($D78,Option_2D!$F$38:$F$54,1,FALSE)),1,0)* Option_2D!O78 -> 0.01486612616 | P78: =IFERROR(HLOOKUP(MAX(VLOOKUP(VLOOKUP($D78,Compliance!$D$11:$E$41,2,FALSE),OLTC_Taps!$D$147:$K$173,7,FALSE),1),{1,2,3,4,5,6,7,8,9;0,0.5,0.75,1,1,1,1,1,1},2,FALSE),0)* IF(ISERROR(VLOOKUP($D78,Option_2D!$F$38:$F$54,1,FALSE)),1,0)* Option_2D!P78 -> 0.01486612616 | Q78: =IFERROR(HLOOKUP(MAX(VLOOKUP(VLOOKUP($D78,Compliance!$D$11:$E$41,2,FALSE),OLTC_Taps!$D$147:$K$173,7,FALSE),1),{1,2,3,4,5,6,7,8,9;0,0.5,0.75,1,1,1,1,1,1},2,FALSE),0)* IF(ISERROR(VLOOKUP($D78,Option_2D!$F$38:$F$54,1,FALSE)),1,0)* Option_2D!Q78 -> 0.01486612616 | R78: =IFERROR(HLOOKUP(MAX(VLOOKUP(VLOOKUP($D78,Compliance!$D$11:$E$41,2,FALSE),OLTC_Taps!$D$147:$K$173,7,FALSE),1),{1,2,3,4,5,6,7,8,9;0,0.5,0.75,1,1,1,1,1,1},2,FALSE),0)* IF(ISERROR(VLOOKUP($D78,Option_2D!$F$38:$F$54,1,FALSE)),1,0)* Option_2D!R78 -> 0.01486612616
D79: =Option_2D!D79 -> ST0 | J79: =Option_2D!J79 -> 2027 | K79: =Option_2D!K79 -> 1.216458645 | L79: =Option_2D!L79 -> 1.035952804 | M79: =IFERROR(HLOOKUP(MAX(VLOOKUP(VLOOKUP($D79,Compliance!$D$11:$E$41,2,FALSE),OLTC_Taps!$D$147:$K$173,6,FALSE),1),{1,2,3,4,5,6,7,8,9;0,0.5,0.75,1,1,1,1,1,1},2,FALSE),0)* IF(ISERROR(VLOOKUP($D79,Option_2D!$F$38:$F$54,1,FALSE)),1,0)* Option_2D!M79 -> 0 | N79: =IFERROR(HLOOKUP(MAX(VLOOKUP(VLOOKUP($D79,Compliance!$D$11:$E$41,2,FALSE),OLTC_Taps!$D$147:$K$173,6,FALSE),1),{1,2,3,4,5,6,7,8,9;0,0.5,0.75,1,1,1,1,1,1},2,FALSE),0)* IF(ISERROR(VLOOKUP($D79,Option_2D!$F$38:$F$54,1,FALSE)),1,0)* Option_2D!N79 -> 0 | O79: =IFERROR(HLOOKUP(MAX(VLOOKUP(VLOOKUP($D79,Compliance!$D$11:$E$41,2,FALSE),OLTC_Taps!$D$147:$K$173,6,FALSE),1),{1,2,3,4,5,6,7,8,9;0,0.5,0.75,1,1,1,1,1,1},2,FALSE),0)* IF(ISERROR(VLOOKUP($D79,Option_2D!$F$38:$F$54,1,FALSE)),1,0)* Option_2D!O79 -> 0 | P79: =IFERROR(HLOOKUP(MAX(VLOOKUP(VLOOKUP($D79,Compliance!$D$11:$E$41,2,FALSE),OLTC_Taps!$D$147:$K$173,7,FALSE),1),{1,2,3,4,5,6,7,8,9;0,0.5,0.75,1,1,1,1,1,1},2,FALSE),0)* IF(ISERROR(VLOOKUP($D79,Option_2D!$F$38:$F$54,1,FALSE)),1,0)* Option_2D!P79 -> 0 | Q79: =IFERROR(HLOOKUP(MAX(VLOOKUP(VLOOKUP($D79,Compliance!$D$11:$E$41,2,FALSE),OLTC_Taps!$D$147:$K$173,7,FALSE),1),{1,2,3,4,5,6,7,8,9;0,0.5,0.75,1,1,1,1,1,1},2,FALSE),0)* IF(ISERROR(VLOOKUP($D79,Option_2D!$F$38:$F$54,1,FALSE)),1,0)* Option_2D!Q79 -> 0 | R79: =IFERROR(HLOOKUP(MAX(VLOOKUP(VLOOKUP($D79,Compliance!$D$11:$E$41,2,FALSE),OLTC_Taps!$D$147:$K$173,7,FALSE),1),{1,2,3,4,5,6,7,8,9;0,0.5,0.75,1,1,1,1,1,1},2,FALSE),0)* IF(ISERROR(VLOOKUP($D79,Option_2D!$F$38:$F$54,1,FALSE)),1,0)* Option_2D!R79 -> 0
D80: =Option_2D!D80 -> SHM | J80: =Option_2D!J80 -> 2027 | K80: =Option_2D!K80 -> 0.9855829128 | L80: =Option_2D!L80 -> 0.8393358757 | M80: =IFERROR(HLOOKUP(MAX(VLOOKUP(VLOOKUP($D80,Compliance!$D$11:$E$41,2,FALSE),OLTC_Taps!$D$147:$K$173,6,FALSE),1),{1,2,3,4,5,6,7,8,9;0,0.5,0.75,1,1,1,1,1,1},2,FALSE),0)* IF(ISERROR(VLOOKUP($D80,Option_2D!$F$38:$F$54,1,FALSE)),1,0)* Option_2D!M80 -> 0 | N80: =IFERROR(HLOOKUP(MAX(VLOOKUP(VLOOKUP($D80,Compliance!$D$11:$E$41,2,FALSE),OLTC_Taps!$D$147:$K$173,6,FALSE),1),{1,2,3,4,5,6,7,8,9;0,0.5,0.75,1,1,1,1,1,1},2,FALSE),0)* IF(ISERROR(VLOOKUP($D80,Option_2D!$F$38:$F$54,1,FALSE)),1,0)* Option_2D!N80 -> 0 | O80: =IFERROR(HLOOKUP(MAX(VLOOKUP(VLOOKUP($D80,Compliance!$D$11:$E$41,2,FALSE),OLTC_Taps!$D$147:$K$173,6,FALSE),1),{1,2,3,4,5,6,7,8,9;0,0.5,0.75,1,1,1,1,1,1},2,FALSE),0)* IF(ISERROR(VLOOKUP($D80,Option_2D!$F$38:$F$54,1,FALSE)),1,0)* Option_2D!O80 -> 0 | P80: =IFERROR(HLOOKUP(MAX(VLOOKUP(VLOOKUP($D80,Compliance!$D$11:$E$41,2,FALSE),OLTC_Taps!$D$147:$K$173,7,FALSE),1),{1,2,3,4,5,6,7,8,9;0,0.5,0.75,1,1,1,1,1,1},2,FALSE),0)* IF(ISERROR(VLOOKUP($D80,Option_2D!$F$38:$F$54,1,FALSE)),1,0)* Option_2D!P80 -> 0 | Q80: =IFERROR(HLOOKUP(MAX(VLOOKUP(VLOOKUP($D80,Compliance!$D$11:$E$41,2,FALSE),OLTC_Taps!$D$147:$K$173,7,FALSE),1),{1,2,3,4,5,6,7,8,9;0,0.5,0.75,1,1,1,1,1,1},2,FALSE),0)* IF(ISERROR(VLOOKUP($D80,Option_2D!$F$38:$F$54,1,FALSE)),1,0)* Option_2D!Q80 -> 0 | R80: =IFERROR(HLOOKUP(MAX(VLOOKUP(VLOOKUP($D80,Compliance!$D$11:$E$41,2,FALSE),OLTC_Taps!$D$147:$K$173,7,FALSE),1),{1,2,3,4,5,6,7,8,9;0,0.5,0.75,1,1,1,1,1,1},2,FALSE),0)* IF(ISERROR(VLOOKUP($D80,Option_2D!$F$38:$F$54,1,FALSE)),1,0)* Option_2D!R80 -> 0
D81: =Option_2D!D81 -> TT0 | J81: =Option_2D!J81 -> 2028 | K81: =Option_2D!K81 -> 1.253735445 | L81: =Option_2D!L81 -> 1.012036243 | M81: =IFERROR(HLOOKUP(MAX(VLOOKUP(VLOOKUP($D81,Compliance!$D$11:$E$41,2,FALSE),OLTC_Taps!$D$147:$K$173,6,FALSE),1),{1,2,3,4,5,6,7,8,9;0,0.5,0.75,1,1,1,1,1,1},2,FALSE),0)* IF(ISERROR(VLOOKUP($D81,Option_2D!$F$38:$F$54,1,FALSE)),1,0)* Option_2D!M81 -> 0 | N81: =IFERROR(HLOOKUP(MAX(VLOOKUP(VLOOKUP($D81,Compliance!$D$11:$E$41,2,FALSE),OLTC_Taps!$D$147:$K$173,6,FALSE),1),{1,2,3,4,5,6,7,8,9;0,0.5,0.75,1,1,1,1,1,1},2,FALSE),0)* IF(ISERROR(VLOOKUP($D81,Option_2D!$F$38:$F$54,1,FALSE)),1,0)* Option_2D!N81 -> 0 | O81: =IFERROR(HLOOKUP(MAX(VLOOKUP(VLOOKUP($D81,Compliance!$D$11:$E$41,2,FALSE),OLTC_Taps!$D$147:$K$173,6,FALSE),1),{1,2,3,4,5,6,7,8,9;0,0.5,0.75,1,1,1,1,1,1},2,FALSE),0)* IF(ISERROR(VLOOKUP($D81,Option_2D!$F$38:$F$54,1,FALSE)),1,0)* Option_2D!O81 -> 0 | P81: =IFERROR(HLOOKUP(MAX(VLOOKUP(VLOOKUP($D81,Compliance!$D$11:$E$41,2,FALSE),OLTC_Taps!$D$147:$K$173,7,FALSE),1),{1,2,3,4,5,6,7,8,9;0,0.5,0.75,1,1,1,1,1,1},2,FALSE),0)* IF(ISERROR(VLOOKUP($D81,Option_2D!$F$38:$F$54,1,FALSE)),1,0)* Option_2D!P81 -> 0 | Q81: =IFERROR(HLOOKUP(MAX(VLOOKUP(VLOOKUP($D81,Compliance!$D$11:$E$41,2,FALSE),OLTC_Taps!$D$147:$K$173,7,FALSE),1),{1,2,3,4,5,6,7,8,9;0,0.5,0.75,1,1,1,1,1,1},2,FALSE),0)* IF(ISERROR(VLOOKUP($D81,Option_2D!$F$38:$F$54,1,FALSE)),1,0)* Option_2D!Q81 -> 0 | R81: =IFERROR(HLOOKUP(MAX(VLOOKUP(VLOOKUP($D81,Compliance!$D$11:$E$41,2,FALSE),OLTC_Taps!$D$147:$K$173,7,FALSE),1),{1,2,3,4,5,6,7,8,9;0,0.5,0.75,1,1,1,1,1,1},2,FALSE),0)* IF(ISERROR(VLOOKUP($D81,Option_2D!$F$38:$F$54,1,FALSE)),1,0)* Option_2D!R81 -> 0
D82: =Option_2D!D82 -> BD0 | J82: =Option_2D!J82 -> 2028 | K82: =Option_2D!K82 -> 0.5423304445 | L82: =Option_2D!L82 -> 0.4377782152 | M82: =IFERROR(HLOOKUP(MAX(VLOOKUP(VLOOKUP($D82,Compliance!$D$11:$E$41,2,FALSE),OLTC_Taps!$D$147:$K$173,6,FALSE),1),{1,2,3,4,5,6,7,8,9;0,0.5,0.75,1,1,1,1,1,1},2,FALSE),0)* IF(ISERROR(VLOOKUP($D82,Option_2D!$F$38:$F$54,1,FALSE)),1,0)* Option_2D!M82 -> 0 | N82: =IFERROR(HLOOKUP(MAX(VLOOKUP(VLOOKUP($D82,Compliance!$D$11:$E$41,2,FALSE),OLTC_Taps!$D$147:$K$173,6,FALSE),1),{1,2,3,4,5,6,7,8,9;0,0.5,0.75,1,1,1,1,1,1},2,FALSE),0)* IF(ISERROR(VLOOKUP($D82,Option_2D!$F$38:$F$54,1,FALSE)),1,0)* Option_2D!N82 -> 0 | O82: =IFERROR(HLOOKUP(MAX(VLOOKUP(VLOOKUP($D82,Compliance!$D$11:$E$41,2,FALSE),OLTC_Taps!$D$147:$K$173,6,FALSE),1),{1,2,3,4,5,6,7,8,9;0,0.5,0.75,1,1,1,1,1,1},2,FALSE),0)* IF(ISERROR(VLOOKUP($D82,Option_2D!$F$38:$F$54,1,FALSE)),1,0)* Option_2D!O82 -> 0 | P82: =IFERROR(HLOOKUP(MAX(VLOOKUP(VLOOKUP($D82,Compliance!$D$11:$E$41,2,FALSE),OLTC_Taps!$D$147:$K$173,7,FALSE),1),{1,2,3,4,5,6,7,8,9;0,0.5,0.75,1,1,1,1,1,1},2,FALSE),0)* IF(ISERROR(VLOOKUP($D82,Option_2D!$F$38:$F$54,1,FALSE)),1,0)* Option_2D!P82 -> 0 | Q82: =IFERROR(HLOOKUP(MAX(VLOOKUP(VLOOKUP($D82,Compliance!$D$11:$E$41,2,FALSE),OLTC_Taps!$D$147:$K$173,7,FALSE),1),{1,2,3,4,5,6,7,8,9;0,0.5,0.75,1,1,1,1,1,1},2,FALSE),0)* IF(ISERROR(VLOOKUP($D82,Option_2D!$F$38:$F$54,1,FALSE)),1,0)* Option_2D!Q82 -> 0 | R82: =IFERROR(HLOOKUP(MAX(VLOOKUP(VLOOKUP($D82,Compliance!$D$11:$E$41,2,FALSE),OLTC_Taps!$D$147:$K$173,7,FALSE),1),{1,2,3,4,5,6,7,8,9;0,0.5,0.75,1,1,1,1,1,1},2,FALSE),0)* IF(ISERROR(VLOOKUP($D82,Option_2D!$F$38:$F$54,1,FALSE)),1,0)* Option_2D!R82 -> 0
D83: =Option_2D!D83 -> EPN | J83: =Option_2D!J83 -> 2028 | K83: =Option_2D!K83 -> 0.5423304445 | L83: =Option_2D!L83 -> 0.4377782152 | M83: =IFERROR(HLOOKUP(MAX(VLOOKUP(VLOOKUP($D83,Compliance!$D$11:$E$41,2,FALSE),OLTC_Taps!$D$147:$K$173,6,FALSE),1),{1,2,3,4,5,6,7,8,9;0,0.5,0.75,1,1,1,1,1,1},2,FALSE),0)* IF(ISERROR(VLOOKUP($D83,Option_2D!$F$38:$F$54,1,FALSE)),1,0)* Option_2D!M83 -> 0 | N83: =IFERROR(HLOOKUP(MAX(VLOOKUP(VLOOKUP($D83,Compliance!$D$11:$E$41,2,FALSE),OLTC_Taps!$D$147:$K$173,6,FALSE),1),{1,2,3,4,5,6,7,8,9;0,0.5,0.75,1,1,1,1,1,1},2,FALSE),0)* IF(ISERROR(VLOOKUP($D83,Option_2D!$F$38:$F$54,1,FALSE)),1,0)* Option_2D!N83 -> 0 | O83: =IFERROR(HLOOKUP(MAX(VLOOKUP(VLOOKUP($D83,Compliance!$D$11:$E$41,2,FALSE),OLTC_Taps!$D$147:$K$173,6,FALSE),1),{1,2,3,4,5,6,7,8,9;0,0.5,0.75,1,1,1,1,1,1},2,FALSE),0)* IF(ISERROR(VLOOKUP($D83,Option_2D!$F$38:$F$54,1,FALSE)),1,0)* Option_2D!O83 -> 0.0008837035836 | P83: =IFERROR(HLOOKUP(MAX(VLOOKUP(VLOOKUP($D83,Compliance!$D$11:$E$41,2,FALSE),OLTC_Taps!$D$147:$K$173,7,FALSE),1),{1,2,3,4,5,6,7,8,9;0,0.5,0.75,1,1,1,1,1,1},2,FALSE),0)* IF(ISERROR(VLOOKUP($D83,Option_2D!$F$38:$F$54,1,FALSE)),1,0)* Option_2D!P83 -> 0.0008837035836 | Q83: =IFERROR(HLOOKUP(MAX(VLOOKUP(VLOOKUP($D83,Compliance!$D$11:$E$41,2,FALSE),OLTC_Taps!$D$147:$K$173,7,FALSE),1),{1,2,3,4,5,6,7,8,9;0,0.5,0.75,1,1,1,1,1,1},2,FALSE),0)* IF(ISERROR(VLOOKUP($D83,Option_2D!$F$38:$F$54,1,FALSE)),1,0)* Option_2D!Q83 -> 0.0008837035836 | R83: =IFERROR(HLOOKUP(MAX(VLOOKUP(VLOOKUP($D83,Compliance!$D$11:$E$41,2,FALSE),OLTC_Taps!$D$147:$K$173,7,FALSE),1),{1,2,3,4,5,6,7,8,9;0,0.5,0.75,1,1,1,1,1,1},2,FALSE),0)* IF(ISERROR(VLOOKUP($D83,Option_2D!$F$38:$F$54,1,FALSE)),1,0)* Option_2D!R83 -> 0.0008837035836
D84: =Option_2D!D84 -> ES0 | J84: =Option_2D!J84 -> 2029 | K84: =Option_2D!K84 -> 0.5415392179 | L84: =Option_2D!L84 -> 0.4143502596 | M84: =IFERROR(HLOOKUP(MAX(VLOOKUP(VLOOKUP($D84,Compliance!$D$11:$E$41,2,FALSE),OLTC_Taps!$D$147:$K$173,6,FALSE),1),{1,2,3,4,5,6,7,8,9;0,0.5,0.75,1,1,1,1,1,1},2,FALSE),0)* IF(ISERROR(VLOOKUP($D84,Option_2D!$F$38:$F$54,1,FALSE)),1,0)* Option_2D!M84 -> 0 | N84: =IFERROR(HLOOKUP(MAX(VLOOKUP(VLOOKUP($D84,Compliance!$D$11:$E$41,2,FALSE),OLTC_Taps!$D$147:$K$173,6,FALSE),1),{1,2,3,4,5,6,7,8,9;0,0.5,0.75,1,1,1,1,1,1},2,FALSE),0)* IF(ISERROR(VLOOKUP($D84,Option_2D!$F$38:$F$54,1,FALSE)),1,0)* Option_2D!N84 -> 0 | O84: =IFERROR(HLOOKUP(MAX(VLOOKUP(VLOOKUP($D84,Compliance!$D$11:$E$41,2,FALSE),OLTC_Taps!$D$147:$K$173,6,FALSE),1),{1,2,3,4,5,6,7,8,9;0,0.5,0.75,1,1,1,1,1,1},2,FALSE),0)* IF(ISERROR(VLOOKUP($D84,Option_2D!$F$38:$F$54,1,FALSE)),1,0)* Option_2D!O84 -> 0 | P84: =IFERROR(HLOOKUP(MAX(VLOOKUP(VLOOKUP($D84,Compliance!$D$11:$E$41,2,FALSE),OLTC_Taps!$D$147:$K$173,7,FALSE),1),{1,2,3,4,5,6,7,8,9;0,0.5,0.75,1,1,1,1,1,1},2,FALSE),0)* IF(ISERROR(VLOOKUP($D84,Option_2D!$F$38:$F$54,1,FALSE)),1,0)* Option_2D!P84 -> 0 | Q84: =IFERROR(HLOOKUP(MAX(VLOOKUP(VLOOKUP($D84,Compliance!$D$11:$E$41,2,FALSE),OLTC_Taps!$D$147:$K$173,7,FALSE),1),{1,2,3,4,5,6,7,8,9;0,0.5,0.75,1,1,1,1,1,1},2,FALSE),0)* IF(ISERROR(VLOOKUP($D84,Option_2D!$F$38:$F$54,1,FALSE)),1,0)* Option_2D!Q84 -> 0 | R84: =IFERROR(HLOOKUP(MAX(VLOOKUP(VLOOKUP($D84,Compliance!$D$11:$E$41,2,FALSE),OLTC_Taps!$D$147:$K$173,7,FALSE),1),{1,2,3,4,5,6,7,8,9;0,0.5,0.75,1,1,1,1,1,1},2,FALSE),0)* IF(ISERROR(VLOOKUP($D84,Option_2D!$F$38:$F$54,1,FALSE)),1,0)* Option_2D!R84 -> 0
D85: =Option_2D!D85 -> TH0 | J85: =Option_2D!J85 -> 2029 | K85: =Option_2D!K85 -> 1.015557095 | L85: =Option_2D!L85 -> 0.7770376216 | M85: =IFERROR(HLOOKUP(MAX(VLOOKUP(VLOOKUP($D85,Compliance!$D$11:$E$41,2,FALSE),OLTC_Taps!$D$147:$K$173,6,FALSE),1),{1,2,3,4,5,6,7,8,9;0,0.5,0.75,1,1,1,1,1,1},2,FALSE),0)* IF(ISERROR(VLOOKUP($D85,Option_2D!$F$38:$F$54,1,FALSE)),1,0)* Option_2D!M85 -> 0 | N85: =IFERROR(HLOOKUP(MAX(VLOOKUP(VLOOKUP($D85,Compliance!$D$11:$E$41,2,FALSE),OLTC_Taps!$D$147:$K$173,6,FALSE),1),{1,2,3,4,5,6,7,8,9;0,0.5,0.75,1,1,1,1,1,1},2,FALSE),0)* IF(ISERROR(VLOOKUP($D85,Option_2D!$F$38:$F$54,1,FALSE)),1,0)* Option_2D!N85 -> 0 | O85: =IFERROR(HLOOKUP(MAX(VLOOKUP(VLOOKUP($D85,Compliance!$D$11:$E$41,2,FALSE),OLTC_Taps!$D$147:$K$173,6,FALSE),1),{1,2,3,4,5,6,7,8,9;0,0.5,0.75,1,1,1,1,1,1},2,FALSE),0)* IF(ISERROR(VLOOKUP($D85,Option_2D!$F$38:$F$54,1,FALSE)),1,0)* Option_2D!O85 -> 0 | P85: =IFERROR(HLOOKUP(MAX(VLOOKUP(VLOOKUP($D85,Compliance!$D$11:$E$41,2,FALSE),OLTC_Taps!$D$147:$K$173,7,FALSE),1),{1,2,3,4,5,6,7,8,9;0,0.5,0.75,1,1,1,1,1,1},2,FALSE),0)* IF(ISERROR(VLOOKUP($D85,Option_2D!$F$38:$F$54,1,FALSE)),1,0)* Option_2D!P85 -> 0 | Q85: =IFERROR(HLOOKUP(MAX(VLOOKUP(VLOOKUP($D85,Compliance!$D$11:$E$41,2,FALSE),OLTC_Taps!$D$147:$K$173,7,FALSE),1),{1,2,3,4,5,6,7,8,9;0,0.5,0.75,1,1,1,1,1,1},2,FALSE),0)* IF(ISERROR(VLOOKUP($D85,Option_2D!$F$38:$F$54,1,FALSE)),1,0)* Option_2D!Q85 -> 0 | R85: =IFERROR(HLOOKUP(MAX(VLOOKUP(VLOOKUP($D85,Compliance!$D$11:$E$41,2,FALSE),OLTC_Taps!$D$147:$K$173,7,FALSE),1),{1,2,3,4,5,6,7,8,9;0,0.5,0.75,1,1,1,1,1,1},2,FALSE),0)* IF(ISERROR(VLOOKUP($D85,Option_2D!$F$38:$F$54,1,FALSE)),1,0)* Option_2D!R85 -> 0
D86: =Option_2D!D86 -> FF0 | J86: =Option_2D!J86 -> 2029 | K86: =Option_2D!K86 -> 0.5415392179 | L86: =Option_2D!L86 -> 0.4143502596 | M86: =IFERROR(HLOOKUP(MAX(VLOOKUP(VLOOKUP($D86,Compliance!$D$11:$E$41,2,FALSE),OLTC_Taps!$D$147:$K$173,6,FALSE),1),{1,2,3,4,5,6,7,8,9;0,0.5,0.75,1,1,1,1,1,1},2,FALSE),0)* IF(ISERROR(VLOOKUP($D86,Option_2D!$F$38:$F$54,1,FALSE)),1,0)* Option_2D!M86 -> 0 | N86: =IFERROR(HLOOKUP(MAX(VLOOKUP(VLOOKUP($D86,Compliance!$D$11:$E$41,2,FALSE),OLTC_Taps!$D$147:$K$173,6,FALSE),1),{1,2,3,4,5,6,7,8,9;0,0.5,0.75,1,1,1,1,1,1},2,FALSE),0)* IF(ISERROR(VLOOKUP($D86,Option_2D!$F$38:$F$54,1,FALSE)),1,0)* Option_2D!N86 -> 0 | O86: =IFERROR(HLOOKUP(MAX(VLOOKUP(VLOOKUP($D86,Compliance!$D$11:$E$41,2,FALSE),OLTC_Taps!$D$147:$K$173,6,FALSE),1),{1,2,3,4,5,6,7,8,9;0,0.5,0.75,1,1,1,1,1,1},2,FALSE),0)* IF(ISERROR(VLOOKUP($D86,Option_2D!$F$38:$F$54,1,FALSE)),1,0)* Option_2D!O86 -> 0 | P86: =IFERROR(HLOOKUP(MAX(VLOOKUP(VLOOKUP($D86,Compliance!$D$11:$E$41,2,FALSE),OLTC_Taps!$D$147:$K$173,7,FALSE),1),{1,2,3,4,5,6,7,8,9;0,0.5,0.75,1,1,1,1,1,1},2,FALSE),0)* IF(ISERROR(VLOOKUP($D86,Option_2D!$F$38:$F$54,1,FALSE)),1,0)* Option_2D!P86 -> 0 | Q86: =IFERROR(HLOOKUP(MAX(VLOOKUP(VLOOKUP($D86,Compliance!$D$11:$E$41,2,FALSE),OLTC_Taps!$D$147:$K$173,7,FALSE),1),{1,2,3,4,5,6,7,8,9;0,0.5,0.75,1,1,1,1,1,1},2,FALSE),0)* IF(ISERROR(VLOOKUP($D86,Option_2D!$F$38:$F$54,1,FALSE)),1,0)* Option_2D!Q86 -> 0 | R86: =IFERROR(HLOOKUP(MAX(VLOOKUP(VLOOKUP($D86,Compliance!$D$11:$E$41,2,FALSE),OLTC_Taps!$D$147:$K$173,7,FALSE),1),{1,2,3,4,5,6,7,8,9;0,0.5,0.75,1,1,1,1,1,1},2,FALSE),0)* IF(ISERROR(VLOOKUP($D86,Option_2D!$F$38:$F$54,1,FALSE)),1,0)* Option_2D!R86 -> 0
D87: =Option_2D!D87 -> NH0 | J87: =Option_2D!J87 -> 2029 | K87: =Option_2D!K87 -> 1.252566033 | L87: =Option_2D!L87 -> 0.9583813027 | M87: =IFERROR(HLOOKUP(MAX(VLOOKUP(VLOOKUP($D87,Compliance!$D$11:$E$41,2,FALSE),OLTC_Taps!$D$147:$K$173,6,FALSE),1),{1,2,3,4,5,6,7,8,9;0,0.5,0.75,1,1,1,1,1,1},2,FALSE),0)* IF(ISERROR(VLOOKUP($D87,Option_2D!$F$38:$F$54,1,FALSE)),1,0)* Option_2D!M87 -> 0 | N87: =IFERROR(HLOOKUP(MAX(VLOOKUP(VLOOKUP($D87,Compliance!$D$11:$E$41,2,FALSE),OLTC_Taps!$D$147:$K$173,6,FALSE),1),{1,2,3,4,5,6,7,8,9;0,0.5,0.75,1,1,1,1,1,1},2,FALSE),0)* IF(ISERROR(VLOOKUP($D87,Option_2D!$F$38:$F$54,1,FALSE)),1,0)* Option_2D!N87 -> 0 | O87: =IFERROR(HLOOKUP(MAX(VLOOKUP(VLOOKUP($D87,Compliance!$D$11:$E$41,2,FALSE),OLTC_Taps!$D$147:$K$173,6,FALSE),1),{1,2,3,4,5,6,7,8,9;0,0.5,0.75,1,1,1,1,1,1},2,FALSE),0)* IF(ISERROR(VLOOKUP($D87,Option_2D!$F$38:$F$54,1,FALSE)),1,0)* Option_2D!O87 -> 0 | P87: =IFERROR(HLOOKUP(MAX(VLOOKUP(VLOOKUP($D87,Compliance!$D$11:$E$41,2,FALSE),OLTC_Taps!$D$147:$K$173,7,FALSE),1),{1,2,3,4,5,6,7,8,9;0,0.5,0.75,1,1,1,1,1,1},2,FALSE),0)* IF(ISERROR(VLOOKUP($D87,Option_2D!$F$38:$F$54,1,FALSE)),1,0)* Option_2D!P87 -> 0 | Q87: =IFERROR(HLOOKUP(MAX(VLOOKUP(VLOOKUP($D87,Compliance!$D$11:$E$41,2,FALSE),OLTC_Taps!$D$147:$K$173,7,FALSE),1),{1,2,3,4,5,6,7,8,9;0,0.5,0.75,1,1,1,1,1,1},2,FALSE),0)* IF(ISERROR(VLOOKUP($D87,Option_2D!$F$38:$F$54,1,FALSE)),1,0)* Option_2D!Q87 -> 0 | R87: =IFERROR(HLOOKUP(MAX(VLOOKUP(VLOOKUP($D87,Compliance!$D$11:$E$41,2,FALSE),OLTC_Taps!$D$147:$K$173,7,FALSE),1),{1,2,3,4,5,6,7,8,9;0,0.5,0.75,1,1,1,1,1,1},2,FALSE),0)* IF(ISERROR(VLOOKUP($D87,Option_2D!$F$38:$F$54,1,FALSE)),1,0)* Option_2D!R87 -> 0
D88: =Option_2D!D88 -> TMA | J88: =Option_2D!J88 -> 2029 | K88: =Option_2D!K88 -> 0.5415392179 | L88: =Option_2D!L88 -> 0.4143502596 | M88: =IFERROR(HLOOKUP(MAX(VLOOKUP(VLOOKUP($D88,Compliance!$D$11:$E$41,2,FALSE),OLTC_Taps!$D$147:$K$173,6,FALSE),1),{1,2,3,4,5,6,7,8,9;0,0.5,0.75,1,1,1,1,1,1},2,FALSE),0)* IF(ISERROR(VLOOKUP($D88,Option_2D!$F$38:$F$54,1,FALSE)),1,0)* Option_2D!M88 -> 0 | N88: =IFERROR(HLOOKUP(MAX(VLOOKUP(VLOOKUP($D88,Compliance!$D$11:$E$41,2,FALSE),OLTC_Taps!$D$147:$K$173,6,FALSE),1),{1,2,3,4,5,6,7,8,9;0,0.5,0.75,1,1,1,1,1,1},2,FALSE),0)* IF(ISERROR(VLOOKUP($D88,Option_2D!$F$38:$F$54,1,FALSE)),1,0)* Option_2D!N88 -> 0 | O88: =IFERROR(HLOOKUP(MAX(VLOOKUP(VLOOKUP($D88,Compliance!$D$11:$E$41,2,FALSE),OLTC_Taps!$D$147:$K$173,6,FALSE),1),{1,2,3,4,5,6,7,8,9;0,0.5,0.75,1,1,1,1,1,1},2,FALSE),0)* IF(ISERROR(VLOOKUP($D88,Option_2D!$F$38:$F$54,1,FALSE)),1,0)* Option_2D!O88 -> 0 | P88: =IFERROR(HLOOKUP(MAX(VLOOKUP(VLOOKUP($D88,Compliance!$D$11:$E$41,2,FALSE),OLTC_Taps!$D$147:$K$173,7,FALSE),1),{1,2,3,4,5,6,7,8,9;0,0.5,0.75,1,1,1,1,1,1},2,FALSE),0)* IF(ISERROR(VLOOKUP($D88,Option_2D!$F$38:$F$54,1,FALSE)),1,0)* Option_2D!P88 -> 0.0002895411059 | Q88: =IFERROR(HLOOKUP(MAX(VLOOKUP(VLOOKUP($D88,Compliance!$D$11:$E$41,2,FALSE),OLTC_Taps!$D$147:$K$173,7,FALSE),1),{1,2,3,4,5,6,7,8,9;0,0.5,0.75,1,1,1,1,1,1},2,FALSE),0)* IF(ISERROR(VLOOKUP($D88,Option_2D!$F$38:$F$54,1,FALSE)),1,0)* Option_2D!Q88 -> 0.0002895411059 | R88: =IFERROR(HLOOKUP(MAX(VLOOKUP(VLOOKUP($D88,Compliance!$D$11:$E$41,2,FALSE),OLTC_Taps!$D$147:$K$173,7,FALSE),1),{1,2,3,4,5,6,7,8,9;0,0.5,0.75,1,1,1,1,1,1},2,FALSE),0)* IF(ISERROR(VLOOKUP($D88,Option_2D!$F$38:$F$54,1,FALSE)),1,0)* Option_2D!R88 -> 0.0002895411059
D89: =Option_2D!D89 -> CN0 | J89: =Option_2D!J89 -> 2030 | K89: =Option_2D!K89 -> 1.251397977 | L89: =Option_2D!L89 -> 0.9075711685 | M89: =IFERROR(HLOOKUP(MAX(VLOOKUP(VLOOKUP($D89,Compliance!$D$11:$E$41,2,FALSE),OLTC_Taps!$D$147:$K$173,6,FALSE),1),{1,2,3,4,5,6,7,8,9;0,0.5,0.75,1,1,1,1,1,1},2,FALSE),0)* IF(ISERROR(VLOOKUP($D89,Option_2D!$F$38:$F$54,1,FALSE)),1,0)* Option_2D!M89 -> 0 | N89: =IFERROR(HLOOKUP(MAX(VLOOKUP(VLOOKUP($D89,Compliance!$D$11:$E$41,2,FALSE),OLTC_Taps!$D$147:$K$173,6,FALSE),1),{1,2,3,4,5,6,7,8,9;0,0.5,0.75,1,1,1,1,1,1},2,FALSE),0)* IF(ISERROR(VLOOKUP($D89,Option_2D!$F$38:$F$54,1,FALSE)),1,0)* Option_2D!N89 -> 0 | O89: =IFERROR(HLOOKUP(MAX(VLOOKUP(VLOOKUP($D89,Compliance!$D$11:$E$41,2,FALSE),OLTC_Taps!$D$147:$K$173,6,FALSE),1),{1,2,3,4,5,6,7,8,9;0,0.5,0.75,1,1,1,1,1,1},2,FALSE),0)* IF(ISERROR(VLOOKUP($D89,Option_2D!$F$38:$F$54,1,FALSE)),1,0)* Option_2D!O89 -> 0 | P89: =IFERROR(HLOOKUP(MAX(VLOOKUP(VLOOKUP($D89,Compliance!$D$11:$E$41,2,FALSE),OLTC_Taps!$D$147:$K$173,7,FALSE),1),{1,2,3,4,5,6,7,8,9;0,0.5,0.75,1,1,1,1,1,1},2,FALSE),0)* IF(ISERROR(VLOOKUP($D89,Option_2D!$F$38:$F$54,1,FALSE)),1,0)* Option_2D!P89 -> 0 | Q89: =IFERROR(HLOOKUP(MAX(VLOOKUP(VLOOKUP($D89,Compliance!$D$11:$E$41,2,FALSE),OLTC_Taps!$D$147:$K$173,7,FALSE),1),{1,2,3,4,5,6,7,8,9;0,0.5,0.75,1,1,1,1,1,1},2,FALSE),0)* IF(ISERROR(VLOOKUP($D89,Option_2D!$F$38:$F$54,1,FALSE)),1,0)* Option_2D!Q89 -> 0 | R89: =IFERROR(HLOOKUP(MAX(VLOOKUP(VLOOKUP($D89,Compliance!$D$11:$E$41,2,FALSE),OLTC_Taps!$D$147:$K$173,7,FALSE),1),{1,2,3,4,5,6,7,8,9;0,0.5,0.75,1,1,1,1,1,1},2,FALSE),0)* IF(ISERROR(VLOOKUP($D89,Option_2D!$F$38:$F$54,1,FALSE)),1,0)* Option_2D!R89 -> 0
D90: =Option_2D!D90 -> BMS | J90: =Option_2D!J90 -> 2030 | K90: =Option_2D!K90 -> 0.5407491456 | L90: =Option_2D!L90 -> 0.3921760646 | M90: =IFERROR(HLOOKUP(MAX(VLOOKUP(VLOOKUP($D90,Compliance!$D$11:$E$41,2,FALSE),OLTC_Taps!$D$147:$K$173,6,FALSE),1),{1,2,3,4,5,6,7,8,9;0,0.5,0.75,1,1,1,1,1,1},2,FALSE),0)* IF(ISERROR(VLOOKUP($D90,Option_2D!$F$38:$F$54,1,FALSE)),1,0)* Option_2D!M90 -> 0 | N90: =IFERROR(HLOOKUP(MAX(VLOOKUP(VLOOKUP($D90,Compliance!$D$11:$E$41,2,FALSE),OLTC_Taps!$D$147:$K$173,6,FALSE),1),{1,2,3,4,5,6,7,8,9;0,0.5,0.75,1,1,1,1,1,1},2,FALSE),0)* IF(ISERROR(VLOOKUP($D90,Option_2D!$F$38:$F$54,1,FALSE)),1,0)* Option_2D!N90 -> 0 | O90: =IFERROR(HLOOKUP(MAX(VLOOKUP(VLOOKUP($D90,Compliance!$D$11:$E$41,2,FALSE),OLTC_Taps!$D$147:$K$173,6,FALSE),1),{1,2,3,4,5,6,7,8,9;0,0.5,0.75,1,1,1,1,1,1},2,FALSE),0)* IF(ISERROR(VLOOKUP($D90,Option_2D!$F$38:$F$54,1,FALSE)),1,0)* Option_2D!O90 -> 0 | P90: =IFERROR(HLOOKUP(MAX(VLOOKUP(VLOOKUP($D90,Compliance!$D$11:$E$41,2,FALSE),OLTC_Taps!$D$147:$K$173,7,FALSE),1),{1,2,3,4,5,6,7,8,9;0,0.5,0.75,1,1,1,1,1,1},2,FALSE),0)* IF(ISERROR(VLOOKUP($D90,Option_2D!$F$38:$F$54,1,FALSE)),1,0)* Option_2D!P90 -> 0 | Q90: =IFERROR(HLOOKUP(MAX(VLOOKUP(VLOOKUP($D90,Compliance!$D$11:$E$41,2,FALSE),OLTC_Taps!$D$147:$K$173,7,FALSE),1),{1,2,3,4,5,6,7,8,9;0,0.5,0.75,1,1,1,1,1,1},2,FALSE),0)* IF(ISERROR(VLOOKUP($D90,Option_2D!$F$38:$F$54,1,FALSE)),1,0)* Option_2D!Q90 -> 0.0002880330793 | R90: =IFERROR(HLOOKUP(MAX(VLOOKUP(VLOOKUP($D90,Compliance!$D$11:$E$41,2,FALSE),OLTC_Taps!$D$147:$K$173,7,FALSE),1),{1,2,3,4,5,6,7,8,9;0,0.5,0.75,1,1,1,1,1,1},2,FALSE),0)* IF(ISERROR(VLOOKUP($D90,Option_2D!$F$38:$F$54,1,FALSE)),1,0)* Option_2D!R90 -> 0.0002880330793
D91: =Option_2D!D91 -> PV0 | J91: =Option_2D!J91 -> 2030 | K91: =Option_2D!K91 -> 1.251397977 | L91: =Option_2D!L91 -> 0.9075711685 | M91: =IFERROR(HLOOKUP(MAX(VLOOKUP(VLOOKUP($D91,Compliance!$D$11:$E$41,2,FALSE),OLTC_Taps!$D$147:$K$173,6,FALSE),1),{1,2,3,4,5,6,7,8,9;0,0.5,0.75,1,1,1,1,1,1},2,FALSE),0)* IF(ISERROR(VLOOKUP($D91,Option_2D!$F$38:$F$54,1,FALSE)),1,0)* Option_2D!M91 -> 0 | N91: =IFERROR(HLOOKUP(MAX(VLOOKUP(VLOOKUP($D91,Compliance!$D$11:$E$41,2,FALSE),OLTC_Taps!$D$147:$K$173,6,FALSE),1),{1,2,3,4,5,6,7,8,9;0,0.5,0.75,1,1,1,1,1,1},2,FALSE),0)* IF(ISERROR(VLOOKUP($D91,Option_2D!$F$38:$F$54,1,FALSE)),1,0)* Option_2D!N91 -> 0 | O91: =IFERROR(HLOOKUP(MAX(VLOOKUP(VLOOKUP($D91,Compliance!$D$11:$E$41,2,FALSE),OLTC_Taps!$D$147:$K$173,6,FALSE),1),{1,2,3,4,5,6,7,8,9;0,0.5,0.75,1,1,1,1,1,1},2,FALSE),0)* IF(ISERROR(VLOOKUP($D91,Option_2D!$F$38:$F$54,1,FALSE)),1,0)* Option_2D!O91 -> 0 | P91: =IFERROR(HLOOKUP(MAX(VLOOKUP(VLOOKUP($D91,Compliance!$D$11:$E$41,2,FALSE),OLTC_Taps!$D$147:$K$173,7,FALSE),1),{1,2,3,4,5,6,7,8,9;0,0.5,0.75,1,1,1,1,1,1},2,FALSE),0)* IF(ISERROR(VLOOKUP($D91,Option_2D!$F$38:$F$54,1,FALSE)),1,0)* Option_2D!P91 -> 0 | Q91: =IFERROR(HLOOKUP(MAX(VLOOKUP(VLOOKUP($D91,Compliance!$D$11:$E$41,2,FALSE),OLTC_Taps!$D$147:$K$173,7,FALSE),1),{1,2,3,4,5,6,7,8,9;0,0.5,0.75,1,1,1,1,1,1},2,FALSE),0)* IF(ISERROR(VLOOKUP($D91,Option_2D!$F$38:$F$54,1,FALSE)),1,0)* Option_2D!Q91 -> 0.0002729528134 | R91: =IFERROR(HLOOKUP(MAX(VLOOKUP(VLOOKUP($D91,Compliance!$D$11:$E$41,2,FALSE),OLTC_Taps!$D$147:$K$173,7,FALSE),1),{1,2,3,4,5,6,7,8,9;0,0.5,0.75,1,1,1,1,1,1},2,FALSE),0)* IF(ISERROR(VLOOKUP($D91,Option_2D!$F$38:$F$54,1,FALSE)),1,0)* Option_2D!R91 -> 0.0002729528134
D92: =Option_2D!D92 -> FT0 | J92: =Option_2D!J92 -> 2030 | K92: =Option_2D!K92 -> 0.5407491456 | L92: =Option_2D!L92 -> 0.3717308669 | M92: =IFERROR(HLOOKUP(MAX(VLOOKUP(VLOOKUP($D92,Compliance!$D$11:$E$41,2,FALSE),OLTC_Taps!$D$147:$K$173,6,FALSE),1),{1,2,3,4,5,6,7,8,9;0,0.5,0.75,1,1,1,1,1,1},2,FALSE),0)* IF(ISERROR(VLOOKUP($D92,Option_2D!$F$38:$F$54,1,FALSE)),1,0)* Option_2D!M92 -> 0 | N92: =IFERROR(HLOOKUP(MAX(VLOOKUP(VLOOKUP($D92,Compliance!$D$11:$E$41,2,FALSE),OLTC_Taps!$D$147:$K$173,6,FALSE),1),{1,2,3,4,5,6,7,8,9;0,0.5,0.75,1,1,1,1,1,1},2,FALSE),0)* IF(ISERROR(VLOOKUP($D92,Option_2D!$F$38:$F$54,1,FALSE)),1,0)* Option_2D!N92 -> 0 | O92: =IFERROR(HLOOKUP(MAX(VLOOKUP(VLOOKUP($D92,Compliance!$D$11:$E$41,2,FALSE),OLTC_Taps!$D$147:$K$173,6,FALSE),1),{1,2,3,4,5,6,7,8,9;0,0.5,0.75,1,1,1,1,1,1},2,FALSE),0)* IF(ISERROR(VLOOKUP($D92,Option_2D!$F$38:$F$54,1,FALSE)),1,0)* Option_2D!O92 -> 0 | P92: =IFERROR(HLOOKUP(MAX(VLOOKUP(VLOOKUP($D92,Compliance!$D$11:$E$41,2,FALSE),OLTC_Taps!$D$147:$K$173,7,FALSE),1),{1,2,3,4,5,6,7,8,9;0,0.5,0.75,1,1,1,1,1,1},2,FALSE),0)* IF(ISERROR(VLOOKUP($D92,Option_2D!$F$38:$F$54,1,FALSE)),1,0)* Option_2D!P92 -> 0 | Q92: =IFERROR(HLOOKUP(MAX(VLOOKUP(VLOOKUP($D92,Compliance!$D$11:$E$41,2,FALSE),OLTC_Taps!$D$147:$K$173,7,FALSE),1),{1,2,3,4,5,6,7,8,9;0,0.5,0.75,1,1,1,1,1,1},2,FALSE),0)* IF(ISERROR(VLOOKUP($D92,Option_2D!$F$38:$F$54,1,FALSE)),1,0)* Option_2D!Q92 -> 0.0002699367602 | R92: =IFERROR(HLOOKUP(MAX(VLOOKUP(VLOOKUP($D92,Compliance!$D$11:$E$41,2,FALSE),OLTC_Taps!$D$147:$K$173,7,FALSE),1),{1,2,3,4,5,6,7,8,9;0,0.5,0.75,1,1,1,1,1,1},2,FALSE),0)* IF(ISERROR(VLOOKUP($D92,Option_2D!$F$38:$F$54,1,FALSE)),1,0)* Option_2D!R92 -> 0.0002699367602
D93: =Option_2D!D93 -> COO | J93: =Option_2D!J93 -> 2030 | K93: =Option_2D!K93 -> 0.5407491456 | L93: =Option_2D!L93 -> 0.3921760646 | M93: =IFERROR(HLOOKUP(MAX(VLOOKUP(VLOOKUP($D93,Compliance!$D$11:$E$41,2,FALSE),OLTC_Taps!$D$147:$K$173,6,FALSE),1),{1,2,3,4,5,6,7,8,9;0,0.5,0.75,1,1,1,1,1,1},2,FALSE),0)* IF(ISERROR(VLOOKUP($D93,Option_2D!$F$38:$F$54,1,FALSE)),1,0)* Option_2D!M93 -> 0 | N93: =IFERROR(HLOOKUP(MAX(VLOOKUP(VLOOKUP($D93,Compliance!$D$11:$E$41,2,FALSE),OLTC_Taps!$D$147:$K$173,6,FALSE),1),{1,2,3,4,5,6,7,8,9;0,0.5,0.75,1,1,1,1,1,1},2,FALSE),0)* IF(ISERROR(VLOOKUP($D93,Option_2D!$F$38:$F$54,1,FALSE)),1,0)* Option_2D!N93 -> 0 | O93: =IFERROR(HLOOKUP(MAX(VLOOKUP(VLOOKUP($D93,Compliance!$D$11:$E$41,2,FALSE),OLTC_Taps!$D$147:$K$173,6,FALSE),1),{1,2,3,4,5,6,7,8,9;0,0.5,0.75,1,1,1,1,1,1},2,FALSE),0)* IF(ISERROR(VLOOKUP($D93,Option_2D!$F$38:$F$54,1,FALSE)),1,0)* Option_2D!O93 -> 0 | P93: =IFERROR(HLOOKUP(MAX(VLOOKUP(VLOOKUP($D93,Compliance!$D$11:$E$41,2,FALSE),OLTC_Taps!$D$147:$K$173,7,FALSE),1),{1,2,3,4,5,6,7,8,9;0,0.5,0.75,1,1,1,1,1,1},2,FALSE),0)* IF(ISERROR(VLOOKUP($D93,Option_2D!$F$38:$F$54,1,FALSE)),1,0)* Option_2D!P93 -> 0 | Q93: =IFERROR(HLOOKUP(MAX(VLOOKUP(VLOOKUP($D93,Compliance!$D$11:$E$41,2,FALSE),OLTC_Taps!$D$147:$K$173,7,FALSE),1),{1,2,3,4,5,6,7,8,9;0,0.5,0.75,1,1,1,1,1,1},2,FALSE),0)* IF(ISERROR(VLOOKUP($D93,Option_2D!$F$38:$F$54,1,FALSE)),1,0)* Option_2D!Q93 -> 0 | R93: =IFERROR(HLOOKUP(MAX(VLOOKUP(VLOOKUP($D93,Compliance!$D$11:$E$41,2,FALSE),OLTC_Taps!$D$147:$K$173,7,FALSE),1),{1,2,3,4,5,6,7,8,9;0,0.5,0.75,1,1,1,1,1,1},2,FALSE),0)* IF(ISERROR(VLOOKUP($D93,Option_2D!$F$38:$F$54,1,FALSE)),1,0)* Option_2D!R93 -> 0
D94: =Option_2D!D94 -> NT0 | J94: =Option_2D!J94 -> 2030 | K94: =Option_2D!K94 -> 1.014515033 | L94: =Option_2D!L94 -> 0.7357728005 | M94: =IFERROR(HLOOKUP(MAX(VLOOKUP(VLOOKUP($D94,Compliance!$D$11:$E$41,2,FALSE),OLTC_Taps!$D$147:$K$173,6,FALSE),1),{1,2,3,4,5,6,7,8,9;0,0.5,0.75,1,1,1,1,1,1},2,FALSE),0)* IF(ISERROR(VLOOKUP($D94,Option_2D!$F$38:$F$54,1,FALSE)),1,0)* Option_2D!M94 -> 0 | N94: =IFERROR(HLOOKUP(MAX(VLOOKUP(VLOOKUP($D94,Compliance!$D$11:$E$41,2,FALSE),OLTC_Taps!$D$147:$K$173,6,FALSE),1),{1,2,3,4,5,6,7,8,9;0,0.5,0.75,1,1,1,1,1,1},2,FALSE),0)* IF(ISERROR(VLOOKUP($D94,Option_2D!$F$38:$F$54,1,FALSE)),1,0)* Option_2D!N94 -> 0 | O94: =IFERROR(HLOOKUP(MAX(VLOOKUP(VLOOKUP($D94,Compliance!$D$11:$E$41,2,FALSE),OLTC_Taps!$D$147:$K$173,6,FALSE),1),{1,2,3,4,5,6,7,8,9;0,0.5,0.75,1,1,1,1,1,1},2,FALSE),0)* IF(ISERROR(VLOOKUP($D94,Option_2D!$F$38:$F$54,1,FALSE)),1,0)* Option_2D!O94 -> 0 | P94: =IFERROR(HLOOKUP(MAX(VLOOKUP(VLOOKUP($D94,Compliance!$D$11:$E$41,2,FALSE),OLTC_Taps!$D$147:$K$173,7,FALSE),1),{1,2,3,4,5,6,7,8,9;0,0.5,0.75,1,1,1,1,1,1},2,FALSE),0)* IF(ISERROR(VLOOKUP($D94,Option_2D!$F$38:$F$54,1,FALSE)),1,0)* Option_2D!P94 -> 0 | Q94: =IFERROR(HLOOKUP(MAX(VLOOKUP(VLOOKUP($D94,Compliance!$D$11:$E$41,2,FALSE),OLTC_Taps!$D$147:$K$173,7,FALSE),1),{1,2,3,4,5,6,7,8,9;0,0.5,0.75,1,1,1,1,1,1},2,FALSE),0)* IF(ISERROR(VLOOKUP($D94,Option_2D!$F$38:$F$54,1,FALSE)),1,0)* Option_2D!Q94 -> 0.0001266742338 | R94: =IFERROR(HLOOKUP(MAX(VLOOKUP(VLOOKUP($D94,Compliance!$D$11:$E$41,2,FALSE),OLTC_Taps!$D$147:$K$173,7,FALSE),1),{1,2,3,4,5,6,7,8,9;0,0.5,0.75,1,1,1,1,1,1},2,FALSE),0)* IF(ISERROR(VLOOKUP($D94,Option_2D!$F$38:$F$54,1,FALSE)),1,0)* Option_2D!R94 -> 0.0001266742338
D102: =Option_2D!D102 -> Trial | J102: =Option_2D!J102 -> 2023 | K102: =Option_2D!K102 -> 2.269811339 | L102: =Option_2D!L102 -> 2.269811339
D103: =Option_2D!D103 -> Trial | J103: =Option_2D!J103 -> 2024 | K103: =Option_2D!K103 -> 1 | L103: =Option_2D!L103 -> 1
D113: =Option_2D!D113 -> Traditional for worst served under-volt | F113: =(1-COUNTIF($J$72:$J$101,">0")/COUNTIF(Option_2D!$J$72:$J$101,">0"))*10% -> 0.02333333333
D114: =Option_2D!D114 -> Year 1 | J114: =Option_2D!J114 -> 2027 | K114: =Option_2D!K114*(1+$F$113) -> 1.58412 | L114: =VLOOKUP($J114,General!$D$27:$E$46,2)*K114 -> 1.349058238
D115: =Option_2D!D115 -> Year 2 | J115: =Option_2D!J115 -> 2028 | K115: =Option_2D!K115*(1+$F$113) -> 1.58412 | L115: =VLOOKUP($J115,General!$D$27:$E$46,2)*K115 -> 1.278728187
D116: =Option_2D!D116 -> Year 3 | J116: =Option_2D!J116 -> 2029 | K116: =Option_2D!K116*(1+$F$113) -> 1.58412 | L116: =VLOOKUP($J116,General!$D$27:$E$46,2)*K116 -> 1.212064633
D117: =Option_2D!D117 -> Year 4 | J117: =Option_2D!J117 -> 2030 | K117: =Option_2D!K117*(1+$F$113) -> 1.58412 | L117: =VLOOKUP($J117,General!$D$27:$E$46,2)*K117 -> 1.148876429
D118: =Option_2D!D118 -> Year 5 | J118: =Option_2D!J118 -> 2031 | K118: =Option_2D!K118*(1+$F$113) -> 1.58412 | L118: =VLOOKUP($J118,General!$D$27:$E$46,2)*K118 -> 1.088982397
D119: =Option_2D!D119 -> Power quality reactive program for customer complaints
D120: =Option_2D!D120 -> Year 1 | J120: =Option_2D!J120 -> 2027 | K120: =Option_2D!K120 -> 0.12322 | L120: =VLOOKUP($J120,General!$D$27:$E$46,2)*K120 -> 0.1049358357
D121: =Option_2D!D121 -> Year 2 | J121: =Option_2D!J121 -> 2028 | K121: =Option_2D!K121 -> 0.12322 | L121: =VLOOKUP($J121,General!$D$27:$E$46,2)*K121 -> 0.09946524711
D122: =Option_2D!D122 -> Year 3 | J122: =Option_2D!J122 -> 2029 | K122: =Option_2D!K122 -> 0.12322 | L122: =VLOOKUP($J122,General!$D$27:$E$46,2)*K122 -> 0.09427985508
D123: =Option_2D!D123 -> Year 4 | J123: =Option_2D!J123 -> 2030 | K123: =Option_2D!K123 -> 0.12322 | L123: =VLOOKUP($J123,General!$D$27:$E$46,2)*K123 -> 0.08936479155
D124: =Option_2D!D124 -> Year 5 | J124: =Option_2D!J124 -> 2031 | K124: =Option_2D!K124 -> 0.12322 | L124: =VLOOKUP($J124,General!$D$27:$E$46,2)*K124 -> 0.08470596355
D126: End

Sheet Option_2A
D1: Voltage PQ Management Strategy | H1: Section Check: | I1: =IF(COUNTA($A$8:$A$127)=COUNTIF($A$8:$A$127,0),"Ok","Check") -> Ok | L1: Overall Check: | M1: Ok | O1: Legend: | P1: Input | Q1: Internal | R1: Select | S1: Calculation
D2: =Summary!$K13&" - "&Summary!$D11 -> Option 2 - DVM, VAr controllers and reactors - EDCOP 5% NON-COMPLIANCE (FUNCTIONAL COMPLIANCE)
B6: Copyright Jemena Limited. All rights reserved. Jemena is not liable for any loss caused by reliance on this document.
B8: General Assumptions
C10: =B8 -> General Assumptions
D12: =C10 -> General Assumptions | E12: Source | F12: Unit | G12: Basis
J13: Start | K13: End
D14: Next Regulatory Period | E14: AM | F14: Year | G14: n/a | J14: =General!J16 -> 2027 | K14: =J14+4 -> 2031
D15: This Regulatory Period | E15: AM | F15: Year | G15: n/a | J15: =K15-4 -> 2022 | K15: =J14-1 -> 2026
B17: Option
C19: Summary
D21: =C19&" ($M)" -> Summary ($M) | E21: Period | J21: Total DVM Cost | K21: Total Cost | L21: PV Total Cost
D23: =D14 -> Next Regulatory Period | E23: =$J$14&" - "&$K$14 -> 2027 - 2031 | J23: =SUMIFS($K$72:$K$103,$J$72:$J$103,">="&J14,$J$72:$J$103,"<="&K14) -> 0.5238314488 | K23: =SUMIFS($K$37:$K$124,$J$37:$J$124,">="&$J14,$J$37:$J$124,"<="&$K14) -> 24.75889145 | L23: =SUMIFS($L$37:$L$124,$J$37:$J$124,">="&$J14,$J$37:$J$124,"<="&$K14) -> 18.67173641
D24: =D15 -> This Regulatory Period | E24: =$J$15&" - "&$K$15 -> 2022 - 2026 | J24: =SUMIFS($K$72:$K$103,$J$72:$J$103,">="&J15,$J$72:$J$103,"<="&K15) -> 7.511157003 | K24: =SUMIFS($K$37:$K$124,$J$37:$J$124,">="&$J15,$J$37:$J$124,"<="&$K15) -> 7.511157003 | L24: =SUMIFS($L$37:$L$124,$J$37:$J$124,">="&$J15,$J$37:$J$124,"<="&$K15) -> 7.239633912
C26: Inputs
D28: =C26 -> Inputs | E28: Source | F28: Unit
I29: Year | J29: 2024 | K29: =J29+1 -> 2025 | L29: =K29+1 -> 2026 | M29: 2027 | N29: 2028 | O29: 2029 | P29: 2030 | Q29: 2031 | R29: 2032
D30: VRR replacement per TX ($M) | E30: AM | F30: $M | I30: Unit Rate | J30: 0.2072553912 | K30: 0.218380026 | L30: 0.2301017863 | M30: 0.230875732 | N30: 0.2371350002 | O30: 0.2370089385 | P30: 0.2368829439 | Q30: 0.2367570162 | R30: 0.2366311555
D31: DVM Integration per ZSS ($M) | E31: AM | F31: $M | I31: Unit Rate | J31: 0.4578389395 | K31: 0.4876642334 | L31: 0.5194324555 | M31: 0.5238314488 | N31: 0.5423304445 | O31: 0.5415392179 | P31: 0.5407491456 | Q31: 0.539960226 | R31: 0.5391724574
I32: Reconcile | J32: =SUMIF($J$72:$J$101,J$29,$K$72:$K$101) -> 1.330188661 | K32: =SUMIF($J$72:$J$101,K$29,$K$72:$K$101) -> 1.412088519 | L32: 1.499068484 | M32: 0.5238314488 | N32: 0 | O32: 0 | P32: 0 | Q32: 0 | R32: 0
C33: Calculations
M34: Forecast Compliance
D35: =Summary!$G11&" - "&Summary!$D11 -> Option 2 - EDCOP 5% NON-COMPLIANCE (FUNCTIONAL COMPLIANCE) | J35: Indicative Year | K35: Cost ($M) | L35: PV Cost ($M) | M35: =M71 -> 2027 | N35: 2028 | O35: 2029 | P35: 2030 | Q35: 2031 | R35: 2032
D36: PROJECT & LOCATION | I36: TOTAL | J36: =J14&" - "&J14+General!J15-1 -> 2027 - 2031 | K36: =SUMIFS(K$37:K$124,$J$37:$J$124,">="&$J$14,$J$37:$J$124,"<="&J14+General!J15-1) -> 24.75889145 | L36: =SUMIFS(L$37:L$124,$J$37:$J$124,">="&$J$14,$J$37:$J$124,"<="&J14+General!J15-1) -> 18.67173641 | M36: =Compliance!M43-SUM(M72:M101) -> 0.03991375061 | N36: =Compliance!N43-SUM(N72:N101) -> 0.02250065402 | O36: =Compliance!O43-SUM(O72:O101) -> 0.02585487271 | P36: =Compliance!P43-SUM(P72:P101) -> 0.03064588401 | Q36: =Compliance!Q43-SUM(Q72:Q101) -> 0.03715376466 | R36: =Compliance!R43-SUM(R72:R101) -> 0.04501037782
D37: =Option_2B!D37 -> Reactors
D38: =Option_2B!D38 -> SBY | J38: =Option_2B!J38 -> 2028 | K38: =Option_2B!K38 -> 2.31658 | L38: =Option_2B!L38 -> 1.869982163
D39: =Option_2B!D39 -> SHM | J39: =Option_2B!J39 -> 2029 | K39: =Option_2B!K39 -> 2.59457 | L39: =Option_2B!L39 -> 1.98519464
D40: =Option_2B!D40 -> COO | J40: =Option_2B!J40 -> 2030 | K40: =Option_2B!K40 -> 2.66236 | L40: =Option_2B!L40 -> 1.930865496
D41: =Option_2B!D41 -> ST | J41: =Option_2B!J41 -> 2031 | K41: =Option_2B!K41 -> 2.15895 | L41: =Option_2B!L41 -> 1.484141698
D42: =Option_2B!D42 -> BD | J42: =Option_2B!J42 -> 2031 | K42: =Option_2B!K42 -> 2.4241 | L42: =Option_2B!L42 -> 1.666415568
D43: =Option_2B!D43 -> VAr controllers
D44: =Option_2B!D44 -> CN No.1 | J44: =Option_2B!J44 -> 2027 | K44: =Option_2B!K44 -> 0.26952 | L44: =Option_2B!L44 -> 0.2295269148
D45: =Option_2B!D45 -> CN No.2 | J45: =Option_2B!J45 -> 2027 | K45: =Option_2B!K45 -> 0.26952 | L45: =Option_2B!L45 -> 0.2295269148
D46: =Option_2B!D46 -> CN No.3A & 3B | J46: =Option_2B!J46 -> 2028 | K46: =Option_2B!K46 -> 0.26952 | L46: =Option_2B!L46 -> 0.2175610567
D47: =Option_2B!D47 -> CS No.2 | J47: =Option_2B!J47 -> 2028 | K47: =Option_2B!K47 -> 0.26952 | L47: =Option_2B!L47 -> 0.2175610567
D48: =Option_2B!D48 -> ES No.1 | J48: =Option_2B!J48 -> 2028 | K48: =Option_2B!K48 -> 0.26952 | L48: =Option_2B!L48 -> 0.2175610567
D49: =Option_2B!D49 -> FF No.1 | J49: =Option_2B!J49 -> 2029 | K49: =Option_2B!K49 -> 0.26952 | L49: =Option_2B!L49 -> 0.206219011
D50: =Option_2B!D50 -> NH No.1 | J50: =Option_2B!J50 -> 2029 | K50: =Option_2B!K50 -> 0.26952 | L50: =Option_2B!L50 -> 0.206219011
D51: =Option_2B!D51 -> ST No.1 | J51: =Option_2B!J51 -> 2030 | K51: =Option_2B!K51 -> 0.26952 | L51: =Option_2B!L51 -> 0.1954682569
D52: =Option_2B!D52 -> ST No.2 | J52: =Option_2B!J52 -> 2030 | K52: =Option_2B!K52 -> 0.26952 | L52: =Option_2B!L52 -> 0.1954682569
D53: =Option_2B!D53 -> TH No.1 | J53: =Option_2B!J53 -> 2030 | K53: =Option_2B!K53 -> 0.26952 | L53: =Option_2B!L53 -> 0.1954682569
D54: =Option_2B!D54 -> TH No.2 | J54: =Option_2B!J54 -> 2031 | K54: =Option_2B!K54 -> 0.26952 | L54: =Option_2B!L54 -> 0.1852779686
D55: =Option_2B!D55 -> Traditional for voltage spread to support DVM
D58: =Option_2B!D58 -> AW0 | J58: =Option_2B!J58 -> 2028 | K58: =Option_2B!K58 -> 0.04107 | L58: =Option_2B!L58 -> 0.03315239165
D59: =Option_2B!D59 -> NS0 | J59: =Option_2B!J59 -> 2028 | K59: =Option_2B!K59 -> 0.04107 | L59: =Option_2B!L59 -> 0.03315239165
D63: =Option_2B!D63 -> PTN | J63: =Option_2B!J63 -> 2029 | K63: =Option_2B!K63 -> 0.04107 | L63: =Option_2B!L63 -> 0.03142406791
D68: =Option_2B!D68 -> HB0 | J68: =Option_2B!J68 -> 2031 | K68: =Option_2B!K68 -> 0.04107 | L68: =Option_2B!L68 -> 0.02823302973
D71: =Option_2B!D71 -> DVM Rollout | M71: =Option_2B!M71 -> 2027 | N71: =Option_2B!N71 -> 2028 | O71: =Option_2B!O71 -> 2029 | P71: =Option_2B!P71 -> 2030 | Q71: =Option_2B!Q71 -> 2031 | R71: =Option_2B!R71 -> 2032
D72: =Option_2B!D72 -> AW0 | J72: =Option_2B!J72 -> 2024 | K72: =Option_2B!K72 -> 0.4578389395 | L72: =Option_2B!L72 -> 0.4578389395 | M72: =Option_2B!M72 -> 0.001524614886 | N72: =Option_2B!N72 -> 0.001524614886 | O72: =Option_2B!O72 -> 0.001524614886 | P72: =Option_2B!P72 -> 0.001524614886 | Q72: =Option_2B!Q72 -> 0.001524614886 | R72: =Option_2B!R72 -> 0.001524614886
D73: =Option_2B!D73 -> CS0 | J73: =Option_2B!J73 -> 2024 | K73: =Option_2B!K73 -> 0.8723497219 | L73: =Option_2B!L73 -> 0.8723497219 | M73: =Option_2B!M73 -> 0.0003287497973 | N73: =Option_2B!N73 -> 0.0003287497973 | O73: =Option_2B!O73 -> 0.0003287497973 | P73: =Option_2B!P73 -> 0.0003287497973 | Q73: =Option_2B!Q73 -> 0.0003287497973 | R73: =Option_2B!R73 -> 0.0003287497973
D74: =Option_2B!D74 -> PTN | J74: =Option_2B!J74 -> 2025 | K74: =Option_2B!K74 -> 0.4876642334 | L74: =Option_2B!L74 -> 0.4622409796 | M74: =Option_2B!M74 -> 0.0009319604346 | N74: =Option_2B!N74 -> 0.0009319604346 | O74: =Option_2B!O74 -> 0.0009319604346 | P74: =Option_2B!P74 -> 0.0009319604346 | Q74: =Option_2B!Q74 -> 0.0009319604346 | R74: =Option_2B!R74 -> 0.0009319604346
D75: =Option_2B!D75 -> HB0 | J75: =Option_2B!J75 -> 2025 | K75: =Option_2B!K75 -> 0.9244242854 | L75: =Option_2B!L75 -> 0.8305512324 | M75: =Option_2B!M75 -> 0.0001990595103 | N75: =Option_2B!N75 -> 0.0001990595103 | O75: =Option_2B!O75 -> 0.0001990595103 | P75: =Option_2B!P75 -> 0.0001990595103 | Q75: =Option_2B!Q75 -> 0.0001990595103 | R75: =Option_2B!R75 -> 0.0001990595103
D76: =Option_2B!D76 -> SBY | J76: =Option_2B!J76 -> 2026 | K76: =Option_2B!K76 -> 0.5194324555 | L76: =Option_2B!L76 -> 0.4666853445 | M76: =Option_2B!M76 -> 0.002905967245 | N76: =Option_2B!N76 -> 0.003144235447 | O76: =Option_2B!O76 -> 0.004409469758 | P76: =Option_2B!P76 -> 0.006831360467 | Q76: =Option_2B!Q76 -> 0.01048832496 | R76: =Option_2B!R76 -> 0.01475905627
D77: =Option_2B!D77 -> FE0 | J77: =Option_2B!J77 -> 2026 | K77: =Option_2B!K77 -> 0.9796360282 | L77: =Option_2B!L77 -> 0.880156356 | M77: =Option_2B!M77 -> 0.0007796497487 | N77: =Option_2B!N77 -> 0.0007796497487 | O77: =Option_2B!O77 -> 0.0007796497487 | P77: =Option_2B!P77 -> 0.0007796497487 | Q77: =Option_2B!Q77 -> 0.0007796497487 | R77: =Option_2B!R77 -> 0.0007796497487
D78: =Option_2B!D78 -> NS0 | J78: =Option_2B!J78 -> 2027 | K78: =Option_2B!K78 -> 0.5238314488 | L78: =Option_2B!L78 -> 0.4461020195 | M78: =Option_2B!M78 -> 0 | N78: =Option_2B!N78 -> 0.01486612616 | O78: =Option_2B!O78 -> 0.01486612616 | P78: =Option_2B!P78 -> 0.01486612616 | Q78: =Option_2B!Q78 -> 0.01486612616 | R78: =Option_2B!R78 -> 0.01486612616
D102: =Option_2B!D102 -> Trial | J102: =Option_2B!J102 -> 2023 | K102: =Option_2B!K102 -> 2.269811339 | L102: =Option_2B!L102 -> 2.269811339
D103: =Option_2B!D103 -> Trial | J103: =Option_2B!J103 -> 2024 | K103: =Option_2B!K103 -> 1 | L103: =Option_2B!L103 -> 1
D113: =Option_2B!D113 -> Traditional for worst served under-volt | F113: =(1-COUNTIF($J$72:$J$101,">0")/COUNTIF(Option_2D!$J$72:$J$101,">0"))*10% -> 0.07666666667
D114: =Option_2B!D114 -> Year 1 | J114: =Option_2B!J114 -> 2027 | K114: =Option_2D!K114*(1+$F$113) -> 1.66668 | L114: =VLOOKUP($J114,General!$D$27:$E$46,2)*K114 -> 1.419367462
D115: =Option_2B!D115 -> Year 2 | J115: =Option_2B!J115 -> 2028 | K115: =Option_2D!K115*(1+$F$113) -> 1.66668 | L115: =VLOOKUP($J115,General!$D$27:$E$46,2)*K115 -> 1.345372002
D116: =Option_2B!D116 -> Year 3 | J116: =Option_2B!J116 -> 2029 | K116: =Option_2D!K116*(1+$F$113) -> 1.66668 | L116: =VLOOKUP($J116,General!$D$27:$E$46,2)*K116 -> 1.275234125
D117: =Option_2B!D117 -> Year 4 | J117: =Option_2B!J117 -> 2030 | K117: =Option_2D!K117*(1+$F$113) -> 1.66668 | L117: =VLOOKUP($J117,General!$D$27:$E$46,2)*K117 -> 1.208752725
D118: =Option_2B!D118 -> Year 5 | J118: =Option_2B!J118 -> 2031 | K118: =Option_2D!K118*(1+$F$113) -> 1.66668 | L118: =VLOOKUP($J118,General!$D$27:$E$46,2)*K118 -> 1.14573718
D119: =Option_2B!D119 -> Power quality reactive program for customer complaints
D120: =Option_2B!D120 -> Year 1 | J120: =Option_2B!J120 -> 2027 | K120: =Option_2D!K120 -> 0.12322 | L120: =VLOOKUP($J120,General!$D$27:$E$46,2)*K120 -> 0.1049358357
D121: =Option_2B!D121 -> Year 2 | J121: =Option_2B!J121 -> 2028 | K121: =Option_2D!K121 -> 0.12322 | L121: =VLOOKUP($J121,General!$D$27:$E$46,2)*K121 -> 0.09946524711
D122: =Option_2B!D122 -> Year 3 | J122: =Option_2B!J122 -> 2029 | K122: =Option_2D!K122 -> 0.12322 | L122: =VLOOKUP($J122,General!$D$27:$E$46,2)*K122 -> 0.09427985508
D123: =Option_2B!D123 -> Year 4 | J123: =Option_2B!J123 -> 2030 | K123: =Option_2D!K123 -> 0.12322 | L123: =VLOOKUP($J123,General!$D$27:$E$46,2)*K123 -> 0.08936479155
D124: =Option_2B!D124 -> Year 5 | J124: =Option_2B!J124 -> 2031 | K124: =Option_2D!K124 -> 0.12322 | L124: =VLOOKUP($J124,General!$D$27:$E$46,2)*K124 -> 0.08470596355
D126: End

Sheet Option_2B
D1: Voltage PQ Management Strategy | H1: Section Check: | I1: =IF(COUNTA($A$8:$A$127)=COUNTIF($A$8:$A$127,0),"Ok","Check") -> Ok | L1: Overall Check: | M1: Ok | O1: Legend: | P1: Input | Q1: Internal | R1: Select | S1: Calculation
D2: =Summary!$K13&" - "&Summary!$D16 -> Option 2 - DVM, VAr controllers and reactors - EDCOP 4% NON-COMPLIANCE (MAINTAINING PERFORMANCE)
B6: Copyright Jemena Limited. All rights reserved. Jemena is not liable for any loss caused by reliance on this document.
B8: General Assumptions
C10: =B8 -> General Assumptions
D12: =C10 -> General Assumptions | E12: Source | F12: Unit | G12: Basis
J13: Start | K13: End
D14: Next Regulatory Period | E14: AM | F14: Year | G14: n/a | J14: =General!J16 -> 2027 | K14: =J14+4 -> 2031
D15: This Regulatory Period | E15: AM | F15: Year | G15: n/a | J15: =K15-4 -> 2022 | K15: =J14-1 -> 2026
B17: Option
C19: Summary
D21: =C19&" ($M)" -> Summary ($M) | E21: Period | J21: Total DVM Cost | K21: Total Cost | L21: PV Total Cost
D23: =D14 -> Next Regulatory Period | E23: =$J$14&" - "&$K$14 -> 2027 - 2031 | J23: =SUMIFS($K$72:$K$103,$J$72:$J$103,">="&J14,$J$72:$J$103,"<="&K14) -> 1.740290094 | K23: =SUMIFS($K$37:$K$124,$J$37:$J$124,">="&$J14,$J$37:$J$124,"<="&$K14) -> 25.94955009 | L23: =SUMIFS($L$37:$L$124,$J$37:$J$124,">="&$J14,$J$37:$J$124,"<="&$K14) -> 19.68789212
D24: =D15 -> This Regulatory Period | E24: =$J$15&" - "&$K$15 -> 2022 - 2026 | J24: =SUMIFS($K$72:$K$103,$J$72:$J$103,">="&J15,$J$72:$J$103,"<="&K15) -> 7.511157003 | K24: =SUMIFS($K$37:$K$124,$J$37:$J$124,">="&$J15,$J$37:$J$124,"<="&$K15) -> 7.511157003 | L24: =SUMIFS($L$37:$L$124,$J$37:$J$124,">="&$J15,$J$37:$J$124,"<="&$K15) -> 7.239633912
C26: Inputs
D28: =C26 -> Inputs | E28: Source | F28: Unit
I29: Year | J29: 2024 | K29: =J29+1 -> 2025 | L29: =K29+1 -> 2026 | M29: 2027 | N29: 2028 | O29: 2029 | P29: 2030 | Q29: 2031 | R29: 2032
D30: VRR replacement per TX ($M) | E30: AM | F30: $M | I30: Unit Rate | J30: 0.2072553912 | K30: 0.218380026 | L30: 0.2301017863 | M30: 0.230875732 | N30: 0.2371350002 | O30: 0.2370089385 | P30: 0.2368829439 | Q30: 0.2367570162 | R30: 0.2366311555
D31: DVM Integration per ZSS ($M) | E31: AM | F31: $M | I31: Unit Rate | J31: 0.4578389395 | K31: 0.4876642334 | L31: 0.5194324555 | M31: 0.5238314488 | N31: 0.5423304445 | O31: 0.5415392179 | P31: 0.5407491456 | Q31: 0.539960226 | R31: 0.5391724574
I32: Reconcile | J32: =SUMIF($J$72:$J$101,J$29,$K$72:$K$101) -> 1.330188661 | K32: =SUMIF($J$72:$J$101,K$29,$K$72:$K$101) -> 1.412088519 | L32: 1.499068484 | M32: 1.740290094 | N32: 0 | O32: 0 | P32: 0 | Q32: 0 | R32: 0
C33: Calculations
M34: Forecast Compliance
D35: =Summary!$G16&" - "&Summary!$D16 -> Option 2 - EDCOP 4% NON-COMPLIANCE (MAINTAINING PERFORMANCE) | J35: Indicative Year | K35: Cost ($M) | L35: PV Cost ($M) | M35: =M71 -> 2027 | N35: 2028 | O35: 2029 | P35: 2030 | Q35: 2031 | R35: 2032
D36: PROJECT & LOCATION | I36: TOTAL | J36: =J14&" - "&J14+General!J15-1 -> 2027 - 2031 | K36: =SUMIFS(K$37:K$124,$J$37:$J$124,">="&$J$14,$J$37:$J$124,"<="&J14+General!J15-1) -> 25.94955009 | L36: =SUMIFS(L$37:L$124,$J$37:$J$124,">="&$J$14,$J$37:$J$124,"<="&J14+General!J15-1) -> 19.68789212 | M36: =Compliance!M43-SUM(M72:M101) -> 0.03991375061 | N36: =Compliance!N43-SUM(N72:N101) -> 0.02133344144 | O36: =Compliance!O43-SUM(O72:O101) -> 0.02386276958 | P36: =Compliance!P43-SUM(P72:P101) -> 0.02747148803 | Q36: =Compliance!Q43-SUM(Q72:Q101) -> 0.0321938652 | R36: =Compliance!R43-SUM(R72:R101) -> 0.03788193611
D37: =Option_2D!D37 -> Reactors
D38: =Option_2D!D38 -> SBY | J38: =Option_2D!J38 -> 2028 | K38: =Option_2D!K38 -> 2.31658 | L38: =Option_2D!L38 -> 1.869982163
D39: =Option_2D!D39 -> SHM | J39: =Option_2D!J39 -> 2029 | K39: =Option_2D!K39 -> 2.59457 | L39: =Option_2D!L39 -> 1.98519464
D40: =Option_2D!D40 -> COO | J40: =Option_2D!J40 -> 2030 | K40: =Option_2D!K40 -> 2.66236 | L40: =Option_2D!L40 -> 1.930865496
D41: =Option_2D!D41 -> ST | J41: =Option_2D!J41 -> 2031 | K41: =Option_2D!K41 -> 2.15895 | L41: =Option_2D!L41 -> 1.484141698
D42: =Option_2D!D42 -> BD | J42: =Option_2D!J42 -> 2031 | K42: =Option_2D!K42 -> 2.4241 | L42: =Option_2D!L42 -> 1.666415568
D43: =Option_2D!D43 -> VAr controllers
D44: =Option_2D!D44 -> CN No.1 | J44: =Option_2D!J44 -> 2027 | K44: =Option_2D!K44 -> 0.26952 | L44: =Option_2D!L44 -> 0.2295269148
D45: =Option_2D!D45 -> CN No.2 | J45: =Option_2D!J45 -> 2027 | K45: =Option_2D!K45 -> 0.26952 | L45: =Option_2D!L45 -> 0.2295269148
D46: =Option_2D!D46 -> CN No.3A & 3B | J46: =Option_2D!J46 -> 2028 | K46: =Option_2D!K46 -> 0.26952 | L46: =Option_2D!L46 -> 0.2175610567
D47: =Option_2D!D47 -> CS No.2 | J47: =Option_2D!J47 -> 2028 | K47: =Option_2D!K47 -> 0.26952 | L47: =Option_2D!L47 -> 0.2175610567
D48: =Option_2D!D48 -> ES No.1 | J48: =Option_2D!J48 -> 2028 | K48: =Option_2D!K48 -> 0.26952 | L48: =Option_2D!L48 -> 0.2175610567
D49: =Option_2D!D49 -> FF No.1 | J49: =Option_2D!J49 -> 2029 | K49: =Option_2D!K49 -> 0.26952 | L49: =Option_2D!L49 -> 0.206219011
D50: =Option_2D!D50 -> NH No.1 | J50: =Option_2D!J50 -> 2029 | K50: =Option_2D!K50 -> 0.26952 | L50: =Option_2D!L50 -> 0.206219011
D51: =Option_2D!D51 -> ST No.1 | J51: =Option_2D!J51 -> 2030 | K51: =Option_2D!K51 -> 0.26952 | L51: =Option_2D!L51 -> 0.1954682569
D52: =Option_2D!D52 -> ST No.2 | J52: =Option_2D!J52 -> 2030 | K52: =Option_2D!K52 -> 0.26952 | L52: =Option_2D!L52 -> 0.1954682569
D53: =Option_2D!D53 -> TH No.1 | J53: =Option_2D!J53 -> 2030 | K53: =Option_2D!K53 -> 0.26952 | L53: =Option_2D!L53 -> 0.1954682569
D54: =Option_2D!D54 -> TH No.2 | J54: =Option_2D!J54 -> 2031 | K54: =Option_2D!K54 -> 0.26952 | L54: =Option_2D!L54 -> 0.1852779686
D55: =Option_2D!D55 -> Traditional for voltage spread to support DVM
D58: =Option_2D!D58 -> AW0 | J58: =Option_2D!J58 -> 2028 | K58: =Option_2D!K58 -> 0.04107 | L58: =Option_2D!L58 -> 0.03315239165
D59: =Option_2D!D59 -> NS0 | J59: =Option_2D!J59 -> 2028 | K59: =Option_2D!K59 -> 0.04107 | L59: =Option_2D!L59 -> 0.03315239165
D63: =Option_2D!D63 -> PTN | J63: =Option_2D!J63 -> 2029 | K63: =Option_2D!K63 -> 0.04107 | L63: =Option_2D!L63 -> 0.03142406791
D68: =Option_2D!D68 -> HB0 | J68: =Option_2D!J68 -> 2031 | K68: =Option_2D!K68 -> 0.04107 | L68: =Option_2D!L68 -> 0.02823302973
D71: =Option_2D!D71 -> DVM Rollout | M71: =Option_2D!M71 -> 2027 | N71: =Option_2D!N71 -> 2028 | O71: =Option_2D!O71 -> 2029 | P71: =Option_2D!P71 -> 2030 | Q71: =Option_2D!Q71 -> 2031 | R71: =Option_2D!R71 -> 2032
D72: =Option_2D!D72 -> AW0 | J72: =Option_2D!J72 -> 2024 | K72: =Option_2D!K72 -> 0.4578389395 | L72: =Option_2D!L72 -> 0.4578389395 | M72: =Option_2D!M72 -> 0.001524614886 | N72: =Option_2D!N72 -> 0.001524614886 | O72: =Option_2D!O72 -> 0.001524614886 | P72: =Option_2D!P72 -> 0.001524614886 | Q72: =Option_2D!Q72 -> 0.001524614886 | R72: =Option_2D!R72 -> 0.001524614886
D73: =Option_2D!D73 -> CS0 | J73: =Option_2D!J73 -> 2024 | K73: =Option_2D!K73 -> 0.8723497219 | L73: =Option_2D!L73 -> 0.8723497219 | M73: =Option_2D!M73 -> 0.0003287497973 | N73: =Option_2D!N73 -> 0.0003287497973 | O73: =Option_2D!O73 -> 0.0003287497973 | P73: =Option_2D!P73 -> 0.0003287497973 | Q73: =Option_2D!Q73 -> 0.0003287497973 | R73: =Option_2D!R73 -> 0.0003287497973
D74: =Option_2D!D74 -> PTN | J74: =Option_2D!J74 -> 2025 | K74: =Option_2D!K74 -> 0.4876642334 | L74: =Option_2D!L74 -> 0.4622409796 | M74: =Option_2D!M74 -> 0.0009319604346 | N74: =Option_2D!N74 -> 0.0009319604346 | O74: =Option_2D!O74 -> 0.0009319604346 | P74: =Option_2D!P74 -> 0.0009319604346 | Q74: =Option_2D!Q74 -> 0.0009319604346 | R74: =Option_2D!R74 -> 0.0009319604346
D75: =Option_2D!D75 -> HB0 | J75: =Option_2D!J75 -> 2025 | K75: =Option_2D!K75 -> 0.9244242854 | L75: =Option_2D!L75 -> 0.8305512324 | M75: =Option_2D!M75 -> 0.0001990595103 | N75: =Option_2D!N75 -> 0.0001990595103 | O75: =Option_2D!O75 -> 0.0001990595103 | P75: =Option_2D!P75 -> 0.0001990595103 | Q75: =Option_2D!Q75 -> 0.0001990595103 | R75: =Option_2D!R75 -> 0.0001990595103
D76: =Option_2D!D76 -> SBY | J76: =Option_2D!J76 -> 2026 | K76: =Option_2D!K76 -> 0.5194324555 | L76: =Option_2D!L76 -> 0.4666853445 | M76: =Option_2D!M76 -> 0.002905967245 | N76: =Option_2D!N76 -> 0.003144235447 | O76: =Option_2D!O76 -> 0.004409469758 | P76: =Option_2D!P76 -> 0.006831360467 | Q76: =Option_2D!Q76 -> 0.01048832496 | R76: =Option_2D!R76 -> 0.01475905627
D77: =Option_2D!D77 -> FE0 | J77: =Option_2D!J77 -> 2026 | K77: =Option_2D!K77 -> 0.9796360282 | L77: =Option_2D!L77 -> 0.880156356 | M77: =Option_2D!M77 -> 0.0007796497487 | N77: =Option_2D!N77 -> 0.0007796497487 | O77: =Option_2D!O77 -> 0.0007796497487 | P77: =Option_2D!P77 -> 0.0007796497487 | Q77: =Option_2D!Q77 -> 0.0007796497487 | R77: =Option_2D!R77 -> 0.0007796497487
D78: =Option_2D!D78 -> NS0 | J78: =Option_2D!J78 -> 2027 | K78: =Option_2D!K78 -> 0.5238314488 | L78: =Option_2D!L78 -> 0.4461020195 | M78: =Option_2D!M78 -> 0 | N78: =Option_2D!N78 -> 0.01486612616 | O78: =Option_2D!O78 -> 0.01486612616 | P78: =Option_2D!P78 -> 0.01486612616 | Q78: =Option_2D!Q78 -> 0.01486612616 | R78: =Option_2D!R78 -> 0.01486612616
D79: =Option_2D!D79 -> ST0 | J79: =Option_2D!J79 -> 2027 | K79: =Option_2D!K79 -> 1.216458645 | L79: =Option_2D!L79 -> 1.035952804 | M79: =Option_2D!M79 -> 0 | N79: =Option_2D!N79 -> 0.001167212583 | O79: =Option_2D!O79 -> 0.00199210313 | P79: =Option_2D!P79 -> 0.003174395979 | Q79: =Option_2D!Q79 -> 0.004959899465 | R79: =Option_2D!R79 -> 0.007128441706
D102: =Option_2D!D102 -> Trial | J102: =Option_2D!J102 -> 2023 | K102: =Option_2D!K102 -> 2.269811339 | L102: =Option_2D!L102 -> 2.269811339
D103: =Option_2D!D103 -> Trial | J103: =Option_2D!J103 -> 2024 | K103: =Option_2D!K103 -> 1 | L103: =Option_2D!L103 -> 1
D113: =Option_2D!D113 -> Traditional for worst served under-volt | F113: =(1-COUNTIF($J$72:$J$101,">0")/COUNTIF(Option_2D!$J$72:$J$101,">0"))*10% -> 0.07333333333
D114: =Option_2D!D114 -> Year 1 | J114: =Option_2D!J114 -> 2027 | K114: =Option_2D!K114*(1+$F$113) -> 1.66152 | L114: =VLOOKUP($J114,General!$D$27:$E$46,2)*K114 -> 1.414973135
D115: =Option_2D!D115 -> Year 2 | J115: =Option_2D!J115 -> 2028 | K115: =Option_2D!K115*(1+$F$113) -> 1.66152 | L115: =VLOOKUP($J115,General!$D$27:$E$46,2)*K115 -> 1.341206763
D116: =Option_2D!D116 -> Year 3 | J116: =Option_2D!J116 -> 2029 | K116: =Option_2D!K116*(1+$F$113) -> 1.66152 | L116: =VLOOKUP($J116,General!$D$27:$E$46,2)*K116 -> 1.271286032
D117: =Option_2D!D117 -> Year 4 | J117: =Option_2D!J117 -> 2030 | K117: =Option_2D!K117*(1+$F$113) -> 1.66152 | L117: =VLOOKUP($J117,General!$D$27:$E$46,2)*K117 -> 1.205010456
D118: =Option_2D!D118 -> Year 5 | J118: =Option_2D!J118 -> 2031 | K118: =Option_2D!K118*(1+$F$113) -> 1.66152 | L118: =VLOOKUP($J118,General!$D$27:$E$46,2)*K118 -> 1.142190006
D119: =Option_2D!D119 -> Power quality reactive program for customer complaints
D120: =Option_2D!D120 -> Year 1 | J120: =Option_2D!J120 -> 2027 | K120: =Option_2D!K120 -> 0.12322 | L120: =VLOOKUP($J120,General!$D$27:$E$46,2)*K120 -> 0.1049358357
D121: =Option_2D!D121 -> Year 2 | J121: =Option_2D!J121 -> 2028 | K121: =Option_2D!K121 -> 0.12322 | L121: =VLOOKUP($J121,General!$D$27:$E$46,2)*K121 -> 0.09946524711
D122: =Option_2D!D122 -> Year 3 | J122: =Option_2D!J122 -> 2029 | K122: =Option_2D!K122 -> 0.12322 | L122: =VLOOKUP($J122,General!$D$27:$E$46,2)*K122 -> 0.09427985508
D123: =Option_2D!D123 -> Year 4 | J123: =Option_2D!J123 -> 2030 | K123: =Option_2D!K123 -> 0.12322 | L123: =VLOOKUP($J123,General!$D$27:$E$46,2)*K123 -> 0.08936479155
D124: =Option_2D!D124 -> Year 5 | J124: =Option_2D!J124 -> 2031 | K124: =Option_2D!K124 -> 0.12322 | L124: =VLOOKUP($J124,General!$D$27:$E$46,2)*K124 -> 0.08470596355
D126: End

Sheet Option_2C
D1: Voltage PQ Management Strategy | H1: Section Check: | I1: =IF(COUNTA($A$8:$A$127)=COUNTIF($A$8:$A$127,0),"Ok","Check") -> Ok | L1: Overall Check: | M1: Ok | O1: Legend: | P1: Input | Q1: Internal | R1: Select | S1: Calculation
D2: =Summary!$K13&" - "&Summary!$D21 -> Option 2 - DVM, VAr controllers and reactors - EDCOP 3% NON-COMPLIANCE (IMPROVED PERFORMANCE)
B6: Copyright Jemena Limited. All rights reserved. Jemena is not liable for any loss caused by reliance on this document.
B8: General Assumptions
C10: =B8 -> General Assumptions
D12: =C10 -> General Assumptions | E12: Source | F12: Unit | G12: Basis
J13: Start | K13: End
D14: Next Regulatory Period | E14: AM | F14: Year | G14: n/a | J14: =General!J16 -> 2027 | K14: =J14+4 -> 2031
D15: This Regulatory Period | E15: AM | F15: Year | G15: n/a | J15: =K15-4 -> 2022 | K15: =J14-1 -> 2026
B17: Option
C19: Summary
D21: =C19&" ($M)" -> Summary ($M) | E21: Period | J21: Total DVM Cost | K21: Total Cost | L21: PV Total Cost
D23: =D14 -> Next Regulatory Period | E23: =$J$14&" - "&$K$14 -> 2027 - 2031 | J23: =SUMIFS($K$72:$K$103,$J$72:$J$103,">="&J14,$J$72:$J$103,"<="&K14) -> 4.521938896 | K23: =SUMIFS($K$37:$K$124,$J$37:$J$124,">="&$J14,$J$37:$J$124,"<="&$K14) -> 29.1055689 | L23: =SUMIFS($L$37:$L$124,$J$37:$J$124,">="&$J14,$J$37:$J$124,"<="&$K14) -> 22.26585566
D24: =D15 -> This Regulatory Period | E24: =$J$15&" - "&$K$15 -> 2022 - 2026 | J24: =SUMIFS($K$72:$K$103,$J$72:$J$103,">="&J15,$J$72:$J$103,"<="&K15) -> 7.511157003 | K24: =SUMIFS($K$37:$K$124,$J$37:$J$124,">="&$J15,$J$37:$J$124,"<="&$K15) -> 7.511157003 | L24: =SUMIFS($L$37:$L$124,$J$37:$J$124,">="&$J15,$J$37:$J$124,"<="&$K15) -> 7.239633912
C26: Inputs
D28: =C26 -> Inputs | E28: Source | F28: Unit
I29: Year | J29: 2024 | K29: =J29+1 -> 2025 | L29: =K29+1 -> 2026 | M29: 2027 | N29: 2028 | O29: 2029 | P29: 2030 | Q29: 2031 | R29: 2032
D30: VRR replacement per TX ($M) | E30: AM | F30: $M | I30: Unit Rate | J30: 0.2072553912 | K30: 0.218380026 | L30: 0.2301017863 | M30: 0.230875732 | N30: 0.2371350002 | O30: 0.2370089385 | P30: 0.2368829439 | Q30: 0.2367570162 | R30: 0.2366311555
D31: DVM Integration per ZSS ($M) | E31: AM | F31: $M | I31: Unit Rate | J31: 0.4578389395 | K31: 0.4876642334 | L31: 0.5194324555 | M31: 0.5238314488 | N31: 0.5423304445 | O31: 0.5415392179 | P31: 0.5407491456 | Q31: 0.539960226 | R31: 0.5391724574
I32: Reconcile | J32: =SUMIF($J$72:$J$101,J$29,$K$72:$K$101) -> 1.330188661 | K32: =SUMIF($J$72:$J$101,K$29,$K$72:$K$101) -> 1.412088519 | L32: 1.499068484 | M32: 2.725873006 | N32: 1.79606589 | O32: 0 | P32: 0 | Q32: 0 | R32: 0
C33: Calculations
M34: Forecast Compliance
D35: =Summary!$G16&" - "&Summary!$D21 -> Option 2 - EDCOP 3% NON-COMPLIANCE (IMPROVED PERFORMANCE) | J35: Indicative Year | K35: Cost ($M) | L35: PV Cost ($M) | M35: =M71 -> 2027 | N35: 2028 | O35: 2029 | P35: 2030 | Q35: 2031 | R35: 2032
D36: PROJECT & LOCATION | I36: TOTAL | J36: =J14&" - "&J14+General!J15-1 -> 2027 - 2031 | K36: =SUMIFS(K$37:K$124,$J$37:$J$124,">="&$J$14,$J$37:$J$124,"<="&J14+General!J15-1) -> 29.1055689 | L36: =SUMIFS(L$37:L$124,$J$37:$J$124,">="&$J$14,$J$37:$J$124,"<="&J14+General!J15-1) -> 22.26585566 | M36: =Compliance!M43-SUM(M72:M101) -> 0.03991375061 | N36: =Compliance!N43-SUM(N72:N101) -> 0.01924633263 | O36: =Compliance!O43-SUM(O72:O101) -> 0.01797694179 | P36: =Compliance!P43-SUM(P72:P101) -> 0.01988008216 | Q36: =Compliance!Q43-SUM(Q72:Q101) -> 0.02256209935 | R36: =Compliance!R43-SUM(R72:R101) -> 0.02576192638
D37: =Option_2D!D37 -> Reactors
D38: =Option_2D!D38 -> SBY | J38: =Option_2D!J38 -> 2028 | K38: =Option_2D!K38 -> 2.31658 | L38: =Option_2D!L38 -> 1.869982163
D39: =Option_2D!D39 -> SHM | J39: =Option_2D!J39 -> 2029 | K39: =Option_2D!K39 -> 2.59457 | L39: =Option_2D!L39 -> 1.98519464
D40: =Option_2D!D40 -> COO | J40: =Option_2D!J40 -> 2030 | K40: =Option_2D!K40 -> 2.66236 | L40: =Option_2D!L40 -> 1.930865496
D41: =Option_2D!D41 -> ST | J41: =Option_2D!J41 -> 2031 | K41: =Option_2D!K41 -> 2.15895 | L41: =Option_2D!L41 -> 1.484141698
D42: =Option_2D!D42 -> BD | J42: =Option_2D!J42 -> 2031 | K42: =Option_2D!K42 -> 2.4241 | L42: =Option_2D!L42 -> 1.666415568
D43: =Option_2D!D43 -> VAr controllers
D44: =Option_2D!D44 -> CN No.1 | J44: =Option_2D!J44 -> 2027 | K44: =Option_2D!K44 -> 0.26952 | L44: =Option_2D!L44 -> 0.2295269148
D45: =Option_2D!D45 -> CN No.2 | J45: =Option_2D!J45 -> 2027 | K45: =Option_2D!K45 -> 0.26952 | L45: =Option_2D!L45 -> 0.2295269148
D46: =Option_2D!D46 -> CN No.3A & 3B | J46: =Option_2D!J46 -> 2028 | K46: =Option_2D!K46 -> 0.26952 | L46: =Option_2D!L46 -> 0.2175610567
D47: =Option_2D!D47 -> CS No.2 | J47: =Option_2D!J47 -> 2028 | K47: =Option_2D!K47 -> 0.26952 | L47: =Option_2D!L47 -> 0.2175610567
D48: =Option_2D!D48 -> ES No.1 | J48: =Option_2D!J48 -> 2028 | K48: =Option_2D!K48 -> 0.26952 | L48: =Option_2D!L48 -> 0.2175610567
D49: =Option_2D!D49 -> FF No.1 | J49: =Option_2D!J49 -> 2029 | K49: =Option_2D!K49 -> 0.26952 | L49: =Option_2D!L49 -> 0.206219011
D50: =Option_2D!D50 -> NH No.1 | J50: =Option_2D!J50 -> 2029 | K50: =Option_2D!K50 -> 0.26952 | L50: =Option_2D!L50 -> 0.206219011
D51: =Option_2D!D51 -> ST No.1 | J51: =Option_2D!J51 -> 2030 | K51: =Option_2D!K51 -> 0.26952 | L51: =Option_2D!L51 -> 0.1954682569
D52: =Option_2D!D52 -> ST No.2 | J52: =Option_2D!J52 -> 2030 | K52: =Option_2D!K52 -> 0.26952 | L52: =Option_2D!L52 -> 0.1954682569
D53: =Option_2D!D53 -> TH No.1 | J53: =Option_2D!J53 -> 2030 | K53: =Option_2D!K53 -> 0.26952 | L53: =Option_2D!L53 -> 0.1954682569
D54: =Option_2D!D54 -> TH No.2 | J54: =Option_2D!J54 -> 2031 | K54: =Option_2D!K54 -> 0.26952 | L54: =Option_2D!L54 -> 0.1852779686
D55: =Option_2D!D55 -> Traditional for voltage spread to support DVM
D56: =Option_2D!D56 -> EPN | J56: =Option_2D!J56 -> 2027 | K56: =Option_2D!K56 -> 0.04107 | L56: =Option_2D!L56 -> 0.03497577319
D57: =Option_2D!D57 -> EP0 | J57: =Option_2D!J57 -> 2027 | K57: =Option_2D!K57 -> 0.04107 | L57: =Option_2D!L57 -> 0.03497577319
D58: =Option_2D!D58 -> AW0 | J58: =Option_2D!J58 -> 2028 | K58: =Option_2D!K58 -> 0.04107 | L58: =Option_2D!L58 -> 0.03315239165
D59: =Option_2D!D59 -> NS0 | J59: =Option_2D!J59 -> 2028 | K59: =Option_2D!K59 -> 0.04107 | L59: =Option_2D!L59 -> 0.03315239165
D60: =Option_2D!D60 -> FT0 | J60: =Option_2D!J60 -> 2028 | K60: =Option_2D!K60 -> 0.04107 | L60: =Option_2D!L60 -> 0.03315239165
D61: =Option_2D!D61 -> TMA | J61: =Option_2D!J61 -> 2028 | K61: =Option_2D!K61 -> 0.04107 | L61: =Option_2D!L61 -> 0.03315239165
D62: =Option_2D!D62 -> TH0 | J62: =Option_2D!J62 -> 2029 | K62: =Option_2D!K62 -> 0.04107 | L62: =Option_2D!L62 -> 0.03142406791
D63: =Option_2D!D63 -> PTN | J63: =Option_2D!J63 -> 2029 | K63: =Option_2D!K63 -> 0.04107 | L63: =Option_2D!L63 -> 0.03142406791
D64: =Option_2D!D64 -> YVE | J64: =Option_2D!J64 -> 2029 | K64: =Option_2D!K64 -> 0.04107 | L64: =Option_2D!L64 -> 0.03142406791
D65: =Option_2D!D65 -> FF0 | J65: =Option_2D!J65 -> 2029 | K65: =Option_2D!K65 -> 0.04107 | L65: =Option_2D!L65 -> 0.03142406791
D66: =Option_2D!D66 -> BY0 | J66: =Option_2D!J66 -> 2029 | K66: =Option_2D!K66 -> 0.04107 | L66: =Option_2D!L66 -> 0.03142406791
D67: =Option_2D!D67 -> ES0 | J67: =Option_2D!J67 -> 2030 | K67: =Option_2D!K67 -> 0.04107 | L67: =Option_2D!L67 -> 0.02978584636
D68: =Option_2D!D68 -> HB0 | J68: =Option_2D!J68 -> 2031 | K68: =Option_2D!K68 -> 0.04107 | L68: =Option_2D!L68 -> 0.02823302973
D69: =Option_2D!D69 -> PV0 | J69: =Option_2D!J69 -> 2031 | K69: =Option_2D!K69 -> 0.04107 | L69: =Option_2D!L69 -> 0.02823302973
D70: =Option_2D!D70 -> BMS | J70: =Option_2D!J70 -> 2031 | K70: =Option_2D!K70 -> 0.04107 | L70: =Option_2D!L70 -> 0.02823302973
D71: =Option_2D!D71 -> DVM Rollout | M71: =Option_2D!M71 -> 2027 | N71: =Option_2D!N71 -> 2028 | O71: =Option_2D!O71 -> 2029 | P71: =Option_2D!P71 -> 2030 | Q71: =Option_2D!Q71 -> 2031 | R71: =Option_2D!R71 -> 2032
D72: =Option_2D!D72 -> AW0 | J72: =Option_2D!J72 -> 2024 | K72: =Option_2D!K72 -> 0.4578389395 | L72: =Option_2D!L72 -> 0.4578389395 | M72: =Option_2D!M72 -> 0.001524614886 | N72: =Option_2D!N72 -> 0.001524614886 | O72: =Option_2D!O72 -> 0.001524614886 | P72: =Option_2D!P72 -> 0.001524614886 | Q72: =Option_2D!Q72 -> 0.001524614886 | R72: =Option_2D!R72 -> 0.001524614886
D73: =Option_2D!D73 -> CS0 | J73: =Option_2D!J73 -> 2024 | K73: =Option_2D!K73 -> 0.8723497219 | L73: =Option_2D!L73 -> 0.8723497219 | M73: =Option_2D!M73 -> 0.0003287497973 | N73: =Option_2D!N73 -> 0.0003287497973 | O73: =Option_2D!O73 -> 0.0003287497973 | P73: =Option_2D!P73 -> 0.0003287497973 | Q73: =Option_2D!Q73 -> 0.0003287497973 | R73: =Option_2D!R73 -> 0.0003287497973
D74: =Option_2D!D74 -> PTN | J74: =Option_2D!J74 -> 2025 | K74: =Option_2D!K74 -> 0.4876642334 | L74: =Option_2D!L74 -> 0.4622409796 | M74: =Option_2D!M74 -> 0.0009319604346 | N74: =Option_2D!N74 -> 0.0009319604346 | O74: =Option_2D!O74 -> 0.0009319604346 | P74: =Option_2D!P74 -> 0.0009319604346 | Q74: =Option_2D!Q74 -> 0.0009319604346 | R74: =Option_2D!R74 -> 0.0009319604346
D75: =Option_2D!D75 -> HB0 | J75: =Option_2D!J75 -> 2025 | K75: =Option_2D!K75 -> 0.9244242854 | L75: =Option_2D!L75 -> 0.8305512324 | M75: =Option_2D!M75 -> 0.0001990595103 | N75: =Option_2D!N75 -> 0.0001990595103 | O75: =Option_2D!O75 -> 0.0001990595103 | P75: =Option_2D!P75 -> 0.0001990595103 | Q75: =Option_2D!Q75 -> 0.0001990595103 | R75: =Option_2D!R75 -> 0.0001990595103
D76: =Option_2D!D76 -> SBY | J76: =Option_2D!J76 -> 2026 | K76: =Option_2D!K76 -> 0.5194324555 | L76: =Option_2D!L76 -> 0.4666853445 | M76: =Option_2D!M76 -> 0.002905967245 | N76: =Option_2D!N76 -> 0.003144235447 | O76: =Option_2D!O76 -> 0.004409469758 | P76: =Option_2D!P76 -> 0.006831360467 | Q76: =Option_2D!Q76 -> 0.01048832496 | R76: =Option_2D!R76 -> 0.01475905627
D77: =Option_2D!D77 -> FE0 | J77: =Option_2D!J77 -> 2026 | K77: =Option_2D!K77 -> 0.9796360282 | L77: =Option_2D!L77 -> 0.880156356 | M77: =Option_2D!M77 -> 0.0007796497487 | N77: =Option_2D!N77 -> 0.0007796497487 | O77: =Option_2D!O77 -> 0.0007796497487 | P77: =Option_2D!P77 -> 0.0007796497487 | Q77: =Option_2D!Q77 -> 0.0007796497487 | R77: =Option_2D!R77 -> 0.0007796497487
D78: =Option_2D!D78 -> NS0 | J78: =Option_2D!J78 -> 2027 | K78: =Option_2D!K78 -> 0.5238314488 | L78: =Option_2D!L78 -> 0.4461020195 | M78: =Option_2D!M78 -> 0 | N78: =Option_2D!N78 -> 0.01486612616 | O78: =Option_2D!O78 -> 0.01486612616 | P78: =Option_2D!P78 -> 0.01486612616 | Q78: =Option_2D!Q78 -> 0.01486612616 | R78: =Option_2D!R78 -> 0.01486612616
D79: =Option_2D!D79 -> ST0 | J79: =Option_2D!J79 -> 2027 | K79: =Option_2D!K79 -> 1.216458645 | L79: =Option_2D!L79 -> 1.035952804 | M79: =Option_2D!M79 -> 0 | N79: =Option_2D!N79 -> 0.001167212583 | O79: =Option_2D!O79 -> 0.00199210313 | P79: =Option_2D!P79 -> 0.003174395979 | Q79: =Option_2D!Q79 -> 0.004959899465 | R79: =Option_2D!R79 -> 0.007128441706
D80: =Option_2D!D80 -> SHM | J80: =Option_2D!J80 -> 2027 | K80: =Option_2D!K80 -> 0.9855829128 | L80: =Option_2D!L80 -> 0.8393358757 | M80: =Option_2D!M80 -> 0 | N80: =Option_2D!N80 -> 0.002087108805 | O80: =Option_2D!O80 -> 0.003397583914 | P80: =Option_2D!P80 -> 0.005103161991 | Q80: =Option_2D!Q80 -> 0.007143521972 | R80: =Option_2D!R80 -> 0.00963176585
D81: =Option_2D!D81 -> TT0 | J81: =Option_2D!J81 -> 2028 | K81: =Option_2D!K81 -> 1.253735445 | L81: =Option_2D!L81 -> 1.012036243 | M81: =Option_2D!M81 -> 0 | N81: =Option_2D!N81 -> 0 | O81: =Option_2D!O81 -> 0.001324047349 | P81: =Option_2D!P81 -> 0.001324047349 | Q81: =Option_2D!Q81 -> 0.001324047349 | R81: =Option_2D!R81 -> 0.001324047349
D82: =Option_2D!D82 -> BD0 | J82: =Option_2D!J82 -> 2028 | K82: =Option_2D!K82 -> 0.5423304445 | L82: =Option_2D!L82 -> 0.4377782152 | M82: =Option_2D!M82 -> 0 | N82: =Option_2D!N82 -> 0 | O82: =Option_2D!O82 -> 0.00116419653 | P82: =Option_2D!P82 -> 0.00116419653 | Q82: =Option_2D!Q82 -> 0.00116419653 | R82: =Option_2D!R82 -> 0.00116419653
D102: =Option_2D!D102 -> Trial | J102: =Option_2D!J102 -> 2023 | K102: =Option_2D!K102 -> 2.269811339 | L102: =Option_2D!L102 -> 2.269811339
D103: =Option_2D!D103 -> Trial | J103: =Option_2D!J103 -> 2024 | K103: =Option_2D!K103 -> 1 | L103: =Option_2D!L103 -> 1
D113: =Option_2D!D113 -> Traditional for worst served under-volt | F113: =(1-COUNTIF($J$72:$J$101,">0")/COUNTIF(Option_2D!$J$72:$J$101,">0"))*10% -> 0.06333333333
D114: =Option_2D!D114 -> Year 1 | J114: =Option_2D!J114 -> 2027 | K114: =Option_2D!K114*(1+$F$113) -> 1.64604 | L114: =VLOOKUP($J114,General!$D$27:$E$46,2)*K114 -> 1.401790156
D115: =Option_2D!D115 -> Year 2 | J115: =Option_2D!J115 -> 2028 | K115: =Option_2D!K115*(1+$F$113) -> 1.64604 | L115: =VLOOKUP($J115,General!$D$27:$E$46,2)*K115 -> 1.328711048
D116: =Option_2D!D116 -> Year 3 | J116: =Option_2D!J116 -> 2029 | K116: =Option_2D!K116*(1+$F$113) -> 1.64604 | L116: =VLOOKUP($J116,General!$D$27:$E$46,2)*K116 -> 1.259441752
D117: =Option_2D!D117 -> Year 4 | J117: =Option_2D!J117 -> 2030 | K117: =Option_2D!K117*(1+$F$113) -> 1.64604 | L117: =VLOOKUP($J117,General!$D$27:$E$46,2)*K117 -> 1.193783651
D118: =Option_2D!D118 -> Year 5 | J118: =Option_2D!J118 -> 2031 | K118: =Option_2D!K118*(1+$F$113) -> 1.64604 | L118: =VLOOKUP($J118,General!$D$27:$E$46,2)*K118 -> 1.131548484
D119: =Option_2D!D119 -> Power quality reactive program for customer complaints
D120: =Option_2D!D120 -> Year 1 | J120: =Option_2D!J120 -> 2027 | K120: =Option_2D!K120 -> 0.12322 | L120: =VLOOKUP($J120,General!$D$27:$E$46,2)*K120 -> 0.1049358357
D121: =Option_2D!D121 -> Year 2 | J121: =Option_2D!J121 -> 2028 | K121: =Option_2D!K121 -> 0.12322 | L121: =VLOOKUP($J121,General!$D$27:$E$46,2)*K121 -> 0.09946524711
D122: =Option_2D!D122 -> Year 3 | J122: =Option_2D!J122 -> 2029 | K122: =Option_2D!K122 -> 0.12322 | L122: =VLOOKUP($J122,General!$D$27:$E$46,2)*K122 -> 0.09427985508
D123: =Option_2D!D123 -> Year 4 | J123: =Option_2D!J123 -> 2030 | K123: =Option_2D!K123 -> 0.12322 | L123: =VLOOKUP($J123,General!$D$27:$E$46,2)*K123 -> 0.08936479155
D124: =Option_2D!D124 -> Year 5 | J124: =Option_2D!J124 -> 2031 | K124: =Option_2D!K124 -> 0.12322 | L124: =VLOOKUP($J124,General!$D$27:$E$46,2)*K124 -> 0.08470596355
D126: End

Sheet Option_2D
D1: Voltage PQ Management Strategy | H1: Section Check: | I1: =IF(COUNTA($A$8:$A$127)=COUNTIF($A$8:$A$127,0),"Ok","Check") -> Ok | L1: Overall Check: | M1: Ok | O1: Legend: | P1: Input | Q1: Internal | R1: Select | S1: Calculation
D2: =Summary!$K13&" - "&Summary!$D26 -> Option 2 - DVM, VAr controllers and reactors - EDCOP 2% NON-COMPLIANCE (ON PAR WITH VIC DNSP PEERS)
B6: Copyright Jemena Limited. All rights reserved. Jemena is not liable for any loss caused by reliance on this document.
B8: General Assumptions
C10: =B8 -> General Assumptions
D12: =C10 -> General Assumptions | E12: Source | F12: Unit | G12: Basis
J13: Start | K13: End
D14: Next Regulatory Period | E14: AM | F14: Year | G14: n/a | J14: =General!J16 -> 2027 | K14: =J14+4 -> 2031
D15: This Regulatory Period | E15: AM | F15: Year | G15: n/a | J15: =K15-4 -> 2022 | K15: =J14-1 -> 2026
B17: Option
C19: Summary
D21: =C19&" ($M)" -> Summary ($M) | E21: Period | J21: Total DVM Cost | K21: Total Cost | L21: PV Total Cost
D23: =D14 -> Next Regulatory Period | E23: =$J$14&" - "&$K$14 -> 2027 - 2031 | J23: =SUMIFS($K$72:$K$103,$J$72:$J$103,">="&J14,$J$72:$J$103,"<="&K14) -> 21.42960099 | K23: =SUMIFS($K$37:$K$124,$J$37:$J$124,">="&$J14,$J$37:$J$124,"<="&$K14) -> 45.52303099 | L23: =SUMIFS($L$37:$L$124,$J$37:$J$124,">="&$J14,$J$37:$J$124,"<="&$K14) -> 34.12171255
D24: =D15 -> This Regulatory Period | E24: =$J$15&" - "&$K$15 -> 2022 - 2026 | J24: =SUMIFS($K$72:$K$103,$J$72:$J$103,">="&J15,$J$72:$J$103,"<="&K15) -> 7.511157003 | K24: =SUMIFS($K$37:$K$124,$J$37:$J$124,">="&$J15,$J$37:$J$124,"<="&$K15) -> 7.511157003 | L24: =SUMIFS($L$37:$L$124,$J$37:$J$124,">="&$J15,$J$37:$J$124,"<="&$K15) -> 7.239633912
C26: Inputs
D28: =C26 -> Inputs | E28: Source | F28: Unit
I29: Year | J29: 2024 | K29: =J29+1 -> 2025 | L29: =K29+1 -> 2026 | M29: 2027 | N29: 2028 | O29: 2029 | P29: 2030 | Q29: 2031 | R29: 2032
D30: VRR replacement per TX ($M) | E30: AM | F30: $M | I30: Unit Rate | J30: 0.2072553912 | K30: 0.218380026 | L30: 0.2301017863 | M30: 0.230875732 | N30: 0.2371350002 | O30: 0.2370089385 | P30: 0.2368829439 | Q30: 0.2367570162 | R30: 0.2366311555
D31: DVM Integration per ZSS ($M) | E31: AM | F31: $M | I31: Unit Rate | J31: 0.4578389395 | K31: 0.4876642334 | L31: 0.5194324555 | M31: 0.5238314488 | N31: 0.5423304445 | O31: 0.5415392179 | P31: 0.5407491456 | Q31: 0.539960226 | R31: 0.5391724574
I32: Reconcile | J32: =SUMIF($J$72:$J$101,J$29,$K$72:$K$101) -> 1.330188661 | K32: =SUMIF($J$72:$J$101,K$29,$K$72:$K$101) -> 1.412088519 | L32: 1.499068484 | M32: 2.725873006 | N32: 2.338396334 | O32: 3.892740782 | P32: 6.931705548 | Q32: 5.540885325 | R32: 0
C33: Calculations
M34: Forecast Compliance
D35: =Summary!$G26&" - "&Summary!$D26 -> Option 2 - EDCOP 2% NON-COMPLIANCE (ON PAR WITH VIC DNSP PEERS) | J35: Indicative Year | K35: Cost ($M) | L35: PV Cost ($M) | M35: =M71 -> 2027 | N35: 2028 | O35: 2029 | P35: 2030 | Q35: 2031 | R35: 2032
D36: PROJECT & LOCATION | I36: TOTAL | J36: =J14&" - "&J14+General!J15-1 -> 2027 - 2031 | K36: =SUMIFS(K$37:K$124,$J$37:$J$124,">="&$J$14,$J$37:$J$124,"<="&J14+General!J15-1) -> 45.52303099 | L36: =SUMIFS(L$37:L$124,$J$37:$J$124,">="&$J$14,$J$37:$J$124,"<="&J14+General!J15-1) -> 34.12171255 | M36: =Compliance!M43-SUM(M72:M101) -> 0.03991375061 | N36: =Compliance!N43-SUM(N72:N101) -> 0.01924633263 | O36: =Compliance!O43-SUM(O72:O101) -> 0.0170932382 | P36: =Compliance!P43-SUM(P72:P101) -> 0.01616581266 | Q36: =Compliance!Q43-SUM(Q72:Q101) -> 0.01677881736 | R36: =Compliance!R43-SUM(R72:R101) -> 0.0197177558
D37: Reactors
D38: =INDEX(OLTC_Taps!$D$147:$D$173,MATCH(ROW()-ROW($D$37),OLTC_Taps!$L$147:$L$173,FALSE)) -> SBY | F38: =IF(LEN($D38)=2,$D38&"0",$D38) -> SBY | J38: =J14+1 -> 2028 | K38: 2.31658 | L38: =VLOOKUP($J38,General!$D$27:$E$46,2)*K38 -> 1.869982163
D39: =INDEX(OLTC_Taps!$D$147:$D$173,MATCH(ROW()-ROW($D$37),OLTC_Taps!$L$147:$L$173,FALSE)) -> SHM | F39: =IF(LEN($D39)=2,$D39&"0",$D39) -> SHM | J39: =J38+1 -> 2029 | K39: 2.59457 | L39: =VLOOKUP($J39,General!$D$27:$E$46,2)*K39 -> 1.98519464
D40: =INDEX(OLTC_Taps!$D$147:$D$173,MATCH(ROW()-ROW($D$37),OLTC_Taps!$L$147:$L$173,FALSE)) -> COO | F40: =IF(LEN($D40)=2,$D40&"0",$D40) -> COO | J40: =J39+1 -> 2030 | K40: 2.66236 | L40: =VLOOKUP($J40,General!$D$27:$E$46,2)*K40 -> 1.930865496
D41: =INDEX(OLTC_Taps!$D$147:$D$173,MATCH(ROW()-ROW($D$37),OLTC_Taps!$L$147:$L$173,FALSE)) -> ST | F41: =IF(LEN($D41)=2,$D41&"0",$D41) -> ST0 | J41: =J40+1 -> 2031 | K41: 2.15895 | L41: =VLOOKUP($J41,General!$D$27:$E$46,2)*K41 -> 1.484141698
D42: =INDEX(OLTC_Taps!$D$147:$D$173,MATCH(ROW()-ROW($D$37),OLTC_Taps!$L$147:$L$173,FALSE)) -> BD | F42: =IF(LEN($D42)=2,$D42&"0",$D42) -> BD0 | J42: =J41 -> 2031 | K42: 2.4241 | L42: =VLOOKUP($J42,General!$D$27:$E$46,2)*K42 -> 1.666415568
D43: VAr controllers
D44: CN No.1 | F44: CN0 | J44: =J14 -> 2027 | K44: 0.26952 | L44: =VLOOKUP($J44,General!$D$27:$E$46,2)*K44 -> 0.2295269148
D45: CN No.2 | F45: CN0 | J45: =J44 -> 2027 | K45: 0.26952 | L45: =VLOOKUP($J45,General!$D$27:$E$46,2)*K45 -> 0.2295269148
D46: CN No.3A & 3B | F46: CN0 | J46: =J44+1 -> 2028 | K46: 0.26952 | L46: =VLOOKUP($J46,General!$D$27:$E$46,2)*K46 -> 0.2175610567
D47: CS No.2 | F47: CS0 | J47: =J46 -> 2028 | K47: 0.26952 | L47: =VLOOKUP($J47,General!$D$27:$E$46,2)*K47 -> 0.2175610567
D48: ES No.1 | F48: ES0 | J48: =J47 -> 2028 | K48: 0.26952 | L48: =VLOOKUP($J48,General!$D$27:$E$46,2)*K48 -> 0.2175610567
D49: FF No.1 | F49: FF0 | J49: =J44+2 -> 2029 | K49: 0.26952 | L49: =VLOOKUP($J49,General!$D$27:$E$46,2)*K49 -> 0.206219011
D50: NH No.1 | F50: NH0 | J50: =J49 -> 2029 | K50: 0.26952 | L50: =VLOOKUP($J50,General!$D$27:$E$46,2)*K50 -> 0.206219011
D51: ST No.1 | F51: ST0 | J51: =J44+3 -> 2030 | K51: 0.26952 | L51: =VLOOKUP($J51,General!$D$27:$E$46,2)*K51 -> 0.1954682569
D52: ST No.2 | F52: ST0 | J52: =J51 -> 2030 | K52: 0.26952 | L52: =VLOOKUP($J52,General!$D$27:$E$46,2)*K52 -> 0.1954682569
D53: TH No.1 | F53: TH0 | J53: =J52 -> 2030 | K53: 0.26952 | L53: =VLOOKUP($J53,General!$D$27:$E$46,2)*K53 -> 0.1954682569
D54: TH No.2 | F54: TH0 | J54: =J44+4 -> 2031 | K54: 0.26952 | L54: =VLOOKUP($J54,General!$D$27:$E$46,2)*K54 -> 0.1852779686
D55: Traditional for voltage spread to support DVM
D56: =INDEX(Table!$A$4:$A$33,MATCH(ROW()-ROW($D$55),Table!$W$4:$W$33,FALSE)) -> EPN | J56: =MAX($J$14,37+$J$14-INT(INDEX(Table!$E$4:$E$33,MATCH(ROW()-ROW($J$55),Table!$W$4:$W$33,FALSE)))) -> 2027 | K56: 0.04107 | L56: =VLOOKUP($J56,General!$D$27:$E$46,2)*K56 -> 0.03497577319
D57: =INDEX(Table!$A$4:$A$33,MATCH(ROW()-ROW($D$55),Table!$W$4:$W$33,FALSE)) -> EP0 | J57: =MAX($J$14,37+$J$14-INT(INDEX(Table!$E$4:$E$33,MATCH(ROW()-ROW($J$55),Table!$W$4:$W$33,FALSE)))) -> 2027 | K57: 0.04107 | L57: =VLOOKUP($J57,General!$D$27:$E$46,2)*K57 -> 0.03497577319
D58: =INDEX(Table!$A$4:$A$33,MATCH(ROW()-ROW($D$55),Table!$W$4:$W$33,FALSE)) -> AW0 | J58: =MAX($J$14,37+$J$14-INT(INDEX(Table!$E$4:$E$33,MATCH(ROW()-ROW($J$55),Table!$W$4:$W$33,FALSE)))) -> 2028 | K58: 0.04107 | L58: =VLOOKUP($J58,General!$D$27:$E$46,2)*K58 -> 0.03315239165
D59: =INDEX(Table!$A$4:$A$33,MATCH(ROW()-ROW($D$55),Table!$W$4:$W$33,FALSE)) -> NS0 | J59: =MAX($J$14,37+$J$14-INT(INDEX(Table!$E$4:$E$33,MATCH(ROW()-ROW($J$55),Table!$W$4:$W$33,FALSE)))) -> 2028 | K59: 0.04107 | L59: =VLOOKUP($J59,General!$D$27:$E$46,2)*K59 -> 0.03315239165
D60: =INDEX(Table!$A$4:$A$33,MATCH(ROW()-ROW($D$55),Table!$W$4:$W$33,FALSE)) -> FT0 | J60: =MAX($J$14,37+$J$14-INT(INDEX(Table!$E$4:$E$33,MATCH(ROW()-ROW($J$55),Table!$W$4:$W$33,FALSE)))) -> 2028 | K60: 0.04107 | L60: =VLOOKUP($J60,General!$D$27:$E$46,2)*K60 -> 0.03315239165
D61: =INDEX(Table!$A$4:$A$33,MATCH(ROW()-ROW($D$55),Table!$W$4:$W$33,FALSE)) -> TMA | J61: =MAX($J$14,37+$J$14-INT(INDEX(Table!$E$4:$E$33,MATCH(ROW()-ROW($J$55),Table!$W$4:$W$33,FALSE)))) -> 2028 | K61: 0.04107 | L61: =VLOOKUP($J61,General!$D$27:$E$46,2)*K61 -> 0.03315239165
D62: =INDEX(Table!$A$4:$A$33,MATCH(ROW()-ROW($D$55),Table!$W$4:$W$33,FALSE)) -> TH0 | J62: =MAX($J$14,37+$J$14-INT(INDEX(Table!$E$4:$E$33,MATCH(ROW()-ROW($J$55),Table!$W$4:$W$33,FALSE)))) -> 2029 | K62: 0.04107 | L62: =VLOOKUP($J62,General!$D$27:$E$46,2)*K62 -> 0.03142406791
D63: =INDEX(Table!$A$4:$A$33,MATCH(ROW()-ROW($D$55),Table!$W$4:$W$33,FALSE)) -> PTN | J63: =MAX($J$14,37+$J$14-INT(INDEX(Table!$E$4:$E$33,MATCH(ROW()-ROW($J$55),Table!$W$4:$W$33,FALSE)))) -> 2029 | K63: 0.04107 | L63: =VLOOKUP($J63,General!$D$27:$E$46,2)*K63 -> 0.03142406791
D64: =INDEX(Table!$A$4:$A$33,MATCH(ROW()-ROW($D$55),Table!$W$4:$W$33,FALSE)) -> YVE | J64: =MAX($J$14,37+$J$14-INT(INDEX(Table!$E$4:$E$33,MATCH(ROW()-ROW($J$55),Table!$W$4:$W$33,FALSE)))) -> 2029 | K64: 0.04107 | L64: =VLOOKUP($J64,General!$D$27:$E$46,2)*K64 -> 0.03142406791
D65: =INDEX(Table!$A$4:$A$33,MATCH(ROW()-ROW($D$55),Table!$W$4:$W$33,FALSE)) -> FF0 | J65: =MAX($J$14,37+$J$14-INT(INDEX(Table!$E$4:$E$33,MATCH(ROW()-ROW($J$55),Table!$W$4:$W$33,FALSE)))) -> 2029 | K65: 0.04107 | L65: =VLOOKUP($J65,General!$D$27:$E$46,2)*K65 -> 0.03142406791
D66: =INDEX(Table!$A$4:$A$33,MATCH(ROW()-ROW($D$55),Table!$W$4:$W$33,FALSE)) -> BY0 | J66: =MAX($J$14,37+$J$14-INT(INDEX(Table!$E$4:$E$33,MATCH(ROW()-ROW($J$55),Table!$W$4:$W$33,FALSE)))) -> 2029 | K66: 0.04107 | L66: =VLOOKUP($J66,General!$D$27:$E$46,2)*K66 -> 0.03142406791
D67: =INDEX(Table!$A$4:$A$33,MATCH(ROW()-ROW($D$55),Table!$W$4:$W$33,FALSE)) -> ES0 | J67: =MAX($J$14,37+$J$14-INT(INDEX(Table!$E$4:$E$33,MATCH(ROW()-ROW($J$55),Table!$W$4:$W$33,FALSE)))) -> 2030 | K67: 0.04107 | L67: =VLOOKUP($J67,General!$D$27:$E$46,2)*K67 -> 0.02978584636
D68: =INDEX(Table!$A$4:$A$33,MATCH(ROW()-ROW($D$55),Table!$W$4:$W$33,FALSE)) -> HB0 | J68: =MAX($J$14,37+$J$14-INT(INDEX(Table!$E$4:$E$33,MATCH(ROW()-ROW($J$55),Table!$W$4:$W$33,FALSE)))) -> 2031 | K68: 0.04107 | L68: =VLOOKUP($J68,General!$D$27:$E$46,2)*K68 -> 0.02823302973
D69: =INDEX(Table!$A$4:$A$33,MATCH(ROW()-ROW($D$55),Table!$W$4:$W$33,FALSE)) -> PV0 | J69: =MAX($J$14,37+$J$14-INT(INDEX(Table!$E$4:$E$33,MATCH(ROW()-ROW($J$55),Table!$W$4:$W$33,FALSE)))) -> 2031 | K69: 0.04107 | L69: =VLOOKUP($J69,General!$D$27:$E$46,2)*K69 -> 0.02823302973
D70: =INDEX(Table!$A$4:$A$33,MATCH(ROW()-ROW($D$55),Table!$W$4:$W$33,FALSE)) -> BMS | J70: =MAX($J$14,37+$J$14-INT(INDEX(Table!$E$4:$E$33,MATCH(ROW()-ROW($J$55),Table!$W$4:$W$33,FALSE)))) -> 2031 | K70: 0.04107 | L70: =VLOOKUP($J70,General!$D$27:$E$46,2)*K70 -> 0.02823302973
D71: DVM Rollout | M71: =J14 -> 2027 | N71: =M71+1 -> 2028 | O71: =N71+1 -> 2029 | P71: =O71+1 -> 2030 | Q71: =P71+1 -> 2031 | R71: =Q71+1 -> 2032
D72: =INDEX(Compliance!$D$11:$D$41,MATCH(ROW()-ROW($D$71),Compliance!$H$11:$H$41,0)) -> AW0 | J72: =VLOOKUP($D72,Compliance!$D$11:$G$41,4,FALSE) -> 2024 | K72: =VLOOKUP($D72,Table!$A$4:$AA$33,COLUMN(Table!$AA:$AA),FALSE)*HLOOKUP($J72,$J$29:$R$31,2,FALSE)+HLOOKUP($J72,$J$29:$R$31,3,FALSE) -> 0.4578389395 | L72: =VLOOKUP($J72,General!$D$27:$E$46,2)*K72 -> 0.4578389395 | M72: =IF(M$71>$J72,HLOOKUP(M$71,Compliance!$I$10:$S$43,MATCH($D72,Compliance!$D$11:$D$41,0)+1,FALSE),0)*General!$J$13 -> 0.001524614886 | N72: =IF(N$71>$J72,HLOOKUP(N$71,Compliance!$I$10:$S$43,MATCH($D72,Compliance!$D$11:$D$41,0)+1,FALSE),0)*General!$J$13 -> 0.001524614886 | O72: =IF(O$71>$J72,HLOOKUP(O$71,Compliance!$I$10:$S$43,MATCH($D72,Compliance!$D$11:$D$41,0)+1,FALSE),0)*General!$J$13 -> 0.001524614886 | P72: =IF(P$71>$J72,HLOOKUP(P$71,Compliance!$I$10:$S$43,MATCH($D72,Compliance!$D$11:$D$41,0)+1,FALSE),0)*General!$J$13 -> 0.001524614886 | Q72: =IF(Q$71>$J72,HLOOKUP(Q$71,Compliance!$I$10:$S$43,MATCH($D72,Compliance!$D$11:$D$41,0)+1,FALSE),0)*General!$J$13 -> 0.001524614886 | R72: =IF(R$71>$J72,HLOOKUP(R$71,Compliance!$I$10:$S$43,MATCH($D72,Compliance!$D$11:$D$41,0)+1,FALSE),0)*General!$J$13 -> 0.001524614886
D73: =INDEX(Compliance!$D$11:$D$41,MATCH(ROW()-ROW($D$71),Compliance!$H$11:$H$41,0)) -> CS0 | J73: =VLOOKUP($D73,Compliance!$D$11:$G$41,4,FALSE) -> 2024 | K73: =VLOOKUP($D73,Table!$A$4:$AA$33,COLUMN(Table!$AA:$AA),FALSE)*HLOOKUP($J73,$J$29:$R$31,2,FALSE)+HLOOKUP($J73,$J$29:$R$31,3,FALSE) -> 0.8723497219 | L73: =VLOOKUP($J73,General!$D$27:$E$46,2)*K73 -> 0.8723497219 | M73: =IF(M$71>$J73,HLOOKUP(M$71,Compliance!$I$10:$S$43,MATCH($D73,Compliance!$D$11:$D$41,0)+1,FALSE),0)*General!$J$13 -> 0.0003287497973 | N73: =IF(N$71>$J73,HLOOKUP(N$71,Compliance!$I$10:$S$43,MATCH($D73,Compliance!$D$11:$D$41,0)+1,FALSE),0)*General!$J$13 -> 0.0003287497973 | O73: =IF(O$71>$J73,HLOOKUP(O$71,Compliance!$I$10:$S$43,MATCH($D73,Compliance!$D$11:$D$41,0)+1,FALSE),0)*General!$J$13 -> 0.0003287497973 | P73: =IF(P$71>$J73,HLOOKUP(P$71,Compliance!$I$10:$S$43,MATCH($D73,Compliance!$D$11:$D$41,0)+1,FALSE),0)*General!$J$13 -> 0.0003287497973 | Q73: =IF(Q$71>$J73,HLOOKUP(Q$71,Compliance!$I$10:$S$43,MATCH($D73,Compliance!$D$11:$D$41,0)+1,FALSE),0)*General!$J$13 -> 0.0003287497973 | R73: =IF(R$71>$J73,HLOOKUP(R$71,Compliance!$I$10:$S$43,MATCH($D73,Compliance!$D$11:$D$41,0)+1,FALSE),0)*General!$J$13 -> 0.0003287497973
D74: =INDEX(Compliance!$D$11:$D$41,MATCH(ROW()-ROW($D$71),Compliance!$H$11:$H$41,0)) -> PTN | J74: =VLOOKUP($D74,Compliance!$D$11:$G$41,4,FALSE) -> 2025 | K74: =VLOOKUP($D74,Table!$A$4:$AA$33,COLUMN(Table!$AA:$AA),FALSE)*HLOOKUP($J74,$J$29:$R$31,2,FALSE)+HLOOKUP($J74,$J$29:$R$31,3,FALSE) -> 0.4876642334 | L74: =VLOOKUP($J74,General!$D$27:$E$46,2)*K74 -> 0.4622409796 | M74: =IF(M$71>$J74,HLOOKUP(M$71,Compliance!$I$10:$S$43,MATCH($D74,Compliance!$D$11:$D$41,0)+1,FALSE),0)*General!$J$13 -> 0.0009319604346 | N74: =IF(N$71>$J74,HLOOKUP(N$71,Compliance!$I$10:$S$43,MATCH($D74,Compliance!$D$11:$D$41,0)+1,FALSE),0)*General!$J$13 -> 0.0009319604346 | O74: =IF(O$71>$J74,HLOOKUP(O$71,Compliance!$I$10:$S$43,MATCH($D74,Compliance!$D$11:$D$41,0)+1,FALSE),0)*General!$J$13 -> 0.0009319604346 | P74: =IF(P$71>$J74,HLOOKUP(P$71,Compliance!$I$10:$S$43,MATCH($D74,Compliance!$D$11:$D$41,0)+1,FALSE),0)*General!$J$13 -> 0.0009319604346 | Q74: =IF(Q$71>$J74,HLOOKUP(Q$71,Compliance!$I$10:$S$43,MATCH($D74,Compliance!$D$11:$D$41,0)+1,FALSE),0)*General!$J$13 -> 0.0009319604346 | R74: =IF(R$71>$J74,HLOOKUP(R$71,Compliance!$I$10:$S$43,MATCH($D74,Compliance!$D$11:$D$41,0)+1,FALSE),0)*General!$J$13 -> 0.0009319604346
D75: =INDEX(Compliance!$D$11:$D$41,MATCH(ROW()-ROW($D$71),Compliance!$H$11:$H$41,0)) -> HB0 | J75: =VLOOKUP($D75,Compliance!$D$11:$G$41,4,FALSE) -> 2025 | K75: =VLOOKUP($D75,Table!$A$4:$AA$33,COLUMN(Table!$AA:$AA),FALSE)*HLOOKUP($J75,$J$29:$R$31,2,FALSE)+HLOOKUP($J75,$J$29:$R$31,3,FALSE) -> 0.9244242854 | L75: =VLOOKUP($J75+1,General!$D$27:$E$46,2)*K75 -> 0.8305512324 | M75: =IF(M$71>$J75,HLOOKUP(M$71,Compliance!$I$10:$S$43,MATCH($D75,Compliance!$D$11:$D$41,0)+1,FALSE),0)*General!$J$13 -> 0.0001990595103 | N75: =IF(N$71>$J75,HLOOKUP(N$71,Compliance!$I$10:$S$43,MATCH($D75,Compliance!$D$11:$D$41,0)+1,FALSE),0)*General!$J$13 -> 0.0001990595103 | O75: =IF(O$71>$J75,HLOOKUP(O$71,Compliance!$I$10:$S$43,MATCH($D75,Compliance!$D$11:$D$41,0)+1,FALSE),0)*General!$J$13 -> 0.0001990595103 | P75: =IF(P$71>$J75,HLOOKUP(P$71,Compliance!$I$10:$S$43,MATCH($D75,Compliance!$D$11:$D$41,0)+1,FALSE),0)*General!$J$13 -> 0.0001990595103 | Q75: =IF(Q$71>$J75,HLOOKUP(Q$71,Compliance!$I$10:$S$43,MATCH($D75,Compliance!$D$11:$D$41,0)+1,FALSE),0)*General!$J$13 -> 0.0001990595103 | R75: =IF(R$71>$J75,HLOOKUP(R$71,Compliance!$I$10:$S$43,MATCH($D75,Compliance!$D$11:$D$41,0)+1,FALSE),0)*General!$J$13 -> 0.0001990595103
D76: =INDEX(Compliance!$D$11:$D$41,MATCH(ROW()-ROW($D$71),Compliance!$H$11:$H$41,0)) -> SBY | J76: =VLOOKUP($D76,Compliance!$D$11:$G$41,4,FALSE) -> 2026 | K76: =VLOOKUP($D76,Table!$A$4:$AA$33,COLUMN(Table!$AA:$AA),FALSE)*HLOOKUP($J76,$J$29:$R$31,2,FALSE)+HLOOKUP($J76,$J$29:$R$31,3,FALSE) -> 0.5194324555 | L76: =VLOOKUP($J76,General!$D$27:$E$46,2)*K76 -> 0.4666853445 | M76: =IF(M$71>$J76,HLOOKUP(M$71,Compliance!$I$10:$S$43,MATCH($D76,Compliance!$D$11:$D$41,0)+1,FALSE),0)*General!$J$13 -> 0.002905967245 | N76: =IF(N$71>$J76,HLOOKUP(N$71,Compliance!$I$10:$S$43,MATCH($D76,Compliance!$D$11:$D$41,0)+1,FALSE),0)*General!$J$13 -> 0.003144235447 | O76: =IF(O$71>$J76,HLOOKUP(O$71,Compliance!$I$10:$S$43,MATCH($D76,Compliance!$D$11:$D$41,0)+1,FALSE),0)*General!$J$13 -> 0.004409469758 | P76: =IF(P$71>$J76,HLOOKUP(P$71,Compliance!$I$10:$S$43,MATCH($D76,Compliance!$D$11:$D$41,0)+1,FALSE),0)*General!$J$13 -> 0.006831360467 | Q76: =IF(Q$71>$J76,HLOOKUP(Q$71,Compliance!$I$10:$S$43,MATCH($D76,Compliance!$D$11:$D$41,0)+1,FALSE),0)*General!$J$13 -> 0.01048832496 | R76: =IF(R$71>$J76,HLOOKUP(R$71,Compliance!$I$10:$S$43,MATCH($D76,Compliance!$D$11:$D$41,0)+1,FALSE),0)*General!$J$13 -> 0.01475905627
D77: =INDEX(Compliance!$D$11:$D$41,MATCH(ROW()-ROW($D$71),Compliance!$H$11:$H$41,0)) -> FE0 | J77: =VLOOKUP($D77,Compliance!$D$11:$G$41,4,FALSE) -> 2026 | K77: =VLOOKUP($D77,Table!$A$4:$AA$33,COLUMN(Table!$AA:$AA),FALSE)*HLOOKUP($J77,$J$29:$R$31,2,FALSE)+HLOOKUP($J77,$J$29:$R$31,3,FALSE) -> 0.9796360282 | L77: =VLOOKUP($J77,General!$D$27:$E$46,2)*K77 -> 0.880156356 | M77: =IF(M$71>$J77,HLOOKUP(M$71,Compliance!$I$10:$S$43,MATCH($D77,Compliance!$D$11:$D$41,0)+1,FALSE),0)*General!$J$13 -> 0.0007796497487 | N77: =IF(N$71>$J77,HLOOKUP(N$71,Compliance!$I$10:$S$43,MATCH($D77,Compliance!$D$11:$D$41,0)+1,FALSE),0)*General!$J$13 -> 0.0007796497487 | O77: =IF(O$71>$J77,HLOOKUP(O$71,Compliance!$I$10:$S$43,MATCH($D77,Compliance!$D$11:$D$41,0)+1,FALSE),0)*General!$J$13 -> 0.0007796497487 | P77: =IF(P$71>$J77,HLOOKUP(P$71,Compliance!$I$10:$S$43,MATCH($D77,Compliance!$D$11:$D$41,0)+1,FALSE),0)*General!$J$13 -> 0.0007796497487 | Q77: =IF(Q$71>$J77,HLOOKUP(Q$71,Compliance!$I$10:$S$43,MATCH($D77,Compliance!$D$11:$D$41,0)+1,FALSE),0)*General!$J$13 -> 0.0007796497487 | R77: =IF(R$71>$J77,HLOOKUP(R$71,Compliance!$I$10:$S$43,MATCH($D77,Compliance!$D$11:$D$41,0)+1,FALSE),0)*General!$J$13 -> 0.0007796497487
D78: =INDEX(Compliance!$D$11:$D$41,MATCH(ROW()-ROW($D$71),Compliance!$H$11:$H$41,0)) -> NS0 | J78: =VLOOKUP($D78,Compliance!$D$11:$G$41,4,FALSE) -> 2027 | K78: =VLOOKUP($D78,Table!$A$4:$AA$33,COLUMN(Table!$AA:$AA),FALSE)*HLOOKUP($J78,$J$29:$R$31,2,FALSE)+HLOOKUP($J78,$J$29:$R$31,3,FALSE) -> 0.5238314488 | L78: =VLOOKUP($J78,General!$D$27:$E$46,2)*K78 -> 0.4461020195 | M78: =IF(M$71>$J78,HLOOKUP(M$71,Compliance!$I$10:$S$43,MATCH($D78,Compliance!$D$11:$D$41,0)+1,FALSE),0)*General!$J$13 -> 0 | N78: =IF(N$71>$J78,HLOOKUP(N$71,Compliance!$I$10:$S$43,MATCH($D78,Compliance!$D$11:$D$41,0)+1,FALSE),0)*General!$J$13 -> 0.01486612616 | O78: =IF(O$71>$J78,HLOOKUP(O$71,Compliance!$I$10:$S$43,MATCH($D78,Compliance!$D$11:$D$41,0)+1,FALSE),0)*General!$J$13 -> 0.01486612616 | P78: =IF(P$71>$J78,HLOOKUP(P$71,Compliance!$I$10:$S$43,MATCH($D78,Compliance!$D$11:$D$41,0)+1,FALSE),0)*General!$J$13 -> 0.01486612616 | Q78: =IF(Q$71>$J78,HLOOKUP(Q$71,Compliance!$I$10:$S$43,MATCH($D78,Compliance!$D$11:$D$41,0)+1,FALSE),0)*General!$J$13 -> 0.01486612616 | R78: =IF(R$71>$J78,HLOOKUP(R$71,Compliance!$I$10:$S$43,MATCH($D78,Compliance!$D$11:$D$41,0)+1,FALSE),0)*General!$J$13 -> 0.01486612616
D79: =INDEX(Compliance!$D$11:$D$41,MATCH(ROW()-ROW($D$71),Compliance!$H$11:$H$41,0)) -> ST0 | J79: =VLOOKUP($D79,Compliance!$D$11:$G$41,4,FALSE) -> 2027 | K79: =VLOOKUP($D79,Table!$A$4:$AA$33,COLUMN(Table!$AA:$AA),FALSE)*HLOOKUP($J79,$J$29:$R$31,2,FALSE)+HLOOKUP($J79,$J$29:$R$31,3,FALSE) -> 1.216458645 | L79: =VLOOKUP($J79,General!$D$27:$E$46,2)*K79 -> 1.035952804 | M79: =IF(M$71>$J79,HLOOKUP(M$71,Compliance!$I$10:$S$43,MATCH($D79,Compliance!$D$11:$D$41,0)+1,FALSE),0)*General!$J$13 -> 0 | N79: =IF(N$71>$J79,HLOOKUP(N$71,Compliance!$I$10:$S$43,MATCH($D79,Compliance!$D$11:$D$41,0)+1,FALSE),0)*General!$J$13 -> 0.001167212583 | O79: =IF(O$71>$J79,HLOOKUP(O$71,Compliance!$I$10:$S$43,MATCH($D79,Compliance!$D$11:$D$41,0)+1,FALSE),0)*General!$J$13 -> 0.00199210313 | P79: =IF(P$71>$J79,HLOOKUP(P$71,Compliance!$I$10:$S$43,MATCH($D79,Compliance!$D$11:$D$41,0)+1,FALSE),0)*General!$J$13 -> 0.003174395979 | Q79: =IF(Q$71>$J79,HLOOKUP(Q$71,Compliance!$I$10:$S$43,MATCH($D79,Compliance!$D$11:$D$41,0)+1,FALSE),0)*General!$J$13 -> 0.004959899465 | R79: =IF(R$71>$J79,HLOOKUP(R$71,Compliance!$I$10:$S$43,MATCH($D79,Compliance!$D$11:$D$41,0)+1,FALSE),0)*General!$J$13 -> 0.007128441706
D80: =INDEX(Compliance!$D$11:$D$41,MATCH(ROW()-ROW($D$71),Compliance!$H$11:$H$41,0)) -> SHM | J80: =VLOOKUP($D80,Compliance!$D$11:$G$41,4,FALSE) -> 2027 | K80: =VLOOKUP($D80,Table!$A$4:$AA$33,COLUMN(Table!$AA:$AA),FALSE)*HLOOKUP($J80,$J$29:$R$31,2,FALSE)+HLOOKUP($J80,$J$29:$R$31,3,FALSE) -> 0.9855829128 | L80: =VLOOKUP($J80,General!$D$27:$E$46,2)*K80 -> 0.8393358757 | M80: =IF(M$71>$J80,HLOOKUP(M$71,Compliance!$I$10:$S$43,MATCH($D80,Compliance!$D$11:$D$41,0)+1,FALSE),0)*General!$J$13 -> 0 | N80: =IF(N$71>$J80,HLOOKUP(N$71,Compliance!$I$10:$S$43,MATCH($D80,Compliance!$D$11:$D$41,0)+1,FALSE),0)*General!$J$13 -> 0.002087108805 | O80: =IF(O$71>$J80,HLOOKUP(O$71,Compliance!$I$10:$S$43,MATCH($D80,Compliance!$D$11:$D$41,0)+1,FALSE),0)*General!$J$13 -> 0.003397583914 | P80: =IF(P$71>$J80,HLOOKUP(P$71,Compliance!$I$10:$S$43,MATCH($D80,Compliance!$D$11:$D$41,0)+1,FALSE),0)*General!$J$13 -> 0.005103161991 | Q80: =IF(Q$71>$J80,HLOOKUP(Q$71,Compliance!$I$10:$S$43,MATCH($D80,Compliance!$D$11:$D$41,0)+1,FALSE),0)*General!$J$13 -> 0.007143521972 | R80: =IF(R$71>$J80,HLOOKUP(R$71,Compliance!$I$10:$S$43,MATCH($D80,Compliance!$D$11:$D$41,0)+1,FALSE),0)*General!$J$13 -> 0.00963176585
D81: =INDEX(Compliance!$D$11:$D$41,MATCH(ROW()-ROW($D$71),Compliance!$H$11:$H$41,0)) -> TT0 | J81: =VLOOKUP($D81,Compliance!$D$11:$G$41,4,FALSE) -> 2028 | K81: =VLOOKUP($D81,Table!$A$4:$AA$33,COLUMN(Table!$AA:$AA),FALSE)*HLOOKUP($J81,$J$29:$R$31,2,FALSE)+HLOOKUP($J81,$J$29:$R$31,3,FALSE) -> 1.253735445 | L81: =VLOOKUP($J81,General!$D$27:$E$46,2)*K81 -> 1.012036243 | M81: =IF(M$71>$J81,HLOOKUP(M$71,Compliance!$I$10:$S$43,MATCH($D81,Compliance!$D$11:$D$41,0)+1,FALSE),0)*General!$J$13 -> 0 | N81: =IF(N$71>$J81,HLOOKUP(N$71,Compliance!$I$10:$S$43,MATCH($D81,Compliance!$D$11:$D$41,0)+1,FALSE),0)*General!$J$13 -> 0 | O81: =IF(O$71>$J81,HLOOKUP(O$71,Compliance!$I$10:$S$43,MATCH($D81,Compliance!$D$11:$D$41,0)+1,FALSE),0)*General!$J$13 -> 0.001324047349 | P81: =IF(P$71>$J81,HLOOKUP(P$71,Compliance!$I$10:$S$43,MATCH($D81,Compliance!$D$11:$D$41,0)+1,FALSE),0)*General!$J$13 -> 0.001324047349 | Q81: =IF(Q$71>$J81,HLOOKUP(Q$71,Compliance!$I$10:$S$43,MATCH($D81,Compliance!$D$11:$D$41,0)+1,FALSE),0)*General!$J$13 -> 0.001324047349 | R81: =IF(R$71>$J81,HLOOKUP(R$71,Compliance!$I$10:$S$43,MATCH($D81,Compliance!$D$11:$D$41,0)+1,FALSE),0)*General!$J$13 -> 0.001324047349
D82: =INDEX(Compliance!$D$11:$D$41,MATCH(ROW()-ROW($D$71),Compliance!$H$11:$H$41,0)) -> BD0 | J82: =VLOOKUP($D82,Compliance!$D$11:$G$41,4,FALSE) -> 2028 | K82: =VLOOKUP($D82,Table!$A$4:$AA$33,COLUMN(Table!$AA:$AA),FALSE)*HLOOKUP($J82,$J$29:$R$31,2,FALSE)+HLOOKUP($J82,$J$29:$R$31,3,FALSE) -> 0.5423304445 | L82: =VLOOKUP($J82,General!$D$27:$E$46,2)*K82 -> 0.4377782152 | M82: =IF(M$71>$J82,HLOOKUP(M$71,Compliance!$I$10:$S$43,MATCH($D82,Compliance!$D$11:$D$41,0)+1,FALSE),0)*General!$J$13 -> 0 | N82: =IF(N$71>$J82,HLOOKUP(N$71,Compliance!$I$10:$S$43,MATCH($D82,Compliance!$D$11:$D$41,0)+1,FALSE),0)*General!$J$13 -> 0 | O82: =IF(O$71>$J82,HLOOKUP(O$71,Compliance!$I$10:$S$43,MATCH($D82,Compliance!$D$11:$D$41,0)+1,FALSE),0)*General!$J$13 -> 0.00116419653 | P82: =IF(P$71>$J82,HLOOKUP(P$71,Compliance!$I$10:$S$43,MATCH($D82,Compliance!$D$11:$D$41,0)+1,FALSE),0)*General!$J$13 -> 0.00116419653 | Q82: =IF(Q$71>$J82,HLOOKUP(Q$71,Compliance!$I$10:$S$43,MATCH($D82,Compliance!$D$11:$D$41,0)+1,FALSE),0)*General!$J$13 -> 0.00116419653 | R82: =IF(R$71>$J82,HLOOKUP(R$71,Compliance!$I$10:$S$43,MATCH($D82,Compliance!$D$11:$D$41,0)+1,FALSE),0)*General!$J$13 -> 0.00116419653
D83: =INDEX(Compliance!$D$11:$D$41,MATCH(ROW()-ROW($D$71),Compliance!$H$11:$H$41,0)) -> EPN | J83: =VLOOKUP($D83,Compliance!$D$11:$G$41,4,FALSE) -> 2028 | K83: =VLOOKUP($D83,Table!$A$4:$AA$33,COLUMN(Table!$AA:$AA),FALSE)*HLOOKUP($J83,$J$29:$R$31,2,FALSE)+HLOOKUP($J83,$J$29:$R$31,3,FALSE) -> 0.5423304445 | L83: =VLOOKUP($J83,General!$D$27:$E$46,2)*K83 -> 0.4377782152 | M83: =IF(M$71>$J83,HLOOKUP(M$71,Compliance!$I$10:$S$43,MATCH($D83,Compliance!$D$11:$D$41,0)+1,FALSE),0)*General!$J$13 -> 0 | N83: =IF(N$71>$J83,HLOOKUP(N$71,Compliance!$I$10:$S$43,MATCH($D83,Compliance!$D$11:$D$41,0)+1,FALSE),0)*General!$J$13 -> 0 | O83: =IF(O$71>$J83,HLOOKUP(O$71,Compliance!$I$10:$S$43,MATCH($D83,Compliance!$D$11:$D$41,0)+1,FALSE),0)*General!$J$13 -> 0.0008837035836 | P83: =IF(P$71>$J83,HLOOKUP(P$71,Compliance!$I$10:$S$43,MATCH($D83,Compliance!$D$11:$D$41,0)+1,FALSE),0)*General!$J$13 -> 0.0008837035836 | Q83: =IF(Q$71>$J83,HLOOKUP(Q$71,Compliance!$I$10:$S$43,MATCH($D83,Compliance!$D$11:$D$41,0)+1,FALSE),0)*General!$J$13 -> 0.0008837035836 | R83: =IF(R$71>$J83,HLOOKUP(R$71,Compliance!$I$10:$S$43,MATCH($D83,Compliance!$D$11:$D$41,0)+1,FALSE),0)*General!$J$13 -> 0.0008837035836
D84: =INDEX(Compliance!$D$11:$D$41,MATCH(ROW()-ROW($D$71),Compliance!$H$11:$H$41,0)) -> ES0 | J84: =VLOOKUP($D84,Compliance!$D$11:$G$41,4,FALSE) -> 2029 | K84: =VLOOKUP($D84,Table!$A$4:$AA$33,COLUMN(Table!$AA:$AA),FALSE)*HLOOKUP($J84,$J$29:$R$31,2,FALSE)+HLOOKUP($J84,$J$29:$R$31,3,FALSE) -> 0.5415392179 | L84: =VLOOKUP($J84,General!$D$27:$E$46,2)*K84 -> 0.4143502596 | M84: =IF(M$71>$J84,HLOOKUP(M$71,Compliance!$I$10:$S$43,MATCH($D84,Compliance!$D$11:$D$41,0)+1,FALSE),0)*General!$J$13 -> 0 | N84: =IF(N$71>$J84,HLOOKUP(N$71,Compliance!$I$10:$S$43,MATCH($D84,Compliance!$D$11:$D$41,0)+1,FALSE),0)*General!$J$13 -> 0 | O84: =IF(O$71>$J84,HLOOKUP(O$71,Compliance!$I$10:$S$43,MATCH($D84,Compliance!$D$11:$D$41,0)+1,FALSE),0)*General!$J$13 -> 0 | P84: =IF(P$71>$J84,HLOOKUP(P$71,Compliance!$I$10:$S$43,MATCH($D84,Compliance!$D$11:$D$41,0)+1,FALSE),0)*General!$J$13 -> 0.0007208367115 | Q84: =IF(Q$71>$J84,HLOOKUP(Q$71,Compliance!$I$10:$S$43,MATCH($D84,Compliance!$D$11:$D$41,0)+1,FALSE),0)*General!$J$13 -> 0.0007208367115 | R84: =IF(R$71>$J84,HLOOKUP(R$71,Compliance!$I$10:$S$43,MATCH($D84,Compliance!$D$11:$D$41,0)+1,FALSE),0)*General!$J$13 -> 0.0007208367115
D85: =INDEX(Compliance!$D$11:$D$41,MATCH(ROW()-ROW($D$71),Compliance!$H$11:$H$41,0)) -> TH0 | J85: =VLOOKUP($D85,Compliance!$D$11:$G$41,4,FALSE) -> 2029 | K85: =VLOOKUP($D85,Table!$A$4:$AA$33,COLUMN(Table!$AA:$AA),FALSE)*HLOOKUP($J85,$J$29:$R$31,2,FALSE)+HLOOKUP($J85,$J$29:$R$31,3,FALSE) -> 1.015557095 | L85: =VLOOKUP($J85,General!$D$27:$E$46,2)*K85 -> 0.7770376216 | M85: =IF(M$71>$J85,HLOOKUP(M$71,Compliance!$I$10:$S$43,MATCH($D85,Compliance!$D$11:$D$41,0)+1,FALSE),0)*General!$J$13 -> 0 | N85: =IF(N$71>$J85,HLOOKUP(N$71,Compliance!$I$10:$S$43,MATCH($D85,Compliance!$D$11:$D$41,0)+1,FALSE),0)*General!$J$13 -> 0 | O85: =IF(O$71>$J85,HLOOKUP(O$71,Compliance!$I$10:$S$43,MATCH($D85,Compliance!$D$11:$D$41,0)+1,FALSE),0)*General!$J$13 -> 0 | P85: =IF(P$71>$J85,HLOOKUP(P$71,Compliance!$I$10:$S$43,MATCH($D85,Compliance!$D$11:$D$41,0)+1,FALSE),0)*General!$J$13 -> 0.0006680557808 | Q85: =IF(Q$71>$J85,HLOOKUP(Q$71,Compliance!$I$10:$S$43,MATCH($D85,Compliance!$D$11:$D$41,0)+1,FALSE),0)*General!$J$13 -> 0.0006680557808 | R85: =IF(R$71>$J85,HLOOKUP(R$71,Compliance!$I$10:$S$43,MATCH($D85,Compliance!$D$11:$D$41,0)+1,FALSE),0)*General!$J$13 -> 0.0006680557808
D86: =INDEX(Compliance!$D$11:$D$41,MATCH(ROW()-ROW($D$71),Compliance!$H$11:$H$41,0)) -> FF0 | J86: =VLOOKUP($D86,Compliance!$D$11:$G$41,4,FALSE) -> 2029 | K86: =VLOOKUP($D86,Table!$A$4:$AA$33,COLUMN(Table!$AA:$AA),FALSE)*HLOOKUP($J86,$J$29:$R$31,2,FALSE)+HLOOKUP($J86,$J$29:$R$31,3,FALSE) -> 0.5415392179 | L86: =VLOOKUP($J86,General!$D$27:$E$46,2)*K86 -> 0.4143502596 | M86: =IF(M$71>$J86,HLOOKUP(M$71,Compliance!$I$10:$S$43,MATCH($D86,Compliance!$D$11:$D$41,0)+1,FALSE),0)*General!$J$13 -> 0 | N86: =IF(N$71>$J86,HLOOKUP(N$71,Compliance!$I$10:$S$43,MATCH($D86,Compliance!$D$11:$D$41,0)+1,FALSE),0)*General!$J$13 -> 0 | O86: =IF(O$71>$J86,HLOOKUP(O$71,Compliance!$I$10:$S$43,MATCH($D86,Compliance!$D$11:$D$41,0)+1,FALSE),0)*General!$J$13 -> 0 | P86: =IF(P$71>$J86,HLOOKUP(P$71,Compliance!$I$10:$S$43,MATCH($D86,Compliance!$D$11:$D$41,0)+1,FALSE),0)*General!$J$13 -> 0.0006092427436 | Q86: =IF(Q$71>$J86,HLOOKUP(Q$71,Compliance!$I$10:$S$43,MATCH($D86,Compliance!$D$11:$D$41,0)+1,FALSE),0)*General!$J$13 -> 0.0006092427436 | R86: =IF(R$71>$J86,HLOOKUP(R$71,Compliance!$I$10:$S$43,MATCH($D86,Compliance!$D$11:$D$41,0)+1,FALSE),0)*General!$J$13 -> 0.0006092427436
D87: =INDEX(Compliance!$D$11:$D$41,MATCH(ROW()-ROW($D$71),Compliance!$H$11:$H$41,0)) -> NH0 | J87: =VLOOKUP($D87,Compliance!$D$11:$G$41,4,FALSE) -> 2029 | K87: =VLOOKUP($D87,Table!$A$4:$AA$33,COLUMN(Table!$AA:$AA),FALSE)*HLOOKUP($J87,$J$29:$R$31,2,FALSE)+HLOOKUP($J87,$J$29:$R$31,3,FALSE) -> 1.252566033 | L87: =VLOOKUP($J87,General!$D$27:$E$46,2)*K87 -> 0.9583813027 | M87: =IF(M$71>$J87,HLOOKUP(M$71,Compliance!$I$10:$S$43,MATCH($D87,Compliance!$D$11:$D$41,0)+1,FALSE),0)*General!$J$13 -> 0 | N87: =IF(N$71>$J87,HLOOKUP(N$71,Compliance!$I$10:$S$43,MATCH($D87,Compliance!$D$11:$D$41,0)+1,FALSE),0)*General!$J$13 -> 0 | O87: =IF(O$71>$J87,HLOOKUP(O$71,Compliance!$I$10:$S$43,MATCH($D87,Compliance!$D$11:$D$41,0)+1,FALSE),0)*General!$J$13 -> 0 | P87: =IF(P$71>$J87,HLOOKUP(P$71,Compliance!$I$10:$S$43,MATCH($D87,Compliance!$D$11:$D$41,0)+1,FALSE),0)*General!$J$13 -> 0.0004463758716 | Q87: =IF(Q$71>$J87,HLOOKUP(Q$71,Compliance!$I$10:$S$43,MATCH($D87,Compliance!$D$11:$D$41,0)+1,FALSE),0)*General!$J$13 -> 0.0004463758716 | R87: =IF(R$71>$J87,HLOOKUP(R$71,Compliance!$I$10:$S$43,MATCH($D87,Compliance!$D$11:$D$41,0)+1,FALSE),0)*General!$J$13 -> 0.0004463758716
D88: =INDEX(Compliance!$D$11:$D$41,MATCH(ROW()-ROW($D$71),Compliance!$H$11:$H$41,0)) -> TMA | J88: =VLOOKUP($D88,Compliance!$D$11:$G$41,4,FALSE) -> 2029 | K88: =VLOOKUP($D88,Table!$A$4:$AA$33,COLUMN(Table!$AA:$AA),FALSE)*HLOOKUP($J88,$J$29:$R$31,2,FALSE)+HLOOKUP($J88,$J$29:$R$31,3,FALSE) -> 0.5415392179 | L88: =VLOOKUP($J88,General!$D$27:$E$46,2)*K88 -> 0.4143502596 | M88: =IF(M$71>$J88,HLOOKUP(M$71,Compliance!$I$10:$S$43,MATCH($D88,Compliance!$D$11:$D$41,0)+1,FALSE),0)*General!$J$13 -> 0 | N88: =IF(N$71>$J88,HLOOKUP(N$71,Compliance!$I$10:$S$43,MATCH($D88,Compliance!$D$11:$D$41,0)+1,FALSE),0)*General!$J$13 -> 0 | O88: =IF(O$71>$J88,HLOOKUP(O$71,Compliance!$I$10:$S$43,MATCH($D88,Compliance!$D$11:$D$41,0)+1,FALSE),0)*General!$J$13 -> 0 | P88: =IF(P$71>$J88,HLOOKUP(P$71,Compliance!$I$10:$S$43,MATCH($D88,Compliance!$D$11:$D$41,0)+1,FALSE),0)*General!$J$13 -> 0.0003860548078 | Q88: =IF(Q$71>$J88,HLOOKUP(Q$71,Compliance!$I$10:$S$43,MATCH($D88,Compliance!$D$11:$D$41,0)+1,FALSE),0)*General!$J$13 -> 0.0003860548078 | R88: =IF(R$71>$J88,HLOOKUP(R$71,Compliance!$I$10:$S$43,MATCH($D88,Compliance!$D$11:$D$41,0)+1,FALSE),0)*General!$J$13 -> 0.0003860548078
D89: =INDEX(Compliance!$D$11:$D$41,MATCH(ROW()-ROW($D$71),Compliance!$H$11:$H$41,0)) -> CN0 | J89: =VLOOKUP($D89,Compliance!$D$11:$G$41,4,FALSE) -> 2030 | K89: =VLOOKUP($D89,Table!$A$4:$AA$33,COLUMN(Table!$AA:$AA),FALSE)*HLOOKUP($J89,$J$29:$R$31,2,FALSE)+HLOOKUP($J89,$J$29:$R$31,3,FALSE) -> 1.251397977 | L89: =VLOOKUP($J89,General!$D$27:$E$46,2)*K89 -> 0.9075711685 | M89: =IF(M$71>$J89,HLOOKUP(M$71,Compliance!$I$10:$S$43,MATCH($D89,Compliance!$D$11:$D$41,0)+1,FALSE),0)*General!$J$13 -> 0 | N89: =IF(N$71>$J89,HLOOKUP(N$71,Compliance!$I$10:$S$43,MATCH($D89,Compliance!$D$11:$D$41,0)+1,FALSE),0)*General!$J$13 -> 0 | O89: =IF(O$71>$J89,HLOOKUP(O$71,Compliance!$I$10:$S$43,MATCH($D89,Compliance!$D$11:$D$41,0)+1,FALSE),0)*General!$J$13 -> 0 | P89: =IF(P$71>$J89,HLOOKUP(P$71,Compliance!$I$10:$S$43,MATCH($D89,Compliance!$D$11:$D$41,0)+1,FALSE),0)*General!$J$13 -> 0 | Q89: =IF(Q$71>$J89,HLOOKUP(Q$71,Compliance!$I$10:$S$43,MATCH($D89,Compliance!$D$11:$D$41,0)+1,FALSE),0)*General!$J$13 -> 0.0003574023026 | R89: =IF(R$71>$J89,HLOOKUP(R$71,Compliance!$I$10:$S$43,MATCH($D89,Compliance!$D$11:$D$41,0)+1,FALSE),0)*General!$J$13 -> 0.0003574023026
D90: =INDEX(Compliance!$D$11:$D$41,MATCH(ROW()-ROW($D$71),Compliance!$H$11:$H$41,0)) -> BMS | J90: =VLOOKUP($D90,Compliance!$D$11:$G$41,4,FALSE) -> 2030 | K90: =VLOOKUP($D90,Table!$A$4:$AA$33,COLUMN(Table!$AA:$AA),FALSE)*HLOOKUP($J90,$J$29:$R$31,2,FALSE)+HLOOKUP($J90,$J$29:$R$31,3,FALSE) -> 0.5407491456 | L90: =VLOOKUP($J90,General!$D$27:$E$46,2)*K90 -> 0.3921760646 | M90: =IF(M$71>$J90,HLOOKUP(M$71,Compliance!$I$10:$S$43,MATCH($D90,Compliance!$D$11:$D$41,0)+1,FALSE),0)*General!$J$13 -> 0 | N90: =IF(N$71>$J90,HLOOKUP(N$71,Compliance!$I$10:$S$43,MATCH($D90,Compliance!$D$11:$D$41,0)+1,FALSE),0)*General!$J$13 -> 0 | O90: =IF(O$71>$J90,HLOOKUP(O$71,Compliance!$I$10:$S$43,MATCH($D90,Compliance!$D$11:$D$41,0)+1,FALSE),0)*General!$J$13 -> 0 | P90: =IF(P$71>$J90,HLOOKUP(P$71,Compliance!$I$10:$S$43,MATCH($D90,Compliance!$D$11:$D$41,0)+1,FALSE),0)*General!$J$13 -> 0 | Q90: =IF(Q$71>$J90,HLOOKUP(Q$71,Compliance!$I$10:$S$43,MATCH($D90,Compliance!$D$11:$D$41,0)+1,FALSE),0)*General!$J$13 -> 0.0002880330793 | R90: =IF(R$71>$J90,HLOOKUP(R$71,Compliance!$I$10:$S$43,MATCH($D90,Compliance!$D$11:$D$41,0)+1,FALSE),0)*General!$J$13 -> 0.0002880330793
D91: =INDEX(Compliance!$D$11:$D$41,MATCH(ROW()-ROW($D$71),Compliance!$H$11:$H$41,0)) -> PV0 | J91: =VLOOKUP($D91,Compliance!$D$11:$G$41,4,FALSE) -> 2030 | K91: =VLOOKUP($D91,Table!$A$4:$AA$33,COLUMN(Table!$AA:$AA),FALSE)*HLOOKUP($J91,$J$29:$R$31,2,FALSE)+HLOOKUP($J91,$J$29:$R$31,3,FALSE) -> 1.251397977 | L91: =VLOOKUP($J91,General!$D$27:$E$46,2)*K91 -> 0.9075711685 | M91: =IF(M$71>$J91,HLOOKUP(M$71,Compliance!$I$10:$S$43,MATCH($D91,Compliance!$D$11:$D$41,0)+1,FALSE),0)*General!$J$13 -> 0 | N91: =IF(N$71>$J91,HLOOKUP(N$71,Compliance!$I$10:$S$43,MATCH($D91,Compliance!$D$11:$D$41,0)+1,FALSE),0)*General!$J$13 -> 0 | O91: =IF(O$71>$J91,HLOOKUP(O$71,Compliance!$I$10:$S$43,MATCH($D91,Compliance!$D$11:$D$41,0)+1,FALSE),0)*General!$J$13 -> 0 | P91: =IF(P$71>$J91,HLOOKUP(P$71,Compliance!$I$10:$S$43,MATCH($D91,Compliance!$D$11:$D$41,0)+1,FALSE),0)*General!$J$13 -> 0 | Q91: =IF(Q$71>$J91,HLOOKUP(Q$71,Compliance!$I$10:$S$43,MATCH($D91,Compliance!$D$11:$D$41,0)+1,FALSE),0)*General!$J$13 -> 0.0002729528134 | R91: =IF(R$71>$J91,HLOOKUP(R$71,Compliance!$I$10:$S$43,MATCH($D91,Compliance!$D$11:$D$41,0)+1,FALSE),0)*General!$J$13 -> 0.0002729528134
D92: =INDEX(Compliance!$D$11:$D$41,MATCH(ROW()-ROW($D$71),Compliance!$H$11:$H$41,0)) -> FT0 | J92: =VLOOKUP($D92,Compliance!$D$11:$G$41,4,FALSE) -> 2030 | K92: =VLOOKUP($D92,Table!$A$4:$AA$33,COLUMN(Table!$AA:$AA),FALSE)*HLOOKUP($J92,$J$29:$R$31,2,FALSE)+HLOOKUP($J92,$J$29:$R$31,3,FALSE) -> 0.5407491456 | L92: =VLOOKUP($J92+1,General!$D$27:$E$46,2)*K92 -> 0.3717308669 | M92: =IF(M$71>$J92,HLOOKUP(M$71,Compliance!$I$10:$S$43,MATCH($D92,Compliance!$D$11:$D$41,0)+1,FALSE),0)*General!$J$13 -> 0 | N92: =IF(N$71>$J92,HLOOKUP(N$71,Compliance!$I$10:$S$43,MATCH($D92,Compliance!$D$11:$D$41,0)+1,FALSE),0)*General!$J$13 -> 0 | O92: =IF(O$71>$J92,HLOOKUP(O$71,Compliance!$I$10:$S$43,MATCH($D92,Compliance!$D$11:$D$41,0)+1,FALSE),0)*General!$J$13 -> 0 | P92: =IF(P$71>$J92,HLOOKUP(P$71,Compliance!$I$10:$S$43,MATCH($D92,Compliance!$D$11:$D$41,0)+1,FALSE),0)*General!$J$13 -> 0 | Q92: =IF(Q$71>$J92,HLOOKUP(Q$71,Compliance!$I$10:$S$43,MATCH($D92,Compliance!$D$11:$D$41,0)+1,FALSE),0)*General!$J$13 -> 0.0002699367602 | R92: =IF(R$71>$J92,HLOOKUP(R$71,Compliance!$I$10:$S$43,MATCH($D92,Compliance!$D$11:$D$41,0)+1,FALSE),0)*General!$J$13 -> 0.0002699367602
D93: =INDEX(Compliance!$D$11:$D$41,MATCH(ROW()-ROW($D$71),Compliance!$H$11:$H$41,0)) -> COO | J93: =VLOOKUP($D93,Compliance!$D$11:$G$41,4,FALSE) -> 2030 | K93: =VLOOKUP($D93,Table!$A$4:$AA$33,COLUMN(Table!$AA:$AA),FALSE)*HLOOKUP($J93,$J$29:$R$31,2,FALSE)+HLOOKUP($J93,$J$29:$R$31,3,FALSE) -> 0.5407491456 | L93: =VLOOKUP($J93,General!$D$27:$E$46,2)*K93 -> 0.3921760646 | M93: =IF(M$71>$J93,HLOOKUP(M$71,Compliance!$I$10:$S$43,MATCH($D93,Compliance!$D$11:$D$41,0)+1,FALSE),0)*General!$J$13 -> 0 | N93: =IF(N$71>$J93,HLOOKUP(N$71,Compliance!$I$10:$S$43,MATCH($D93,Compliance!$D$11:$D$41,0)+1,FALSE),0)*General!$J$13 -> 0 | O93: =IF(O$71>$J93,HLOOKUP(O$71,Compliance!$I$10:$S$43,MATCH($D93,Compliance!$D$11:$D$41,0)+1,FALSE),0)*General!$J$13 -> 0 | P93: =IF(P$71>$J93,HLOOKUP(P$71,Compliance!$I$10:$S$43,MATCH($D93,Compliance!$D$11:$D$41,0)+1,FALSE),0)*General!$J$13 -> 0 | Q93: =IF(Q$71>$J93,HLOOKUP(Q$71,Compliance!$I$10:$S$43,MATCH($D93,Compliance!$D$11:$D$41,0)+1,FALSE),0)*General!$J$13 -> 0.0002578725474 | R93: =IF(R$71>$J93,HLOOKUP(R$71,Compliance!$I$10:$S$43,MATCH($D93,Compliance!$D$11:$D$41,0)+1,FALSE),0)*General!$J$13 -> 0.0002578725474
D94: =INDEX(Compliance!$D$11:$D$41,MATCH(ROW()-ROW($D$71),Compliance!$H$11:$H$41,0)) -> NT0 | J94: =VLOOKUP($D94,Compliance!$D$11:$G$41,4,FALSE) -> 2030 | K94: =VLOOKUP($D94,Table!$A$4:$AA$33,COLUMN(Table!$AA:$AA),FALSE)*HLOOKUP($J94,$J$29:$R$31,2,FALSE)+HLOOKUP($J94,$J$29:$R$31,3,FALSE) -> 1.014515033 | L94: =VLOOKUP($J94,General!$D$27:$E$46,2)*K94 -> 0.7357728005 | M94: =IF(M$71>$J94,HLOOKUP(M$71,Compliance!$I$10:$S$43,MATCH($D94,Compliance!$D$11:$D$41,0)+1,FALSE),0)*General!$J$13 -> 0 | N94: =IF(N$71>$J94,HLOOKUP(N$71,Compliance!$I$10:$S$43,MATCH($D94,Compliance!$D$11:$D$41,0)+1,FALSE),0)*General!$J$13 -> 0 | O94: =IF(O$71>$J94,HLOOKUP(O$71,Compliance!$I$10:$S$43,MATCH($D94,Compliance!$D$11:$D$41,0)+1,FALSE),0)*General!$J$13 -> 0 | P94: =IF(P$71>$J94,HLOOKUP(P$71,Compliance!$I$10:$S$43,MATCH($D94,Compliance!$D$11:$D$41,0)+1,FALSE),0)*General!$J$13 -> 0 | Q94: =IF(Q$71>$J94,HLOOKUP(Q$71,Compliance!$I$10:$S$43,MATCH($D94,Compliance!$D$11:$D$41,0)+1,FALSE),0)*General!$J$13 -> 0.0002533484677 | R94: =IF(R$71>$J94,HLOOKUP(R$71,Compliance!$I$10:$S$43,MATCH($D94,Compliance!$D$11:$D$41,0)+1,FALSE),0)*General!$J$13 -> 0.0002533484677
D95: =INDEX(Compliance!$D$11:$D$41,MATCH(ROW()-ROW($D$71),Compliance!$H$11:$H$41,0)) -> YVE | J95: =VLOOKUP($D95,Compliance!$D$11:$G$41,4,FALSE) -> 2030 | K95: =VLOOKUP($D95,Table!$A$4:$AA$33,COLUMN(Table!$AA:$AA),FALSE)*HLOOKUP($J95,$J$29:$R$31,2,FALSE)+HLOOKUP($J95,$J$29:$R$31,3,FALSE) -> 0.5407491456 | L95: =VLOOKUP($J95,General!$D$27:$E$46,2)*K95 -> 0.3921760646 | M95: =IF(M$71>$J95,HLOOKUP(M$71,Compliance!$I$10:$S$43,MATCH($D95,Compliance!$D$11:$D$41,0)+1,FALSE),0)*General!$J$13 -> 0 | N95: =IF(N$71>$J95,HLOOKUP(N$71,Compliance!$I$10:$S$43,MATCH($D95,Compliance!$D$11:$D$41,0)+1,FALSE),0)*General!$J$13 -> 0 | O95: =IF(O$71>$J95,HLOOKUP(O$71,Compliance!$I$10:$S$43,MATCH($D95,Compliance!$D$11:$D$41,0)+1,FALSE),0)*General!$J$13 -> 0 | P95: =IF(P$71>$J95,HLOOKUP(P$71,Compliance!$I$10:$S$43,MATCH($D95,Compliance!$D$11:$D$41,0)+1,FALSE),0)*General!$J$13 -> 0 | Q95: =IF(Q$71>$J95,HLOOKUP(Q$71,Compliance!$I$10:$S$43,MATCH($D95,Compliance!$D$11:$D$41,0)+1,FALSE),0)*General!$J$13 -> 0.000185487271 | R95: =IF(R$71>$J95,HLOOKUP(R$71,Compliance!$I$10:$S$43,MATCH($D95,Compliance!$D$11:$D$41,0)+1,FALSE),0)*General!$J$13 -> 0.000185487271
D96: =INDEX(Compliance!$D$11:$D$41,MATCH(ROW()-ROW($D$71),Compliance!$H$11:$H$41,0)) -> FW0 | J96: =VLOOKUP($D96,Compliance!$D$11:$G$41,4,FALSE) -> 2030 | K96: =VLOOKUP($D96,Table!$A$4:$AA$33,COLUMN(Table!$AA:$AA),FALSE)*HLOOKUP($J96,$J$29:$R$31,2,FALSE)+HLOOKUP($J96,$J$29:$R$31,3,FALSE) -> 1.251397977 | L96: =VLOOKUP($J96,General!$D$27:$E$46,2)*K96 -> 0.9075711685 | M96: =IF(M$71>$J96,HLOOKUP(M$71,Compliance!$I$10:$S$43,MATCH($D96,Compliance!$D$11:$D$41,0)+1,FALSE),0)*General!$J$13 -> 0 | N96: =IF(N$71>$J96,HLOOKUP(N$71,Compliance!$I$10:$S$43,MATCH($D96,Compliance!$D$11:$D$41,0)+1,FALSE),0)*General!$J$13 -> 0 | O96: =IF(O$71>$J96,HLOOKUP(O$71,Compliance!$I$10:$S$43,MATCH($D96,Compliance!$D$11:$D$41,0)+1,FALSE),0)*General!$J$13 -> 0 | P96: =IF(P$71>$J96,HLOOKUP(P$71,Compliance!$I$10:$S$43,MATCH($D96,Compliance!$D$11:$D$41,0)+1,FALSE),0)*General!$J$13 -> 0 | Q96: =IF(Q$71>$J96,HLOOKUP(Q$71,Compliance!$I$10:$S$43,MATCH($D96,Compliance!$D$11:$D$41,0)+1,FALSE),0)*General!$J$13 -> 0.0001839792444 | R96: =IF(R$71>$J96,HLOOKUP(R$71,Compliance!$I$10:$S$43,MATCH($D96,Compliance!$D$11:$D$41,0)+1,FALSE),0)*General!$J$13 -> 0.0001839792444
D97: =INDEX(Compliance!$D$11:$D$41,MATCH(ROW()-ROW($D$71),Compliance!$H$11:$H$41,0)) -> BY0 | J97: =VLOOKUP($D97,Compliance!$D$11:$G$41,4,FALSE) -> 2031 | K97: =VLOOKUP($D97,Table!$A$4:$AA$33,COLUMN(Table!$AA:$AA),FALSE)*HLOOKUP($J97,$J$29:$R$31,2,FALSE)+HLOOKUP($J97,$J$29:$R$31,3,FALSE) -> 1.013474258 | L97: =VLOOKUP($J97,General!$D$27:$E$46,2)*K97 -> 0.6966995098 | M97: =IF(M$71>$J97,HLOOKUP(M$71,Compliance!$I$10:$S$43,MATCH($D97,Compliance!$D$11:$D$41,0)+1,FALSE),0)*General!$J$13 -> 0 | N97: =IF(N$71>$J97,HLOOKUP(N$71,Compliance!$I$10:$S$43,MATCH($D97,Compliance!$D$11:$D$41,0)+1,FALSE),0)*General!$J$13 -> 0 | O97: =IF(O$71>$J97,HLOOKUP(O$71,Compliance!$I$10:$S$43,MATCH($D97,Compliance!$D$11:$D$41,0)+1,FALSE),0)*General!$J$13 -> 0 | P97: =IF(P$71>$J97,HLOOKUP(P$71,Compliance!$I$10:$S$43,MATCH($D97,Compliance!$D$11:$D$41,0)+1,FALSE),0)*General!$J$13 -> 0 | Q97: =IF(Q$71>$J97,HLOOKUP(Q$71,Compliance!$I$10:$S$43,MATCH($D97,Compliance!$D$11:$D$41,0)+1,FALSE),0)*General!$J$13 -> 0 | R97: =IF(R$71>$J97,HLOOKUP(R$71,Compliance!$I$10:$S$43,MATCH($D97,Compliance!$D$11:$D$41,0)+1,FALSE),0)*General!$J$13 -> 0.0001191341009
D98: =INDEX(Compliance!$D$11:$D$41,MATCH(ROW()-ROW($D$71),Compliance!$H$11:$H$41,0)) -> SA0 | J98: =VLOOKUP($D98,Compliance!$D$11:$G$41,4,FALSE) -> 2031 | K98: =VLOOKUP($D98,Table!$A$4:$AA$33,COLUMN(Table!$AA:$AA),FALSE)*HLOOKUP($J98,$J$29:$R$31,2,FALSE)+HLOOKUP($J98,$J$29:$R$31,3,FALSE) -> 1.013474258 | L98: =VLOOKUP($J98,General!$D$27:$E$46,2)*K98 -> 0.6966995098 | M98: =IF(M$71>$J98,HLOOKUP(M$71,Compliance!$I$10:$S$43,MATCH($D98,Compliance!$D$11:$D$41,0)+1,FALSE),0)*General!$J$13 -> 0 | N98: =IF(N$71>$J98,HLOOKUP(N$71,Compliance!$I$10:$S$43,MATCH($D98,Compliance!$D$11:$D$41,0)+1,FALSE),0)*General!$J$13 -> 0 | O98: =IF(O$71>$J98,HLOOKUP(O$71,Compliance!$I$10:$S$43,MATCH($D98,Compliance!$D$11:$D$41,0)+1,FALSE),0)*General!$J$13 -> 0 | P98: =IF(P$71>$J98,HLOOKUP(P$71,Compliance!$I$10:$S$43,MATCH($D98,Compliance!$D$11:$D$41,0)+1,FALSE),0)*General!$J$13 -> 0 | Q98: =IF(Q$71>$J98,HLOOKUP(Q$71,Compliance!$I$10:$S$43,MATCH($D98,Compliance!$D$11:$D$41,0)+1,FALSE),0)*General!$J$13 -> 0 | R98: =IF(R$71>$J98,HLOOKUP(R$71,Compliance!$I$10:$S$43,MATCH($D98,Compliance!$D$11:$D$41,0)+1,FALSE),0)*General!$J$13 -> 7.992540944e-05
D99: =INDEX(Compliance!$D$11:$D$41,MATCH(ROW()-ROW($D$71),Compliance!$H$11:$H$41,0)) -> EP0 | J99: =VLOOKUP($D99,Compliance!$D$11:$G$41,4,FALSE) -> 2031 | K99: =VLOOKUP($D99,Table!$A$4:$AA$33,COLUMN(Table!$AA:$AA),FALSE)*HLOOKUP($J99,$J$29:$R$31,2,FALSE)+HLOOKUP($J99,$J$29:$R$31,3,FALSE) -> 1.486988291 | L99: =VLOOKUP($J99,General!$D$27:$E$46,2)*K99 -> 1.022210485 | M99: =IF(M$71>$J99,HLOOKUP(M$71,Compliance!$I$10:$S$43,MATCH($D99,Compliance!$D$11:$D$41,0)+1,FALSE),0)*General!$J$13 -> 0 | N99: =IF(N$71>$J99,HLOOKUP(N$71,Compliance!$I$10:$S$43,MATCH($D99,Compliance!$D$11:$D$41,0)+1,FALSE),0)*General!$J$13 -> 0 | O99: =IF(O$71>$J99,HLOOKUP(O$71,Compliance!$I$10:$S$43,MATCH($D99,Compliance!$D$11:$D$41,0)+1,FALSE),0)*General!$J$13 -> 0 | P99: =IF(P$71>$J99,HLOOKUP(P$71,Compliance!$I$10:$S$43,MATCH($D99,Compliance!$D$11:$D$41,0)+1,FALSE),0)*General!$J$13 -> 0 | Q99: =IF(Q$71>$J99,HLOOKUP(Q$71,Compliance!$I$10:$S$43,MATCH($D99,Compliance!$D$11:$D$41,0)+1,FALSE),0)*General!$J$13 -> 0 | R99: =IF(R$71>$J99,HLOOKUP(R$71,Compliance!$I$10:$S$43,MATCH($D99,Compliance!$D$11:$D$41,0)+1,FALSE),0)*General!$J$13 -> 6.032106373e-05
D100: =INDEX(Compliance!$D$11:$D$41,MATCH(ROW()-ROW($D$71),Compliance!$H$11:$H$41,0)) -> WT0 | J100: =VLOOKUP($D100,Compliance!$D$11:$G$41,4,FALSE) -> 2031 | K100: =VLOOKUP($D100,Table!$A$4:$AA$33,COLUMN(Table!$AA:$AA),FALSE)*HLOOKUP($J100,$J$29:$R$31,2,FALSE)+HLOOKUP($J100,$J$29:$R$31,3,FALSE) -> 1.013474258 | L100: =VLOOKUP($J100,General!$D$27:$E$46,2)*K100 -> 0.6966995098 | M100: =IF(M$71>$J100,HLOOKUP(M$71,Compliance!$I$10:$S$43,MATCH($D100,Compliance!$D$11:$D$41,0)+1,FALSE),0)*General!$J$13 -> 0 | N100: =IF(N$71>$J100,HLOOKUP(N$71,Compliance!$I$10:$S$43,MATCH($D100,Compliance!$D$11:$D$41,0)+1,FALSE),0)*General!$J$13 -> 0 | O100: =IF(O$71>$J100,HLOOKUP(O$71,Compliance!$I$10:$S$43,MATCH($D100,Compliance!$D$11:$D$41,0)+1,FALSE),0)*General!$J$13 -> 0 | P100: =IF(P$71>$J100,HLOOKUP(P$71,Compliance!$I$10:$S$43,MATCH($D100,Compliance!$D$11:$D$41,0)+1,FALSE),0)*General!$J$13 -> 0 | Q100: =IF(Q$71>$J100,HLOOKUP(Q$71,Compliance!$I$10:$S$43,MATCH($D100,Compliance!$D$11:$D$41,0)+1,FALSE),0)*General!$J$13 -> 0 | R100: =IF(R$71>$J100,HLOOKUP(R$71,Compliance!$I$10:$S$43,MATCH($D100,Compliance!$D$11:$D$41,0)+1,FALSE),0)*General!$J$13 -> 1.508026593e-06
D101: =INDEX(Compliance!$D$11:$D$41,MATCH(ROW()-ROW($D$71),Compliance!$H$11:$H$41,0)) -> KLO | J101: =VLOOKUP($D101,Compliance!$D$11:$G$41,4,FALSE) -> 2031 | K101: =VLOOKUP($D101,Table!$A$4:$AA$33,COLUMN(Table!$AA:$AA),FALSE)*HLOOKUP($J101,$J$29:$R$31,2,FALSE)+HLOOKUP($J101,$J$29:$R$31,3,FALSE) -> 1.013474258 | L101: =VLOOKUP($J101,General!$D$27:$E$46,2)*K101 -> 0.6966995098 | M101: =IF(M$71>$J101,HLOOKUP(M$71,Compliance!$I$10:$S$43,MATCH($D101,Compliance!$D$11:$D$41,0)+1,FALSE),0)*General!$J$13 -> 0 | N101: =IF(N$71>$J101,HLOOKUP(N$71,Compliance!$I$10:$S$43,MATCH($D101,Compliance!$D$11:$D$41,0)+1,FALSE),0)*General!$J$13 -> 0 | O101: =IF(O$71>$J101,HLOOKUP(O$71,Compliance!$I$10:$S$43,MATCH($D101,Compliance!$D$11:$D$41,0)+1,FALSE),0)*General!$J$13 -> 0 | P101: =IF(P$71>$J101,HLOOKUP(P$71,Compliance!$I$10:$S$43,MATCH($D101,Compliance!$D$11:$D$41,0)+1,FALSE),0)*General!$J$13 -> 0 | Q101: =IF(Q$71>$J101,HLOOKUP(Q$71,Compliance!$I$10:$S$43,MATCH($D101,Compliance!$D$11:$D$41,0)+1,FALSE),0)*General!$J$13 -> 0 | R101: =IF(R$71>$J101,HLOOKUP(R$71,Compliance!$I$10:$S$43,MATCH($D101,Compliance!$D$11:$D$41,0)+1,FALSE),0)*General!$J$13 -> 0
D102: Trial | J102: =2023 -> 2023 | K102: =3.6-K72-K73 -> 2.269811339 | L102: =VLOOKUP($J102+1,General!$D$27:$E$46,2)*K102 -> 2.269811339
D103: Trial | J103: =2024 -> 2024 | K103: 1 | L103: =VLOOKUP($J103,General!$D$27:$E$46,2)*K103 -> 1
D113: Traditional for worst served under-volt
D114: Year 1 | J114: =J120 -> 2027 | K114: =8.6/5*90% -> 1.548 | L114: =VLOOKUP($J114,General!$D$27:$E$46,2)*K114 -> 1.318297952
D115: Year 2 | J115: =J114+1 -> 2028 | K115: =K114 -> 1.548 | L115: =VLOOKUP($J115,General!$D$27:$E$46,2)*K115 -> 1.249571519
D116: Year 3 | J116: =J115+1 -> 2029 | K116: =K115 -> 1.548 | L116: =VLOOKUP($J116,General!$D$27:$E$46,2)*K116 -> 1.18442798
D117: Year 4 | J117: =J116+1 -> 2030 | K117: =K116 -> 1.548 | L117: =VLOOKUP($J117,General!$D$27:$E$46,2)*K117 -> 1.12268055
D118: Year 5 | J118: =J117+1 -> 2031 | K118: =K117 -> 1.548 | L118: =VLOOKUP($J118,General!$D$27:$E$46,2)*K118 -> 1.06415218
D119: Power quality reactive program for customer complaints
D120: Year 1 | J120: =J14 -> 2027 | K120: =0.6161/5 -> 0.12322 | L120: =VLOOKUP($J120,General!$D$27:$E$46,2)*K120 -> 0.1049358357
D121: Year 2 | J121: =J120+1 -> 2028 | K121: =K120 -> 0.12322 | L121: =VLOOKUP($J121,General!$D$27:$E$46,2)*K121 -> 0.09946524711
D122: Year 3 | J122: =J121+1 -> 2029 | K122: =K121 -> 0.12322 | L122: =VLOOKUP($J122,General!$D$27:$E$46,2)*K122 -> 0.09427985508
D123: Year 4 | J123: =J122+1 -> 2030 | K123: =K122 -> 0.12322 | L123: =VLOOKUP($J123,General!$D$27:$E$46,2)*K123 -> 0.08936479155
D124: Year 5 | J124: =J123+1 -> 2031 | K124: =K123 -> 0.12322 | L124: =VLOOKUP($J124,General!$D$27:$E$46,2)*K124 -> 0.08470596355
D126: End

Sheet Option_3A
D1: Voltage PQ Management Strategy | H1: Section Check: | I1: =IF(COUNTA($A$8:$A$109)=COUNTIF($A$8:$A$109,0),"Ok","Check") -> Ok | L1: Overall Check: | M1: Ok | O1: Legend: | P1: Input | Q1: Internal | R1: Select | S1: Calculation
D2: =Summary!$K14&" - "&Summary!$D11 -> Option 3 - Traditional augmentation - EDCOP 5% NON-COMPLIANCE (FUNCTIONAL COMPLIANCE)
B6: Copyright Jemena Limited. All rights reserved. Jemena is not liable for any loss caused by reliance on this document.
B8: General Assumptions
C10: =B8 -> General Assumptions
D12: =C10 -> General Assumptions | E12: Source | F12: Unit | G12: Basis
J13: Start | K13: End
D14: Next Regulatory Period | E14: AM | F14: Year | G14: n/a | J14: =General!J16 -> 2027 | K14: =J14+4 -> 2031
D15: This Regulatory Period | E15: AM | F15: Year | G15: n/a | J15: =K15-4 -> 2022 | K15: =J14-1 -> 2026
B17: Option
C19: Summary
D21: =C19&" ($M)" -> Summary ($M) | E21: Period | J21: Total DVM Cost | K21: Total Cost | L21: PV Total Cost
D23: =D14 -> Next Regulatory Period | E23: =$J$14&" - "&$K$14 -> 2027 - 2031 | J23: 0 | K23: =SUMIFS($K$30:$K$106,$J$30:$J$106,">="&$J14,$J$30:$J$106,"<="&$K14) -> 25.33506 | L23: =SUMIFS($L$30:$L$106,$J$30:$J$106,">="&$J14,$J$30:$J$106,"<="&$K14) -> 19.16240942
D24: =D15 -> This Regulatory Period | E24: =$J$15&" - "&$K$15 -> 2022 - 2026 | J24: =Option_2A!J24 -> 7.511157003 | K24: =SUMIFS($K$30:$K$79,$J$30:$J$79,">="&$J15,$J$30:$J$79,"<="&$K15) -> 6.6 | L24: =SUMIFS($L$30:$L$79,$J$30:$J$79,">="&$J15,$J$30:$J$79,"<="&$K15) -> 6.261903371
C26: Calculations
D28: =Summary!$H26&" - "&Summary!$D11 -> Option 3 - EDCOP 5% NON-COMPLIANCE (FUNCTIONAL COMPLIANCE) | J28: Indicative Year | K28: Cost ($M) | L28: PV Cost ($M)
D29: PROJECT & LOCATION | I29: TOTAL | J29: =J14&" - "&J14+General!J15-1 -> 2027 - 2031 | K29: =SUMIFS(K$31:K$106,$J$31:$J$106,">="&$J$14,$J$31:$J$106,"<="&J14+General!J15-1) -> 25.33506 | L29: =SUMIFS(L$31:L$106,$J$31:$J$106,">="&$J$14,$J$31:$J$106,"<="&J14+General!J15-1) -> 19.16240942
D30: Reactors
D31: =Option_2A!D38 -> SBY | J31: =Option_2A!J38 -> 2028 | K31: =Option_2A!K38 -> 2.31658 | L31: =VLOOKUP($J31,General!$D$27:$E$46,2)*K31 -> 1.869982163
D32: =Option_2A!D39 -> SHM | J32: =Option_2A!J39 -> 2029 | K32: =Option_2A!K39 -> 2.59457 | L32: =VLOOKUP($J32,General!$D$27:$E$46,2)*K32 -> 1.98519464
D33: =Option_2A!D40 -> COO | J33: =Option_2A!J40 -> 2030 | K33: =Option_2A!K40 -> 2.66236 | L33: =VLOOKUP($J33,General!$D$27:$E$46,2)*K33 -> 1.930865496
D34: =Option_2A!D41 -> ST | J34: =Option_2A!J41 -> 2031 | K34: =Option_2A!K41 -> 2.15895 | L34: =VLOOKUP($J34,General!$D$27:$E$46,2)*K34 -> 1.484141698
D35: =Option_2A!D42 -> BD | J35: =Option_2A!J42 -> 2031 | K35: =Option_2A!K42 -> 2.4241 | L35: =VLOOKUP($J35,General!$D$27:$E$46,2)*K35 -> 1.666415568
D36: VAr controllers
D37: =Option_2A!D44 -> CN No.1 | J37: =Option_2A!J44 -> 2027 | K37: =Option_2A!K44 -> 0.26952 | L37: =VLOOKUP($J37,General!$D$27:$E$46,2)*K37 -> 0.2295269148
D38: =Option_2A!D45 -> CN No.2 | J38: =Option_2A!J45 -> 2027 | K38: =Option_2A!K45 -> 0.26952 | L38: =VLOOKUP($J38,General!$D$27:$E$46,2)*K38 -> 0.2295269148
D39: =Option_2A!D46 -> CN No.3A & 3B | J39: =Option_2A!J46 -> 2028 | K39: =Option_2A!K46 -> 0.26952 | L39: =VLOOKUP($J39,General!$D$27:$E$46,2)*K39 -> 0.2175610567
D40: =Option_2A!D47 -> CS No.2 | J40: =Option_2A!J47 -> 2028 | K40: =Option_2A!K47 -> 0.26952 | L40: =VLOOKUP($J40,General!$D$27:$E$46,2)*K40 -> 0.2175610567
D41: =Option_2A!D48 -> ES No.1 | J41: =Option_2A!J48 -> 2028 | K41: =Option_2A!K48 -> 0.26952 | L41: =VLOOKUP($J41,General!$D$27:$E$46,2)*K41 -> 0.2175610567
D42: =Option_2A!D49 -> FF No.1 | J42: =Option_2A!J49 -> 2029 | K42: =Option_2A!K49 -> 0.26952 | L42: =VLOOKUP($J42,General!$D$27:$E$46,2)*K42 -> 0.206219011
D43: =Option_2A!D50 -> NH No.1 | J43: =Option_2A!J50 -> 2029 | K43: =Option_2A!K50 -> 0.26952 | L43: =VLOOKUP($J43,General!$D$27:$E$46,2)*K43 -> 0.206219011
D44: =Option_2A!D51 -> ST No.1 | J44: =Option_2A!J51 -> 2030 | K44: =Option_2A!K51 -> 0.26952 | L44: =VLOOKUP($J44,General!$D$27:$E$46,2)*K44 -> 0.1954682569
D45: =Option_2A!D52 -> ST No.2 | J45: =Option_2A!J52 -> 2030 | K45: =Option_2A!K52 -> 0.26952 | L45: =VLOOKUP($J45,General!$D$27:$E$46,2)*K45 -> 0.1954682569
D46: =Option_2A!D53 -> TH No.1 | J46: =Option_2A!J53 -> 2030 | K46: =Option_2A!K53 -> 0.26952 | L46: =VLOOKUP($J46,General!$D$27:$E$46,2)*K46 -> 0.1954682569
D47: =Option_2A!D54 -> TH No.2 | J47: =Option_2A!J54 -> 2031 | K47: =Option_2A!K54 -> 0.26952 | L47: =VLOOKUP($J47,General!$D$27:$E$46,2)*K47 -> 0.1852779686
D48: Traditional for spread
D51: =Option_2A!D58 -> AW0 | J51: =Option_2A!J58 -> 2028 | K51: =Option_2A!K58 -> 0.04107 | L51: =VLOOKUP($J51,General!$D$27:$E$46,2)*K51 -> 0.03315239165
D52: =Option_2A!D59 -> NS0 | J52: =Option_2A!J59 -> 2028 | K52: =Option_2A!K59 -> 0.04107 | L52: =VLOOKUP($J52,General!$D$27:$E$46,2)*K52 -> 0.03315239165
D56: =Option_2A!D63 -> PTN | J56: =Option_2A!J63 -> 2029 | K56: =Option_2A!K63 -> 0.04107 | L56: =VLOOKUP($J56,General!$D$27:$E$46,2)*K56 -> 0.03142406791
D61: =Option_2A!D68 -> HB0 | J61: =Option_2A!J68 -> 2031 | K61: =Option_2A!K68 -> 0.04107 | L61: =VLOOKUP($J61,General!$D$27:$E$46,2)*K61 -> 0.02823302973
D64: Traditional for worst served over-volt
D65: =Option_2A!D72 -> AW0 | J65: =Option_2A!J72 -> 2024 | K65: 1.1 | L65: =VLOOKUP($J65,General!$D$27:$E$46,2)*K65 -> 1.1
D66: =Option_2A!D73 -> CS0 | J66: =Option_2A!J73 -> 2024 | K66: 1.1 | L66: =VLOOKUP($J66,General!$D$27:$E$46,2)*K66 -> 1.1
D67: =Option_2A!D74 -> PTN | J67: =Option_2A!J74 -> 2025 | K67: 1.1 | L67: =VLOOKUP($J67,General!$D$27:$E$46,2)*K67 -> 1.042654028
D68: =Option_2A!D75 -> HB0 | J68: =Option_2A!J75 -> 2025 | K68: 1.1 | L68: =VLOOKUP($J68,General!$D$27:$E$46,2)*K68 -> 1.042654028
D69: =Option_2A!D76 -> SBY | J69: =Option_2A!J76 -> 2026 | K69: 1.1 | L69: =VLOOKUP($J69,General!$D$27:$E$46,2)*K69 -> 0.9882976573
D70: =Option_2A!D77 -> FE0 | J70: =Option_2A!J77 -> 2026 | K70: 1.1 | L70: =VLOOKUP($J70,General!$D$27:$E$46,2)*K70 -> 0.9882976573
D71: =Option_2A!D78 -> NS0 | J71: =Option_2A!J78 -> 2027 | K71: 1.1 | L71: =VLOOKUP($J71,General!$D$27:$E$46,2)*K71 -> 0.9367750306
D95: =Option_2A!D113 -> Traditional for worst served under-volt
D96: =Option_2A!D114 -> Year 1 | J96: =Option_2A!J114 -> 2027 | K96: =Option_2A!K114 -> 1.66668 | L96: =VLOOKUP($J96,General!$D$27:$E$46,2)*K96 -> 1.419367462
D97: =Option_2A!D115 -> Year 2 | J97: =Option_2A!J115 -> 2028 | K97: =Option_2A!K115 -> 1.66668 | L97: =VLOOKUP($J97,General!$D$27:$E$46,2)*K97 -> 1.345372002
D98: =Option_2A!D116 -> Year 3 | J98: =Option_2A!J116 -> 2029 | K98: =Option_2A!K116 -> 1.66668 | L98: =VLOOKUP($J98,General!$D$27:$E$46,2)*K98 -> 1.275234125
D99: =Option_2A!D117 -> Year 4 | J99: =Option_2A!J117 -> 2030 | K99: =Option_2A!K117 -> 1.66668 | L99: =VLOOKUP($J99,General!$D$27:$E$46,2)*K99 -> 1.208752725
D100: =Option_2A!D118 -> Year 5 | J100: =Option_2A!J118 -> 2031 | K100: =Option_2A!K118 -> 1.66668 | L100: =VLOOKUP($J100,General!$D$27:$E$46,2)*K100 -> 1.14573718
D101: =Option_2A!D119 -> Power quality reactive program for customer complaints
D102: =Option_2A!D120 -> Year 1 | J102: =Option_2A!J120 -> 2027 | K102: =Option_2A!K120 -> 0.12322 | L102: =VLOOKUP($J102,General!$D$27:$E$46,2)*K102 -> 0.1049358357
D103: =Option_2A!D121 -> Year 2 | J103: =Option_2A!J121 -> 2028 | K103: =Option_2A!K121 -> 0.12322 | L103: =VLOOKUP($J103,General!$D$27:$E$46,2)*K103 -> 0.09946524711
D104: =Option_2A!D122 -> Year 3 | J104: =Option_2A!J122 -> 2029 | K104: =Option_2A!K122 -> 0.12322 | L104: =VLOOKUP($J104,General!$D$27:$E$46,2)*K104 -> 0.09427985508
D105: =Option_2A!D123 -> Year 4 | J105: =Option_2A!J123 -> 2030 | K105: =Option_2A!K123 -> 0.12322 | L105: =VLOOKUP($J105,General!$D$27:$E$46,2)*K105 -> 0.08936479155
D106: =Option_2A!D124 -> Year 5 | J106: =Option_2A!J124 -> 2031 | K106: =Option_2A!K124 -> 0.12322 | L106: =VLOOKUP($J106,General!$D$27:$E$46,2)*K106 -> 0.08470596355
D108: End

Sheet Option_3B
D1: Voltage PQ Management Strategy | H1: Section Check: | I1: =IF(COUNTA($A$8:$A$109)=COUNTIF($A$8:$A$109,0),"Ok","Check") -> Ok | L1: Overall Check: | M1: Ok | O1: Legend: | P1: Input | Q1: Internal | R1: Select | S1: Calculation
D2: =Summary!$K14&" - "&Summary!$D16 -> Option 3 - Traditional augmentation - EDCOP 4% NON-COMPLIANCE (MAINTAINING PERFORMANCE)
B6: Copyright Jemena Limited. All rights reserved. Jemena is not liable for any loss caused by reliance on this document.
B8: General Assumptions
C10: =B8 -> General Assumptions
D12: =C10 -> General Assumptions | E12: Source | F12: Unit | G12: Basis
J13: Start | K13: End
D14: Next Regulatory Period | E14: AM | F14: Year | G14: n/a | J14: =General!J16 -> 2027 | K14: =J14+4 -> 2031
D15: This Regulatory Period | E15: AM | F15: Year | G15: n/a | J15: =K15-4 -> 2022 | K15: =J14-1 -> 2026
B17: Option
C19: Summary
D21: =C19&" ($M)" -> Summary ($M) | E21: Period | J21: Total DVM Cost | K21: Total Cost | L21: PV Total Cost
D23: =D14 -> Next Regulatory Period | E23: =$J$14&" - "&$K$14 -> 2027 - 2031 | J23: 0 | K23: =SUMIFS($K$30:$K$106,$J$30:$J$106,">="&$J14,$J$30:$J$106,"<="&$K14) -> 26.40926 | L23: =SUMIFS($L$30:$L$106,$J$30:$J$106,">="&$J14,$J$30:$J$106,"<="&$K14) -> 20.07938735
D24: =D15 -> This Regulatory Period | E24: =$J$15&" - "&$K$15 -> 2022 - 2026 | J24: =Option_2B!J24 -> 7.511157003 | K24: =SUMIFS($K$30:$K$79,$J$30:$J$79,">="&$J15,$J$30:$J$79,"<="&$K15) -> 6.6 | L24: =SUMIFS($L$30:$L$79,$J$30:$J$79,">="&$J15,$J$30:$J$79,"<="&$K15) -> 6.261903371
C26: Calculations
D28: =Summary!$H26&" - "&Summary!$D16 -> Option 3 - EDCOP 4% NON-COMPLIANCE (MAINTAINING PERFORMANCE) | J28: Indicative Year | K28: Cost ($M) | L28: PV Cost ($M)
D29: PROJECT & LOCATION | I29: TOTAL | J29: =J14&" - "&J14+General!J15-1 -> 2027 - 2031 | K29: =SUMIFS(K$31:K$106,$J$31:$J$106,">="&$J$14,$J$31:$J$106,"<="&J14+General!J15-1) -> 26.40926 | L29: =SUMIFS(L$31:L$106,$J$31:$J$106,">="&$J$14,$J$31:$J$106,"<="&J14+General!J15-1) -> 20.07938735
D30: Reactors
D31: =Option_2B!D38 -> SBY | J31: =Option_2B!J38 -> 2028 | K31: =Option_2B!K38 -> 2.31658 | L31: =VLOOKUP($J31,General!$D$27:$E$46,2)*K31 -> 1.869982163
D32: =Option_2B!D39 -> SHM | J32: =Option_2B!J39 -> 2029 | K32: =Option_2B!K39 -> 2.59457 | L32: =VLOOKUP($J32,General!$D$27:$E$46,2)*K32 -> 1.98519464
D33: =Option_2B!D40 -> COO | J33: =Option_2B!J40 -> 2030 | K33: =Option_2B!K40 -> 2.66236 | L33: =VLOOKUP($J33,General!$D$27:$E$46,2)*K33 -> 1.930865496
D34: =Option_2B!D41 -> ST | J34: =Option_2B!J41 -> 2031 | K34: =Option_2B!K41 -> 2.15895 | L34: =VLOOKUP($J34,General!$D$27:$E$46,2)*K34 -> 1.484141698
D35: =Option_2B!D42 -> BD | J35: =Option_2B!J42 -> 2031 | K35: =Option_2B!K42 -> 2.4241 | L35: =VLOOKUP($J35,General!$D$27:$E$46,2)*K35 -> 1.666415568
D36: VAr controllers
D37: =Option_2B!D44 -> CN No.1 | J37: =Option_2B!J44 -> 2027 | K37: =Option_2B!K44 -> 0.26952 | L37: =VLOOKUP($J37,General!$D$27:$E$46,2)*K37 -> 0.2295269148
D38: =Option_2B!D45 -> CN No.2 | J38: =Option_2B!J45 -> 2027 | K38: =Option_2B!K45 -> 0.26952 | L38: =VLOOKUP($J38,General!$D$27:$E$46,2)*K38 -> 0.2295269148
D39: =Option_2B!D46 -> CN No.3A & 3B | J39: =Option_2B!J46 -> 2028 | K39: =Option_2B!K46 -> 0.26952 | L39: =VLOOKUP($J39,General!$D$27:$E$46,2)*K39 -> 0.2175610567
D40: =Option_2B!D47 -> CS No.2 | J40: =Option_2B!J47 -> 2028 | K40: =Option_2B!K47 -> 0.26952 | L40: =VLOOKUP($J40,General!$D$27:$E$46,2)*K40 -> 0.2175610567
D41: =Option_2B!D48 -> ES No.1 | J41: =Option_2B!J48 -> 2028 | K41: =Option_2B!K48 -> 0.26952 | L41: =VLOOKUP($J41,General!$D$27:$E$46,2)*K41 -> 0.2175610567
D42: =Option_2B!D49 -> FF No.1 | J42: =Option_2B!J49 -> 2029 | K42: =Option_2B!K49 -> 0.26952 | L42: =VLOOKUP($J42,General!$D$27:$E$46,2)*K42 -> 0.206219011
D43: =Option_2B!D50 -> NH No.1 | J43: =Option_2B!J50 -> 2029 | K43: =Option_2B!K50 -> 0.26952 | L43: =VLOOKUP($J43,General!$D$27:$E$46,2)*K43 -> 0.206219011
D44: =Option_2B!D51 -> ST No.1 | J44: =Option_2B!J51 -> 2030 | K44: =Option_2B!K51 -> 0.26952 | L44: =VLOOKUP($J44,General!$D$27:$E$46,2)*K44 -> 0.1954682569
D45: =Option_2B!D52 -> ST No.2 | J45: =Option_2B!J52 -> 2030 | K45: =Option_2B!K52 -> 0.26952 | L45: =VLOOKUP($J45,General!$D$27:$E$46,2)*K45 -> 0.1954682569
D46: =Option_2B!D53 -> TH No.1 | J46: =Option_2B!J53 -> 2030 | K46: =Option_2B!K53 -> 0.26952 | L46: =VLOOKUP($J46,General!$D$27:$E$46,2)*K46 -> 0.1954682569
D47: =Option_2B!D54 -> TH No.2 | J47: =Option_2B!J54 -> 2031 | K47: =Option_2B!K54 -> 0.26952 | L47: =VLOOKUP($J47,General!$D$27:$E$46,2)*K47 -> 0.1852779686
D48: Traditional for spread
D51: =Option_2B!D58 -> AW0 | J51: =Option_2B!J58 -> 2028 | K51: =Option_2B!K58 -> 0.04107 | L51: =VLOOKUP($J51,General!$D$27:$E$46,2)*K51 -> 0.03315239165
D52: =Option_2B!D59 -> NS0 | J52: =Option_2B!J59 -> 2028 | K52: =Option_2B!K59 -> 0.04107 | L52: =VLOOKUP($J52,General!$D$27:$E$46,2)*K52 -> 0.03315239165
D56: =Option_2B!D63 -> PTN | J56: =Option_2B!J63 -> 2029 | K56: =Option_2B!K63 -> 0.04107 | L56: =VLOOKUP($J56,General!$D$27:$E$46,2)*K56 -> 0.03142406791
D61: =Option_2B!D68 -> HB0 | J61: =Option_2B!J68 -> 2031 | K61: =Option_2B!K68 -> 0.04107 | L61: =VLOOKUP($J61,General!$D$27:$E$46,2)*K61 -> 0.02823302973
D64: Traditional for worst served over-volt
D65: =Option_2B!D72 -> AW0 | J65: =Option_2B!J72 -> 2024 | K65: 1.1 | L65: =VLOOKUP($J65,General!$D$27:$E$46,2)*K65 -> 1.1
D66: =Option_2B!D73 -> CS0 | J66: =Option_2B!J73 -> 2024 | K66: 1.1 | L66: =VLOOKUP($J66,General!$D$27:$E$46,2)*K66 -> 1.1
D67: =Option_2B!D74 -> PTN | J67: =Option_2B!J74 -> 2025 | K67: 1.1 | L67: =VLOOKUP($J67,General!$D$27:$E$46,2)*K67 -> 1.042654028
D68: =Option_2B!D75 -> HB0 | J68: =Option_2B!J75 -> 2025 | K68: 1.1 | L68: =VLOOKUP($J68,General!$D$27:$E$46,2)*K68 -> 1.042654028
D69: =Option_2B!D76 -> SBY | J69: =Option_2B!J76 -> 2026 | K69: 1.1 | L69: =VLOOKUP($J69,General!$D$27:$E$46,2)*K69 -> 0.9882976573
D70: =Option_2B!D77 -> FE0 | J70: =Option_2B!J77 -> 2026 | K70: 1.1 | L70: =VLOOKUP($J70,General!$D$27:$E$46,2)*K70 -> 0.9882976573
D71: =Option_2B!D78 -> NS0 | J71: =Option_2B!J78 -> 2027 | K71: 1.1 | L71: =VLOOKUP($J71,General!$D$27:$E$46,2)*K71 -> 0.9367750306
D72: =Option_2B!D79 -> ST0 | J72: =Option_2B!J79 -> 2027 | K72: 1.1 | L72: =VLOOKUP($J72,General!$D$27:$E$46,2)*K72 -> 0.9367750306
D95: =Option_2B!D113 -> Traditional for worst served under-volt
D96: =Option_2B!D114 -> Year 1 | J96: =Option_2B!J114 -> 2027 | K96: =Option_2B!K114 -> 1.66152 | L96: =VLOOKUP($J96,General!$D$27:$E$46,2)*K96 -> 1.414973135
D97: =Option_2B!D115 -> Year 2 | J97: =Option_2B!J115 -> 2028 | K97: =Option_2B!K115 -> 1.66152 | L97: =VLOOKUP($J97,General!$D$27:$E$46,2)*K97 -> 1.341206763
D98: =Option_2B!D116 -> Year 3 | J98: =Option_2B!J116 -> 2029 | K98: =Option_2B!K116 -> 1.66152 | L98: =VLOOKUP($J98,General!$D$27:$E$46,2)*K98 -> 1.271286032
D99: =Option_2B!D117 -> Year 4 | J99: =Option_2B!J117 -> 2030 | K99: =Option_2B!K117 -> 1.66152 | L99: =VLOOKUP($J99,General!$D$27:$E$46,2)*K99 -> 1.205010456
D100: =Option_2B!D118 -> Year 5 | J100: =Option_2B!J118 -> 2031 | K100: =Option_2B!K118 -> 1.66152 | L100: =VLOOKUP($J100,General!$D$27:$E$46,2)*K100 -> 1.142190006
D101: =Option_2B!D119 -> Power quality reactive program for customer complaints
D102: =Option_2B!D120 -> Year 1 | J102: =Option_2B!J120 -> 2027 | K102: =Option_2B!K120 -> 0.12322 | L102: =VLOOKUP($J102,General!$D$27:$E$46,2)*K102 -> 0.1049358357
D103: =Option_2B!D121 -> Year 2 | J103: =Option_2B!J121 -> 2028 | K103: =Option_2B!K121 -> 0.12322 | L103: =VLOOKUP($J103,General!$D$27:$E$46,2)*K103 -> 0.09946524711
D104: =Option_2B!D122 -> Year 3 | J104: =Option_2B!J122 -> 2029 | K104: =Option_2B!K122 -> 0.12322 | L104: =VLOOKUP($J104,General!$D$27:$E$46,2)*K104 -> 0.09427985508
D105: =Option_2B!D123 -> Year 4 | J105: =Option_2B!J123 -> 2030 | K105: =Option_2B!K123 -> 0.12322 | L105: =VLOOKUP($J105,General!$D$27:$E$46,2)*K105 -> 0.08936479155
D106: =Option_2B!D124 -> Year 5 | J106: =Option_2B!J124 -> 2031 | K106: =Option_2B!K124 -> 0.12322 | L106: =VLOOKUP($J106,General!$D$27:$E$46,2)*K106 -> 0.08470596355
D108: End

Sheet Option_3C
D1: Voltage PQ Management Strategy | H1: Section Check: | I1: =IF(COUNTA($A$8:$A$109)=COUNTIF($A$8:$A$109,0),"Ok","Check") -> Ok | L1: Overall Check: | M1: Ok | O1: Legend: | P1: Input | Q1: Internal | R1: Select | S1: Calculation
D2: =Summary!$K14&" - "&Summary!$D16 -> Option 3 - Traditional augmentation - EDCOP 4% NON-COMPLIANCE (MAINTAINING PERFORMANCE)
B6: Copyright Jemena Limited. All rights reserved. Jemena is not liable for any loss caused by reliance on this document.
B8: General Assumptions
C10: =B8 -> General Assumptions
D12: =C10 -> General Assumptions | E12: Source | F12: Unit | G12: Basis
J13: Start | K13: End
D14: Next Regulatory Period | E14: AM | F14: Year | G14: n/a | J14: =General!J16 -> 2027 | K14: =J14+4 -> 2031
D15: This Regulatory Period | E15: AM | F15: Year | G15: n/a | J15: =K15-4 -> 2022 | K15: =J14-1 -> 2026
B17: Option
C19: Summary
D21: =C19&" ($M)" -> Summary ($M) | E21: Period | J21: Total DVM Cost | K21: Total Cost | L21: PV Total Cost
D23: =D14 -> Next Regulatory Period | E23: =$J$14&" - "&$K$14 -> 2027 - 2031 | J23: 0 | K23: =SUMIFS($K$30:$K$106,$J$30:$J$106,">="&$J14,$J$30:$J$106,"<="&$K14) -> 30.08363 | L23: =SUMIFS($L$30:$L$106,$J$30:$J$106,">="&$J14,$J$30:$J$106,"<="&$K14) -> 23.08085243
D24: =D15 -> This Regulatory Period | E24: =$J$15&" - "&$K$15 -> 2022 - 2026 | J24: =Option_2C!J24 -> 7.511157003 | K24: =SUMIFS($K$30:$K$79,$J$30:$J$79,">="&$J15,$J$30:$J$79,"<="&$K15) -> 6.6 | L24: =SUMIFS($L$30:$L$79,$J$30:$J$79,">="&$J15,$J$30:$J$79,"<="&$K15) -> 6.261903371
C26: Calculations
D28: =Summary!$H26&" - "&Summary!$D21 -> Option 3 - EDCOP 3% NON-COMPLIANCE (IMPROVED PERFORMANCE) | J28: Indicative Year | K28: Cost ($M) | L28: PV Cost ($M)
D29: PROJECT & LOCATION | I29: TOTAL | J29: =J14&" - "&J14+General!J15-1 -> 2027 - 2031 | K29: =SUMIFS(K$31:K$106,$J$31:$J$106,">="&$J$14,$J$31:$J$106,"<="&J14+General!J15-1) -> 30.08363 | L29: =SUMIFS(L$31:L$106,$J$31:$J$106,">="&$J$14,$J$31:$J$106,"<="&J14+General!J15-1) -> 23.08085243
D30: Reactors
D31: =Option_2C!D38 -> SBY | J31: =Option_2C!J38 -> 2028 | K31: =Option_2C!K38 -> 2.31658 | L31: =VLOOKUP($J31,General!$D$27:$E$46,2)*K31 -> 1.869982163
D32: =Option_2C!D39 -> SHM | J32: =Option_2C!J39 -> 2029 | K32: =Option_2C!K39 -> 2.59457 | L32: =VLOOKUP($J32,General!$D$27:$E$46,2)*K32 -> 1.98519464
D33: =Option_2C!D40 -> COO | J33: =Option_2C!J40 -> 2030 | K33: =Option_2C!K40 -> 2.66236 | L33: =VLOOKUP($J33,General!$D$27:$E$46,2)*K33 -> 1.930865496
D34: =Option_2C!D41 -> ST | J34: =Option_2C!J41 -> 2031 | K34: =Option_2C!K41 -> 2.15895 | L34: =VLOOKUP($J34,General!$D$27:$E$46,2)*K34 -> 1.484141698
D35: =Option_2C!D42 -> BD | J35: =Option_2C!J42 -> 2031 | K35: =Option_2C!K42 -> 2.4241 | L35: =VLOOKUP($J35,General!$D$27:$E$46,2)*K35 -> 1.666415568
D36: VAr controllers
D37: =Option_2C!D44 -> CN No.1 | J37: =Option_2C!J44 -> 2027 | K37: =Option_2C!K44 -> 0.26952 | L37: =VLOOKUP($J37,General!$D$27:$E$46,2)*K37 -> 0.2295269148
D38: =Option_2C!D45 -> CN No.2 | J38: =Option_2C!J45 -> 2027 | K38: =Option_2C!K45 -> 0.26952 | L38: =VLOOKUP($J38,General!$D$27:$E$46,2)*K38 -> 0.2295269148
D39: =Option_2C!D46 -> CN No.3A & 3B | J39: =Option_2C!J46 -> 2028 | K39: =Option_2C!K46 -> 0.26952 | L39: =VLOOKUP($J39,General!$D$27:$E$46,2)*K39 -> 0.2175610567
D40: =Option_2C!D47 -> CS No.2 | J40: =Option_2C!J47 -> 2028 | K40: =Option_2C!K47 -> 0.26952 | L40: =VLOOKUP($J40,General!$D$27:$E$46,2)*K40 -> 0.2175610567
D41: =Option_2C!D48 -> ES No.1 | J41: =Option_2C!J48 -> 2028 | K41: =Option_2C!K48 -> 0.26952 | L41: =VLOOKUP($J41,General!$D$27:$E$46,2)*K41 -> 0.2175610567
D42: =Option_2C!D49 -> FF No.1 | J42: =Option_2C!J49 -> 2029 | K42: =Option_2C!K49 -> 0.26952 | L42: =VLOOKUP($J42,General!$D$27:$E$46,2)*K42 -> 0.206219011
D43: =Option_2C!D50 -> NH No.1 | J43: =Option_2C!J50 -> 2029 | K43: =Option_2C!K50 -> 0.26952 | L43: =VLOOKUP($J43,General!$D$27:$E$46,2)*K43 -> 0.206219011
D44: =Option_2C!D51 -> ST No.1 | J44: =Option_2C!J51 -> 2030 | K44: =Option_2C!K51 -> 0.26952 | L44: =VLOOKUP($J44,General!$D$27:$E$46,2)*K44 -> 0.1954682569
D45: =Option_2C!D52 -> ST No.2 | J45: =Option_2C!J52 -> 2030 | K45: =Option_2C!K52 -> 0.26952 | L45: =VLOOKUP($J45,General!$D$27:$E$46,2)*K45 -> 0.1954682569
D46: =Option_2C!D53 -> TH No.1 | J46: =Option_2C!J53 -> 2030 | K46: =Option_2C!K53 -> 0.26952 | L46: =VLOOKUP($J46,General!$D$27:$E$46,2)*K46 -> 0.1954682569
D47: =Option_2C!D54 -> TH No.2 | J47: =Option_2C!J54 -> 2031 | K47: =Option_2C!K54 -> 0.26952 | L47: =VLOOKUP($J47,General!$D$27:$E$46,2)*K47 -> 0.1852779686
D48: Traditional for spread
D49: =Option_2C!D56 -> EPN | J49: =Option_2C!J56 -> 2027 | K49: =Option_2C!K56 -> 0.04107 | L49: =VLOOKUP($J49,General!$D$27:$E$46,2)*K49 -> 0.03497577319
D50: =Option_2C!D57 -> EP0 | J50: =Option_2C!J57 -> 2027 | K50: =Option_2C!K57 -> 0.04107 | L50: =VLOOKUP($J50,General!$D$27:$E$46,2)*K50 -> 0.03497577319
D51: =Option_2C!D58 -> AW0 | J51: =Option_2C!J58 -> 2028 | K51: =Option_2C!K58 -> 0.04107 | L51: =VLOOKUP($J51,General!$D$27:$E$46,2)*K51 -> 0.03315239165
D52: =Option_2C!D59 -> NS0 | J52: =Option_2C!J59 -> 2028 | K52: =Option_2C!K59 -> 0.04107 | L52: =VLOOKUP($J52,General!$D$27:$E$46,2)*K52 -> 0.03315239165
D53: =Option_2C!D60 -> FT0 | J53: =Option_2C!J60 -> 2028 | K53: =Option_2C!K60 -> 0.04107 | L53: =VLOOKUP($J53,General!$D$27:$E$46,2)*K53 -> 0.03315239165
D54: =Option_2C!D61 -> TMA | J54: =Option_2C!J61 -> 2028 | K54: =Option_2C!K61 -> 0.04107 | L54: =VLOOKUP($J54,General!$D$27:$E$46,2)*K54 -> 0.03315239165
D55: =Option_2C!D62 -> TH0 | J55: =Option_2C!J62 -> 2029 | K55: =Option_2C!K62 -> 0.04107 | L55: =VLOOKUP($J55,General!$D$27:$E$46,2)*K55 -> 0.03142406791
D56: =Option_2C!D63 -> PTN | J56: =Option_2C!J63 -> 2029 | K56: =Option_2C!K63 -> 0.04107 | L56: =VLOOKUP($J56,General!$D$27:$E$46,2)*K56 -> 0.03142406791
D57: =Option_2C!D64 -> YVE | J57: =Option_2C!J64 -> 2029 | K57: =Option_2C!K64 -> 0.04107 | L57: =VLOOKUP($J57,General!$D$27:$E$46,2)*K57 -> 0.03142406791
D58: =Option_2C!D65 -> FF0 | J58: =Option_2C!J65 -> 2029 | K58: =Option_2C!K65 -> 0.04107 | L58: =VLOOKUP($J58,General!$D$27:$E$46,2)*K58 -> 0.03142406791
D59: =Option_2C!D66 -> BY0 | J59: =Option_2C!J66 -> 2029 | K59: =Option_2C!K66 -> 0.04107 | L59: =VLOOKUP($J59,General!$D$27:$E$46,2)*K59 -> 0.03142406791
D60: =Option_2C!D67 -> ES0 | J60: =Option_2C!J67 -> 2030 | K60: =Option_2C!K67 -> 0.04107 | L60: =VLOOKUP($J60,General!$D$27:$E$46,2)*K60 -> 0.02978584636
D61: =Option_2C!D68 -> HB0 | J61: =Option_2C!J68 -> 2031 | K61: =Option_2C!K68 -> 0.04107 | L61: =VLOOKUP($J61,General!$D$27:$E$46,2)*K61 -> 0.02823302973
D62: =Option_2C!D69 -> PV0 | J62: =Option_2C!J69 -> 2031 | K62: =Option_2C!K69 -> 0.04107 | L62: =VLOOKUP($J62,General!$D$27:$E$46,2)*K62 -> 0.02823302973
D63: =Option_2C!D70 -> BMS | J63: =Option_2C!J70 -> 2031 | K63: =Option_2C!K70 -> 0.04107 | L63: =VLOOKUP($J63,General!$D$27:$E$46,2)*K63 -> 0.02823302973
D64: Traditional for worst served over-volt
D65: =Option_2C!D72 -> AW0 | J65: =Option_2C!J72 -> 2024 | K65: 1.1 | L65: =VLOOKUP($J65,General!$D$27:$E$46,2)*K65 -> 1.1
D66: =Option_2C!D73 -> CS0 | J66: =Option_2C!J73 -> 2024 | K66: 1.1 | L66: =VLOOKUP($J66,General!$D$27:$E$46,2)*K66 -> 1.1
D67: =Option_2C!D74 -> PTN | J67: =Option_2C!J74 -> 2025 | K67: 1.1 | L67: =VLOOKUP($J67,General!$D$27:$E$46,2)*K67 -> 1.042654028
D68: =Option_2C!D75 -> HB0 | J68: =Option_2C!J75 -> 2025 | K68: 1.1 | L68: =VLOOKUP($J68,General!$D$27:$E$46,2)*K68 -> 1.042654028
D69: =Option_2C!D76 -> SBY | J69: =Option_2C!J76 -> 2026 | K69: 1.1 | L69: =VLOOKUP($J69,General!$D$27:$E$46,2)*K69 -> 0.9882976573
D70: =Option_2C!D77 -> FE0 | J70: =Option_2C!J77 -> 2026 | K70: 1.1 | L70: =VLOOKUP($J70,General!$D$27:$E$46,2)*K70 -> 0.9882976573
D71: =Option_2C!D78 -> NS0 | J71: =Option_2C!J78 -> 2027 | K71: 1.1 | L71: =VLOOKUP($J71,General!$D$27:$E$46,2)*K71 -> 0.9367750306
D72: =Option_2C!D79 -> ST0 | J72: =Option_2C!J79 -> 2027 | K72: 1.1 | L72: =VLOOKUP($J72,General!$D$27:$E$46,2)*K72 -> 0.9367750306
D73: =Option_2C!D80 -> SHM | J73: =Option_2C!J80 -> 2027 | K73: 1.1 | L73: =VLOOKUP($J73,General!$D$27:$E$46,2)*K73 -> 0.9367750306
D74: =Option_2C!D81 -> TT0 | J74: =Option_2C!J81 -> 2028 | K74: 1.1 | L74: =VLOOKUP($J74,General!$D$27:$E$46,2)*K74 -> 0.8879384176
D75: =Option_2C!D82 -> BD0 | J75: =Option_2C!J82 -> 2028 | K75: 1.1 | L75: =VLOOKUP($J75,General!$D$27:$E$46,2)*K75 -> 0.8879384176
D95: =Option_2C!D113 -> Traditional for worst served under-volt
D96: =Option_2C!D114 -> Year 1 | J96: =Option_2C!J114 -> 2027 | K96: =Option_2C!K114 -> 1.64604 | L96: =VLOOKUP($J96,General!$D$27:$E$46,2)*K96 -> 1.401790156
D97: =Option_2C!D115 -> Year 2 | J97: =Option_2C!J115 -> 2028 | K97: =Option_2C!K115 -> 1.64604 | L97: =VLOOKUP($J97,General!$D$27:$E$46,2)*K97 -> 1.328711048
D98: =Option_2C!D116 -> Year 3 | J98: =Option_2C!J116 -> 2029 | K98: =Option_2C!K116 -> 1.64604 | L98: =VLOOKUP($J98,General!$D$27:$E$46,2)*K98 -> 1.259441752
D99: =Option_2C!D117 -> Year 4 | J99: =Option_2C!J117 -> 2030 | K99: =Option_2C!K117 -> 1.64604 | L99: =VLOOKUP($J99,General!$D$27:$E$46,2)*K99 -> 1.193783651
D100: =Option_2C!D118 -> Year 5 | J100: =Option_2C!J118 -> 2031 | K100: =Option_2C!K118 -> 1.64604 | L100: =VLOOKUP($J100,General!$D$27:$E$46,2)*K100 -> 1.131548484
D101: =Option_2C!D119 -> Power quality reactive program for customer complaints
D102: =Option_2C!D120 -> Year 1 | J102: =Option_2C!J120 -> 2027 | K102: =Option_2C!K120 -> 0.12322 | L102: =VLOOKUP($J102,General!$D$27:$E$46,2)*K102 -> 0.1049358357
D103: =Option_2C!D121 -> Year 2 | J103: =Option_2C!J121 -> 2028 | K103: =Option_2C!K121 -> 0.12322 | L103: =VLOOKUP($J103,General!$D$27:$E$46,2)*K103 -> 0.09946524711
D104: =Option_2C!D122 -> Year 3 | J104: =Option_2C!J122 -> 2029 | K104: =Option_2C!K122 -> 0.12322 | L104: =VLOOKUP($J104,General!$D$27:$E$46,2)*K104 -> 0.09427985508
D105: =Option_2C!D123 -> Year 4 | J105: =Option_2C!J123 -> 2030 | K105: =Option_2C!K123 -> 0.12322 | L105: =VLOOKUP($J105,General!$D$27:$E$46,2)*K105 -> 0.08936479155
D106: =Option_2C!D124 -> Year 5 | J106: =Option_2C!J124 -> 2031 | K106: =Option_2C!K124 -> 0.12322 | L106: =VLOOKUP($J106,General!$D$27:$E$46,2)*K106 -> 0.08470596355
D108: End

Sheet Option_3D
D1: Voltage PQ Management Strategy | H1: Section Check: | I1: =IF(COUNTA($A$8:$A$109)=COUNTIF($A$8:$A$109,0),"Ok","Check") -> Ok | L1: Overall Check: | M1: Ok | O1: Legend: | P1: Input | Q1: Internal | R1: Select | S1: Calculation
D2: =Summary!$K14&" - "&Summary!$D26 -> Option 3 - Traditional augmentation - EDCOP 2% NON-COMPLIANCE (ON PAR WITH VIC DNSP PEERS)
B6: Copyright Jemena Limited. All rights reserved. Jemena is not liable for any loss caused by reliance on this document.
B8: General Assumptions
C10: =B8 -> General Assumptions
D12: =C10 -> General Assumptions | E12: Source | F12: Unit | G12: Basis
J13: Start | K13: End
D14: Next Regulatory Period | E14: AM | F14: Year | G14: n/a | J14: =General!J16 -> 2027 | K14: =J14+4 -> 2031
D15: This Regulatory Period | E15: AM | F15: Year | G15: n/a | J15: =K15-4 -> 2022 | K15: =J14-1 -> 2026
B17: Option
C19: Summary
D21: =C19&" ($M)" -> Summary ($M) | E21: Period | J21: Total DVM Cost | K21: Total Cost | L21: PV Total Cost
D23: =D14 -> Next Regulatory Period | E23: =$J$14&" - "&$K$14 -> 2027 - 2031 | J23: 0 | K23: =SUMIFS($K$30:$K$106,$J$30:$J$106,">="&$J14,$J$30:$J$106,"<="&$K14) -> 50.49343 | L23: =SUMIFS($L$30:$L$106,$J$30:$J$106,">="&$J14,$J$30:$J$106,"<="&$K14) -> 37.96395066
D24: =D15 -> This Regulatory Period | E24: =$J$15&" - "&$K$15 -> 2022 - 2026 | J24: =Option_2D!J24 -> 7.511157003 | K24: =SUMIFS($K$30:$K$79,$J$30:$J$79,">="&$J15,$J$30:$J$79,"<="&$K15) -> 6.6 | L24: =SUMIFS($L$30:$L$79,$J$30:$J$79,">="&$J15,$J$30:$J$79,"<="&$K15) -> 6.261903371
C26: Calculations
D28: =Summary!$H26&" - "&Summary!$D26 -> Option 3 - EDCOP 2% NON-COMPLIANCE (ON PAR WITH VIC DNSP PEERS) | J28: Indicative Year | K28: Cost ($M) | L28: PV Cost ($M)
D29: PROJECT & LOCATION | I29: TOTAL | J29: =J14&" - "&J14+General!J15-1 -> 2027 - 2031 | K29: =SUMIFS(K$31:K$106,$J$31:$J$106,">="&$J$14,$J$31:$J$106,"<="&J14+General!J15-1) -> 50.49343 | L29: =SUMIFS(L$31:L$106,$J$31:$J$106,">="&$J$14,$J$31:$J$106,"<="&J14+General!J15-1) -> 37.96395066
D30: Reactors
D31: =Option_2D!D38 -> SBY | J31: =Option_2D!J38 -> 2028 | K31: =Option_2D!K38 -> 2.31658 | L31: =VLOOKUP($J31,General!$D$27:$E$46,2)*K31 -> 1.869982163
D32: =Option_2D!D39 -> SHM | J32: =Option_2D!J39 -> 2029 | K32: =Option_2D!K39 -> 2.59457 | L32: =VLOOKUP($J32,General!$D$27:$E$46,2)*K32 -> 1.98519464
D33: =Option_2D!D40 -> COO | J33: =Option_2D!J40 -> 2030 | K33: =Option_2D!K40 -> 2.66236 | L33: =VLOOKUP($J33,General!$D$27:$E$46,2)*K33 -> 1.930865496
D34: =Option_2D!D41 -> ST | J34: =Option_2D!J41 -> 2031 | K34: =Option_2D!K41 -> 2.15895 | L34: =VLOOKUP($J34,General!$D$27:$E$46,2)*K34 -> 1.484141698
D35: =Option_2D!D42 -> BD | J35: =Option_2D!J42 -> 2031 | K35: =Option_2D!K42 -> 2.4241 | L35: =VLOOKUP($J35,General!$D$27:$E$46,2)*K35 -> 1.666415568
D36: VAr controllers
D37: =Option_2D!D44 -> CN No.1 | J37: =Option_2D!J44 -> 2027 | K37: =Option_2D!K44 -> 0.26952 | L37: =VLOOKUP($J37,General!$D$27:$E$46,2)*K37 -> 0.2295269148
D38: =Option_2D!D45 -> CN No.2 | J38: =Option_2D!J45 -> 2027 | K38: =Option_2D!K45 -> 0.26952 | L38: =VLOOKUP($J38,General!$D$27:$E$46,2)*K38 -> 0.2295269148
D39: =Option_2D!D46 -> CN No.3A & 3B | J39: =Option_2D!J46 -> 2028 | K39: =Option_2D!K46 -> 0.26952 | L39: =VLOOKUP($J39,General!$D$27:$E$46,2)*K39 -> 0.2175610567
D40: =Option_2D!D47 -> CS No.2 | J40: =Option_2D!J47 -> 2028 | K40: =Option_2D!K47 -> 0.26952 | L40: =VLOOKUP($J40,General!$D$27:$E$46,2)*K40 -> 0.2175610567
D41: =Option_2D!D48 -> ES No.1 | J41: =Option_2D!J48 -> 2028 | K41: =Option_2D!K48 -> 0.26952 | L41: =VLOOKUP($J41,General!$D$27:$E$46,2)*K41 -> 0.2175610567
D42: =Option_2D!D49 -> FF No.1 | J42: =Option_2D!J49 -> 2029 | K42: =Option_2D!K49 -> 0.26952 | L42: =VLOOKUP($J42,General!$D$27:$E$46,2)*K42 -> 0.206219011
D43: =Option_2D!D50 -> NH No.1 | J43: =Option_2D!J50 -> 2029 | K43: =Option_2D!K50 -> 0.26952 | L43: =VLOOKUP($J43,General!$D$27:$E$46,2)*K43 -> 0.206219011
D44: =Option_2D!D51 -> ST No.1 | J44: =Option_2D!J51 -> 2030 | K44: =Option_2D!K51 -> 0.26952 | L44: =VLOOKUP($J44,General!$D$27:$E$46,2)*K44 -> 0.1954682569
D45: =Option_2D!D52 -> ST No.2 | J45: =Option_2D!J52 -> 2030 | K45: =Option_2D!K52 -> 0.26952 | L45: =VLOOKUP($J45,General!$D$27:$E$46,2)*K45 -> 0.1954682569
D46: =Option_2D!D53 -> TH No.1 | J46: =Option_2D!J53 -> 2030 | K46: =Option_2D!K53 -> 0.26952 | L46: =VLOOKUP($J46,General!$D$27:$E$46,2)*K46 -> 0.1954682569
D47: =Option_2D!D54 -> TH No.2 | J47: =Option_2D!J54 -> 2031 | K47: =Option_2D!K54 -> 0.26952 | L47: =VLOOKUP($J47,General!$D$27:$E$46,2)*K47 -> 0.1852779686
D48: Traditional for spread
D49: =Option_2D!D56 -> EPN | J49: =Option_2D!J56 -> 2027 | K49: =Option_2D!K56 -> 0.04107 | L49: =VLOOKUP($J49,General!$D$27:$E$46,2)*K49 -> 0.03497577319
D50: =Option_2D!D57 -> EP0 | J50: =Option_2D!J57 -> 2027 | K50: =Option_2D!K57 -> 0.04107 | L50: =VLOOKUP($J50,General!$D$27:$E$46,2)*K50 -> 0.03497577319
D51: =Option_2D!D58 -> AW0 | J51: =Option_2D!J58 -> 2028 | K51: =Option_2D!K58 -> 0.04107 | L51: =VLOOKUP($J51,General!$D$27:$E$46,2)*K51 -> 0.03315239165
D52: =Option_2D!D59 -> NS0 | J52: =Option_2D!J59 -> 2028 | K52: =Option_2D!K59 -> 0.04107 | L52: =VLOOKUP($J52,General!$D$27:$E$46,2)*K52 -> 0.03315239165
D53: =Option_2D!D60 -> FT0 | J53: =Option_2D!J60 -> 2028 | K53: =Option_2D!K60 -> 0.04107 | L53: =VLOOKUP($J53,General!$D$27:$E$46,2)*K53 -> 0.03315239165
D54: =Option_2D!D61 -> TMA | J54: =Option_2D!J61 -> 2028 | K54: =Option_2D!K61 -> 0.04107 | L54: =VLOOKUP($J54,General!$D$27:$E$46,2)*K54 -> 0.03315239165
D55: =Option_2D!D62 -> TH0 | J55: =Option_2D!J62 -> 2029 | K55: =Option_2D!K62 -> 0.04107 | L55: =VLOOKUP($J55,General!$D$27:$E$46,2)*K55 -> 0.03142406791
D56: =Option_2D!D63 -> PTN | J56: =Option_2D!J63 -> 2029 | K56: =Option_2D!K63 -> 0.04107 | L56: =VLOOKUP($J56,General!$D$27:$E$46,2)*K56 -> 0.03142406791
D57: =Option_2D!D64 -> YVE | J57: =Option_2D!J64 -> 2029 | K57: =Option_2D!K64 -> 0.04107 | L57: =VLOOKUP($J57,General!$D$27:$E$46,2)*K57 -> 0.03142406791
D58: =Option_2D!D65 -> FF0 | J58: =Option_2D!J65 -> 2029 | K58: =Option_2D!K65 -> 0.04107 | L58: =VLOOKUP($J58,General!$D$27:$E$46,2)*K58 -> 0.03142406791
D59: =Option_2D!D66 -> BY0 | J59: =Option_2D!J66 -> 2029 | K59: =Option_2D!K66 -> 0.04107 | L59: =VLOOKUP($J59,General!$D$27:$E$46,2)*K59 -> 0.03142406791
D60: =Option_2D!D67 -> ES0 | J60: =Option_2D!J67 -> 2030 | K60: =Option_2D!K67 -> 0.04107 | L60: =VLOOKUP($J60,General!$D$27:$E$46,2)*K60 -> 0.02978584636
D61: =Option_2D!D68 -> HB0 | J61: =Option_2D!J68 -> 2031 | K61: =Option_2D!K68 -> 0.04107 | L61: =VLOOKUP($J61,General!$D$27:$E$46,2)*K61 -> 0.02823302973
D62: =Option_2D!D69 -> PV0 | J62: =Option_2D!J69 -> 2031 | K62: =Option_2D!K69 -> 0.04107 | L62: =VLOOKUP($J62,General!$D$27:$E$46,2)*K62 -> 0.02823302973
D63: =Option_2D!D70 -> BMS | J63: =Option_2D!J70 -> 2031 | K63: =Option_2D!K70 -> 0.04107 | L63: =VLOOKUP($J63,General!$D$27:$E$46,2)*K63 -> 0.02823302973
D64: Traditional for worst served over-volt
D65: =Option_2D!D72 -> AW0 | J65: =Option_2D!J72 -> 2024 | K65: 1.1 | L65: =VLOOKUP($J65,General!$D$27:$E$46,2)*K65 -> 1.1
D66: =Option_2D!D73 -> CS0 | J66: =Option_2D!J73 -> 2024 | K66: 1.1 | L66: =VLOOKUP($J66,General!$D$27:$E$46,2)*K66 -> 1.1
D67: =Option_2D!D74 -> PTN | J67: =Option_2D!J74 -> 2025 | K67: 1.1 | L67: =VLOOKUP($J67,General!$D$27:$E$46,2)*K67 -> 1.042654028
D68: =Option_2D!D75 -> HB0 | J68: =Option_2D!J75 -> 2025 | K68: 1.1 | L68: =VLOOKUP($J68,General!$D$27:$E$46,2)*K68 -> 1.042654028
D69: =Option_2D!D76 -> SBY | J69: =Option_2D!J76 -> 2026 | K69: 1.1 | L69: =VLOOKUP($J69,General!$D$27:$E$46,2)*K69 -> 0.9882976573
D70: =Option_2D!D77 -> FE0 | J70: =Option_2D!J77 -> 2026 | K70: 1.1 | L70: =VLOOKUP($J70,General!$D$27:$E$46,2)*K70 -> 0.9882976573
D71: =Option_2D!D78 -> NS0 | J71: =Option_2D!J78 -> 2027 | K71: 1.1 | L71: =VLOOKUP($J71,General!$D$27:$E$46,2)*K71 -> 0.9367750306
D72: =Option_2D!D79 -> ST0 | J72: =Option_2D!J79 -> 2027 | K72: 1.1 | L72: =VLOOKUP($J72,General!$D$27:$E$46,2)*K72 -> 0.9367750306
D73: =Option_2D!D80 -> SHM | J73: =Option_2D!J80 -> 2027 | K73: 1.1 | L73: =VLOOKUP($J73,General!$D$27:$E$46,2)*K73 -> 0.9367750306
D74: =Option_2D!D81 -> TT0 | J74: =Option_2D!J81 -> 2028 | K74: 1.1 | L74: =VLOOKUP($J74,General!$D$27:$E$46,2)*K74 -> 0.8879384176
D75: =Option_2D!D82 -> BD0 | J75: =Option_2D!J82 -> 2028 | K75: 1.1 | L75: =VLOOKUP($J75,General!$D$27:$E$46,2)*K75 -> 0.8879384176
D76: =Option_2D!D83 -> EPN | J76: =Option_2D!J83 -> 2028 | K76: 1.1 | L76: =VLOOKUP($J76,General!$D$27:$E$46,2)*K76 -> 0.8879384176
D77: =Option_2D!D84 -> ES0 | J77: =Option_2D!J84 -> 2029 | K77: 1.1 | L77: =VLOOKUP($J77,General!$D$27:$E$46,2)*K77 -> 0.8416477892
D78: =Option_2D!D85 -> TH0 | J78: =Option_2D!J85 -> 2029 | K78: 1.1 | L78: =VLOOKUP($J78,General!$D$27:$E$46,2)*K78 -> 0.8416477892
D79: =Option_2D!D86 -> FF0 | J79: =Option_2D!J86 -> 2029 | K79: 1.1 | L79: =VLOOKUP($J79,General!$D$27:$E$46,2)*K79 -> 0.8416477892
D80: =Option_2D!D87 -> NH0 | J80: =Option_2D!J87 -> 2029 | K80: 1.1 | L80: =VLOOKUP($J80,General!$D$27:$E$46,2)*K80 -> 0.8416477892
D81: =Option_2D!D88 -> TMA | J81: =Option_2D!J88 -> 2029 | K81: 1.1 | L81: =VLOOKUP($J81,General!$D$27:$E$46,2)*K81 -> 0.8416477892
D82: =Option_2D!D89 -> CN0 | J82: =Option_2D!J89 -> 2030 | K82: 1.1 | L82: =VLOOKUP($J82,General!$D$27:$E$46,2)*K82 -> 0.7977704163
D83: =Option_2D!D90 -> BMS | J83: =Option_2D!J90 -> 2030 | K83: 1.1 | L83: =VLOOKUP($J83,General!$D$27:$E$46,2)*K83 -> 0.7977704163
D84: =Option_2D!D91 -> PV0 | J84: =Option_2D!J91 -> 2030 | K84: 1.1 | L84: =VLOOKUP($J84,General!$D$27:$E$46,2)*K84 -> 0.7977704163
D85: =Option_2D!D92 -> FT0 | J85: =Option_2D!J92 -> 2030 | K85: 1.1 | L85: =VLOOKUP($J85,General!$D$27:$E$46,2)*K85 -> 0.7977704163
D86: =Option_2D!D93 -> COO | J86: =Option_2D!J93 -> 2030 | K86: 1.1 | L86: =VLOOKUP($J86,General!$D$27:$E$46,2)*K86 -> 0.7977704163
D87: =Option_2D!D94 -> NT0 | J87: =Option_2D!J94 -> 2030 | K87: 1.1 | L87: =VLOOKUP($J87,General!$D$27:$E$46,2)*K87 -> 0.7977704163
D88: =Option_2D!D95 -> YVE | J88: =Option_2D!J95 -> 2030 | K88: 1.1 | L88: =VLOOKUP($J88,General!$D$27:$E$46,2)*K88 -> 0.7977704163
D89: =Option_2D!D96 -> FW0 | J89: =Option_2D!J96 -> 2030 | K89: 1.1 | L89: =VLOOKUP($J89,General!$D$27:$E$46,2)*K89 -> 0.7977704163
D90: =Option_2D!D97 -> BY0 | J90: =Option_2D!J97 -> 2031 | K90: 1.1 | L90: =VLOOKUP($J90,General!$D$27:$E$46,2)*K90 -> 0.7561804894
D91: =Option_2D!D98 -> SA0 | J91: =Option_2D!J98 -> 2031 | K91: 1.1 | L91: =VLOOKUP($J91,General!$D$27:$E$46,2)*K91 -> 0.7561804894
D92: =Option_2D!D99 -> EP0 | J92: =Option_2D!J99 -> 2031 | K92: 1.1 | L92: =VLOOKUP($J92,General!$D$27:$E$46,2)*K92 -> 0.7561804894
D93: =Option_2D!D100 -> WT0 | J93: =Option_2D!J100 -> 2031 | K93: 1.1 | L93: =VLOOKUP($J93,General!$D$27:$E$46,2)*K93 -> 0.7561804894
D94: =Option_2D!D101 -> KLO | J94: =Option_2D!J101 -> 2031 | K94: 1.1 | L94: =VLOOKUP($J94,General!$D$27:$E$46,2)*K94 -> 0.7561804894
D95: =Option_2D!D113 -> Traditional for worst served under-volt
D96: =Option_2D!D114 -> Year 1 | J96: =Option_2D!J114 -> 2027 | K96: =Option_2D!K114 -> 1.548 | L96: =VLOOKUP($J96,General!$D$27:$E$46,2)*K96 -> 1.318297952
D97: =Option_2D!D115 -> Year 2 | J97: =Option_2D!J115 -> 2028 | K97: =Option_2D!K115 -> 1.548 | L97: =VLOOKUP($J97,General!$D$27:$E$46,2)*K97 -> 1.249571519
D98: =Option_2D!D116 -> Year 3 | J98: =Option_2D!J116 -> 2029 | K98: =Option_2D!K116 -> 1.548 | L98: =VLOOKUP($J98,General!$D$27:$E$46,2)*K98 -> 1.18442798
D99: =Option_2D!D117 -> Year 4 | J99: =Option_2D!J117 -> 2030 | K99: =Option_2D!K117 -> 1.548 | L99: =VLOOKUP($J99,General!$D$27:$E$46,2)*K99 -> 1.12268055
D100: =Option_2D!D118 -> Year 5 | J100: =Option_2D!J118 -> 2031 | K100: =Option_2D!K118 -> 1.548 | L100: =VLOOKUP($J100,General!$D$27:$E$46,2)*K100 -> 1.06415218
D101: =Option_2D!D119 -> Power quality reactive program for customer complaints
D102: =Option_2D!D120 -> Year 1 | J102: =Option_2D!J120 -> 2027 | K102: =Option_2D!K120 -> 0.12322 | L102: =VLOOKUP($J102,General!$D$27:$E$46,2)*K102 -> 0.1049358357
D103: =Option_2D!D121 -> Year 2 | J103: =Option_2D!J121 -> 2028 | K103: =Option_2D!K121 -> 0.12322 | L103: =VLOOKUP($J103,General!$D$27:$E$46,2)*K103 -> 0.09946524711
D104: =Option_2D!D122 -> Year 3 | J104: =Option_2D!J122 -> 2029 | K104: =Option_2D!K122 -> 0.12322 | L104: =VLOOKUP($J104,General!$D$27:$E$46,2)*K104 -> 0.09427985508
D105: =Option_2D!D123 -> Year 4 | J105: =Option_2D!J123 -> 2030 | K105: =Option_2D!K123 -> 0.12322 | L105: =VLOOKUP($J105,General!$D$27:$E$46,2)*K105 -> 0.08936479155
D106: =Option_2D!D124 -> Year 5 | J106: =Option_2D!J124 -> 2031 | K106: =Option_2D!K124 -> 0.12322 | L106: =VLOOKUP($J106,General!$D$27:$E$46,2)*K106 -> 0.08470596355
D108: End

Sheet Compliance
D1: Voltage PQ Management Strategy | H1: Section Check: | I1: =IF(COUNTA($A$9:$A$172)=COUNTIF($A$9:$A$172,0),"Ok","Check") -> Ok | L1: Overall Check: | M1: Ok | O1: Legend: | P1: Input | Q1: Internal | R1: Select | S1: Calculation
D2: Compliance Forecast
B6: Copyright Jemena Limited. All rights reserved. Jemena is not liable for any loss caused by reliance on this document. | AV6: Cumulative sites per annum | AW6: 5 | AX6: 10 | AY6: 15 | AZ6: 25 | BA6: 100 | BB6: 100 | BC6: 100
I9: EDCOP Non-Compliance Contribution (%) | U9: V99 | AG9: % Over-voltage | AS9: Timing
E10: ZSS | F10: AMI Customers | G10: DVM Timing | H10: Rank | I10: =U10 -> 2023 | J10: =V10 -> 2024 | K10: 2025 | L10: 2026 | M10: 2027 | N10: 2028 | O10: 2029 | P10: 2030 | Q10: 2031 | R10: 2032 | S10: 2033 | U10: =V10-1 -> 2023 | V10: =PV_Uptake!G49 -> 2024 | W10: =PV_Uptake!H49 -> 2025 | X10: =PV_Uptake!I49 -> 2026 | Y10: =PV_Uptake!J49 -> 2027 | Z10: =PV_Uptake!K49 -> 2028 | AA10: =PV_Uptake!L49 -> 2029 | AB10: =PV_Uptake!M49 -> 2030 | AC10: =PV_Uptake!N49 -> 2031 | AD10: =PV_Uptake!O49 -> 2032 | AE10: =PV_Uptake!P49 -> 2033 | AG10: =U10 -> 2023 | AH10: 2024 | AI10: 2025 | AJ10: 2026 | AK10: 2027 | AL10: 2028 | AM10: 2029 | AN10: 2030 | AO10: 2031 | AP10: 2032 | AQ10: 2033 | AS10: =AG10 -> 2023 | AT10: =AH10 -> 2024 | AU10: 2025 | AV10: 2026 | AW10: 2027 | AX10: 2028 | AY10: 2029 | AZ10: 2030 | BA10: 2031 | BB10: 2032 | BC10: 2033 | BG10: Adj
D11: =IF(LEN(E11)=2,E11&"0",E11) -> NS0 | E11: NS | F11: =VLOOKUP($D11,Table!$A$4:$N$34,COLUMN(Table!$N:$N),FALSE) -> 14765 | G11: =SUMIF($AS11:$BC11,1,$AS$10:$BC$10) -> 2027 | H11: =_xlfn.RANK.EQ($G11,$G$11:$G$41,1)+COUNTIF($G$11:$G11,$G11)-1 -> 7 | I11: =$F11/$F$43*AG11*General!$J$17 -> 0.02019448678 | J11: =$F11/$F$43*AH11*General!$J$17 -> 0.02019448678 | K11: =$F11/$F$43*AI11*General!$J$17 -> 0.02019448678 | L11: =$F11/$F$43*AJ11*General!$J$17 -> 0.02019448678 | M11: =$F11/$F$43*AK11*General!$J$17 -> 0.02019448678 | N11: =$F11/$F$43*AL11*General!$J$17 -> 0.02019448678 | O11: =$F11/$F$43*AM11*General!$J$17 -> 0.02019448678 | P11: =$F11/$F$43*AN11*General!$J$17 -> 0.02019448678 | Q11: =$F11/$F$43*AO11*General!$J$17 -> 0.02019448678 | R11: =$F11/$F$43*AP11*General!$J$17 -> 0.02019448678 | S11: =$F11/$F$43*AQ11*General!$J$17 -> 0.02019448678 | U11: =VLOOKUP($D11,Table!$A$4:$L$34,COLUMN(Table!J:J),FALSE) -> 257.8201788 | V11: =(1-MIN(0,VLOOKUP($E11,OLTC_Taps!$D$147:$H$173,6-1,FALSE)+VLOOKUP($E11,OLTC_Taps!$D$147:$N$173,12-1,FALSE)*(V$10-$V$10+1)))*$U11 -> 257.8201788 | W11: =(1-MIN(0,VLOOKUP($E11,OLTC_Taps!$D$147:$H$173,6-1,FALSE)+VLOOKUP($E11,OLTC_Taps!$D$147:$N$173,12-1,FALSE)*(W$10-$V$10+1)))*$U11 -> 257.8201788 | X11: =(1-MIN(0,VLOOKUP($E11,OLTC_Taps!$D$147:$H$173,6-1,FALSE)+VLOOKUP($E11,OLTC_Taps!$D$147:$N$173,12-1,FALSE)*(X$10-$V$10+1)))*$U11 -> 257.8201788 | Y11: =(1-MIN(0,VLOOKUP($E11,OLTC_Taps!$D$147:$H$173,6-1,FALSE)+VLOOKUP($E11,OLTC_Taps!$D$147:$N$173,12-1,FALSE)*(Y$10-$V$10+1)))*$U11 -> 257.8201788 | Z11: =(1-MIN(0,VLOOKUP($E11,OLTC_Taps!$D$147:$H$173,6-1,FALSE)+VLOOKUP($E11,OLTC_Taps!$D$147:$O$173,13-1,FALSE)*(Z$10-$V$10+1)))*$U11 -> 257.8201788 | AA11: =(1-MIN(0,VLOOKUP($E11,OLTC_Taps!$D$147:$H$173,6-1,FALSE)+VLOOKUP($E11,OLTC_Taps!$D$147:$O$173,13-1,FALSE)*(AA$10-$V$10+1)))*$U11 -> 257.8201788 | AB11: =(1-MIN(0,VLOOKUP($E11,OLTC_Taps!$D$147:$H$173,6-1,FALSE)+VLOOKUP($E11,OLTC_Taps!$D$147:$O$173,13-1,FALSE)*(AB$10-$V$10+1)))*$U11 -> 257.8201788 | AC11: =(1-MIN(0,VLOOKUP($E11,OLTC_Taps!$D$147:$H$173,6-1,FALSE)+VLOOKUP($E11,OLTC_Taps!$D$147:$O$173,13-1,FALSE)*(AC$10-$V$10+1)))*$U11 -> 257.8201788 | AD11: =(1-MIN(0,VLOOKUP($E11,OLTC_Taps!$D$147:$H$173,6-1,FALSE)+VLOOKUP($E11,OLTC_Taps!$D$147:$O$173,13-1,FALSE)*(AD$10-$V$10+1)))*$U11 -> 257.8201788 | AE11: =(1-MIN(0,VLOOKUP($E11,OLTC_Taps!$D$147:$H$173,6-1,FALSE)+VLOOKUP($E11,OLTC_Taps!$D$147:$O$173,13-1,FALSE)*(AE$10-$V$10+1)))*$U11 -> 257.8201788 | AG11: =COUNTIFS('06Dec24'!$E:$E,">"&253-U11+$U11-$BG11,'06Dec24'!$D:$D,$D11)/COUNTIF('06Dec24'!$D:$D,$D11) -> 0.6676600068 | AH11: =COUNTIFS('06Dec24'!$E:$E,">"&253-V11+$U11-$BG11,'06Dec24'!$D:$D,$D11)/COUNTIF('06Dec24'!$D:$D,$D11) -> 0.6676600068 | AI11: =COUNTIFS('06Dec24'!$E:$E,">"&253-W11+$U11-$BG11,'06Dec24'!$D:$D,$D11)/COUNTIF('06Dec24'!$D:$D,$D11) -> 0.6676600068 | AJ11: =COUNTIFS('06Dec24'!$E:$E,">"&253-X11+$U11-$BG11,'06Dec24'!$D:$D,$D11)/COUNTIF('06Dec24'!$D:$D,$D11) -> 0.6676600068 | AK11: =COUNTIFS('06Dec24'!$E:$E,">"&253-Y11+$U11-$BG11,'06Dec24'!$D:$D,$D11)/COUNTIF('06Dec24'!$D:$D,$D11) -> 0.6676600068 | AL11: =COUNTIFS('06Dec24'!$E:$E,">"&253-Z11+$U11-$BG11,'06Dec24'!$D:$D,$D11)/COUNTIF('06Dec24'!$D:$D,$D11) -> 0.6676600068 | AM11: =COUNTIFS('06Dec24'!$E:$E,">"&253-AA11+$U11-$BG11,'06Dec24'!$D:$D,$D11)/COUNTIF('06Dec24'!$D:$D,$D11) -> 0.6676600068 | AN11: =COUNTIFS('06Dec24'!$E:$E,">"&253-AB11+$U11-$BG11,'06Dec24'!$D:$D,$D11)/COUNTIF('06Dec24'!$D:$D,$D11) -> 0.6676600068 | AO11: =COUNTIFS('06Dec24'!$E:$E,">"&253-AC11+$U11-$BG11,'06Dec24'!$D:$D,$D11)/COUNTIF('06Dec24'!$D:$D,$D11) -> 0.6676600068 | AP11: =COUNTIFS('06Dec24'!$E:$E,">"&253-AD11+$U11-$BG11,'06Dec24'!$D:$D,$D11)/COUNTIF('06Dec24'!$D:$D,$D11) -> 0.6676600068 | AQ11: =COUNTIFS('06Dec24'!$E:$E,">"&253-AE11+$U11-$BG11,'06Dec24'!$D:$D,$D11)/COUNTIF('06Dec24'!$D:$D,$D11) -> 0.6676600068 | AW11: =IF(OR(SUM($AS11:AV11)>0,RANK(M11,M$11:M$41)>AW$6),"",1) -> 1 | AX11: =IF(OR(SUM($AS11:AW11)>0,RANK(N11,N$11:N$41)>AX$6),"",1) ->  | AY11: =IF(OR(SUM($AS11:AX11)>0,RANK(O11,O$11:O$41)>AY$6),"",1) ->  | AZ11: =IF(OR(SUM($AS11:AY11)>0,RANK(P11,P$11:P$41)>AZ$6),"",1) ->  | BA11: =IF(OR(SUM($AS11:AZ11)>0,RANK(Q11,Q$11:Q$41)>BA$6),"",1) ->  | BB11: =IF(OR(SUM($AS11:BA11)>0,RANK(R11,R$11:R$41)>BB$6),"",1) ->  | BC11: =IF(OR(SUM($AS11:BB11)>0,RANK(S11,S$11:S$41)>BC$6),"",1) ->  | BG11: =VLOOKUP($D11,Table!$A$4:$M$34,COLUMN(Table!$M:$M),FALSE) -> 0
D12: AW0 | E12: AW | F12: =VLOOKUP($D12,Table!$A$4:$N$34,COLUMN(Table!$N:$N),FALSE) -> 31529 | G12: 2024 | H12: =_xlfn.RANK.EQ($G12,$G$11:$G$41,1)+COUNTIF($G$11:$G12,$G12)-1 -> 1 | I12: =$F12/$F$43*AG12*General!$J$17 -> 0.002071071834 | J12: =$F12/$F$43*AH12*General!$J$17 -> 0.002071071834 | K12: =$F12/$F$43*AI12*General!$J$17 -> 0.002071071834 | L12: =$F12/$F$43*AJ12*General!$J$17 -> 0.002071071834 | M12: =$F12/$F$43*AK12*General!$J$17 -> 0.002071071834 | N12: =$F12/$F$43*AL12*General!$J$17 -> 0.002071071834 | O12: =$F12/$F$43*AM12*General!$J$17 -> 0.002071071834 | P12: =$F12/$F$43*AN12*General!$J$17 -> 0.002071071834 | Q12: =$F12/$F$43*AO12*General!$J$17 -> 0.002071071834 | R12: =$F12/$F$43*AP12*General!$J$17 -> 0.002071071834 | S12: =$F12/$F$43*AQ12*General!$J$17 -> 0.002071071834 | U12: =VLOOKUP($D12,Table!$A$4:$L$34,COLUMN(Table!J:J),FALSE) -> 255.0465965 | V12: =(1-MIN(0,VLOOKUP($E12,OLTC_Taps!$D$147:$H$173,6-1,FALSE)+VLOOKUP($E12,OLTC_Taps!$D$147:$N$173,12-1,FALSE)*(V$10-$V$10+1)))*$U12 -> 255.0465965 | W12: =(1-MIN(0,VLOOKUP($E12,OLTC_Taps!$D$147:$H$173,6-1,FALSE)+VLOOKUP($E12,OLTC_Taps!$D$147:$N$173,12-1,FALSE)*(W$10-$V$10+1)))*$U12 -> 255.0465965 | X12: =(1-MIN(0,VLOOKUP($E12,OLTC_Taps!$D$147:$H$173,6-1,FALSE)+VLOOKUP($E12,OLTC_Taps!$D$147:$N$173,12-1,FALSE)*(X$10-$V$10+1)))*$U12 -> 255.0465965 | Y12: =(1-MIN(0,VLOOKUP($E12,OLTC_Taps!$D$147:$H$173,6-1,FALSE)+VLOOKUP($E12,OLTC_Taps!$D$147:$N$173,12-1,FALSE)*(Y$10-$V$10+1)))*$U12 -> 255.0465965 | Z12: =(1-MIN(0,VLOOKUP($E12,OLTC_Taps!$D$147:$H$173,6-1,FALSE)+VLOOKUP($E12,OLTC_Taps!$D$147:$O$173,13-1,FALSE)*(Z$10-$V$10+1)))*$U12 -> 255.0465965 | AA12: =(1-MIN(0,VLOOKUP($E12,OLTC_Taps!$D$147:$H$173,6-1,FALSE)+VLOOKUP($E12,OLTC_Taps!$D$147:$O$173,13-1,FALSE)*(AA$10-$V$10+1)))*$U12 -> 255.0465965 | AB12: =(1-MIN(0,VLOOKUP($E12,OLTC_Taps!$D$147:$H$173,6-1,FALSE)+VLOOKUP($E12,OLTC_Taps!$D$147:$O$173,13-1,FALSE)*(AB$10-$V$10+1)))*$U12 -> 255.0465965 | AC12: =(1-MIN(0,VLOOKUP($E12,OLTC_Taps!$D$147:$H$173,6-1,FALSE)+VLOOKUP($E12,OLTC_Taps!$D$147:$O$173,13-1,FALSE)*(AC$10-$V$10+1)))*$U12 -> 255.0465965 | AD12: =(1-MIN(0,VLOOKUP($E12,OLTC_Taps!$D$147:$H$173,6-1,FALSE)+VLOOKUP($E12,OLTC_Taps!$D$147:$O$173,13-1,FALSE)*(AD$10-$V$10+1)))*$U12 -> 255.0465965 | AE12: =(1-MIN(0,VLOOKUP($E12,OLTC_Taps!$D$147:$H$173,6-1,FALSE)+VLOOKUP($E12,OLTC_Taps!$D$147:$O$173,13-1,FALSE)*(AE$10-$V$10+1)))*$U12 -> 255.0465965 | AG12: =COUNTIFS('06Dec24'!$E:$E,">"&253-U12+$U12-$BG12,'06Dec24'!$D:$D,$D12)/COUNTIF('06Dec24'!$D:$D,$D12) -> 0.03206571728 | AH12: =COUNTIFS('06Dec24'!$E:$E,">"&253-V12+$U12-$BG12,'06Dec24'!$D:$D,$D12)/COUNTIF('06Dec24'!$D:$D,$D12) -> 0.03206571728 | AI12: =COUNTIFS('06Dec24'!$E:$E,">"&253-W12+$U12-$BG12,'06Dec24'!$D:$D,$D12)/COUNTIF('06Dec24'!$D:$D,$D12) -> 0.03206571728 | AJ12: =COUNTIFS('06Dec24'!$E:$E,">"&253-X12+$U12-$BG12,'06Dec24'!$D:$D,$D12)/COUNTIF('06Dec24'!$D:$D,$D12) -> 0.03206571728 | AK12: =COUNTIFS('06Dec24'!$E:$E,">"&253-Y12+$U12-$BG12,'06Dec24'!$D:$D,$D12)/COUNTIF('06Dec24'!$D:$D,$D12) -> 0.03206571728 | AL12: =COUNTIFS('06Dec24'!$E:$E,">"&253-Z12+$U12-$BG12,'06Dec24'!$D:$D,$D12)/COUNTIF('06Dec24'!$D:$D,$D12) -> 0.03206571728 | AM12: =COUNTIFS('06Dec24'!$E:$E,">"&253-AA12+$U12-$BG12,'06Dec24'!$D:$D,$D12)/COUNTIF('06Dec24'!$D:$D,$D12) -> 0.03206571728 | AN12: =COUNTIFS('06Dec24'!$E:$E,">"&253-AB12+$U12-$BG12,'06Dec24'!$D:$D,$D12)/COUNTIF('06Dec24'!$D:$D,$D12) -> 0.03206571728 | AO12: =COUNTIFS('06Dec24'!$E:$E,">"&253-AC12+$U12-$BG12,'06Dec24'!$D:$D,$D12)/COUNTIF('06Dec24'!$D:$D,$D12) -> 0.03206571728 | AP12: =COUNTIFS('06Dec24'!$E:$E,">"&253-AD12+$U12-$BG12,'06Dec24'!$D:$D,$D12)/COUNTIF('06Dec24'!$D:$D,$D12) -> 0.03206571728 | AQ12: =COUNTIFS('06Dec24'!$E:$E,">"&253-AE12+$U12-$BG12,'06Dec24'!$D:$D,$D12)/COUNTIF('06Dec24'!$D:$D,$D12) -> 0.03206571728 | AT12: 1 | AW12: =IF(OR(SUM($AS12:AV12)>0,RANK(M12,M$11:M$41)>AW$6),"",1) ->  | AX12: =IF(OR(SUM($AS12:AW12)>0,RANK(N12,N$11:N$41)>AX$6),"",1) ->  | AY12: =IF(OR(SUM($AS12:AX12)>0,RANK(O12,O$11:O$41)>AY$6),"",1) ->  | AZ12: =IF(OR(SUM($AS12:AY12)>0,RANK(P12,P$11:P$41)>AZ$6),"",1) ->  | BA12: =IF(OR(SUM($AS12:AZ12)>0,RANK(Q12,Q$11:Q$41)>BA$6),"",1) ->  | BB12: =IF(OR(SUM($AS12:BA12)>0,RANK(R12,R$11:R$41)>BB$6),"",1) ->  | BC12: =IF(OR(SUM($AS12:BB12)>0,RANK(S12,S$11:S$41)>BC$6),"",1) ->  | BG12: =VLOOKUP($D12,Table!$A$4:$M$34,COLUMN(Table!$M:$M),FALSE) -> 0
D13: TT0 | E13: TT | F13: =VLOOKUP($D13,Table!$A$4:$N$34,COLUMN(Table!$N:$N),FALSE) -> 17957 | G13: 2028 | H13: =_xlfn.RANK.EQ($G13,$G$11:$G$41,1)+COUNTIF($G$11:$G13,$G13)-1 -> 10 | I13: =$F13/$F$43*AG13*General!$J$17 -> 0.001798616291 | J13: =$F13/$F$43*AH13*General!$J$17 -> 0.001798616291 | K13: =$F13/$F$43*AI13*General!$J$17 -> 0.001798616291 | L13: =$F13/$F$43*AJ13*General!$J$17 -> 0.001798616291 | M13: =$F13/$F$43*AK13*General!$J$17 -> 0.001798616291 | N13: =$F13/$F$43*AL13*General!$J$17 -> 0.001798616291 | O13: =$F13/$F$43*AM13*General!$J$17 -> 0.001798616291 | P13: =$F13/$F$43*AN13*General!$J$17 -> 0.001798616291 | Q13: =$F13/$F$43*AO13*General!$J$17 -> 0.001798616291 | R13: =$F13/$F$43*AP13*General!$J$17 -> 0.001798616291 | S13: =$F13/$F$43*AQ13*General!$J$17 -> 0.001798616291 | U13: =VLOOKUP($D13,Table!$A$4:$L$34,COLUMN(Table!J:J),FALSE) -> 254.8944025 | V13: =U13 -> 254.8944025 | W13: 254.8944025 | X13: 254.8944025 | Y13: 254.8944025 | Z13: 254.8944025 | AA13: 254.8944025 | AB13: 254.8944025 | AC13: 254.8944025 | AD13: 254.8944025 | AE13: 254.8944025 | AG13: =COUNTIFS('06Dec24'!$E:$E,">"&253-U13+$U13-$BG13,'06Dec24'!$D:$D,$D13)/COUNTIF('06Dec24'!$D:$D,$D13) -> 0.0488945815 | AH13: =COUNTIFS('06Dec24'!$E:$E,">"&253-V13+$U13-$BG13,'06Dec24'!$D:$D,$D13)/COUNTIF('06Dec24'!$D:$D,$D13) -> 0.0488945815 | AI13: =COUNTIFS('06Dec24'!$E:$E,">"&253-W13+$U13-$BG13,'06Dec24'!$D:$D,$D13)/COUNTIF('06Dec24'!$D:$D,$D13) -> 0.0488945815 | AJ13: =COUNTIFS('06Dec24'!$E:$E,">"&253-X13+$U13-$BG13,'06Dec24'!$D:$D,$D13)/COUNTIF('06Dec24'!$D:$D,$D13) -> 0.0488945815 | AK13: =COUNTIFS('06Dec24'!$E:$E,">"&253-Y13+$U13-$BG13,'06Dec24'!$D:$D,$D13)/COUNTIF('06Dec24'!$D:$D,$D13) -> 0.0488945815 | AL13: =COUNTIFS('06Dec24'!$E:$E,">"&253-Z13+$U13-$BG13,'06Dec24'!$D:$D,$D13)/COUNTIF('06Dec24'!$D:$D,$D13) -> 0.0488945815 | AM13: =COUNTIFS('06Dec24'!$E:$E,">"&253-AA13+$U13-$BG13,'06Dec24'!$D:$D,$D13)/COUNTIF('06Dec24'!$D:$D,$D13) -> 0.0488945815 | AN13: =COUNTIFS('06Dec24'!$E:$E,">"&253-AB13+$U13-$BG13,'06Dec24'!$D:$D,$D13)/COUNTIF('06Dec24'!$D:$D,$D13) -> 0.0488945815 | AO13: =COUNTIFS('06Dec24'!$E:$E,">"&253-AC13+$U13-$BG13,'06Dec24'!$D:$D,$D13)/COUNTIF('06Dec24'!$D:$D,$D13) -> 0.0488945815 | AP13: =COUNTIFS('06Dec24'!$E:$E,">"&253-AD13+$U13-$BG13,'06Dec24'!$D:$D,$D13)/COUNTIF('06Dec24'!$D:$D,$D13) -> 0.0488945815 | AQ13: =COUNTIFS('06Dec24'!$E:$E,">"&253-AE13+$U13-$BG13,'06Dec24'!$D:$D,$D13)/COUNTIF('06Dec24'!$D:$D,$D13) -> 0.0488945815 | AW13: =IF(OR(SUM($AS13:AV13)>0,RANK(M13,M$11:M$41)>AW$6),"",1) ->  | AX13: =IF(OR(SUM($AS13:AW13)>0,RANK(N13,N$11:N$41)>AX$6),"",1) -> 1 | AY13: =IF(OR(SUM($AS13:AX13)>0,RANK(O13,O$11:O$41)>AY$6),"",1) ->  | AZ13: =IF(OR(SUM($AS13:AY13)>0,RANK(P13,P$11:P$41)>AZ$6),"",1) ->  | BA13: =IF(OR(SUM($AS13:AZ13)>0,RANK(Q13,Q$11:Q$41)>BA$6),"",1) ->  | BB13: =IF(OR(SUM($AS13:BA13)>0,RANK(R13,R$11:R$41)>BB$6),"",1) ->  | BC13: =IF(OR(SUM($AS13:BB13)>0,RANK(S13,S$11:S$41)>BC$6),"",1) ->  | BG13: =VLOOKUP($D13,Table!$A$4:$M$34,COLUMN(Table!$M:$M),FALSE) -> 0
D14: BD0 | E14: BD | F14: =VLOOKUP($D14,Table!$A$4:$N$34,COLUMN(Table!$N:$N),FALSE) -> 21363 | G14: 2028 | H14: =_xlfn.RANK.EQ($G14,$G$11:$G$41,1)+COUNTIF($G$11:$G14,$G14)-1 -> 11 | I14: =$F14/$F$43*AG14*General!$J$17 -> 0.001581471272 | J14: =$F14/$F$43*AH14*General!$J$17 -> 0.001581471272 | K14: =$F14/$F$43*AI14*General!$J$17 -> 0.001581471272 | L14: =$F14/$F$43*AJ14*General!$J$17 -> 0.001581471272 | M14: =$F14/$F$43*AK14*General!$J$17 -> 0.001581471272 | N14: =$F14/$F$43*AL14*General!$J$17 -> 0.001581471272 | O14: =$F14/$F$43*AM14*General!$J$17 -> 0.001581471272 | P14: =$F14/$F$43*AN14*General!$J$17 -> 0.001581471272 | Q14: =$F14/$F$43*AO14*General!$J$17 -> 0.001581471272 | R14: =$F14/$F$43*AP14*General!$J$17 -> 0.001581471272 | S14: =$F14/$F$43*AQ14*General!$J$17 -> 0.001581471272 | U14: =VLOOKUP($D14,Table!$A$4:$L$34,COLUMN(Table!J:J),FALSE) -> 254.9839266 | V14: =(1-MIN(0,VLOOKUP($E14,OLTC_Taps!$D$147:$H$173,6-1,FALSE)+VLOOKUP($E14,OLTC_Taps!$D$147:$N$173,12-1,FALSE)*(V$10-$V$10+1)))*$U14 -> 254.9839266 | W14: =(1-MIN(0,VLOOKUP($E14,OLTC_Taps!$D$147:$H$173,6-1,FALSE)+VLOOKUP($E14,OLTC_Taps!$D$147:$N$173,12-1,FALSE)*(W$10-$V$10+1)))*$U14 -> 254.9839266 | X14: =(1-MIN(0,VLOOKUP($E14,OLTC_Taps!$D$147:$H$173,6-1,FALSE)+VLOOKUP($E14,OLTC_Taps!$D$147:$N$173,12-1,FALSE)*(X$10-$V$10+1)))*$U14 -> 254.9839266 | Y14: =(1-MIN(0,VLOOKUP($E14,OLTC_Taps!$D$147:$H$173,6-1,FALSE)+VLOOKUP($E14,OLTC_Taps!$D$147:$N$173,12-1,FALSE)*(Y$10-$V$10+1)))*$U14 -> 254.9839266 | Z14: =(1-MIN(0,VLOOKUP($E14,OLTC_Taps!$D$147:$H$173,6-1,FALSE)+VLOOKUP($E14,OLTC_Taps!$D$147:$O$173,13-1,FALSE)*(Z$10-$V$10+1)))*$U14 -> 254.9839266 | AA14: =(1-MIN(0,VLOOKUP($E14,OLTC_Taps!$D$147:$H$173,6-1,FALSE)+VLOOKUP($E14,OLTC_Taps!$D$147:$O$173,13-1,FALSE)*(AA$10-$V$10+1)))*$U14 -> 254.9839266 | AB14: =(1-MIN(0,VLOOKUP($E14,OLTC_Taps!$D$147:$H$173,6-1,FALSE)+VLOOKUP($E14,OLTC_Taps!$D$147:$O$173,13-1,FALSE)*(AB$10-$V$10+1)))*$U14 -> 254.9839266 | AC14: =(1-MIN(0,VLOOKUP($E14,OLTC_Taps!$D$147:$H$173,6-1,FALSE)+VLOOKUP($E14,OLTC_Taps!$D$147:$O$173,13-1,FALSE)*(AC$10-$V$10+1)))*$U14 -> 254.9839266 | AD14: =(1-MIN(0,VLOOKUP($E14,OLTC_Taps!$D$147:$H$173,6-1,FALSE)+VLOOKUP($E14,OLTC_Taps!$D$147:$O$173,13-1,FALSE)*(AD$10-$V$10+1)))*$U14 -> 254.9839266 | AE14: =(1-MIN(0,VLOOKUP($E14,OLTC_Taps!$D$147:$H$173,6-1,FALSE)+VLOOKUP($E14,OLTC_Taps!$D$147:$O$173,13-1,FALSE)*(AE$10-$V$10+1)))*$U14 -> 254.9839266 | AG14: =COUNTIFS('06Dec24'!$E:$E,">"&253-U14+$U14-$BG14,'06Dec24'!$D:$D,$D14)/COUNTIF('06Dec24'!$D:$D,$D14) -> 0.03613724664 | AH14: =COUNTIFS('06Dec24'!$E:$E,">"&253-V14+$U14-$BG14,'06Dec24'!$D:$D,$D14)/COUNTIF('06Dec24'!$D:$D,$D14) -> 0.03613724664 | AI14: =COUNTIFS('06Dec24'!$E:$E,">"&253-W14+$U14-$BG14,'06Dec24'!$D:$D,$D14)/COUNTIF('06Dec24'!$D:$D,$D14) -> 0.03613724664 | AJ14: =COUNTIFS('06Dec24'!$E:$E,">"&253-X14+$U14-$BG14,'06Dec24'!$D:$D,$D14)/COUNTIF('06Dec24'!$D:$D,$D14) -> 0.03613724664 | AK14: =COUNTIFS('06Dec24'!$E:$E,">"&253-Y14+$U14-$BG14,'06Dec24'!$D:$D,$D14)/COUNTIF('06Dec24'!$D:$D,$D14) -> 0.03613724664 | AL14: =COUNTIFS('06Dec24'!$E:$E,">"&253-Z14+$U14-$BG14,'06Dec24'!$D:$D,$D14)/COUNTIF('06Dec24'!$D:$D,$D14) -> 0.03613724664 | AM14: =COUNTIFS('06Dec24'!$E:$E,">"&253-AA14+$U14-$BG14,'06Dec24'!$D:$D,$D14)/COUNTIF('06Dec24'!$D:$D,$D14) -> 0.03613724664 | AN14: =COUNTIFS('06Dec24'!$E:$E,">"&253-AB14+$U14-$BG14,'06Dec24'!$D:$D,$D14)/COUNTIF('06Dec24'!$D:$D,$D14) -> 0.03613724664 | AO14: =COUNTIFS('06Dec24'!$E:$E,">"&253-AC14+$U14-$BG14,'06Dec24'!$D:$D,$D14)/COUNTIF('06Dec24'!$D:$D,$D14) -> 0.03613724664 | AP14: =COUNTIFS('06Dec24'!$E:$E,">"&253-AD14+$U14-$BG14,'06Dec24'!$D:$D,$D14)/COUNTIF('06Dec24'!$D:$D,$D14) -> 0.03613724664 | AQ14: =COUNTIFS('06Dec24'!$E:$E,">"&253-AE14+$U14-$BG14,'06Dec24'!$D:$D,$D14)/COUNTIF('06Dec24'!$D:$D,$D14) -> 0.03613724664 | AW14: =IF(OR(SUM($AS14:AV14)>0,RANK(M14,M$11:M$41)>AW$6),"",1) ->  | AX14: =IF(OR(SUM($AS14:AW14)>0,RANK(N14,N$11:N$41)>AX$6),"",1) -> 1 | AY14: =IF(OR(SUM($AS14:AX14)>0,RANK(O14,O$11:O$41)>AY$6),"",1) ->  | AZ14: =IF(OR(SUM($AS14:AY14)>0,RANK(P14,P$11:P$41)>AZ$6),"",1) ->  | BA14: =IF(OR(SUM($AS14:AZ14)>0,RANK(Q14,Q$11:Q$41)>BA$6),"",1) ->  | BB14: =IF(OR(SUM($AS14:BA14)>0,RANK(R14,R$11:R$41)>BB$6),"",1) ->  | BC14: =IF(OR(SUM($AS14:BB14)>0,RANK(S14,S$11:S$41)>BC$6),"",1) ->  | BG14: =VLOOKUP($D14,Table!$A$4:$M$34,COLUMN(Table!$M:$M),FALSE) -> 0
D15: SBY | E15: SBY | F15: =VLOOKUP($D15,Table!$A$4:$N$34,COLUMN(Table!$N:$N),FALSE) -> 23105 | G15: 2026 | H15: =_xlfn.RANK.EQ($G15,$G$11:$G$41,1)+COUNTIF($G$11:$G15,$G15)-1 -> 5 | I15: =$F15/$F$43*AG15*General!$J$17 -> 0.0008194151667 | J15: =$F15/$F$43*AH15*General!$J$17 -> 0.001343840873 | K15: =$F15/$F$43*AI15*General!$J$17 -> 0.001864169504 | L15: =$F15/$F$43*AJ15*General!$J$17 -> 0.002638516837 | M15: =$F15/$F$43*AK15*General!$J$17 -> 0.003947532566 | N15: =$F15/$F$43*AL15*General!$J$17 -> 0.004271201557 | O15: =$F15/$F$43*AM15*General!$J$17 -> 0.005989924869 | P15: =$F15/$F$43*AN15*General!$J$17 -> 0.009279876763 | Q15: =$F15/$F$43*AO15*General!$J$17 -> 0.01424758121 | R15: =$F15/$F$43*AP15*General!$J$17 -> 0.02004904059 | S15: =$F15/$F$43*AQ15*General!$J$17 -> 0.02535680234 | U15: =VLOOKUP($D15,Table!$A$4:$L$34,COLUMN(Table!J:J),FALSE) -> 254.1091687 | V15: =(1-MIN(0,VLOOKUP($E15,OLTC_Taps!$D$147:$H$173,6-1,FALSE)+VLOOKUP($E15,OLTC_Taps!$D$147:$N$173,12-1,FALSE)*(V$10-$V$10+1)))*$U15 -> 254.8484678 | W15: =(1-MIN(0,VLOOKUP($E15,OLTC_Taps!$D$147:$H$173,6-1,FALSE)+VLOOKUP($E15,OLTC_Taps!$D$147:$N$173,12-1,FALSE)*(W$10-$V$10+1)))*$U15 -> 255.587767 | X15: =(1-MIN(0,VLOOKUP($E15,OLTC_Taps!$D$147:$H$173,6-1,FALSE)+VLOOKUP($E15,OLTC_Taps!$D$147:$N$173,12-1,FALSE)*(X$10-$V$10+1)))*$U15 -> 256.3270661 | Y15: =(1-MIN(0,VLOOKUP($E15,OLTC_Taps!$D$147:$H$173,6-1,FALSE)+VLOOKUP($E15,OLTC_Taps!$D$147:$N$173,12-1,FALSE)*(Y$10-$V$10+1)))*$U15 -> 257.0663652 | Z15: =(1-MIN(0,VLOOKUP($E15,OLTC_Taps!$D$147:$H$173,6-1,FALSE)+VLOOKUP($E15,OLTC_Taps!$D$147:$O$173,13-1,FALSE)*(Z$10-$V$10+1)))*$U15 -> 257.2622943 | AA15: =(1-MIN(0,VLOOKUP($E15,OLTC_Taps!$D$147:$H$173,6-1,FALSE)+VLOOKUP($E15,OLTC_Taps!$D$147:$O$173,13-1,FALSE)*(AA$10-$V$10+1)))*$U15 -> 257.8929194 | AB15: =(1-MIN(0,VLOOKUP($E15,OLTC_Taps!$D$147:$H$173,6-1,FALSE)+VLOOKUP($E15,OLTC_Taps!$D$147:$O$173,13-1,FALSE)*(AB$10-$V$10+1)))*$U15 -> 258.5235445 | AC15: =(1-MIN(0,VLOOKUP($E15,OLTC_Taps!$D$147:$H$173,6-1,FALSE)+VLOOKUP($E15,OLTC_Taps!$D$147:$O$173,13-1,FALSE)*(AC$10-$V$10+1)))*$U15 -> 259.1541696 | AD15: =(1-MIN(0,VLOOKUP($E15,OLTC_Taps!$D$147:$H$173,6-1,FALSE)+VLOOKUP($E15,OLTC_Taps!$D$147:$O$173,13-1,FALSE)*(AD$10-$V$10+1)))*$U15 -> 259.7847948 | AE15: =(1-MIN(0,VLOOKUP($E15,OLTC_Taps!$D$147:$H$173,6-1,FALSE)+VLOOKUP($E15,OLTC_Taps!$D$147:$O$173,13-1,FALSE)*(AE$10-$V$10+1)))*$U15 -> 260.4154199 | AG15: =COUNTIFS('06Dec24'!$E:$E,">"&253-U15+$U15-$BG15,'06Dec24'!$D:$D,$D15)/COUNTIF('06Dec24'!$D:$D,$D15) -> 0.01731227007 | AH15: =COUNTIFS('06Dec24'!$E:$E,">"&253-V15+$U15-$BG15,'06Dec24'!$D:$D,$D15)/COUNTIF('06Dec24'!$D:$D,$D15) -> 0.02839212292 | AI15: =COUNTIFS('06Dec24'!$E:$E,">"&253-W15+$U15-$BG15,'06Dec24'!$D:$D,$D15)/COUNTIF('06Dec24'!$D:$D,$D15) -> 0.03938541441 | AJ15: =COUNTIFS('06Dec24'!$E:$E,">"&253-X15+$U15-$BG15,'06Dec24'!$D:$D,$D15)/COUNTIF('06Dec24'!$D:$D,$D15) -> 0.05574550963 | AK15: =COUNTIFS('06Dec24'!$E:$E,">"&253-Y15+$U15-$BG15,'06Dec24'!$D:$D,$D15)/COUNTIF('06Dec24'!$D:$D,$D15) -> 0.08340186107 | AL15: =COUNTIFS('06Dec24'!$E:$E,">"&253-Z15+$U15-$BG15,'06Dec24'!$D:$D,$D15)/COUNTIF('06Dec24'!$D:$D,$D15) -> 0.09024020775 | AM15: =COUNTIFS('06Dec24'!$E:$E,">"&253-AA15+$U15-$BG15,'06Dec24'!$D:$D,$D15)/COUNTIF('06Dec24'!$D:$D,$D15) -> 0.1265526942 | AN15: =COUNTIFS('06Dec24'!$E:$E,">"&253-AB15+$U15-$BG15,'06Dec24'!$D:$D,$D15)/COUNTIF('06Dec24'!$D:$D,$D15) -> 0.1960614586 | AO15: =COUNTIFS('06Dec24'!$E:$E,">"&253-AC15+$U15-$BG15,'06Dec24'!$D:$D,$D15)/COUNTIF('06Dec24'!$D:$D,$D15) -> 0.3010170959 | AP15: =COUNTIFS('06Dec24'!$E:$E,">"&253-AD15+$U15-$BG15,'06Dec24'!$D:$D,$D15)/COUNTIF('06Dec24'!$D:$D,$D15) -> 0.423587968 | AQ15: =COUNTIFS('06Dec24'!$E:$E,">"&253-AE15+$U15-$BG15,'06Dec24'!$D:$D,$D15)/COUNTIF('06Dec24'!$D:$D,$D15) -> 0.5357281974 | AV15: 1 | AW15: =IF(OR(SUM($AS15:AV15)>0,RANK(M15,M$11:M$41)>AW$6),"",1) ->  | AX15: =IF(OR(SUM($AS15:AW15)>0,RANK(N15,N$11:N$41)>AX$6),"",1) ->  | AY15: =IF(OR(SUM($AS15:AX15)>0,RANK(O15,O$11:O$41)>AY$6),"",1) ->  | AZ15: =IF(OR(SUM($AS15:AY15)>0,RANK(P15,P$11:P$41)>AZ$6),"",1) ->  | BA15: =IF(OR(SUM($AS15:AZ15)>0,RANK(Q15,Q$11:Q$41)>BA$6),"",1) ->  | BB15: =IF(OR(SUM($AS15:BA15)>0,RANK(R15,R$11:R$41)>BB$6),"",1) ->  | BC15: =IF(OR(SUM($AS15:BB15)>0,RANK(S15,S$11:S$41)>BC$6),"",1) ->  | BG15: =VLOOKUP($D15,Table!$A$4:$M$34,COLUMN(Table!$M:$M),FALSE) -> 0
D16: PTN | E16: PTN | F16: =VLOOKUP($D16,Table!$A$4:$N$34,COLUMN(Table!$N:$N),FALSE) -> 14196 | G16: 2025 | H16: =_xlfn.RANK.EQ($G16,$G$11:$G$41,1)+COUNTIF($G$11:$G16,$G16)-1 -> 3 | I16: =$F16/$F$43*AG16*General!$J$17 -> 0.001265996433 | J16: =$F16/$F$43*AH16*General!$J$17 -> 0.001265996433 | K16: =$F16/$F$43*AI16*General!$J$17 -> 0.001265996433 | L16: =$F16/$F$43*AJ16*General!$J$17 -> 0.001265996433 | M16: =$F16/$F$43*AK16*General!$J$17 -> 0.001265996433 | N16: =$F16/$F$43*AL16*General!$J$17 -> 0.001265996433 | O16: =$F16/$F$43*AM16*General!$J$17 -> 0.001265996433 | P16: =$F16/$F$43*AN16*General!$J$17 -> 0.001265996433 | Q16: =$F16/$F$43*AO16*General!$J$17 -> 0.001265996433 | R16: =$F16/$F$43*AP16*General!$J$17 -> 0.001265996433 | S16: =$F16/$F$43*AQ16*General!$J$17 -> 0.001265996433 | U16: =VLOOKUP($D16,Table!$A$4:$L$34,COLUMN(Table!J:J),FALSE) -> 255.1467531 | V16: =(1-MIN(0,VLOOKUP($E16,OLTC_Taps!$D$147:$H$173,6-1,FALSE)+VLOOKUP($E16,OLTC_Taps!$D$147:$N$173,12-1,FALSE)*(V$10-$V$10+1)))*$U16 -> 255.1467531 | W16: =(1-MIN(0,VLOOKUP($E16,OLTC_Taps!$D$147:$H$173,6-1,FALSE)+VLOOKUP($E16,OLTC_Taps!$D$147:$N$173,12-1,FALSE)*(W$10-$V$10+1)))*$U16 -> 255.1467531 | X16: =(1-MIN(0,VLOOKUP($E16,OLTC_Taps!$D$147:$H$173,6-1,FALSE)+VLOOKUP($E16,OLTC_Taps!$D$147:$N$173,12-1,FALSE)*(X$10-$V$10+1)))*$U16 -> 255.1467531 | Y16: =(1-MIN(0,VLOOKUP($E16,OLTC_Taps!$D$147:$H$173,6-1,FALSE)+VLOOKUP($E16,OLTC_Taps!$D$147:$N$173,12-1,FALSE)*(Y$10-$V$10+1)))*$U16 -> 255.1467531 | Z16: =(1-MIN(0,VLOOKUP($E16,OLTC_Taps!$D$147:$H$173,6-1,FALSE)+VLOOKUP($E16,OLTC_Taps!$D$147:$O$173,13-1,FALSE)*(Z$10-$V$10+1)))*$U16 -> 255.1467531 | AA16: =(1-MIN(0,VLOOKUP($E16,OLTC_Taps!$D$147:$H$173,6-1,FALSE)+VLOOKUP($E16,OLTC_Taps!$D$147:$O$173,13-1,FALSE)*(AA$10-$V$10+1)))*$U16 -> 255.1467531 | AB16: =(1-MIN(0,VLOOKUP($E16,OLTC_Taps!$D$147:$H$173,6-1,FALSE)+VLOOKUP($E16,OLTC_Taps!$D$147:$O$173,13-1,FALSE)*(AB$10-$V$10+1)))*$U16 -> 255.1467531 | AC16: =(1-MIN(0,VLOOKUP($E16,OLTC_Taps!$D$147:$H$173,6-1,FALSE)+VLOOKUP($E16,OLTC_Taps!$D$147:$O$173,13-1,FALSE)*(AC$10-$V$10+1)))*$U16 -> 255.1467531 | AD16: =(1-MIN(0,VLOOKUP($E16,OLTC_Taps!$D$147:$H$173,6-1,FALSE)+VLOOKUP($E16,OLTC_Taps!$D$147:$O$173,13-1,FALSE)*(AD$10-$V$10+1)))*$U16 -> 255.1467531 | AE16: =(1-MIN(0,VLOOKUP($E16,OLTC_Taps!$D$147:$H$173,6-1,FALSE)+VLOOKUP($E16,OLTC_Taps!$D$147:$O$173,13-1,FALSE)*(AE$10-$V$10+1)))*$U16 -> 255.1467531 | AG16: =COUNTIFS('06Dec24'!$E:$E,">"&253-U16+$U16-$BG16,'06Dec24'!$D:$D,$D16)/COUNTIF('06Dec24'!$D:$D,$D16) -> 0.04353338969 | AH16: =COUNTIFS('06Dec24'!$E:$E,">"&253-V16+$U16-$BG16,'06Dec24'!$D:$D,$D16)/COUNTIF('06Dec24'!$D:$D,$D16) -> 0.04353338969 | AI16: =COUNTIFS('06Dec24'!$E:$E,">"&253-W16+$U16-$BG16,'06Dec24'!$D:$D,$D16)/COUNTIF('06Dec24'!$D:$D,$D16) -> 0.04353338969 | AJ16: =COUNTIFS('06Dec24'!$E:$E,">"&253-X16+$U16-$BG16,'06Dec24'!$D:$D,$D16)/COUNTIF('06Dec24'!$D:$D,$D16) -> 0.04353338969 | AK16: =COUNTIFS('06Dec24'!$E:$E,">"&253-Y16+$U16-$BG16,'06Dec24'!$D:$D,$D16)/COUNTIF('06Dec24'!$D:$D,$D16) -> 0.04353338969 | AL16: =COUNTIFS('06Dec24'!$E:$E,">"&253-Z16+$U16-$BG16,'06Dec24'!$D:$D,$D16)/COUNTIF('06Dec24'!$D:$D,$D16) -> 0.04353338969 | AM16: =COUNTIFS('06Dec24'!$E:$E,">"&253-AA16+$U16-$BG16,'06Dec24'!$D:$D,$D16)/COUNTIF('06Dec24'!$D:$D,$D16) -> 0.04353338969 | AN16: =COUNTIFS('06Dec24'!$E:$E,">"&253-AB16+$U16-$BG16,'06Dec24'!$D:$D,$D16)/COUNTIF('06Dec24'!$D:$D,$D16) -> 0.04353338969 | AO16: =COUNTIFS('06Dec24'!$E:$E,">"&253-AC16+$U16-$BG16,'06Dec24'!$D:$D,$D16)/COUNTIF('06Dec24'!$D:$D,$D16) -> 0.04353338969 | AP16: =COUNTIFS('06Dec24'!$E:$E,">"&253-AD16+$U16-$BG16,'06Dec24'!$D:$D,$D16)/COUNTIF('06Dec24'!$D:$D,$D16) -> 0.04353338969 | AQ16: =COUNTIFS('06Dec24'!$E:$E,">"&253-AE16+$U16-$BG16,'06Dec24'!$D:$D,$D16)/COUNTIF('06Dec24'!$D:$D,$D16) -> 0.04353338969 | AU16: 1 | AW16: =IF(OR(SUM($AS16:AV16)>0,RANK(M16,M$11:M$41)>AW$6),"",1) ->  | AX16: =IF(OR(SUM($AS16:AW16)>0,RANK(N16,N$11:N$41)>AX$6),"",1) ->  | AY16: =IF(OR(SUM($AS16:AX16)>0,RANK(O16,O$11:O$41)>AY$6),"",1) ->  | AZ16: =IF(OR(SUM($AS16:AY16)>0,RANK(P16,P$11:P$41)>AZ$6),"",1) ->  | BA16: =IF(OR(SUM($AS16:AZ16)>0,RANK(Q16,Q$11:Q$41)>BA$6),"",1) ->  | BB16: =IF(OR(SUM($AS16:BA16)>0,RANK(R16,R$11:R$41)>BB$6),"",1) ->  | BC16: =IF(OR(SUM($AS16:BB16)>0,RANK(S16,S$11:S$41)>BC$6),"",1) ->  | BG16: =VLOOKUP($D16,Table!$A$4:$M$34,COLUMN(Table!$M:$M),FALSE) -> 0
D17: EPN | E17: EPN | F17: =VLOOKUP($D17,Table!$A$4:$N$34,COLUMN(Table!$N:$N),FALSE) -> 10003 | G17: 2028 | H17: =_xlfn.RANK.EQ($G17,$G$11:$G$41,1)+COUNTIF($G$11:$G17,$G17)-1 -> 12 | I17: =$F17/$F$43*AG17*General!$J$17 -> 0.001200443219 | J17: =$F17/$F$43*AH17*General!$J$17 -> 0.001200443219 | K17: =$F17/$F$43*AI17*General!$J$17 -> 0.001200443219 | L17: =$F17/$F$43*AJ17*General!$J$17 -> 0.001200443219 | M17: =$F17/$F$43*AK17*General!$J$17 -> 0.001200443219 | N17: =$F17/$F$43*AL17*General!$J$17 -> 0.001200443219 | O17: =$F17/$F$43*AM17*General!$J$17 -> 0.001200443219 | P17: =$F17/$F$43*AN17*General!$J$17 -> 0.001200443219 | Q17: =$F17/$F$43*AO17*General!$J$17 -> 0.001200443219 | R17: =$F17/$F$43*AP17*General!$J$17 -> 0.001200443219 | S17: =$F17/$F$43*AQ17*General!$J$17 -> 0.001200443219 | U17: =VLOOKUP($D17,Table!$A$4:$L$34,COLUMN(Table!J:J),FALSE) -> 255.1268552 | V17: =(1-MIN(0,VLOOKUP($E17,OLTC_Taps!$D$147:$H$173,6-1,FALSE)+VLOOKUP($E17,OLTC_Taps!$D$147:$N$173,12-1,FALSE)*(V$10-$V$10+1)))*$U17 -> 255.1268552 | W17: =(1-MIN(0,VLOOKUP($E17,OLTC_Taps!$D$147:$H$173,6-1,FALSE)+VLOOKUP($E17,OLTC_Taps!$D$147:$N$173,12-1,FALSE)*(W$10-$V$10+1)))*$U17 -> 255.1268552 | X17: =(1-MIN(0,VLOOKUP($E17,OLTC_Taps!$D$147:$H$173,6-1,FALSE)+VLOOKUP($E17,OLTC_Taps!$D$147:$N$173,12-1,FALSE)*(X$10-$V$10+1)))*$U17 -> 255.1268552 | Y17: =(1-MIN(0,VLOOKUP($E17,OLTC_Taps!$D$147:$H$173,6-1,FALSE)+VLOOKUP($E17,OLTC_Taps!$D$147:$N$173,12-1,FALSE)*(Y$10-$V$10+1)))*$U17 -> 255.1268552 | Z17: =(1-MIN(0,VLOOKUP($E17,OLTC_Taps!$D$147:$H$173,6-1,FALSE)+VLOOKUP($E17,OLTC_Taps!$D$147:$O$173,13-1,FALSE)*(Z$10-$V$10+1)))*$U17 -> 255.1268552 | AA17: =(1-MIN(0,VLOOKUP($E17,OLTC_Taps!$D$147:$H$173,6-1,FALSE)+VLOOKUP($E17,OLTC_Taps!$D$147:$O$173,13-1,FALSE)*(AA$10-$V$10+1)))*$U17 -> 255.1268552 | AB17: =(1-MIN(0,VLOOKUP($E17,OLTC_Taps!$D$147:$H$173,6-1,FALSE)+VLOOKUP($E17,OLTC_Taps!$D$147:$O$173,13-1,FALSE)*(AB$10-$V$10+1)))*$U17 -> 255.1268552 | AC17: =(1-MIN(0,VLOOKUP($E17,OLTC_Taps!$D$147:$H$173,6-1,FALSE)+VLOOKUP($E17,OLTC_Taps!$D$147:$O$173,13-1,FALSE)*(AC$10-$V$10+1)))*$U17 -> 255.1268552 | AD17: =(1-MIN(0,VLOOKUP($E17,OLTC_Taps!$D$147:$H$173,6-1,FALSE)+VLOOKUP($E17,OLTC_Taps!$D$147:$O$173,13-1,FALSE)*(AD$10-$V$10+1)))*$U17 -> 255.1268552 | AE17: =(1-MIN(0,VLOOKUP($E17,OLTC_Taps!$D$147:$H$173,6-1,FALSE)+VLOOKUP($E17,OLTC_Taps!$D$147:$O$173,13-1,FALSE)*(AE$10-$V$10+1)))*$U17 -> 255.1268552 | AG17: =COUNTIFS('06Dec24'!$E:$E,">"&253-U17+$U17-$BG17,'06Dec24'!$D:$D,$D17)/COUNTIF('06Dec24'!$D:$D,$D17) -> 0.05858242527 | AH17: =COUNTIFS('06Dec24'!$E:$E,">"&253-V17+$U17-$BG17,'06Dec24'!$D:$D,$D17)/COUNTIF('06Dec24'!$D:$D,$D17) -> 0.05858242527 | AI17: =COUNTIFS('06Dec24'!$E:$E,">"&253-W17+$U17-$BG17,'06Dec24'!$D:$D,$D17)/COUNTIF('06Dec24'!$D:$D,$D17) -> 0.05858242527 | AJ17: =COUNTIFS('06Dec24'!$E:$E,">"&253-X17+$U17-$BG17,'06Dec24'!$D:$D,$D17)/COUNTIF('06Dec24'!$D:$D,$D17) -> 0.05858242527 | AK17: =COUNTIFS('06Dec24'!$E:$E,">"&253-Y17+$U17-$BG17,'06Dec24'!$D:$D,$D17)/COUNTIF('06Dec24'!$D:$D,$D17) -> 0.05858242527 | AL17: =COUNTIFS('06Dec24'!$E:$E,">"&253-Z17+$U17-$BG17,'06Dec24'!$D:$D,$D17)/COUNTIF('06Dec24'!$D:$D,$D17) -> 0.05858242527 | AM17: =COUNTIFS('06Dec24'!$E:$E,">"&253-AA17+$U17-$BG17,'06Dec24'!$D:$D,$D17)/COUNTIF('06Dec24'!$D:$D,$D17) -> 0.05858242527 | AN17: =COUNTIFS('06Dec24'!$E:$E,">"&253-AB17+$U17-$BG17,'06Dec24'!$D:$D,$D17)/COUNTIF('06Dec24'!$D:$D,$D17) -> 0.05858242527 | AO17: =COUNTIFS('06Dec24'!$E:$E,">"&253-AC17+$U17-$BG17,'06Dec24'!$D:$D,$D17)/COUNTIF('06Dec24'!$D:$D,$D17) -> 0.05858242527 | AP17: =COUNTIFS('06Dec24'!$E:$E,">"&253-AD17+$U17-$BG17,'06Dec24'!$D:$D,$D17)/COUNTIF('06Dec24'!$D:$D,$D17) -> 0.05858242527 | AQ17: =COUNTIFS('06Dec24'!$E:$E,">"&253-AE17+$U17-$BG17,'06Dec24'!$D:$D,$D17)/COUNTIF('06Dec24'!$D:$D,$D17) -> 0.05858242527 | AW17: =IF(OR(SUM($AS17:AV17)>0,RANK(M17,M$11:M$41)>AW$6),"",1) ->  | AX17: =IF(OR(SUM($AS17:AW17)>0,RANK(N17,N$11:N$41)>AX$6),"",1) -> 1 | AY17: =IF(OR(SUM($AS17:AX17)>0,RANK(O17,O$11:O$41)>AY$6),"",1) ->  | AZ17: =IF(OR(SUM($AS17:AY17)>0,RANK(P17,P$11:P$41)>AZ$6),"",1) ->  | BA17: =IF(OR(SUM($AS17:AZ17)>0,RANK(Q17,Q$11:Q$41)>BA$6),"",1) ->  | BB17: =IF(OR(SUM($AS17:BA17)>0,RANK(R17,R$11:R$41)>BB$6),"",1) ->  | BC17: =IF(OR(SUM($AS17:BB17)>0,RANK(S17,S$11:S$41)>BC$6),"",1) ->  | BG17: =VLOOKUP($D17,Table!$A$4:$M$34,COLUMN(Table!$M:$M),FALSE) -> 0
D18: ST0 | E18: ST | F18: =VLOOKUP($D18,Table!$A$4:$N$34,COLUMN(Table!$N:$N),FALSE) -> 27523 | G18: 2027 | H18: =_xlfn.RANK.EQ($G18,$G$11:$G$41,1)+COUNTIF($G$11:$G18,$G18)-1 -> 8 | I18: =$F18/$F$43*AG18*General!$J$17 -> 0.001159472461 | J18: =$F18/$F$43*AH18*General!$J$17 -> 0.001159472461 | K18: =$F18/$F$43*AI18*General!$J$17 -> 0.001159472461 | L18: =$F18/$F$43*AJ18*General!$J$17 -> 0.001159472461 | M18: =$F18/$F$43*AK18*General!$J$17 -> 0.002331236149 | N18: =$F18/$F$43*AL18*General!$J$17 -> 0.001585568348 | O18: =$F18/$F$43*AM18*General!$J$17 -> 0.002706118588 | P18: =$F18/$F$43*AN18*General!$J$17 -> 0.004312172315 | Q18: =$F18/$F$43*AO18*General!$J$17 -> 0.006737641209 | R18: =$F18/$F$43*AP18*General!$J$17 -> 0.009683438733 | S18: =$F18/$F$43*AQ18*General!$J$17 -> 0.01311064267 | U18: =VLOOKUP($D18,Table!$A$4:$L$34,COLUMN(Table!J:J),FALSE) -> 254.2996694 | V18: =(1-MIN(0,VLOOKUP($E18,OLTC_Taps!$D$147:$H$173,6-1,FALSE)+VLOOKUP($E18,OLTC_Taps!$D$147:$N$173,12-1,FALSE)*(V$10-$V$10+1)))*$U18 -> 254.2996694 | W18: =(1-MIN(0,VLOOKUP($E18,OLTC_Taps!$D$147:$H$173,6-1,FALSE)+VLOOKUP($E18,OLTC_Taps!$D$147:$N$173,12-1,FALSE)*(W$10-$V$10+1)))*$U18 -> 254.2996694 | X18: =(1-MIN(0,VLOOKUP($E18,OLTC_Taps!$D$147:$H$173,6-1,FALSE)+VLOOKUP($E18,OLTC_Taps!$D$147:$N$173,12-1,FALSE)*(X$10-$V$10+1)))*$U18 -> 254.2996694 | Y18: =(1-MIN(0,VLOOKUP($E18,OLTC_Taps!$D$147:$H$173,6-1,FALSE)+VLOOKUP($E18,OLTC_Taps!$D$147:$N$173,12-1,FALSE)*(Y$10-$V$10+1)))*$U18 -> 255.1912306 | Z18: =(1-MIN(0,VLOOKUP($E18,OLTC_Taps!$D$147:$H$173,6-1,FALSE)+VLOOKUP($E18,OLTC_Taps!$D$147:$O$173,13-1,FALSE)*(Z$10-$V$10+1)))*$U18 -> 254.6698706 | AA18: =(1-MIN(0,VLOOKUP($E18,OLTC_Taps!$D$147:$H$173,6-1,FALSE)+VLOOKUP($E18,OLTC_Taps!$D$147:$O$173,13-1,FALSE)*(AA$10-$V$10+1)))*$U18 -> 255.37966 | AB18: =(1-MIN(0,VLOOKUP($E18,OLTC_Taps!$D$147:$H$173,6-1,FALSE)+VLOOKUP($E18,OLTC_Taps!$D$147:$O$173,13-1,FALSE)*(AB$10-$V$10+1)))*$U18 -> 256.0894494 | AC18: =(1-MIN(0,VLOOKUP($E18,OLTC_Taps!$D$147:$H$173,6-1,FALSE)+VLOOKUP($E18,OLTC_Taps!$D$147:$O$173,13-1,FALSE)*(AC$10-$V$10+1)))*$U18 -> 256.7992389 | AD18: =(1-MIN(0,VLOOKUP($E18,OLTC_Taps!$D$147:$H$173,6-1,FALSE)+VLOOKUP($E18,OLTC_Taps!$D$147:$O$173,13-1,FALSE)*(AD$10-$V$10+1)))*$U18 -> 257.5090283 | AE18: =(1-MIN(0,VLOOKUP($E18,OLTC_Taps!$D$147:$H$173,6-1,FALSE)+VLOOKUP($E18,OLTC_Taps!$D$147:$O$173,13-1,FALSE)*(AE$10-$V$10+1)))*$U18 -> 258.2188177 | AG18: =COUNTIFS('06Dec24'!$E:$E,">"&253-U18+$U18-$BG18,'06Dec24'!$D:$D,$D18)/COUNTIF('06Dec24'!$D:$D,$D18) -> 0.02056461868 | AH18: =COUNTIFS('06Dec24'!$E:$E,">"&253-V18+$U18-$BG18,'06Dec24'!$D:$D,$D18)/COUNTIF('06Dec24'!$D:$D,$D18) -> 0.02056461868 | AI18: =COUNTIFS('06Dec24'!$E:$E,">"&253-W18+$U18-$BG18,'06Dec24'!$D:$D,$D18)/COUNTIF('06Dec24'!$D:$D,$D18) -> 0.02056461868 | AJ18: =COUNTIFS('06Dec24'!$E:$E,">"&253-X18+$U18-$BG18,'06Dec24'!$D:$D,$D18)/COUNTIF('06Dec24'!$D:$D,$D18) -> 0.02056461868 | AK18: =COUNTIFS('06Dec24'!$E:$E,">"&253-Y18+$U18-$BG18,'06Dec24'!$D:$D,$D18)/COUNTIF('06Dec24'!$D:$D,$D18) -> 0.04134723686 | AL18: =COUNTIFS('06Dec24'!$E:$E,">"&253-Z18+$U18-$BG18,'06Dec24'!$D:$D,$D18)/COUNTIF('06Dec24'!$D:$D,$D18) -> 0.02812193438 | AM18: =COUNTIFS('06Dec24'!$E:$E,">"&253-AA18+$U18-$BG18,'06Dec24'!$D:$D,$D18)/COUNTIF('06Dec24'!$D:$D,$D18) -> 0.04799622134 | AN18: =COUNTIFS('06Dec24'!$E:$E,">"&253-AB18+$U18-$BG18,'06Dec24'!$D:$D,$D18)/COUNTIF('06Dec24'!$D:$D,$D18) -> 0.07648148821 | AO18: =COUNTIFS('06Dec24'!$E:$E,">"&253-AC18+$U18-$BG18,'06Dec24'!$D:$D,$D18)/COUNTIF('06Dec24'!$D:$D,$D18) -> 0.1195000545 | AP18: =COUNTIFS('06Dec24'!$E:$E,">"&253-AD18+$U18-$BG18,'06Dec24'!$D:$D,$D18)/COUNTIF('06Dec24'!$D:$D,$D18) -> 0.1717472659 | AQ18: =COUNTIFS('06Dec24'!$E:$E,">"&253-AE18+$U18-$BG18,'06Dec24'!$D:$D,$D18)/COUNTIF('06Dec24'!$D:$D,$D18) -> 0.2325327908 | AW18: =IF(OR(SUM($AS18:AV18)>0,RANK(M18,M$11:M$41)>AW$6),"",1) -> 1 | AX18: =IF(OR(SUM($AS18:AW18)>0,RANK(N18,N$11:N$41)>AX$6),"",1) ->  | AY18: =IF(OR(SUM($AS18:AX18)>0,RANK(O18,O$11:O$41)>AY$6),"",1) ->  | AZ18: =IF(OR(SUM($AS18:AY18)>0,RANK(P18,P$11:P$41)>AZ$6),"",1) ->  | BA18: =IF(OR(SUM($AS18:AZ18)>0,RANK(Q18,Q$11:Q$41)>BA$6),"",1) ->  | BB18: =IF(OR(SUM($AS18:BA18)>0,RANK(R18,R$11:R$41)>BB$6),"",1) ->  | BC18: =IF(OR(SUM($AS18:BB18)>0,RANK(S18,S$11:S$41)>BC$6),"",1) ->  | BG18: =VLOOKUP($D18,Table!$A$4:$M$34,COLUMN(Table!$M:$M),FALSE) -> 0
D19: FE0 | E19: FE | F19: =VLOOKUP($D19,Table!$A$4:$N$34,COLUMN(Table!$N:$N),FALSE) -> 17681 | G19: 2026 | H19: =_xlfn.RANK.EQ($G19,$G$11:$G$41,1)+COUNTIF($G$11:$G19,$G19)-1 -> 6 | I19: =$F19/$F$43*AG19*General!$J$17 -> 0.001059094103 | J19: =$F19/$F$43*AH19*General!$J$17 -> 0.001059094103 | K19: =$F19/$F$43*AI19*General!$J$17 -> 0.001059094103 | L19: =$F19/$F$43*AJ19*General!$J$17 -> 0.001059094103 | M19: =$F19/$F$43*AK19*General!$J$17 -> 0.001059094103 | N19: =$F19/$F$43*AL19*General!$J$17 -> 0.001059094103 | O19: =$F19/$F$43*AM19*General!$J$17 -> 0.001059094103 | P19: =$F19/$F$43*AN19*General!$J$17 -> 0.001059094103 | Q19: =$F19/$F$43*AO19*General!$J$17 -> 0.001059094103 | R19: =$F19/$F$43*AP19*General!$J$17 -> 0.001059094103 | S19: =$F19/$F$43*AQ19*General!$J$17 -> 0.001059094103 | U19: =VLOOKUP($D19,Table!$A$4:$L$34,COLUMN(Table!J:J),FALSE) -> 254.2759408 | V19: =(1-MIN(0,VLOOKUP($E19,OLTC_Taps!$D$147:$H$173,6-1,FALSE)+VLOOKUP($E19,OLTC_Taps!$D$147:$N$173,12-1,FALSE)*(V$10-$V$10+1)))*$U19 -> 254.2759408 | W19: =(1-MIN(0,VLOOKUP($E19,OLTC_Taps!$D$147:$H$173,6-1,FALSE)+VLOOKUP($E19,OLTC_Taps!$D$147:$N$173,12-1,FALSE)*(W$10-$V$10+1)))*$U19 -> 254.2759408 | X19: =(1-MIN(0,VLOOKUP($E19,OLTC_Taps!$D$147:$H$173,6-1,FALSE)+VLOOKUP($E19,OLTC_Taps!$D$147:$N$173,12-1,FALSE)*(X$10-$V$10+1)))*$U19 -> 254.2759408 | Y19: =(1-MIN(0,VLOOKUP($E19,OLTC_Taps!$D$147:$H$173,6-1,FALSE)+VLOOKUP($E19,OLTC_Taps!$D$147:$N$173,12-1,FALSE)*(Y$10-$V$10+1)))*$U19 -> 254.2759408 | Z19: =(1-MIN(0,VLOOKUP($E19,OLTC_Taps!$D$147:$H$173,6-1,FALSE)+VLOOKUP($E19,OLTC_Taps!$D$147:$O$173,13-1,FALSE)*(Z$10-$V$10+1)))*$U19 -> 254.2759408 | AA19: =(1-MIN(0,VLOOKUP($E19,OLTC_Taps!$D$147:$H$173,6-1,FALSE)+VLOOKUP($E19,OLTC_Taps!$D$147:$O$173,13-1,FALSE)*(AA$10-$V$10+1)))*$U19 -> 254.2759408 | AB19: =(1-MIN(0,VLOOKUP($E19,OLTC_Taps!$D$147:$H$173,6-1,FALSE)+VLOOKUP($E19,OLTC_Taps!$D$147:$O$173,13-1,FALSE)*(AB$10-$V$10+1)))*$U19 -> 254.2759408 | AC19: =(1-MIN(0,VLOOKUP($E19,OLTC_Taps!$D$147:$H$173,6-1,FALSE)+VLOOKUP($E19,OLTC_Taps!$D$147:$O$173,13-1,FALSE)*(AC$10-$V$10+1)))*$U19 -> 254.2759408 | AD19: =(1-MIN(0,VLOOKUP($E19,OLTC_Taps!$D$147:$H$173,6-1,FALSE)+VLOOKUP($E19,OLTC_Taps!$D$147:$O$173,13-1,FALSE)*(AD$10-$V$10+1)))*$U19 -> 254.2759408 | AE19: =(1-MIN(0,VLOOKUP($E19,OLTC_Taps!$D$147:$H$173,6-1,FALSE)+VLOOKUP($E19,OLTC_Taps!$D$147:$O$173,13-1,FALSE)*(AE$10-$V$10+1)))*$U19 -> 254.2759408 | AG19: =COUNTIFS('06Dec24'!$E:$E,">"&253-U19+$U19-$BG19,'06Dec24'!$D:$D,$D19)/COUNTIF('06Dec24'!$D:$D,$D19) -> 0.02924042758 | AH19: =COUNTIFS('06Dec24'!$E:$E,">"&253-V19+$U19-$BG19,'06Dec24'!$D:$D,$D19)/COUNTIF('06Dec24'!$D:$D,$D19) -> 0.02924042758 | AI19: =COUNTIFS('06Dec24'!$E:$E,">"&253-W19+$U19-$BG19,'06Dec24'!$D:$D,$D19)/COUNTIF('06Dec24'!$D:$D,$D19) -> 0.02924042758 | AJ19: =COUNTIFS('06Dec24'!$E:$E,">"&253-X19+$U19-$BG19,'06Dec24'!$D:$D,$D19)/COUNTIF('06Dec24'!$D:$D,$D19) -> 0.02924042758 | AK19: =COUNTIFS('06Dec24'!$E:$E,">"&253-Y19+$U19-$BG19,'06Dec24'!$D:$D,$D19)/COUNTIF('06Dec24'!$D:$D,$D19) -> 0.02924042758 | AL19: =COUNTIFS('06Dec24'!$E:$E,">"&253-Z19+$U19-$BG19,'06Dec24'!$D:$D,$D19)/COUNTIF('06Dec24'!$D:$D,$D19) -> 0.02924042758 | AM19: =COUNTIFS('06Dec24'!$E:$E,">"&253-AA19+$U19-$BG19,'06Dec24'!$D:$D,$D19)/COUNTIF('06Dec24'!$D:$D,$D19) -> 0.02924042758 | AN19: =COUNTIFS('06Dec24'!$E:$E,">"&253-AB19+$U19-$BG19,'06Dec24'!$D:$D,$D19)/COUNTIF('06Dec24'!$D:$D,$D19) -> 0.02924042758 | AO19: =COUNTIFS('06Dec24'!$E:$E,">"&253-AC19+$U19-$BG19,'06Dec24'!$D:$D,$D19)/COUNTIF('06Dec24'!$D:$D,$D19) -> 0.02924042758 | AP19: =COUNTIFS('06Dec24'!$E:$E,">"&253-AD19+$U19-$BG19,'06Dec24'!$D:$D,$D19)/COUNTIF('06Dec24'!$D:$D,$D19) -> 0.02924042758 | AQ19: =COUNTIFS('06Dec24'!$E:$E,">"&253-AE19+$U19-$BG19,'06Dec24'!$D:$D,$D19)/COUNTIF('06Dec24'!$D:$D,$D19) -> 0.02924042758 | AV19: 1 | AW19: =IF(OR(SUM($AS19:AV19)>0,RANK(M19,M$11:M$41)>AW$6),"",1) ->  | AX19: =IF(OR(SUM($AS19:AW19)>0,RANK(N19,N$11:N$41)>AX$6),"",1) ->  | AY19: =IF(OR(SUM($AS19:AX19)>0,RANK(O19,O$11:O$41)>AY$6),"",1) ->  | AZ19: =IF(OR(SUM($AS19:AY19)>0,RANK(P19,P$11:P$41)>AZ$6),"",1) ->  | BA19: =IF(OR(SUM($AS19:AZ19)>0,RANK(Q19,Q$11:Q$41)>BA$6),"",1) ->  | BB19: =IF(OR(SUM($AS19:BA19)>0,RANK(R19,R$11:R$41)>BB$6),"",1) ->  | BC19: =IF(OR(SUM($AS19:BB19)>0,RANK(S19,S$11:S$41)>BC$6),"",1) ->  | BG19: =VLOOKUP($D19,Table!$A$4:$M$34,COLUMN(Table!$M:$M),FALSE) -> 0
D20: ES0 | E20: ES | F20: =VLOOKUP($D20,Table!$A$4:$N$34,COLUMN(Table!$N:$N),FALSE) -> 23188 | G20: 2029 | H20: =_xlfn.RANK.EQ($G20,$G$11:$G$41,1)+COUNTIF($G$11:$G20,$G20)-1 -> 13 | I20: =$F20/$F$43*AG20*General!$J$17 -> 0.0009792011243 | J20: =$F20/$F$43*AH20*General!$J$17 -> 0.0009792011243 | K20: =$F20/$F$43*AI20*General!$J$17 -> 0.0009792011243 | L20: =$F20/$F$43*AJ20*General!$J$17 -> 0.0009792011243 | M20: =$F20/$F$43*AK20*General!$J$17 -> 0.0009792011243 | N20: =$F20/$F$43*AL20*General!$J$17 -> 0.0009792011243 | O20: =$F20/$F$43*AM20*General!$J$17 -> 0.0009792011243 | P20: =$F20/$F$43*AN20*General!$J$17 -> 0.0009792011243 | Q20: =$F20/$F$43*AO20*General!$J$17 -> 0.0009792011243 | R20: =$F20/$F$43*AP20*General!$J$17 -> 0.0009792011243 | S20: =$F20/$F$43*AQ20*General!$J$17 -> 0.0009792011243 | U20: =VLOOKUP($D20,Table!$A$4:$L$34,COLUMN(Table!J:J),FALSE) -> 253.7254757 | V20: =(1-MIN(0,VLOOKUP($E20,OLTC_Taps!$D$147:$H$173,6-1,FALSE)+VLOOKUP($E20,OLTC_Taps!$D$147:$N$173,12-1,FALSE)*(V$10-$V$10+1)))*$U20 -> 253.7254757 | W20: =(1-MIN(0,VLOOKUP($E20,OLTC_Taps!$D$147:$H$173,6-1,FALSE)+VLOOKUP($E20,OLTC_Taps!$D$147:$N$173,12-1,FALSE)*(W$10-$V$10+1)))*$U20 -> 253.7254757 | X20: =(1-MIN(0,VLOOKUP($E20,OLTC_Taps!$D$147:$H$173,6-1,FALSE)+VLOOKUP($E20,OLTC_Taps!$D$147:$N$173,12-1,FALSE)*(X$10-$V$10+1)))*$U20 -> 253.7254757 | Y20: =(1-MIN(0,VLOOKUP($E20,OLTC_Taps!$D$147:$H$173,6-1,FALSE)+VLOOKUP($E20,OLTC_Taps!$D$147:$N$173,12-1,FALSE)*(Y$10-$V$10+1)))*$U20 -> 253.7254757 | Z20: =(1-MIN(0,VLOOKUP($E20,OLTC_Taps!$D$147:$H$173,6-1,FALSE)+VLOOKUP($E20,OLTC_Taps!$D$147:$O$173,13-1,FALSE)*(Z$10-$V$10+1)))*$U20 -> 253.7254757 | AA20: =(1-MIN(0,VLOOKUP($E20,OLTC_Taps!$D$147:$H$173,6-1,FALSE)+VLOOKUP($E20,OLTC_Taps!$D$147:$O$173,13-1,FALSE)*(AA$10-$V$10+1)))*$U20 -> 253.7254757 | AB20: =(1-MIN(0,VLOOKUP($E20,OLTC_Taps!$D$147:$H$173,6-1,FALSE)+VLOOKUP($E20,OLTC_Taps!$D$147:$O$173,13-1,FALSE)*(AB$10-$V$10+1)))*$U20 -> 253.7254757 | AC20: =(1-MIN(0,VLOOKUP($E20,OLTC_Taps!$D$147:$H$173,6-1,FALSE)+VLOOKUP($E20,OLTC_Taps!$D$147:$O$173,13-1,FALSE)*(AC$10-$V$10+1)))*$U20 -> 253.7254757 | AD20: =(1-MIN(0,VLOOKUP($E20,OLTC_Taps!$D$147:$H$173,6-1,FALSE)+VLOOKUP($E20,OLTC_Taps!$D$147:$O$173,13-1,FALSE)*(AD$10-$V$10+1)))*$U20 -> 253.7254757 | AE20: =(1-MIN(0,VLOOKUP($E20,OLTC_Taps!$D$147:$H$173,6-1,FALSE)+VLOOKUP($E20,OLTC_Taps!$D$147:$O$173,13-1,FALSE)*(AE$10-$V$10+1)))*$U20 -> 253.7254757 | AG20: =COUNTIFS('06Dec24'!$E:$E,">"&253-U20+$U20-$BG20,'06Dec24'!$D:$D,$D20)/COUNTIF('06Dec24'!$D:$D,$D20) -> 0.02061411075 | AH20: =COUNTIFS('06Dec24'!$E:$E,">"&253-V20+$U20-$BG20,'06Dec24'!$D:$D,$D20)/COUNTIF('06Dec24'!$D:$D,$D20) -> 0.02061411075 | AI20: =COUNTIFS('06Dec24'!$E:$E,">"&253-W20+$U20-$BG20,'06Dec24'!$D:$D,$D20)/COUNTIF('06Dec24'!$D:$D,$D20) -> 0.02061411075 | AJ20: =COUNTIFS('06Dec24'!$E:$E,">"&253-X20+$U20-$BG20,'06Dec24'!$D:$D,$D20)/COUNTIF('06Dec24'!$D:$D,$D20) -> 0.02061411075 | AK20: =COUNTIFS('06Dec24'!$E:$E,">"&253-Y20+$U20-$BG20,'06Dec24'!$D:$D,$D20)/COUNTIF('06Dec24'!$D:$D,$D20) -> 0.02061411075 | AL20: =COUNTIFS('06Dec24'!$E:$E,">"&253-Z20+$U20-$BG20,'06Dec24'!$D:$D,$D20)/COUNTIF('06Dec24'!$D:$D,$D20) -> 0.02061411075 | AM20: =COUNTIFS('06Dec24'!$E:$E,">"&253-AA20+$U20-$BG20,'06Dec24'!$D:$D,$D20)/COUNTIF('06Dec24'!$D:$D,$D20) -> 0.02061411075 | AN20: =COUNTIFS('06Dec24'!$E:$E,">"&253-AB20+$U20-$BG20,'06Dec24'!$D:$D,$D20)/COUNTIF('06Dec24'!$D:$D,$D20) -> 0.02061411075 | AO20: =COUNTIFS('06Dec24'!$E:$E,">"&253-AC20+$U20-$BG20,'06Dec24'!$D:$D,$D20)/COUNTIF('06Dec24'!$D:$D,$D20) -> 0.02061411075 | AP20: =COUNTIFS('06Dec24'!$E:$E,">"&253-AD20+$U20-$BG20,'06Dec24'!$D:$D,$D20)/COUNTIF('06Dec24'!$D:$D,$D20) -> 0.02061411075 | AQ20: =COUNTIFS('06Dec24'!$E:$E,">"&253-AE20+$U20-$BG20,'06Dec24'!$D:$D,$D20)/COUNTIF('06Dec24'!$D:$D,$D20) -> 0.02061411075 | AW20: =IF(OR(SUM($AS20:AV20)>0,RANK(M20,M$11:M$41)>AW$6),"",1) ->  | AX20: =IF(OR(SUM($AS20:AW20)>0,RANK(N20,N$11:N$41)>AX$6),"",1) ->  | AY20: =IF(OR(SUM($AS20:AX20)>0,RANK(O20,O$11:O$41)>AY$6),"",1) -> 1 | AZ20: =IF(OR(SUM($AS20:AY20)>0,RANK(P20,P$11:P$41)>AZ$6),"",1) ->  | BA20: =IF(OR(SUM($AS20:AZ20)>0,RANK(Q20,Q$11:Q$41)>BA$6),"",1) ->  | BB20: =IF(OR(SUM($AS20:BA20)>0,RANK(R20,R$11:R$41)>BB$6),"",1) ->  | BC20: =IF(OR(SUM($AS20:BB20)>0,RANK(S20,S$11:S$41)>BC$6),"",1) ->  | BG20: =VLOOKUP($D20,Table!$A$4:$M$34,COLUMN(Table!$M:$M),FALSE) -> 0
D21: TH0 | E21: TH | F21: =VLOOKUP($D21,Table!$A$4:$N$34,COLUMN(Table!$N:$N),FALSE) -> 4581 | G21: 2029 | H21: =_xlfn.RANK.EQ($G21,$G$11:$G$41,1)+COUNTIF($G$11:$G21,$G21)-1 -> 14 | I21: =$F21/$F$43*AG21*General!$J$17 -> 0.0009075022972 | J21: =$F21/$F$43*AH21*General!$J$17 -> 0.0009075022972 | K21: =$F21/$F$43*AI21*General!$J$17 -> 0.0009075022972 | L21: =$F21/$F$43*AJ21*General!$J$17 -> 0.0009075022972 | M21: =$F21/$F$43*AK21*General!$J$17 -> 0.0009075022972 | N21: =$F21/$F$43*AL21*General!$J$17 -> 0.0009075022972 | O21: =$F21/$F$43*AM21*General!$J$17 -> 0.0009075022972 | P21: =$F21/$F$43*AN21*General!$J$17 -> 0.0009075022972 | Q21: =$F21/$F$43*AO21*General!$J$17 -> 0.0009075022972 | R21: =$F21/$F$43*AP21*General!$J$17 -> 0.0009075022972 | S21: =$F21/$F$43*AQ21*General!$J$17 -> 0.0009075022972 | U21: =VLOOKUP($D21,Table!$A$4:$L$34,COLUMN(Table!J:J),FALSE) -> 255.7114141 | V21: =(1-MIN(0,VLOOKUP($E21,OLTC_Taps!$D$147:$H$173,6-1,FALSE)+VLOOKUP($E21,OLTC_Taps!$D$147:$N$173,12-1,FALSE)*(V$10-$V$10+1)))*$U21 -> 255.7114141 | W21: =(1-MIN(0,VLOOKUP($E21,OLTC_Taps!$D$147:$H$173,6-1,FALSE)+VLOOKUP($E21,OLTC_Taps!$D$147:$N$173,12-1,FALSE)*(W$10-$V$10+1)))*$U21 -> 255.7114141 | X21: =(1-MIN(0,VLOOKUP($E21,OLTC_Taps!$D$147:$H$173,6-1,FALSE)+VLOOKUP($E21,OLTC_Taps!$D$147:$N$173,12-1,FALSE)*(X$10-$V$10+1)))*$U21 -> 255.7114141 | Y21: =(1-MIN(0,VLOOKUP($E21,OLTC_Taps!$D$147:$H$173,6-1,FALSE)+VLOOKUP($E21,OLTC_Taps!$D$147:$N$173,12-1,FALSE)*(Y$10-$V$10+1)))*$U21 -> 255.7114141 | Z21: =(1-MIN(0,VLOOKUP($E21,OLTC_Taps!$D$147:$H$173,6-1,FALSE)+VLOOKUP($E21,OLTC_Taps!$D$147:$O$173,13-1,FALSE)*(Z$10-$V$10+1)))*$U21 -> 255.7114141 | AA21: =(1-MIN(0,VLOOKUP($E21,OLTC_Taps!$D$147:$H$173,6-1,FALSE)+VLOOKUP($E21,OLTC_Taps!$D$147:$O$173,13-1,FALSE)*(AA$10-$V$10+1)))*$U21 -> 255.7114141 | AB21: =(1-MIN(0,VLOOKUP($E21,OLTC_Taps!$D$147:$H$173,6-1,FALSE)+VLOOKUP($E21,OLTC_Taps!$D$147:$O$173,13-1,FALSE)*(AB$10-$V$10+1)))*$U21 -> 255.7114141 | AC21: =(1-MIN(0,VLOOKUP($E21,OLTC_Taps!$D$147:$H$173,6-1,FALSE)+VLOOKUP($E21,OLTC_Taps!$D$147:$O$173,13-1,FALSE)*(AC$10-$V$10+1)))*$U21 -> 255.7114141 | AD21: =(1-MIN(0,VLOOKUP($E21,OLTC_Taps!$D$147:$H$173,6-1,FALSE)+VLOOKUP($E21,OLTC_Taps!$D$147:$O$173,13-1,FALSE)*(AD$10-$V$10+1)))*$U21 -> 255.7114141 | AE21: =(1-MIN(0,VLOOKUP($E21,OLTC_Taps!$D$147:$H$173,6-1,FALSE)+VLOOKUP($E21,OLTC_Taps!$D$147:$O$173,13-1,FALSE)*(AE$10-$V$10+1)))*$U21 -> 255.7114141 | AG21: =COUNTIFS('06Dec24'!$E:$E,">"&253-U21+$U21-$BG21,'06Dec24'!$D:$D,$D21)/COUNTIF('06Dec24'!$D:$D,$D21) -> 0.09670377647 | AH21: =COUNTIFS('06Dec24'!$E:$E,">"&253-V21+$U21-$BG21,'06Dec24'!$D:$D,$D21)/COUNTIF('06Dec24'!$D:$D,$D21) -> 0.09670377647 | AI21: =COUNTIFS('06Dec24'!$E:$E,">"&253-W21+$U21-$BG21,'06Dec24'!$D:$D,$D21)/COUNTIF('06Dec24'!$D:$D,$D21) -> 0.09670377647 | AJ21: =COUNTIFS('06Dec24'!$E:$E,">"&253-X21+$U21-$BG21,'06Dec24'!$D:$D,$D21)/COUNTIF('06Dec24'!$D:$D,$D21) -> 0.09670377647 | AK21: =COUNTIFS('06Dec24'!$E:$E,">"&253-Y21+$U21-$BG21,'06Dec24'!$D:$D,$D21)/COUNTIF('06Dec24'!$D:$D,$D21) -> 0.09670377647 | AL21: =COUNTIFS('06Dec24'!$E:$E,">"&253-Z21+$U21-$BG21,'06Dec24'!$D:$D,$D21)/COUNTIF('06Dec24'!$D:$D,$D21) -> 0.09670377647 | AM21: =COUNTIFS('06Dec24'!$E:$E,">"&253-AA21+$U21-$BG21,'06Dec24'!$D:$D,$D21)/COUNTIF('06Dec24'!$D:$D,$D21) -> 0.09670377647 | AN21: =COUNTIFS('06Dec24'!$E:$E,">"&253-AB21+$U21-$BG21,'06Dec24'!$D:$D,$D21)/COUNTIF('06Dec24'!$D:$D,$D21) -> 0.09670377647 | AO21: =COUNTIFS('06Dec24'!$E:$E,">"&253-AC21+$U21-$BG21,'06Dec24'!$D:$D,$D21)/COUNTIF('06Dec24'!$D:$D,$D21) -> 0.09670377647 | AP21: =COUNTIFS('06Dec24'!$E:$E,">"&253-AD21+$U21-$BG21,'06Dec24'!$D:$D,$D21)/COUNTIF('06Dec24'!$D:$D,$D21) -> 0.09670377647 | AQ21: =COUNTIFS('06Dec24'!$E:$E,">"&253-AE21+$U21-$BG21,'06Dec24'!$D:$D,$D21)/COUNTIF('06Dec24'!$D:$D,$D21) -> 0.09670377647 | AW21: =IF(OR(SUM($AS21:AV21)>0,RANK(M21,M$11:M$41)>AW$6),"",1) ->  | AX21: =IF(OR(SUM($AS21:AW21)>0,RANK(N21,N$11:N$41)>AX$6),"",1) ->  | AY21: =IF(OR(SUM($AS21:AX21)>0,RANK(O21,O$11:O$41)>AY$6),"",1) -> 1 | AZ21: =IF(OR(SUM($AS21:AY21)>0,RANK(P21,P$11:P$41)>AZ$6),"",1) ->  | BA21: =IF(OR(SUM($AS21:AZ21)>0,RANK(Q21,Q$11:Q$41)>BA$6),"",1) ->  | BB21: =IF(OR(SUM($AS21:BA21)>0,RANK(R21,R$11:R$41)>BB$6),"",1) ->  | BC21: =IF(OR(SUM($AS21:BB21)>0,RANK(S21,S$11:S$41)>BC$6),"",1) ->  | BG21: =VLOOKUP($D21,Table!$A$4:$M$34,COLUMN(Table!$M:$M),FALSE) -> 0
D22: FF0 | E22: FF | F22: =VLOOKUP($D22,Table!$A$4:$N$34,COLUMN(Table!$N:$N),FALSE) -> 8339 | G22: 2029 | H22: =_xlfn.RANK.EQ($G22,$G$11:$G$41,1)+COUNTIF($G$11:$G22,$G22)-1 -> 15 | I22: =$F22/$F$43*AG22*General!$J$17 -> 0.0008276093184 | J22: =$F22/$F$43*AH22*General!$J$17 -> 0.0008276093184 | K22: =$F22/$F$43*AI22*General!$J$17 -> 0.0008276093184 | L22: =$F22/$F$43*AJ22*General!$J$17 -> 0.0008276093184 | M22: =$F22/$F$43*AK22*General!$J$17 -> 0.0008276093184 | N22: =$F22/$F$43*AL22*General!$J$17 -> 0.0008276093184 | O22: =$F22/$F$43*AM22*General!$J$17 -> 0.0008276093184 | P22: =$F22/$F$43*AN22*General!$J$17 -> 0.0008276093184 | Q22: =$F22/$F$43*AO22*General!$J$17 -> 0.0008276093184 | R22: =$F22/$F$43*AP22*General!$J$17 -> 0.0008276093184 | S22: =$F22/$F$43*AQ22*General!$J$17 -> 0.0008276093184 | U22: =VLOOKUP($D22,Table!$A$4:$L$34,COLUMN(Table!J:J),FALSE) -> 254.5657037 | V22: =(1-MIN(0,VLOOKUP($E22,OLTC_Taps!$D$147:$H$173,6-1,FALSE)+VLOOKUP($E22,OLTC_Taps!$D$147:$N$173,12-1,FALSE)*(V$10-$V$10+1)))*$U22 -> 254.5657037 | W22: =(1-MIN(0,VLOOKUP($E22,OLTC_Taps!$D$147:$H$173,6-1,FALSE)+VLOOKUP($E22,OLTC_Taps!$D$147:$N$173,12-1,FALSE)*(W$10-$V$10+1)))*$U22 -> 254.5657037 | X22: =(1-MIN(0,VLOOKUP($E22,OLTC_Taps!$D$147:$H$173,6-1,FALSE)+VLOOKUP($E22,OLTC_Taps!$D$147:$N$173,12-1,FALSE)*(X$10-$V$10+1)))*$U22 -> 254.5657037 | Y22: =(1-MIN(0,VLOOKUP($E22,OLTC_Taps!$D$147:$H$173,6-1,FALSE)+VLOOKUP($E22,OLTC_Taps!$D$147:$N$173,12-1,FALSE)*(Y$10-$V$10+1)))*$U22 -> 254.5657037 | Z22: =(1-MIN(0,VLOOKUP($E22,OLTC_Taps!$D$147:$H$173,6-1,FALSE)+VLOOKUP($E22,OLTC_Taps!$D$147:$O$173,13-1,FALSE)*(Z$10-$V$10+1)))*$U22 -> 254.5657037 | AA22: =(1-MIN(0,VLOOKUP($E22,OLTC_Taps!$D$147:$H$173,6-1,FALSE)+VLOOKUP($E22,OLTC_Taps!$D$147:$O$173,13-1,FALSE)*(AA$10-$V$10+1)))*$U22 -> 254.5657037 | AB22: =(1-MIN(0,VLOOKUP($E22,OLTC_Taps!$D$147:$H$173,6-1,FALSE)+VLOOKUP($E22,OLTC_Taps!$D$147:$O$173,13-1,FALSE)*(AB$10-$V$10+1)))*$U22 -> 254.5657037 | AC22: =(1-MIN(0,VLOOKUP($E22,OLTC_Taps!$D$147:$H$173,6-1,FALSE)+VLOOKUP($E22,OLTC_Taps!$D$147:$O$173,13-1,FALSE)*(AC$10-$V$10+1)))*$U22 -> 254.5657037 | AD22: =(1-MIN(0,VLOOKUP($E22,OLTC_Taps!$D$147:$H$173,6-1,FALSE)+VLOOKUP($E22,OLTC_Taps!$D$147:$O$173,13-1,FALSE)*(AD$10-$V$10+1)))*$U22 -> 254.5657037 | AE22: =(1-MIN(0,VLOOKUP($E22,OLTC_Taps!$D$147:$H$173,6-1,FALSE)+VLOOKUP($E22,OLTC_Taps!$D$147:$O$173,13-1,FALSE)*(AE$10-$V$10+1)))*$U22 -> 254.5657037 | AG22: =COUNTIFS('06Dec24'!$E:$E,">"&253-U22+$U22-$BG22,'06Dec24'!$D:$D,$D22)/COUNTIF('06Dec24'!$D:$D,$D22) -> 0.048447056 | AH22: =COUNTIFS('06Dec24'!$E:$E,">"&253-V22+$U22-$BG22,'06Dec24'!$D:$D,$D22)/COUNTIF('06Dec24'!$D:$D,$D22) -> 0.048447056 | AI22: =COUNTIFS('06Dec24'!$E:$E,">"&253-W22+$U22-$BG22,'06Dec24'!$D:$D,$D22)/COUNTIF('06Dec24'!$D:$D,$D22) -> 0.048447056 | AJ22: =COUNTIFS('06Dec24'!$E:$E,">"&253-X22+$U22-$BG22,'06Dec24'!$D:$D,$D22)/COUNTIF('06Dec24'!$D:$D,$D22) -> 0.048447056 | AK22: =COUNTIFS('06Dec24'!$E:$E,">"&253-Y22+$U22-$BG22,'06Dec24'!$D:$D,$D22)/COUNTIF('06Dec24'!$D:$D,$D22) -> 0.048447056 | AL22: =COUNTIFS('06Dec24'!$E:$E,">"&253-Z22+$U22-$BG22,'06Dec24'!$D:$D,$D22)/COUNTIF('06Dec24'!$D:$D,$D22) -> 0.048447056 | AM22: =COUNTIFS('06Dec24'!$E:$E,">"&253-AA22+$U22-$BG22,'06Dec24'!$D:$D,$D22)/COUNTIF('06Dec24'!$D:$D,$D22) -> 0.048447056 | AN22: =COUNTIFS('06Dec24'!$E:$E,">"&253-AB22+$U22-$BG22,'06Dec24'!$D:$D,$D22)/COUNTIF('06Dec24'!$D:$D,$D22) -> 0.048447056 | AO22: =COUNTIFS('06Dec24'!$E:$E,">"&253-AC22+$U22-$BG22,'06Dec24'!$D:$D,$D22)/COUNTIF('06Dec24'!$D:$D,$D22) -> 0.048447056 | AP22: =COUNTIFS('06Dec24'!$E:$E,">"&253-AD22+$U22-$BG22,'06Dec24'!$D:$D,$D22)/COUNTIF('06Dec24'!$D:$D,$D22) -> 0.048447056 | AQ22: =COUNTIFS('06Dec24'!$E:$E,">"&253-AE22+$U22-$BG22,'06Dec24'!$D:$D,$D22)/COUNTIF('06Dec24'!$D:$D,$D22) -> 0.048447056 | AW22: =IF(OR(SUM($AS22:AV22)>0,RANK(M22,M$11:M$41)>AW$6),"",1) ->  | AX22: =IF(OR(SUM($AS22:AW22)>0,RANK(N22,N$11:N$41)>AX$6),"",1) ->  | AY22: =IF(OR(SUM($AS22:AX22)>0,RANK(O22,O$11:O$41)>AY$6),"",1) -> 1 | AZ22: =IF(OR(SUM($AS22:AY22)>0,RANK(P22,P$11:P$41)>AZ$6),"",1) ->  | BA22: =IF(OR(SUM($AS22:AZ22)>0,RANK(Q22,Q$11:Q$41)>BA$6),"",1) ->  | BB22: =IF(OR(SUM($AS22:BA22)>0,RANK(R22,R$11:R$41)>BB$6),"",1) ->  | BC22: =IF(OR(SUM($AS22:BB22)>0,RANK(S22,S$11:S$41)>BC$6),"",1) ->  | BG22: =VLOOKUP($D22,Table!$A$4:$M$34,COLUMN(Table!$M:$M),FALSE) -> 0
D23: SHM | E23: SHM | F23: =VLOOKUP($D23,Table!$A$4:$N$34,COLUMN(Table!$N:$N),FALSE) -> 23600 | G23: 2027 | H23: =_xlfn.RANK.EQ($G23,$G$11:$G$41,1)+COUNTIF($G$11:$G23,$G23)-1 -> 9 | I23: =$F23/$F$43*AG23*General!$J$17 -> 0.0003380087563 | J23: =$F23/$F$43*AH23*General!$J$17 -> 0.0006473379817 | K23: =$F23/$F$43*AI23*General!$J$17 -> 0.001061142641 | L23: =$F23/$F$43*AJ23*General!$J$17 -> 0.002083363061 | M23: =$F23/$F$43*AK23*General!$J$17 -> 0.004721879898 | N23: =$F23/$F$43*AL23*General!$J$17 -> 0.002835176477 | O23: =$F23/$F$43*AM23*General!$J$17 -> 0.004615355927 | P23: =$F23/$F$43*AN23*General!$J$17 -> 0.006932252311 | Q23: =$F23/$F$43*AO23*General!$J$17 -> 0.009703924112 | R23: =$F23/$F$43*AP23*General!$J$17 -> 0.01308401168 | S23: =$F23/$F$43*AQ23*General!$J$17 -> 0.01720566996 | U23: =VLOOKUP($D23,Table!$A$4:$L$34,COLUMN(Table!J:J),FALSE) -> 253.3630158 | V23: =(1-MIN(0,VLOOKUP($E23,OLTC_Taps!$D$147:$H$173,6-1,FALSE)+VLOOKUP($E23,OLTC_Taps!$D$147:$N$173,12-1,FALSE)*(V$10-$V$10+1)))*$U23 -> 254.1611068 | W23: =(1-MIN(0,VLOOKUP($E23,OLTC_Taps!$D$147:$H$173,6-1,FALSE)+VLOOKUP($E23,OLTC_Taps!$D$147:$N$173,12-1,FALSE)*(W$10-$V$10+1)))*$U23 -> 254.9591978 | X23: =(1-MIN(0,VLOOKUP($E23,OLTC_Taps!$D$147:$H$173,6-1,FALSE)+VLOOKUP($E23,OLTC_Taps!$D$147:$N$173,12-1,FALSE)*(X$10-$V$10+1)))*$U23 -> 255.7572888 | Y23: =(1-MIN(0,VLOOKUP($E23,OLTC_Taps!$D$147:$H$173,6-1,FALSE)+VLOOKUP($E23,OLTC_Taps!$D$147:$N$173,12-1,FALSE)*(Y$10-$V$10+1)))*$U23 -> 256.5553798 | Z23: =(1-MIN(0,VLOOKUP($E23,OLTC_Taps!$D$147:$H$173,6-1,FALSE)+VLOOKUP($E23,OLTC_Taps!$D$147:$O$173,13-1,FALSE)*(Z$10-$V$10+1)))*$U23 -> 255.997163 | AA23: =(1-MIN(0,VLOOKUP($E23,OLTC_Taps!$D$147:$H$173,6-1,FALSE)+VLOOKUP($E23,OLTC_Taps!$D$147:$O$173,13-1,FALSE)*(AA$10-$V$10+1)))*$U23 -> 256.5239924 | AB23: =(1-MIN(0,VLOOKUP($E23,OLTC_Taps!$D$147:$H$173,6-1,FALSE)+VLOOKUP($E23,OLTC_Taps!$D$147:$O$173,13-1,FALSE)*(AB$10-$V$10+1)))*$U23 -> 257.0508218 | AC23: =(1-MIN(0,VLOOKUP($E23,OLTC_Taps!$D$147:$H$173,6-1,FALSE)+VLOOKUP($E23,OLTC_Taps!$D$147:$O$173,13-1,FALSE)*(AC$10-$V$10+1)))*$U23 -> 257.5776512 | AD23: =(1-MIN(0,VLOOKUP($E23,OLTC_Taps!$D$147:$H$173,6-1,FALSE)+VLOOKUP($E23,OLTC_Taps!$D$147:$O$173,13-1,FALSE)*(AD$10-$V$10+1)))*$U23 -> 258.1044807 | AE23: =(1-MIN(0,VLOOKUP($E23,OLTC_Taps!$D$147:$H$173,6-1,FALSE)+VLOOKUP($E23,OLTC_Taps!$D$147:$O$173,13-1,FALSE)*(AE$10-$V$10+1)))*$U23 -> 258.6313101 | AG23: =COUNTIFS('06Dec24'!$E:$E,">"&253-U23+$U23-$BG23,'06Dec24'!$D:$D,$D23)/COUNTIF('06Dec24'!$D:$D,$D23) -> 0.006991525424 | AH23: =COUNTIFS('06Dec24'!$E:$E,">"&253-V23+$U23-$BG23,'06Dec24'!$D:$D,$D23)/COUNTIF('06Dec24'!$D:$D,$D23) -> 0.01338983051 | AI23: =COUNTIFS('06Dec24'!$E:$E,">"&253-W23+$U23-$BG23,'06Dec24'!$D:$D,$D23)/COUNTIF('06Dec24'!$D:$D,$D23) -> 0.02194915254 | AJ23: =COUNTIFS('06Dec24'!$E:$E,">"&253-X23+$U23-$BG23,'06Dec24'!$D:$D,$D23)/COUNTIF('06Dec24'!$D:$D,$D23) -> 0.04309322034 | AK23: =COUNTIFS('06Dec24'!$E:$E,">"&253-Y23+$U23-$BG23,'06Dec24'!$D:$D,$D23)/COUNTIF('06Dec24'!$D:$D,$D23) -> 0.09766949153 | AL23: =COUNTIFS('06Dec24'!$E:$E,">"&253-Z23+$U23-$BG23,'06Dec24'!$D:$D,$D23)/COUNTIF('06Dec24'!$D:$D,$D23) -> 0.0586440678 | AM23: =COUNTIFS('06Dec24'!$E:$E,">"&253-AA23+$U23-$BG23,'06Dec24'!$D:$D,$D23)/COUNTIF('06Dec24'!$D:$D,$D23) -> 0.09546610169 | AN23: =COUNTIFS('06Dec24'!$E:$E,">"&253-AB23+$U23-$BG23,'06Dec24'!$D:$D,$D23)/COUNTIF('06Dec24'!$D:$D,$D23) -> 0.1433898305 | AO23: =COUNTIFS('06Dec24'!$E:$E,">"&253-AC23+$U23-$BG23,'06Dec24'!$D:$D,$D23)/COUNTIF('06Dec24'!$D:$D,$D23) -> 0.200720339 | AP23: =COUNTIFS('06Dec24'!$E:$E,">"&253-AD23+$U23-$BG23,'06Dec24'!$D:$D,$D23)/COUNTIF('06Dec24'!$D:$D,$D23) -> 0.2706355932 | AQ23: =COUNTIFS('06Dec24'!$E:$E,">"&253-AE23+$U23-$BG23,'06Dec24'!$D:$D,$D23)/COUNTIF('06Dec24'!$D:$D,$D23) -> 0.3558898305 | AW23: =IF(OR(SUM($AS23:AV23)>0,RANK(M23,M$11:M$41)>AW$6),"",1) -> 1 | AX23: =IF(OR(SUM($AS23:AW23)>0,RANK(N23,N$11:N$41)>AX$6),"",1) ->  | AY23: =IF(OR(SUM($AS23:AX23)>0,RANK(O23,O$11:O$41)>AY$6),"",1) ->  | AZ23: =IF(OR(SUM($AS23:AY23)>0,RANK(P23,P$11:P$41)>AZ$6),"",1) ->  | BA23: =IF(OR(SUM($AS23:AZ23)>0,RANK(Q23,Q$11:Q$41)>BA$6),"",1) ->  | BB23: =IF(OR(SUM($AS23:BA23)>0,RANK(R23,R$11:R$41)>BB$6),"",1) ->  | BC23: =IF(OR(SUM($AS23:BB23)>0,RANK(S23,S$11:S$41)>BC$6),"",1) ->  | BG23: =VLOOKUP($D23,Table!$A$4:$M$34,COLUMN(Table!$M:$M),FALSE) -> 0
D24: NH0 | E24: NH | F24: =VLOOKUP($D24,Table!$A$4:$N$34,COLUMN(Table!$N:$N),FALSE) -> 18894 | G24: 2029 | H24: =_xlfn.RANK.EQ($G24,$G$11:$G$41,1)+COUNTIF($G$11:$G24,$G24)-1 -> 16 | I24: =$F24/$F$43*AG24*General!$J$17 -> 0.0006063672234 | J24: =$F24/$F$43*AH24*General!$J$17 -> 0.0006063672234 | K24: =$F24/$F$43*AI24*General!$J$17 -> 0.0006063672234 | L24: =$F24/$F$43*AJ24*General!$J$17 -> 0.0006063672234 | M24: =$F24/$F$43*AK24*General!$J$17 -> 0.0006063672234 | N24: =$F24/$F$43*AL24*General!$J$17 -> 0.0006063672234 | O24: =$F24/$F$43*AM24*General!$J$17 -> 0.0006063672234 | P24: =$F24/$F$43*AN24*General!$J$17 -> 0.0006063672234 | Q24: =$F24/$F$43*AO24*General!$J$17 -> 0.0006063672234 | R24: =$F24/$F$43*AP24*General!$J$17 -> 0.0006063672234 | S24: =$F24/$F$43*AQ24*General!$J$17 -> 0.0006063672234 | U24: =VLOOKUP($D24,Table!$A$4:$L$34,COLUMN(Table!J:J),FALSE) -> 254.826198 | V24: =(1-MIN(0,VLOOKUP($E24,OLTC_Taps!$D$147:$H$173,6-1,FALSE)+VLOOKUP($E24,OLTC_Taps!$D$147:$N$173,12-1,FALSE)*(V$10-$V$10+1)))*$U24 -> 254.826198 | W24: =(1-MIN(0,VLOOKUP($E24,OLTC_Taps!$D$147:$H$173,6-1,FALSE)+VLOOKUP($E24,OLTC_Taps!$D$147:$N$173,12-1,FALSE)*(W$10-$V$10+1)))*$U24 -> 254.826198 | X24: =(1-MIN(0,VLOOKUP($E24,OLTC_Taps!$D$147:$H$173,6-1,FALSE)+VLOOKUP($E24,OLTC_Taps!$D$147:$N$173,12-1,FALSE)*(X$10-$V$10+1)))*$U24 -> 254.826198 | Y24: =(1-MIN(0,VLOOKUP($E24,OLTC_Taps!$D$147:$H$173,6-1,FALSE)+VLOOKUP($E24,OLTC_Taps!$D$147:$N$173,12-1,FALSE)*(Y$10-$V$10+1)))*$U24 -> 254.826198 | Z24: =(1-MIN(0,VLOOKUP($E24,OLTC_Taps!$D$147:$H$173,6-1,FALSE)+VLOOKUP($E24,OLTC_Taps!$D$147:$O$173,13-1,FALSE)*(Z$10-$V$10+1)))*$U24 -> 254.826198 | AA24: =(1-MIN(0,VLOOKUP($E24,OLTC_Taps!$D$147:$H$173,6-1,FALSE)+VLOOKUP($E24,OLTC_Taps!$D$147:$O$173,13-1,FALSE)*(AA$10-$V$10+1)))*$U24 -> 254.826198 | AB24: =(1-MIN(0,VLOOKUP($E24,OLTC_Taps!$D$147:$H$173,6-1,FALSE)+VLOOKUP($E24,OLTC_Taps!$D$147:$O$173,13-1,FALSE)*(AB$10-$V$10+1)))*$U24 -> 254.826198 | AC24: =(1-MIN(0,VLOOKUP($E24,OLTC_Taps!$D$147:$H$173,6-1,FALSE)+VLOOKUP($E24,OLTC_Taps!$D$147:$O$173,13-1,FALSE)*(AC$10-$V$10+1)))*$U24 -> 254.826198 | AD24: =(1-MIN(0,VLOOKUP($E24,OLTC_Taps!$D$147:$H$173,6-1,FALSE)+VLOOKUP($E24,OLTC_Taps!$D$147:$O$173,13-1,FALSE)*(AD$10-$V$10+1)))*$U24 -> 254.826198 | AE24: =(1-MIN(0,VLOOKUP($E24,OLTC_Taps!$D$147:$H$173,6-1,FALSE)+VLOOKUP($E24,OLTC_Taps!$D$147:$O$173,13-1,FALSE)*(AE$10-$V$10+1)))*$U24 -> 254.826198 | AG24: =COUNTIFS('06Dec24'!$E:$E,">"&253-U24+$U24-$BG24,'06Dec24'!$D:$D,$D24)/COUNTIF('06Dec24'!$D:$D,$D24) -> 0.01566634911 | AH24: =COUNTIFS('06Dec24'!$E:$E,">"&253-V24+$U24-$BG24,'06Dec24'!$D:$D,$D24)/COUNTIF('06Dec24'!$D:$D,$D24) -> 0.01566634911 | AI24: =COUNTIFS('06Dec24'!$E:$E,">"&253-W24+$U24-$BG24,'06Dec24'!$D:$D,$D24)/COUNTIF('06Dec24'!$D:$D,$D24) -> 0.01566634911 | AJ24: =COUNTIFS('06Dec24'!$E:$E,">"&253-X24+$U24-$BG24,'06Dec24'!$D:$D,$D24)/COUNTIF('06Dec24'!$D:$D,$D24) -> 0.01566634911 | AK24: =COUNTIFS('06Dec24'!$E:$E,">"&253-Y24+$U24-$BG24,'06Dec24'!$D:$D,$D24)/COUNTIF('06Dec24'!$D:$D,$D24) -> 0.01566634911 | AL24: =COUNTIFS('06Dec24'!$E:$E,">"&253-Z24+$U24-$BG24,'06Dec24'!$D:$D,$D24)/COUNTIF('06Dec24'!$D:$D,$D24) -> 0.01566634911 | AM24: =COUNTIFS('06Dec24'!$E:$E,">"&253-AA24+$U24-$BG24,'06Dec24'!$D:$D,$D24)/COUNTIF('06Dec24'!$D:$D,$D24) -> 0.01566634911 | AN24: =COUNTIFS('06Dec24'!$E:$E,">"&253-AB24+$U24-$BG24,'06Dec24'!$D:$D,$D24)/COUNTIF('06Dec24'!$D:$D,$D24) -> 0.01566634911 | AO24: =COUNTIFS('06Dec24'!$E:$E,">"&253-AC24+$U24-$BG24,'06Dec24'!$D:$D,$D24)/COUNTIF('06Dec24'!$D:$D,$D24) -> 0.01566634911 | AP24: =COUNTIFS('06Dec24'!$E:$E,">"&253-AD24+$U24-$BG24,'06Dec24'!$D:$D,$D24)/COUNTIF('06Dec24'!$D:$D,$D24) -> 0.01566634911 | AQ24: =COUNTIFS('06Dec24'!$E:$E,">"&253-AE24+$U24-$BG24,'06Dec24'!$D:$D,$D24)/COUNTIF('06Dec24'!$D:$D,$D24) -> 0.01566634911 | AW24: =IF(OR(SUM($AS24:AV24)>0,RANK(M24,M$11:M$41)>AW$6),"",1) ->  | AX24: =IF(OR(SUM($AS24:AW24)>0,RANK(N24,N$11:N$41)>AX$6),"",1) ->  | AY24: =IF(OR(SUM($AS24:AX24)>0,RANK(O24,O$11:O$41)>AY$6),"",1) -> 1 | AZ24: =IF(OR(SUM($AS24:AY24)>0,RANK(P24,P$11:P$41)>AZ$6),"",1) ->  | BA24: =IF(OR(SUM($AS24:AZ24)>0,RANK(Q24,Q$11:Q$41)>BA$6),"",1) ->  | BB24: =IF(OR(SUM($AS24:BA24)>0,RANK(R24,R$11:R$41)>BB$6),"",1) ->  | BC24: =IF(OR(SUM($AS24:BB24)>0,RANK(S24,S$11:S$41)>BC$6),"",1) ->  | BG24: =VLOOKUP($D24,Table!$A$4:$M$34,COLUMN(Table!$M:$M),FALSE) -> 0
D25: TMA | E25: TMA | F25: =VLOOKUP($D25,Table!$A$4:$N$34,COLUMN(Table!$N:$N),FALSE) -> 5295 | G25: 2029 | H25: =_xlfn.RANK.EQ($G25,$G$11:$G$41,1)+COUNTIF($G$11:$G25,$G25)-1 -> 17 | I25: =$F25/$F$43*AG25*General!$J$17 -> 0.0005244257067 | J25: =$F25/$F$43*AH25*General!$J$17 -> 0.0005244257067 | K25: =$F25/$F$43*AI25*General!$J$17 -> 0.0005244257067 | L25: =$F25/$F$43*AJ25*General!$J$17 -> 0.0005244257067 | M25: =$F25/$F$43*AK25*General!$J$17 -> 0.0005244257067 | N25: =$F25/$F$43*AL25*General!$J$17 -> 0.0005244257067 | O25: =$F25/$F$43*AM25*General!$J$17 -> 0.0005244257067 | P25: =$F25/$F$43*AN25*General!$J$17 -> 0.0005244257067 | Q25: =$F25/$F$43*AO25*General!$J$17 -> 0.0005244257067 | R25: =$F25/$F$43*AP25*General!$J$17 -> 0.0005244257067 | S25: =$F25/$F$43*AQ25*General!$J$17 -> 0.0005244257067 | U25: =VLOOKUP($D25,Table!$A$4:$L$34,COLUMN(Table!J:J),FALSE) -> 255.2666331 | V25: =(1-MIN(0,VLOOKUP($E25,OLTC_Taps!$D$147:$H$173,6-1,FALSE)+VLOOKUP($E25,OLTC_Taps!$D$147:$N$173,12-1,FALSE)*(V$10-$V$10+1)))*$U25 -> 255.2666331 | W25: =(1-MIN(0,VLOOKUP($E25,OLTC_Taps!$D$147:$H$173,6-1,FALSE)+VLOOKUP($E25,OLTC_Taps!$D$147:$N$173,12-1,FALSE)*(W$10-$V$10+1)))*$U25 -> 255.2666331 | X25: =(1-MIN(0,VLOOKUP($E25,OLTC_Taps!$D$147:$H$173,6-1,FALSE)+VLOOKUP($E25,OLTC_Taps!$D$147:$N$173,12-1,FALSE)*(X$10-$V$10+1)))*$U25 -> 255.2666331 | Y25: =(1-MIN(0,VLOOKUP($E25,OLTC_Taps!$D$147:$H$173,6-1,FALSE)+VLOOKUP($E25,OLTC_Taps!$D$147:$N$173,12-1,FALSE)*(Y$10-$V$10+1)))*$U25 -> 255.2666331 | Z25: =(1-MIN(0,VLOOKUP($E25,OLTC_Taps!$D$147:$H$173,6-1,FALSE)+VLOOKUP($E25,OLTC_Taps!$D$147:$O$173,13-1,FALSE)*(Z$10-$V$10+1)))*$U25 -> 255.2666331 | AA25: =(1-MIN(0,VLOOKUP($E25,OLTC_Taps!$D$147:$H$173,6-1,FALSE)+VLOOKUP($E25,OLTC_Taps!$D$147:$O$173,13-1,FALSE)*(AA$10-$V$10+1)))*$U25 -> 255.2666331 | AB25: =(1-MIN(0,VLOOKUP($E25,OLTC_Taps!$D$147:$H$173,6-1,FALSE)+VLOOKUP($E25,OLTC_Taps!$D$147:$O$173,13-1,FALSE)*(AB$10-$V$10+1)))*$U25 -> 255.2666331 | AC25: =(1-MIN(0,VLOOKUP($E25,OLTC_Taps!$D$147:$H$173,6-1,FALSE)+VLOOKUP($E25,OLTC_Taps!$D$147:$O$173,13-1,FALSE)*(AC$10-$V$10+1)))*$U25 -> 255.2666331 | AD25: =(1-MIN(0,VLOOKUP($E25,OLTC_Taps!$D$147:$H$173,6-1,FALSE)+VLOOKUP($E25,OLTC_Taps!$D$147:$O$173,13-1,FALSE)*(AD$10-$V$10+1)))*$U25 -> 255.2666331 | AE25: =(1-MIN(0,VLOOKUP($E25,OLTC_Taps!$D$147:$H$173,6-1,FALSE)+VLOOKUP($E25,OLTC_Taps!$D$147:$O$173,13-1,FALSE)*(AE$10-$V$10+1)))*$U25 -> 255.2666331 | AG25: =COUNTIFS('06Dec24'!$E:$E,">"&253-U25+$U25-$BG25,'06Dec24'!$D:$D,$D25)/COUNTIF('06Dec24'!$D:$D,$D25) -> 0.04834749764 | AH25: =COUNTIFS('06Dec24'!$E:$E,">"&253-V25+$U25-$BG25,'06Dec24'!$D:$D,$D25)/COUNTIF('06Dec24'!$D:$D,$D25) -> 0.04834749764 | AI25: =COUNTIFS('06Dec24'!$E:$E,">"&253-W25+$U25-$BG25,'06Dec24'!$D:$D,$D25)/COUNTIF('06Dec24'!$D:$D,$D25) -> 0.04834749764 | AJ25: =COUNTIFS('06Dec24'!$E:$E,">"&253-X25+$U25-$BG25,'06Dec24'!$D:$D,$D25)/COUNTIF('06Dec24'!$D:$D,$D25) -> 0.04834749764 | AK25: =COUNTIFS('06Dec24'!$E:$E,">"&253-Y25+$U25-$BG25,'06Dec24'!$D:$D,$D25)/COUNTIF('06Dec24'!$D:$D,$D25) -> 0.04834749764 | AL25: =COUNTIFS('06Dec24'!$E:$E,">"&253-Z25+$U25-$BG25,'06Dec24'!$D:$D,$D25)/COUNTIF('06Dec24'!$D:$D,$D25) -> 0.04834749764 | AM25: =COUNTIFS('06Dec24'!$E:$E,">"&253-AA25+$U25-$BG25,'06Dec24'!$D:$D,$D25)/COUNTIF('06Dec24'!$D:$D,$D25) -> 0.04834749764 | AN25: =COUNTIFS('06Dec24'!$E:$E,">"&253-AB25+$U25-$BG25,'06Dec24'!$D:$D,$D25)/COUNTIF('06Dec24'!$D:$D,$D25) -> 0.04834749764 | AO25: =COUNTIFS('06Dec24'!$E:$E,">"&253-AC25+$U25-$BG25,'06Dec24'!$D:$D,$D25)/COUNTIF('06Dec24'!$D:$D,$D25) -> 0.04834749764 | AP25: =COUNTIFS('06Dec24'!$E:$E,">"&253-AD25+$U25-$BG25,'06Dec24'!$D:$D,$D25)/COUNTIF('06Dec24'!$D:$D,$D25) -> 0.04834749764 | AQ25: =COUNTIFS('06Dec24'!$E:$E,">"&253-AE25+$U25-$BG25,'06Dec24'!$D:$D,$D25)/COUNTIF('06Dec24'!$D:$D,$D25) -> 0.04834749764 | AW25: =IF(OR(SUM($AS25:AV25)>0,RANK(M25,M$11:M$41)>AW$6),"",1) ->  | AX25: =IF(OR(SUM($AS25:AW25)>0,RANK(N25,N$11:N$41)>AX$6),"",1) ->  | AY25: =IF(OR(SUM($AS25:AX25)>0,RANK(O25,O$11:O$41)>AY$6),"",1) -> 1 | AZ25: =IF(OR(SUM($AS25:AY25)>0,RANK(P25,P$11:P$41)>AZ$6),"",1) ->  | BA25: =IF(OR(SUM($AS25:AZ25)>0,RANK(Q25,Q$11:Q$41)>BA$6),"",1) ->  | BB25: =IF(OR(SUM($AS25:BA25)>0,RANK(R25,R$11:R$41)>BB$6),"",1) ->  | BC25: =IF(OR(SUM($AS25:BB25)>0,RANK(S25,S$11:S$41)>BC$6),"",1) ->  | BG25: =VLOOKUP($D25,Table!$A$4:$M$34,COLUMN(Table!$M:$M),FALSE) -> 0
D26: CN0 | E26: CN | F26: =VLOOKUP($D26,Table!$A$4:$N$34,COLUMN(Table!$N:$N),FALSE) -> 28378 | G26: 2030 | H26: =_xlfn.RANK.EQ($G26,$G$11:$G$41,1)+COUNTIF($G$11:$G26,$G26)-1 -> 18 | I26: =$F26/$F$43*AG26*General!$J$17 -> 0.0004855034863 | J26: =$F26/$F$43*AH26*General!$J$17 -> 0.0004855034863 | K26: =$F26/$F$43*AI26*General!$J$17 -> 0.0004855034863 | L26: =$F26/$F$43*AJ26*General!$J$17 -> 0.0004855034863 | M26: =$F26/$F$43*AK26*General!$J$17 -> 0.0004855034863 | N26: =$F26/$F$43*AL26*General!$J$17 -> 0.0004855034863 | O26: =$F26/$F$43*AM26*General!$J$17 -> 0.0004855034863 | P26: =$F26/$F$43*AN26*General!$J$17 -> 0.0004855034863 | Q26: =$F26/$F$43*AO26*General!$J$17 -> 0.0004855034863 | R26: =$F26/$F$43*AP26*General!$J$17 -> 0.0004855034863 | S26: =$F26/$F$43*AQ26*General!$J$17 -> 0.0004855034863 | U26: =VLOOKUP($D26,Table!$A$4:$L$34,COLUMN(Table!J:J),FALSE) -> 251.1621909 | V26: =(1-MIN(0,VLOOKUP($E26,OLTC_Taps!$D$147:$H$173,6-1,FALSE)+VLOOKUP($E26,OLTC_Taps!$D$147:$N$173,12-1,FALSE)*(V$10-$V$10+1)))*$U26 -> 251.1621909 | W26: =(1-MIN(0,VLOOKUP($E26,OLTC_Taps!$D$147:$H$173,6-1,FALSE)+VLOOKUP($E26,OLTC_Taps!$D$147:$N$173,12-1,FALSE)*(W$10-$V$10+1)))*$U26 -> 251.1621909 | X26: =(1-MIN(0,VLOOKUP($E26,OLTC_Taps!$D$147:$H$173,6-1,FALSE)+VLOOKUP($E26,OLTC_Taps!$D$147:$N$173,12-1,FALSE)*(X$10-$V$10+1)))*$U26 -> 251.1621909 | Y26: =(1-MIN(0,VLOOKUP($E26,OLTC_Taps!$D$147:$H$173,6-1,FALSE)+VLOOKUP($E26,OLTC_Taps!$D$147:$N$173,12-1,FALSE)*(Y$10-$V$10+1)))*$U26 -> 251.1621909 | Z26: =(1-MIN(0,VLOOKUP($E26,OLTC_Taps!$D$147:$H$173,6-1,FALSE)+VLOOKUP($E26,OLTC_Taps!$D$147:$O$173,13-1,FALSE)*(Z$10-$V$10+1)))*$U26 -> 251.1621909 | AA26: =(1-MIN(0,VLOOKUP($E26,OLTC_Taps!$D$147:$H$173,6-1,FALSE)+VLOOKUP($E26,OLTC_Taps!$D$147:$O$173,13-1,FALSE)*(AA$10-$V$10+1)))*$U26 -> 251.1621909 | AB26: =(1-MIN(0,VLOOKUP($E26,OLTC_Taps!$D$147:$H$173,6-1,FALSE)+VLOOKUP($E26,OLTC_Taps!$D$147:$O$173,13-1,FALSE)*(AB$10-$V$10+1)))*$U26 -> 251.1621909 | AC26: =(1-MIN(0,VLOOKUP($E26,OLTC_Taps!$D$147:$H$173,6-1,FALSE)+VLOOKUP($E26,OLTC_Taps!$D$147:$O$173,13-1,FALSE)*(AC$10-$V$10+1)))*$U26 -> 251.1621909 | AD26: =(1-MIN(0,VLOOKUP($E26,OLTC_Taps!$D$147:$H$173,6-1,FALSE)+VLOOKUP($E26,OLTC_Taps!$D$147:$O$173,13-1,FALSE)*(AD$10-$V$10+1)))*$U26 -> 251.1621909 | AE26: =(1-MIN(0,VLOOKUP($E26,OLTC_Taps!$D$147:$H$173,6-1,FALSE)+VLOOKUP($E26,OLTC_Taps!$D$147:$O$173,13-1,FALSE)*(AE$10-$V$10+1)))*$U26 -> 251.1621909 | AG26: =COUNTIFS('06Dec24'!$E:$E,">"&253-U26+$U26-$BG26,'06Dec24'!$D:$D,$D26)/COUNTIF('06Dec24'!$D:$D,$D26) -> 0.008351539925 | AH26: =COUNTIFS('06Dec24'!$E:$E,">"&253-V26+$U26-$BG26,'06Dec24'!$D:$D,$D26)/COUNTIF('06Dec24'!$D:$D,$D26) -> 0.008351539925 | AI26: =COUNTIFS('06Dec24'!$E:$E,">"&253-W26+$U26-$BG26,'06Dec24'!$D:$D,$D26)/COUNTIF('06Dec24'!$D:$D,$D26) -> 0.008351539925 | AJ26: =COUNTIFS('06Dec24'!$E:$E,">"&253-X26+$U26-$BG26,'06Dec24'!$D:$D,$D26)/COUNTIF('06Dec24'!$D:$D,$D26) -> 0.008351539925 | AK26: =COUNTIFS('06Dec24'!$E:$E,">"&253-Y26+$U26-$BG26,'06Dec24'!$D:$D,$D26)/COUNTIF('06Dec24'!$D:$D,$D26) -> 0.008351539925 | AL26: =COUNTIFS('06Dec24'!$E:$E,">"&253-Z26+$U26-$BG26,'06Dec24'!$D:$D,$D26)/COUNTIF('06Dec24'!$D:$D,$D26) -> 0.008351539925 | AM26: =COUNTIFS('06Dec24'!$E:$E,">"&253-AA26+$U26-$BG26,'06Dec24'!$D:$D,$D26)/COUNTIF('06Dec24'!$D:$D,$D26) -> 0.008351539925 | AN26: =COUNTIFS('06Dec24'!$E:$E,">"&253-AB26+$U26-$BG26,'06Dec24'!$D:$D,$D26)/COUNTIF('06Dec24'!$D:$D,$D26) -> 0.008351539925 | AO26: =COUNTIFS('06Dec24'!$E:$E,">"&253-AC26+$U26-$BG26,'06Dec24'!$D:$D,$D26)/COUNTIF('06Dec24'!$D:$D,$D26) -> 0.008351539925 | AP26: =COUNTIFS('06Dec24'!$E:$E,">"&253-AD26+$U26-$BG26,'06Dec24'!$D:$D,$D26)/COUNTIF('06Dec24'!$D:$D,$D26) -> 0.008351539925 | AQ26: =COUNTIFS('06Dec24'!$E:$E,">"&253-AE26+$U26-$BG26,'06Dec24'!$D:$D,$D26)/COUNTIF('06Dec24'!$D:$D,$D26) -> 0.008351539925 | AW26: =IF(OR(SUM($AS26:AV26)>0,RANK(M26,M$11:M$41)>AW$6),"",1) ->  | AX26: =IF(OR(SUM($AS26:AW26)>0,RANK(N26,N$11:N$41)>AX$6),"",1) ->  | AY26: =IF(OR(SUM($AS26:AX26)>0,RANK(O26,O$11:O$41)>AY$6),"",1) ->  | AZ26: =IF(OR(SUM($AS26:AY26)>0,RANK(P26,P$11:P$41)>AZ$6),"",1) -> 1 | BA26: =IF(OR(SUM($AS26:AZ26)>0,RANK(Q26,Q$11:Q$41)>BA$6),"",1) ->  | BB26: =IF(OR(SUM($AS26:BA26)>0,RANK(R26,R$11:R$41)>BB$6),"",1) ->  | BC26: =IF(OR(SUM($AS26:BB26)>0,RANK(S26,S$11:S$41)>BC$6),"",1) ->  | BG26: =VLOOKUP($D26,Table!$A$4:$M$34,COLUMN(Table!$M:$M),FALSE) -> 1.837809103
D27: CS0 | E27: CS | F27: =VLOOKUP($D27,Table!$A$4:$N$34,COLUMN(Table!$N:$N),FALSE) -> 26144 | G27: 2024 | H27: =_xlfn.RANK.EQ($G27,$G$11:$G$41,1)+COUNTIF($G$11:$G27,$G27)-1 -> 2 | I27: =$F27/$F$43*AG27*General!$J$17 -> 0.0004465812659 | J27: =$F27/$F$43*AH27*General!$J$17 -> 0.0004465812659 | K27: =$F27/$F$43*AI27*General!$J$17 -> 0.0004465812659 | L27: =$F27/$F$43*AJ27*General!$J$17 -> 0.0004465812659 | M27: =$F27/$F$43*AK27*General!$J$17 -> 0.0004465812659 | N27: =$F27/$F$43*AL27*General!$J$17 -> 0.0004465812659 | O27: =$F27/$F$43*AM27*General!$J$17 -> 0.0004465812659 | P27: =$F27/$F$43*AN27*General!$J$17 -> 0.0004465812659 | Q27: =$F27/$F$43*AO27*General!$J$17 -> 0.0004465812659 | R27: =$F27/$F$43*AP27*General!$J$17 -> 0.0004465812659 | S27: =$F27/$F$43*AQ27*General!$J$17 -> 0.0004465812659 | U27: =VLOOKUP($D27,Table!$A$4:$L$34,COLUMN(Table!J:J),FALSE) -> 249.8195502 | V27: =(1-MIN(0,VLOOKUP($E27,OLTC_Taps!$D$147:$H$173,6-1,FALSE)+VLOOKUP($E27,OLTC_Taps!$D$147:$N$173,12-1,FALSE)*(V$10-$V$10+1)))*$U27 -> 249.8195502 | W27: =(1-MIN(0,VLOOKUP($E27,OLTC_Taps!$D$147:$H$173,6-1,FALSE)+VLOOKUP($E27,OLTC_Taps!$D$147:$N$173,12-1,FALSE)*(W$10-$V$10+1)))*$U27 -> 249.8195502 | X27: =(1-MIN(0,VLOOKUP($E27,OLTC_Taps!$D$147:$H$173,6-1,FALSE)+VLOOKUP($E27,OLTC_Taps!$D$147:$N$173,12-1,FALSE)*(X$10-$V$10+1)))*$U27 -> 249.8195502 | Y27: =(1-MIN(0,VLOOKUP($E27,OLTC_Taps!$D$147:$H$173,6-1,FALSE)+VLOOKUP($E27,OLTC_Taps!$D$147:$N$173,12-1,FALSE)*(Y$10-$V$10+1)))*$U27 -> 249.8195502 | Z27: =(1-MIN(0,VLOOKUP($E27,OLTC_Taps!$D$147:$H$173,6-1,FALSE)+VLOOKUP($E27,OLTC_Taps!$D$147:$O$173,13-1,FALSE)*(Z$10-$V$10+1)))*$U27 -> 249.8195502 | AA27: =(1-MIN(0,VLOOKUP($E27,OLTC_Taps!$D$147:$H$173,6-1,FALSE)+VLOOKUP($E27,OLTC_Taps!$D$147:$O$173,13-1,FALSE)*(AA$10-$V$10+1)))*$U27 -> 249.8195502 | AB27: =(1-MIN(0,VLOOKUP($E27,OLTC_Taps!$D$147:$H$173,6-1,FALSE)+VLOOKUP($E27,OLTC_Taps!$D$147:$O$173,13-1,FALSE)*(AB$10-$V$10+1)))*$U27 -> 249.8195502 | AC27: =(1-MIN(0,VLOOKUP($E27,OLTC_Taps!$D$147:$H$173,6-1,FALSE)+VLOOKUP($E27,OLTC_Taps!$D$147:$O$173,13-1,FALSE)*(AC$10-$V$10+1)))*$U27 -> 249.8195502 | AD27: =(1-MIN(0,VLOOKUP($E27,OLTC_Taps!$D$147:$H$173,6-1,FALSE)+VLOOKUP($E27,OLTC_Taps!$D$147:$O$173,13-1,FALSE)*(AD$10-$V$10+1)))*$U27 -> 249.8195502 | AE27: =(1-MIN(0,VLOOKUP($E27,OLTC_Taps!$D$147:$H$173,6-1,FALSE)+VLOOKUP($E27,OLTC_Taps!$D$147:$O$173,13-1,FALSE)*(AE$10-$V$10+1)))*$U27 -> 249.8195502 | AG27: =COUNTIFS('06Dec24'!$E:$E,">"&253-U27+$U27-$BG27,'06Dec24'!$D:$D,$D27)/COUNTIF('06Dec24'!$D:$D,$D27) -> 0.008338433293 | AH27: =COUNTIFS('06Dec24'!$E:$E,">"&253-V27+$U27-$BG27,'06Dec24'!$D:$D,$D27)/COUNTIF('06Dec24'!$D:$D,$D27) -> 0.008338433293 | AI27: =COUNTIFS('06Dec24'!$E:$E,">"&253-W27+$U27-$BG27,'06Dec24'!$D:$D,$D27)/COUNTIF('06Dec24'!$D:$D,$D27) -> 0.008338433293 | AJ27: =COUNTIFS('06Dec24'!$E:$E,">"&253-X27+$U27-$BG27,'06Dec24'!$D:$D,$D27)/COUNTIF('06Dec24'!$D:$D,$D27) -> 0.008338433293 | AK27: =COUNTIFS('06Dec24'!$E:$E,">"&253-Y27+$U27-$BG27,'06Dec24'!$D:$D,$D27)/COUNTIF('06Dec24'!$D:$D,$D27) -> 0.008338433293 | AL27: =COUNTIFS('06Dec24'!$E:$E,">"&253-Z27+$U27-$BG27,'06Dec24'!$D:$D,$D27)/COUNTIF('06Dec24'!$D:$D,$D27) -> 0.008338433293 | AM27: =COUNTIFS('06Dec24'!$E:$E,">"&253-AA27+$U27-$BG27,'06Dec24'!$D:$D,$D27)/COUNTIF('06Dec24'!$D:$D,$D27) -> 0.008338433293 | AN27: =COUNTIFS('06Dec24'!$E:$E,">"&253-AB27+$U27-$BG27,'06Dec24'!$D:$D,$D27)/COUNTIF('06Dec24'!$D:$D,$D27) -> 0.008338433293 | AO27: =COUNTIFS('06Dec24'!$E:$E,">"&253-AC27+$U27-$BG27,'06Dec24'!$D:$D,$D27)/COUNTIF('06Dec24'!$D:$D,$D27) -> 0.008338433293 | AP27: =COUNTIFS('06Dec24'!$E:$E,">"&253-AD27+$U27-$BG27,'06Dec24'!$D:$D,$D27)/COUNTIF('06Dec24'!$D:$D,$D27) -> 0.008338433293 | AQ27: =COUNTIFS('06Dec24'!$E:$E,">"&253-AE27+$U27-$BG27,'06Dec24'!$D:$D,$D27)/COUNTIF('06Dec24'!$D:$D,$D27) -> 0.008338433293 | AT27: 1 | AW27: =IF(OR(SUM($AS27:AV27)>0,RANK(M27,M$11:M$41)>AW$6),"",1) ->  | AX27: =IF(OR(SUM($AS27:AW27)>0,RANK(N27,N$11:N$41)>AX$6),"",1) ->  | AY27: =IF(OR(SUM($AS27:AX27)>0,RANK(O27,O$11:O$41)>AY$6),"",1) ->  | AZ27: =IF(OR(SUM($AS27:AY27)>0,RANK(P27,P$11:P$41)>AZ$6),"",1) ->  | BA27: =IF(OR(SUM($AS27:AZ27)>0,RANK(Q27,Q$11:Q$41)>BA$6),"",1) ->  | BB27: =IF(OR(SUM($AS27:BA27)>0,RANK(R27,R$11:R$41)>BB$6),"",1) ->  | BC27: =IF(OR(SUM($AS27:BB27)>0,RANK(S27,S$11:S$41)>BC$6),"",1) ->  | BG27: =VLOOKUP($D27,Table!$A$4:$M$34,COLUMN(Table!$M:$M),FALSE) -> 3.180449824
D28: BMS | E28: BMS | F28: =VLOOKUP($D28,Table!$A$4:$N$34,COLUMN(Table!$N:$N),FALSE) -> 5495 | G28: 2030 | H28: =_xlfn.RANK.EQ($G28,$G$11:$G$41,1)+COUNTIF($G$11:$G28,$G28)-1 -> 19 | I28: =$F28/$F$43*AG28*General!$J$17 -> 0.0003912707421 | J28: =$F28/$F$43*AH28*General!$J$17 -> 0.0003912707421 | K28: =$F28/$F$43*AI28*General!$J$17 -> 0.0003912707421 | L28: =$F28/$F$43*AJ28*General!$J$17 -> 0.0003912707421 | M28: =$F28/$F$43*AK28*General!$J$17 -> 0.0003912707421 | N28: =$F28/$F$43*AL28*General!$J$17 -> 0.0003912707421 | O28: =$F28/$F$43*AM28*General!$J$17 -> 0.0003912707421 | P28: =$F28/$F$43*AN28*General!$J$17 -> 0.0003912707421 | Q28: =$F28/$F$43*AO28*General!$J$17 -> 0.0003912707421 | R28: =$F28/$F$43*AP28*General!$J$17 -> 0.0003912707421 | S28: =$F28/$F$43*AQ28*General!$J$17 -> 0.0003912707421 | U28: =VLOOKUP($D28,Table!$A$4:$L$34,COLUMN(Table!J:J),FALSE) -> 255.5540087 | V28: =(1-MIN(0,VLOOKUP($E28,OLTC_Taps!$D$147:$H$173,6-1,FALSE)+VLOOKUP($E28,OLTC_Taps!$D$147:$N$173,12-1,FALSE)*(V$10-$V$10+1)))*$U28 -> 255.5540087 | W28: =(1-MIN(0,VLOOKUP($E28,OLTC_Taps!$D$147:$H$173,6-1,FALSE)+VLOOKUP($E28,OLTC_Taps!$D$147:$N$173,12-1,FALSE)*(W$10-$V$10+1)))*$U28 -> 255.5540087 | X28: =(1-MIN(0,VLOOKUP($E28,OLTC_Taps!$D$147:$H$173,6-1,FALSE)+VLOOKUP($E28,OLTC_Taps!$D$147:$N$173,12-1,FALSE)*(X$10-$V$10+1)))*$U28 -> 255.5540087 | Y28: =(1-MIN(0,VLOOKUP($E28,OLTC_Taps!$D$147:$H$173,6-1,FALSE)+VLOOKUP($E28,OLTC_Taps!$D$147:$N$173,12-1,FALSE)*(Y$10-$V$10+1)))*$U28 -> 255.5540087 | Z28: =(1-MIN(0,VLOOKUP($E28,OLTC_Taps!$D$147:$H$173,6-1,FALSE)+VLOOKUP($E28,OLTC_Taps!$D$147:$O$173,13-1,FALSE)*(Z$10-$V$10+1)))*$U28 -> 255.5540087 | AA28: =(1-MIN(0,VLOOKUP($E28,OLTC_Taps!$D$147:$H$173,6-1,FALSE)+VLOOKUP($E28,OLTC_Taps!$D$147:$O$173,13-1,FALSE)*(AA$10-$V$10+1)))*$U28 -> 255.5540087 | AB28: =(1-MIN(0,VLOOKUP($E28,OLTC_Taps!$D$147:$H$173,6-1,FALSE)+VLOOKUP($E28,OLTC_Taps!$D$147:$O$173,13-1,FALSE)*(AB$10-$V$10+1)))*$U28 -> 255.5540087 | AC28: =(1-MIN(0,VLOOKUP($E28,OLTC_Taps!$D$147:$H$173,6-1,FALSE)+VLOOKUP($E28,OLTC_Taps!$D$147:$O$173,13-1,FALSE)*(AC$10-$V$10+1)))*$U28 -> 255.5540087 | AD28: =(1-MIN(0,VLOOKUP($E28,OLTC_Taps!$D$147:$H$173,6-1,FALSE)+VLOOKUP($E28,OLTC_Taps!$D$147:$O$173,13-1,FALSE)*(AD$10-$V$10+1)))*$U28 -> 255.5540087 | AE28: =(1-MIN(0,VLOOKUP($E28,OLTC_Taps!$D$147:$H$173,6-1,FALSE)+VLOOKUP($E28,OLTC_Taps!$D$147:$O$173,13-1,FALSE)*(AE$10-$V$10+1)))*$U28 -> 255.5540087 | AG28: =COUNTIFS('06Dec24'!$E:$E,">"&253-U28+$U28-$BG28,'06Dec24'!$D:$D,$D28)/COUNTIF('06Dec24'!$D:$D,$D28) -> 0.0347588717 | AH28: =COUNTIFS('06Dec24'!$E:$E,">"&253-V28+$U28-$BG28,'06Dec24'!$D:$D,$D28)/COUNTIF('06Dec24'!$D:$D,$D28) -> 0.0347588717 | AI28: =COUNTIFS('06Dec24'!$E:$E,">"&253-W28+$U28-$BG28,'06Dec24'!$D:$D,$D28)/COUNTIF('06Dec24'!$D:$D,$D28) -> 0.0347588717 | AJ28: =COUNTIFS('06Dec24'!$E:$E,">"&253-X28+$U28-$BG28,'06Dec24'!$D:$D,$D28)/COUNTIF('06Dec24'!$D:$D,$D28) -> 0.0347588717 | AK28: =COUNTIFS('06Dec24'!$E:$E,">"&253-Y28+$U28-$BG28,'06Dec24'!$D:$D,$D28)/COUNTIF('06Dec24'!$D:$D,$D28) -> 0.0347588717 | AL28: =COUNTIFS('06Dec24'!$E:$E,">"&253-Z28+$U28-$BG28,'06Dec24'!$D:$D,$D28)/COUNTIF('06Dec24'!$D:$D,$D28) -> 0.0347588717 | AM28: =COUNTIFS('06Dec24'!$E:$E,">"&253-AA28+$U28-$BG28,'06Dec24'!$D:$D,$D28)/COUNTIF('06Dec24'!$D:$D,$D28) -> 0.0347588717 | AN28: =COUNTIFS('06Dec24'!$E:$E,">"&253-AB28+$U28-$BG28,'06Dec24'!$D:$D,$D28)/COUNTIF('06Dec24'!$D:$D,$D28) -> 0.0347588717 | AO28: =COUNTIFS('06Dec24'!$E:$E,">"&253-AC28+$U28-$BG28,'06Dec24'!$D:$D,$D28)/COUNTIF('06Dec24'!$D:$D,$D28) -> 0.0347588717 | AP28: =COUNTIFS('06Dec24'!$E:$E,">"&253-AD28+$U28-$BG28,'06Dec24'!$D:$D,$D28)/COUNTIF('06Dec24'!$D:$D,$D28) -> 0.0347588717 | AQ28: =COUNTIFS('06Dec24'!$E:$E,">"&253-AE28+$U28-$BG28,'06Dec24'!$D:$D,$D28)/COUNTIF('06Dec24'!$D:$D,$D28) -> 0.0347588717 | AW28: =IF(OR(SUM($AS28:AV28)>0,RANK(M28,M$11:M$41)>AW$6),"",1) ->  | AX28: =IF(OR(SUM($AS28:AW28)>0,RANK(N28,N$11:N$41)>AX$6),"",1) ->  | AY28: =IF(OR(SUM($AS28:AX28)>0,RANK(O28,O$11:O$41)>AY$6),"",1) ->  | AZ28: =IF(OR(SUM($AS28:AY28)>0,RANK(P28,P$11:P$41)>AZ$6),"",1) -> 1 | BA28: =IF(OR(SUM($AS28:AZ28)>0,RANK(Q28,Q$11:Q$41)>BA$6),"",1) ->  | BB28: =IF(OR(SUM($AS28:BA28)>0,RANK(R28,R$11:R$41)>BB$6),"",1) ->  | BC28: =IF(OR(SUM($AS28:BB28)>0,RANK(S28,S$11:S$41)>BC$6),"",1) ->  | BG28: =VLOOKUP($D28,Table!$A$4:$M$34,COLUMN(Table!$M:$M),FALSE) -> 0
D29: PV0 | E29: PV | F29: =VLOOKUP($D29,Table!$A$4:$N$34,COLUMN(Table!$N:$N),FALSE) -> 24800 | G29: 2030 | H29: =_xlfn.RANK.EQ($G29,$G$11:$G$41,1)+COUNTIF($G$11:$G29,$G29)-1 -> 20 | I29: =$F29/$F$43*AG29*General!$J$17 -> 0.000370785363 | J29: =$F29/$F$43*AH29*General!$J$17 -> 0.000370785363 | K29: =$F29/$F$43*AI29*General!$J$17 -> 0.000370785363 | L29: =$F29/$F$43*AJ29*General!$J$17 -> 0.000370785363 | M29: =$F29/$F$43*AK29*General!$J$17 -> 0.000370785363 | N29: =$F29/$F$43*AL29*General!$J$17 -> 0.000370785363 | O29: =$F29/$F$43*AM29*General!$J$17 -> 0.000370785363 | P29: =$F29/$F$43*AN29*General!$J$17 -> 0.000370785363 | Q29: =$F29/$F$43*AO29*General!$J$17 -> 0.000370785363 | R29: =$F29/$F$43*AP29*General!$J$17 -> 0.000370785363 | S29: =$F29/$F$43*AQ29*General!$J$17 -> 0.000370785363 | U29: =VLOOKUP($D29,Table!$A$4:$L$34,COLUMN(Table!J:J),FALSE) -> 252.6962727 | V29: =(1-MIN(0,VLOOKUP($E29,OLTC_Taps!$D$147:$H$173,6-1,FALSE)+VLOOKUP($E29,OLTC_Taps!$D$147:$N$173,12-1,FALSE)*(V$10-$V$10+1)))*$U29 -> 252.6962727 | W29: =(1-MIN(0,VLOOKUP($E29,OLTC_Taps!$D$147:$H$173,6-1,FALSE)+VLOOKUP($E29,OLTC_Taps!$D$147:$N$173,12-1,FALSE)*(W$10-$V$10+1)))*$U29 -> 252.6962727 | X29: =(1-MIN(0,VLOOKUP($E29,OLTC_Taps!$D$147:$H$173,6-1,FALSE)+VLOOKUP($E29,OLTC_Taps!$D$147:$N$173,12-1,FALSE)*(X$10-$V$10+1)))*$U29 -> 252.6962727 | Y29: =(1-MIN(0,VLOOKUP($E29,OLTC_Taps!$D$147:$H$173,6-1,FALSE)+VLOOKUP($E29,OLTC_Taps!$D$147:$N$173,12-1,FALSE)*(Y$10-$V$10+1)))*$U29 -> 252.6962727 | Z29: =(1-MIN(0,VLOOKUP($E29,OLTC_Taps!$D$147:$H$173,6-1,FALSE)+VLOOKUP($E29,OLTC_Taps!$D$147:$O$173,13-1,FALSE)*(Z$10-$V$10+1)))*$U29 -> 252.6962727 | AA29: =(1-MIN(0,VLOOKUP($E29,OLTC_Taps!$D$147:$H$173,6-1,FALSE)+VLOOKUP($E29,OLTC_Taps!$D$147:$O$173,13-1,FALSE)*(AA$10-$V$10+1)))*$U29 -> 252.6962727 | AB29: =(1-MIN(0,VLOOKUP($E29,OLTC_Taps!$D$147:$H$173,6-1,FALSE)+VLOOKUP($E29,OLTC_Taps!$D$147:$O$173,13-1,FALSE)*(AB$10-$V$10+1)))*$U29 -> 252.6962727 | AC29: =(1-MIN(0,VLOOKUP($E29,OLTC_Taps!$D$147:$H$173,6-1,FALSE)+VLOOKUP($E29,OLTC_Taps!$D$147:$O$173,13-1,FALSE)*(AC$10-$V$10+1)))*$U29 -> 252.6962727 | AD29: =(1-MIN(0,VLOOKUP($E29,OLTC_Taps!$D$147:$H$173,6-1,FALSE)+VLOOKUP($E29,OLTC_Taps!$D$147:$O$173,13-1,FALSE)*(AD$10-$V$10+1)))*$U29 -> 252.6962727 | AE29: =(1-MIN(0,VLOOKUP($E29,OLTC_Taps!$D$147:$H$173,6-1,FALSE)+VLOOKUP($E29,OLTC_Taps!$D$147:$O$173,13-1,FALSE)*(AE$10-$V$10+1)))*$U29 -> 252.6962727 | AG29: =COUNTIFS('06Dec24'!$E:$E,">"&253-U29+$U29-$BG29,'06Dec24'!$D:$D,$D29)/COUNTIF('06Dec24'!$D:$D,$D29) -> 0.007298387097 | AH29: =COUNTIFS('06Dec24'!$E:$E,">"&253-V29+$U29-$BG29,'06Dec24'!$D:$D,$D29)/COUNTIF('06Dec24'!$D:$D,$D29) -> 0.007298387097 | AI29: =COUNTIFS('06Dec24'!$E:$E,">"&253-W29+$U29-$BG29,'06Dec24'!$D:$D,$D29)/COUNTIF('06Dec24'!$D:$D,$D29) -> 0.007298387097 | AJ29: =COUNTIFS('06Dec24'!$E:$E,">"&253-X29+$U29-$BG29,'06Dec24'!$D:$D,$D29)/COUNTIF('06Dec24'!$D:$D,$D29) -> 0.007298387097 | AK29: =COUNTIFS('06Dec24'!$E:$E,">"&253-Y29+$U29-$BG29,'06Dec24'!$D:$D,$D29)/COUNTIF('06Dec24'!$D:$D,$D29) -> 0.007298387097 | AL29: =COUNTIFS('06Dec24'!$E:$E,">"&253-Z29+$U29-$BG29,'06Dec24'!$D:$D,$D29)/COUNTIF('06Dec24'!$D:$D,$D29) -> 0.007298387097 | AM29: =COUNTIFS('06Dec24'!$E:$E,">"&253-AA29+$U29-$BG29,'06Dec24'!$D:$D,$D29)/COUNTIF('06Dec24'!$D:$D,$D29) -> 0.007298387097 | AN29: =COUNTIFS('06Dec24'!$E:$E,">"&253-AB29+$U29-$BG29,'06Dec24'!$D:$D,$D29)/COUNTIF('06Dec24'!$D:$D,$D29) -> 0.007298387097 | AO29: =COUNTIFS('06Dec24'!$E:$E,">"&253-AC29+$U29-$BG29,'06Dec24'!$D:$D,$D29)/COUNTIF('06Dec24'!$D:$D,$D29) -> 0.007298387097 | AP29: =COUNTIFS('06Dec24'!$E:$E,">"&253-AD29+$U29-$BG29,'06Dec24'!$D:$D,$D29)/COUNTIF('06Dec24'!$D:$D,$D29) -> 0.007298387097 | AQ29: =COUNTIFS('06Dec24'!$E:$E,">"&253-AE29+$U29-$BG29,'06Dec24'!$D:$D,$D29)/COUNTIF('06Dec24'!$D:$D,$D29) -> 0.007298387097 | AW29: =IF(OR(SUM($AS29:AV29)>0,RANK(M29,M$11:M$41)>AW$6),"",1) ->  | AX29: =IF(OR(SUM($AS29:AW29)>0,RANK(N29,N$11:N$41)>AX$6),"",1) ->  | AY29: =IF(OR(SUM($AS29:AX29)>0,RANK(O29,O$11:O$41)>AY$6),"",1) ->  | AZ29: =IF(OR(SUM($AS29:AY29)>0,RANK(P29,P$11:P$41)>AZ$6),"",1) -> 1 | BA29: =IF(OR(SUM($AS29:AZ29)>0,RANK(Q29,Q$11:Q$41)>BA$6),"",1) ->  | BB29: =IF(OR(SUM($AS29:BA29)>0,RANK(R29,R$11:R$41)>BB$6),"",1) ->  | BC29: =IF(OR(SUM($AS29:BB29)>0,RANK(S29,S$11:S$41)>BC$6),"",1) ->  | BG29: =VLOOKUP($D29,Table!$A$4:$M$34,COLUMN(Table!$M:$M),FALSE) -> 0.3037273463
D30: FT0 | E30: FT | F30: =VLOOKUP($D30,Table!$A$4:$N$34,COLUMN(Table!$N:$N),FALSE) -> 17389 | G30: 2030 | H30: =_xlfn.RANK.EQ($G30,$G$11:$G$41,1)+COUNTIF($G$11:$G30,$G30)-1 -> 21 | I30: =$F30/$F$43*AG30*General!$J$17 -> 0.0003666882871 | J30: =$F30/$F$43*AH30*General!$J$17 -> 0.0003666882871 | K30: =$F30/$F$43*AI30*General!$J$17 -> 0.0003666882871 | L30: =$F30/$F$43*AJ30*General!$J$17 -> 0.0003666882871 | M30: =$F30/$F$43*AK30*General!$J$17 -> 0.0003666882871 | N30: =$F30/$F$43*AL30*General!$J$17 -> 0.0003666882871 | O30: =$F30/$F$43*AM30*General!$J$17 -> 0.0003666882871 | P30: =$F30/$F$43*AN30*General!$J$17 -> 0.0003666882871 | Q30: =$F30/$F$43*AO30*General!$J$17 -> 0.0003666882871 | R30: =$F30/$F$43*AP30*General!$J$17 -> 0.0003666882871 | S30: =$F30/$F$43*AQ30*General!$J$17 -> 0.0003666882871 | U30: =VLOOKUP($D30,Table!$A$4:$L$34,COLUMN(Table!J:J),FALSE) -> 253.5398061 | V30: =(1-MIN(0,VLOOKUP($E30,OLTC_Taps!$D$147:$H$173,6-1,FALSE)+VLOOKUP($E30,OLTC_Taps!$D$147:$N$173,12-1,FALSE)*(V$10-$V$10+1)))*$U30 -> 253.5398061 | W30: =(1-MIN(0,VLOOKUP($E30,OLTC_Taps!$D$147:$H$173,6-1,FALSE)+VLOOKUP($E30,OLTC_Taps!$D$147:$N$173,12-1,FALSE)*(W$10-$V$10+1)))*$U30 -> 253.5398061 | X30: =(1-MIN(0,VLOOKUP($E30,OLTC_Taps!$D$147:$H$173,6-1,FALSE)+VLOOKUP($E30,OLTC_Taps!$D$147:$N$173,12-1,FALSE)*(X$10-$V$10+1)))*$U30 -> 253.5398061 | Y30: =(1-MIN(0,VLOOKUP($E30,OLTC_Taps!$D$147:$H$173,6-1,FALSE)+VLOOKUP($E30,OLTC_Taps!$D$147:$N$173,12-1,FALSE)*(Y$10-$V$10+1)))*$U30 -> 253.5398061 | Z30: =(1-MIN(0,VLOOKUP($E30,OLTC_Taps!$D$147:$H$173,6-1,FALSE)+VLOOKUP($E30,OLTC_Taps!$D$147:$O$173,13-1,FALSE)*(Z$10-$V$10+1)))*$U30 -> 253.5398061 | AA30: =(1-MIN(0,VLOOKUP($E30,OLTC_Taps!$D$147:$H$173,6-1,FALSE)+VLOOKUP($E30,OLTC_Taps!$D$147:$O$173,13-1,FALSE)*(AA$10-$V$10+1)))*$U30 -> 253.5398061 | AB30: =(1-MIN(0,VLOOKUP($E30,OLTC_Taps!$D$147:$H$173,6-1,FALSE)+VLOOKUP($E30,OLTC_Taps!$D$147:$O$173,13-1,FALSE)*(AB$10-$V$10+1)))*$U30 -> 253.5398061 | AC30: =(1-MIN(0,VLOOKUP($E30,OLTC_Taps!$D$147:$H$173,6-1,FALSE)+VLOOKUP($E30,OLTC_Taps!$D$147:$O$173,13-1,FALSE)*(AC$10-$V$10+1)))*$U30 -> 253.5398061 | AD30: =(1-MIN(0,VLOOKUP($E30,OLTC_Taps!$D$147:$H$173,6-1,FALSE)+VLOOKUP($E30,OLTC_Taps!$D$147:$O$173,13-1,FALSE)*(AD$10-$V$10+1)))*$U30 -> 253.5398061 | AE30: =(1-MIN(0,VLOOKUP($E30,OLTC_Taps!$D$147:$H$173,6-1,FALSE)+VLOOKUP($E30,OLTC_Taps!$D$147:$O$173,13-1,FALSE)*(AE$10-$V$10+1)))*$U30 -> 253.5398061 | AG30: =COUNTIFS('06Dec24'!$E:$E,">"&253-U30+$U30-$BG30,'06Dec24'!$D:$D,$D30)/COUNTIF('06Dec24'!$D:$D,$D30) -> 0.01029386394 | AH30: =COUNTIFS('06Dec24'!$E:$E,">"&253-V30+$U30-$BG30,'06Dec24'!$D:$D,$D30)/COUNTIF('06Dec24'!$D:$D,$D30) -> 0.01029386394 | AI30: =COUNTIFS('06Dec24'!$E:$E,">"&253-W30+$U30-$BG30,'06Dec24'!$D:$D,$D30)/COUNTIF('06Dec24'!$D:$D,$D30) -> 0.01029386394 | AJ30: =COUNTIFS('06Dec24'!$E:$E,">"&253-X30+$U30-$BG30,'06Dec24'!$D:$D,$D30)/COUNTIF('06Dec24'!$D:$D,$D30) -> 0.01029386394 | AK30: =COUNTIFS('06Dec24'!$E:$E,">"&253-Y30+$U30-$BG30,'06Dec24'!$D:$D,$D30)/COUNTIF('06Dec24'!$D:$D,$D30) -> 0.01029386394 | AL30: =COUNTIFS('06Dec24'!$E:$E,">"&253-Z30+$U30-$BG30,'06Dec24'!$D:$D,$D30)/COUNTIF('06Dec24'!$D:$D,$D30) -> 0.01029386394 | AM30: =COUNTIFS('06Dec24'!$E:$E,">"&253-AA30+$U30-$BG30,'06Dec24'!$D:$D,$D30)/COUNTIF('06Dec24'!$D:$D,$D30) -> 0.01029386394 | AN30: =COUNTIFS('06Dec24'!$E:$E,">"&253-AB30+$U30-$BG30,'06Dec24'!$D:$D,$D30)/COUNTIF('06Dec24'!$D:$D,$D30) -> 0.01029386394 | AO30: =COUNTIFS('06Dec24'!$E:$E,">"&253-AC30+$U30-$BG30,'06Dec24'!$D:$D,$D30)/COUNTIF('06Dec24'!$D:$D,$D30) -> 0.01029386394 | AP30: =COUNTIFS('06Dec24'!$E:$E,">"&253-AD30+$U30-$BG30,'06Dec24'!$D:$D,$D30)/COUNTIF('06Dec24'!$D:$D,$D30) -> 0.01029386394 | AQ30: =COUNTIFS('06Dec24'!$E:$E,">"&253-AE30+$U30-$BG30,'06Dec24'!$D:$D,$D30)/COUNTIF('06Dec24'!$D:$D,$D30) -> 0.01029386394 | AW30: =IF(OR(SUM($AS30:AV30)>0,RANK(M30,M$11:M$41)>AW$6),"",1) ->  | AX30: =IF(OR(SUM($AS30:AW30)>0,RANK(N30,N$11:N$41)>AX$6),"",1) ->  | AY30: =IF(OR(SUM($AS30:AX30)>0,RANK(O30,O$11:O$41)>AY$6),"",1) ->  | AZ30: =IF(OR(SUM($AS30:AY30)>0,RANK(P30,P$11:P$41)>AZ$6),"",1) -> 1 | BA30: =IF(OR(SUM($AS30:AZ30)>0,RANK(Q30,Q$11:Q$41)>BA$6),"",1) ->  | BB30: =IF(OR(SUM($AS30:BA30)>0,RANK(R30,R$11:R$41)>BB$6),"",1) ->  | BC30: =IF(OR(SUM($AS30:BB30)>0,RANK(S30,S$11:S$41)>BC$6),"",1) ->  | BG30: =VLOOKUP($D30,Table!$A$4:$M$34,COLUMN(Table!$M:$M),FALSE) -> 0
D31: COO | E31: COO | F31: =VLOOKUP($D31,Table!$A$4:$N$34,COLUMN(Table!$N:$N),FALSE) -> 18932 | G31: 2030 | H31: =_xlfn.RANK.EQ($G31,$G$11:$G$41,1)+COUNTIF($G$11:$G31,$G31)-1 -> 22 | I31: =$F31/$F$43*AG31*General!$J$17 -> 0.0003502999838 | J31: =$F31/$F$43*AH31*General!$J$17 -> 0.0003502999838 | K31: =$F31/$F$43*AI31*General!$J$17 -> 0.0003502999838 | L31: =$F31/$F$43*AJ31*General!$J$17 -> 0.0003502999838 | M31: =$F31/$F$43*AK31*General!$J$17 -> 0.0003502999838 | N31: =$F31/$F$43*AL31*General!$J$17 -> 0.0003502999838 | O31: =$F31/$F$43*AM31*General!$J$17 -> 0.0003502999838 | P31: =$F31/$F$43*AN31*General!$J$17 -> 0.0003502999838 | Q31: =$F31/$F$43*AO31*General!$J$17 -> 0.0003502999838 | R31: =$F31/$F$43*AP31*General!$J$17 -> 0.0003502999838 | S31: =$F31/$F$43*AQ31*General!$J$17 -> 0.0005776876926 | U31: =VLOOKUP($D31,Table!$A$4:$L$34,COLUMN(Table!J:J),FALSE) -> 251.902225 | V31: =(1-MIN(0,VLOOKUP($E31,OLTC_Taps!$D$147:$H$173,6-1,FALSE)+VLOOKUP($E31,OLTC_Taps!$D$147:$N$173,12-1,FALSE)*(V$10-$V$10+1)))*$U31 -> 251.902225 | W31: =(1-MIN(0,VLOOKUP($E31,OLTC_Taps!$D$147:$H$173,6-1,FALSE)+VLOOKUP($E31,OLTC_Taps!$D$147:$N$173,12-1,FALSE)*(W$10-$V$10+1)))*$U31 -> 251.902225 | X31: =(1-MIN(0,VLOOKUP($E31,OLTC_Taps!$D$147:$H$173,6-1,FALSE)+VLOOKUP($E31,OLTC_Taps!$D$147:$N$173,12-1,FALSE)*(X$10-$V$10+1)))*$U31 -> 251.902225 | Y31: =(1-MIN(0,VLOOKUP($E31,OLTC_Taps!$D$147:$H$173,6-1,FALSE)+VLOOKUP($E31,OLTC_Taps!$D$147:$N$173,12-1,FALSE)*(Y$10-$V$10+1)))*$U31 -> 251.902225 | Z31: =(1-MIN(0,VLOOKUP($E31,OLTC_Taps!$D$147:$H$173,6-1,FALSE)+VLOOKUP($E31,OLTC_Taps!$D$147:$O$173,13-1,FALSE)*(Z$10-$V$10+1)))*$U31 -> 251.902225 | AA31: =(1-MIN(0,VLOOKUP($E31,OLTC_Taps!$D$147:$H$173,6-1,FALSE)+VLOOKUP($E31,OLTC_Taps!$D$147:$O$173,13-1,FALSE)*(AA$10-$V$10+1)))*$U31 -> 251.902225 | AB31: =(1-MIN(0,VLOOKUP($E31,OLTC_Taps!$D$147:$H$173,6-1,FALSE)+VLOOKUP($E31,OLTC_Taps!$D$147:$O$173,13-1,FALSE)*(AB$10-$V$10+1)))*$U31 -> 251.902225 | AC31: =(1-MIN(0,VLOOKUP($E31,OLTC_Taps!$D$147:$H$173,6-1,FALSE)+VLOOKUP($E31,OLTC_Taps!$D$147:$O$173,13-1,FALSE)*(AC$10-$V$10+1)))*$U31 -> 251.902225 | AD31: =(1-MIN(0,VLOOKUP($E31,OLTC_Taps!$D$147:$H$173,6-1,FALSE)+VLOOKUP($E31,OLTC_Taps!$D$147:$O$173,13-1,FALSE)*(AD$10-$V$10+1)))*$U31 -> 251.902225 | AE31: =(1-MIN(0,VLOOKUP($E31,OLTC_Taps!$D$147:$H$173,6-1,FALSE)+VLOOKUP($E31,OLTC_Taps!$D$147:$O$173,13-1,FALSE)*(AE$10-$V$10+1)))*$U31 -> 252.402586 | AG31: =COUNTIFS('06Dec24'!$E:$E,">"&253-U31+$U31-$BG31,'06Dec24'!$D:$D,$D31)/COUNTIF('06Dec24'!$D:$D,$D31) -> 0.00903232622 | AH31: =COUNTIFS('06Dec24'!$E:$E,">"&253-V31+$U31-$BG31,'06Dec24'!$D:$D,$D31)/COUNTIF('06Dec24'!$D:$D,$D31) -> 0.00903232622 | AI31: =COUNTIFS('06Dec24'!$E:$E,">"&253-W31+$U31-$BG31,'06Dec24'!$D:$D,$D31)/COUNTIF('06Dec24'!$D:$D,$D31) -> 0.00903232622 | AJ31: =COUNTIFS('06Dec24'!$E:$E,">"&253-X31+$U31-$BG31,'06Dec24'!$D:$D,$D31)/COUNTIF('06Dec24'!$D:$D,$D31) -> 0.00903232622 | AK31: =COUNTIFS('06Dec24'!$E:$E,">"&253-Y31+$U31-$BG31,'06Dec24'!$D:$D,$D31)/COUNTIF('06Dec24'!$D:$D,$D31) -> 0.00903232622 | AL31: =COUNTIFS('06Dec24'!$E:$E,">"&253-Z31+$U31-$BG31,'06Dec24'!$D:$D,$D31)/COUNTIF('06Dec24'!$D:$D,$D31) -> 0.00903232622 | AM31: =COUNTIFS('06Dec24'!$E:$E,">"&253-AA31+$U31-$BG31,'06Dec24'!$D:$D,$D31)/COUNTIF('06Dec24'!$D:$D,$D31) -> 0.00903232622 | AN31: =COUNTIFS('06Dec24'!$E:$E,">"&253-AB31+$U31-$BG31,'06Dec24'!$D:$D,$D31)/COUNTIF('06Dec24'!$D:$D,$D31) -> 0.00903232622 | AO31: =COUNTIFS('06Dec24'!$E:$E,">"&253-AC31+$U31-$BG31,'06Dec24'!$D:$D,$D31)/COUNTIF('06Dec24'!$D:$D,$D31) -> 0.00903232622 | AP31: =COUNTIFS('06Dec24'!$E:$E,">"&253-AD31+$U31-$BG31,'06Dec24'!$D:$D,$D31)/COUNTIF('06Dec24'!$D:$D,$D31) -> 0.00903232622 | AQ31: =COUNTIFS('06Dec24'!$E:$E,">"&253-AE31+$U31-$BG31,'06Dec24'!$D:$D,$D31)/COUNTIF('06Dec24'!$D:$D,$D31) -> 0.01489541517 | AW31: =IF(OR(SUM($AS31:AV31)>0,RANK(M31,M$11:M$41)>AW$6),"",1) ->  | AX31: =IF(OR(SUM($AS31:AW31)>0,RANK(N31,N$11:N$41)>AX$6),"",1) ->  | AY31: =IF(OR(SUM($AS31:AX31)>0,RANK(O31,O$11:O$41)>AY$6),"",1) ->  | AZ31: =IF(OR(SUM($AS31:AY31)>0,RANK(P31,P$11:P$41)>AZ$6),"",1) -> 1 | BA31: =IF(OR(SUM($AS31:AZ31)>0,RANK(Q31,Q$11:Q$41)>BA$6),"",1) ->  | BB31: =IF(OR(SUM($AS31:BA31)>0,RANK(R31,R$11:R$41)>BB$6),"",1) ->  | BC31: =IF(OR(SUM($AS31:BB31)>0,RANK(S31,S$11:S$41)>BC$6),"",1) ->  | BG31: =VLOOKUP($D31,Table!$A$4:$M$34,COLUMN(Table!$M:$M),FALSE) -> 1.09777496
D32: NT0 | E32: NT | F32: =VLOOKUP($D32,Table!$A$4:$N$34,COLUMN(Table!$N:$N),FALSE) -> 18484 | G32: 2030 | H32: =_xlfn.RANK.EQ($G32,$G$11:$G$41,1)+COUNTIF($G$11:$G32,$G32)-1 -> 23 | I32: =$F32/$F$43*AG32*General!$J$17 -> 0.00034415437 | J32: =$F32/$F$43*AH32*General!$J$17 -> 0.00034415437 | K32: =$F32/$F$43*AI32*General!$J$17 -> 0.00034415437 | L32: =$F32/$F$43*AJ32*General!$J$17 -> 0.00034415437 | M32: =$F32/$F$43*AK32*General!$J$17 -> 0.00034415437 | N32: =$F32/$F$43*AL32*General!$J$17 -> 0.00034415437 | O32: =$F32/$F$43*AM32*General!$J$17 -> 0.00034415437 | P32: =$F32/$F$43*AN32*General!$J$17 -> 0.00034415437 | Q32: =$F32/$F$43*AO32*General!$J$17 -> 0.00034415437 | R32: =$F32/$F$43*AP32*General!$J$17 -> 0.00034415437 | S32: =$F32/$F$43*AQ32*General!$J$17 -> 0.00034415437 | U32: =VLOOKUP($D32,Table!$A$4:$L$34,COLUMN(Table!J:J),FALSE) -> 250.3639351 | V32: =(1-MIN(0,VLOOKUP($E32,OLTC_Taps!$D$147:$H$173,6-1,FALSE)+VLOOKUP($E32,OLTC_Taps!$D$147:$N$173,12-1,FALSE)*(V$10-$V$10+1)))*$U32 -> 250.3639351 | W32: =(1-MIN(0,VLOOKUP($E32,OLTC_Taps!$D$147:$H$173,6-1,FALSE)+VLOOKUP($E32,OLTC_Taps!$D$147:$N$173,12-1,FALSE)*(W$10-$V$10+1)))*$U32 -> 250.3639351 | X32: =(1-MIN(0,VLOOKUP($E32,OLTC_Taps!$D$147:$H$173,6-1,FALSE)+VLOOKUP($E32,OLTC_Taps!$D$147:$N$173,12-1,FALSE)*(X$10-$V$10+1)))*$U32 -> 250.3639351 | Y32: =(1-MIN(0,VLOOKUP($E32,OLTC_Taps!$D$147:$H$173,6-1,FALSE)+VLOOKUP($E32,OLTC_Taps!$D$147:$N$173,12-1,FALSE)*(Y$10-$V$10+1)))*$U32 -> 250.3639351 | Z32: =(1-MIN(0,VLOOKUP($E32,OLTC_Taps!$D$147:$H$173,6-1,FALSE)+VLOOKUP($E32,OLTC_Taps!$D$147:$O$173,13-1,FALSE)*(Z$10-$V$10+1)))*$U32 -> 250.3639351 | AA32: =(1-MIN(0,VLOOKUP($E32,OLTC_Taps!$D$147:$H$173,6-1,FALSE)+VLOOKUP($E32,OLTC_Taps!$D$147:$O$173,13-1,FALSE)*(AA$10-$V$10+1)))*$U32 -> 250.3639351 | AB32: =(1-MIN(0,VLOOKUP($E32,OLTC_Taps!$D$147:$H$173,6-1,FALSE)+VLOOKUP($E32,OLTC_Taps!$D$147:$O$173,13-1,FALSE)*(AB$10-$V$10+1)))*$U32 -> 250.3639351 | AC32: =(1-MIN(0,VLOOKUP($E32,OLTC_Taps!$D$147:$H$173,6-1,FALSE)+VLOOKUP($E32,OLTC_Taps!$D$147:$O$173,13-1,FALSE)*(AC$10-$V$10+1)))*$U32 -> 250.3639351 | AD32: =(1-MIN(0,VLOOKUP($E32,OLTC_Taps!$D$147:$H$173,6-1,FALSE)+VLOOKUP($E32,OLTC_Taps!$D$147:$O$173,13-1,FALSE)*(AD$10-$V$10+1)))*$U32 -> 250.3639351 | AE32: =(1-MIN(0,VLOOKUP($E32,OLTC_Taps!$D$147:$H$173,6-1,FALSE)+VLOOKUP($E32,OLTC_Taps!$D$147:$O$173,13-1,FALSE)*(AE$10-$V$10+1)))*$U32 -> 250.3639351 | AG32: =COUNTIFS('06Dec24'!$E:$E,">"&253-U32+$U32-$BG32,'06Dec24'!$D:$D,$D32)/COUNTIF('06Dec24'!$D:$D,$D32) -> 0.009088941787 | AH32: =COUNTIFS('06Dec24'!$E:$E,">"&253-V32+$U32-$BG32,'06Dec24'!$D:$D,$D32)/COUNTIF('06Dec24'!$D:$D,$D32) -> 0.009088941787 | AI32: =COUNTIFS('06Dec24'!$E:$E,">"&253-W32+$U32-$BG32,'06Dec24'!$D:$D,$D32)/COUNTIF('06Dec24'!$D:$D,$D32) -> 0.009088941787 | AJ32: =COUNTIFS('06Dec24'!$E:$E,">"&253-X32+$U32-$BG32,'06Dec24'!$D:$D,$D32)/COUNTIF('06Dec24'!$D:$D,$D32) -> 0.009088941787 | AK32: =COUNTIFS('06Dec24'!$E:$E,">"&253-Y32+$U32-$BG32,'06Dec24'!$D:$D,$D32)/COUNTIF('06Dec24'!$D:$D,$D32) -> 0.009088941787 | AL32: =COUNTIFS('06Dec24'!$E:$E,">"&253-Z32+$U32-$BG32,'06Dec24'!$D:$D,$D32)/COUNTIF('06Dec24'!$D:$D,$D32) -> 0.009088941787 | AM32: =COUNTIFS('06Dec24'!$E:$E,">"&253-AA32+$U32-$BG32,'06Dec24'!$D:$D,$D32)/COUNTIF('06Dec24'!$D:$D,$D32) -> 0.009088941787 | AN32: =COUNTIFS('06Dec24'!$E:$E,">"&253-AB32+$U32-$BG32,'06Dec24'!$D:$D,$D32)/COUNTIF('06Dec24'!$D:$D,$D32) -> 0.009088941787 | AO32: =COUNTIFS('06Dec24'!$E:$E,">"&253-AC32+$U32-$BG32,'06Dec24'!$D:$D,$D32)/COUNTIF('06Dec24'!$D:$D,$D32) -> 0.009088941787 | AP32: =COUNTIFS('06Dec24'!$E:$E,">"&253-AD32+$U32-$BG32,'06Dec24'!$D:$D,$D32)/COUNTIF('06Dec24'!$D:$D,$D32) -> 0.009088941787 | AQ32: =COUNTIFS('06Dec24'!$E:$E,">"&253-AE32+$U32-$BG32,'06Dec24'!$D:$D,$D32)/COUNTIF('06Dec24'!$D:$D,$D32) -> 0.009088941787 | AW32: =IF(OR(SUM($AS32:AV32)>0,RANK(M32,M$11:M$41)>AW$6),"",1) ->  | AX32: =IF(OR(SUM($AS32:AW32)>0,RANK(N32,N$11:N$41)>AX$6),"",1) ->  | AY32: =IF(OR(SUM($AS32:AX32)>0,RANK(O32,O$11:O$41)>AY$6),"",1) ->  | AZ32: =IF(OR(SUM($AS32:AY32)>0,RANK(P32,P$11:P$41)>AZ$6),"",1) -> 1 | BA32: =IF(OR(SUM($AS32:AZ32)>0,RANK(Q32,Q$11:Q$41)>BA$6),"",1) ->  | BB32: =IF(OR(SUM($AS32:BA32)>0,RANK(R32,R$11:R$41)>BB$6),"",1) ->  | BC32: =IF(OR(SUM($AS32:BB32)>0,RANK(S32,S$11:S$41)>BC$6),"",1) ->  | BG32: =VLOOKUP($D32,Table!$A$4:$M$34,COLUMN(Table!$M:$M),FALSE) -> 2.636064924
D33: HB0 | E33: HB | F33: =VLOOKUP($D33,Table!$A$4:$N$34,COLUMN(Table!$N:$N),FALSE) -> 14053 | G33: 2025 | H33: =_xlfn.RANK.EQ($G33,$G$11:$G$41,1)+COUNTIF($G$11:$G33,$G33)-1 -> 4 | I33: =$F33/$F$43*AG33*General!$J$17 -> 0.000270407005 | J33: =$F33/$F$43*AH33*General!$J$17 -> 0.000270407005 | K33: =$F33/$F$43*AI33*General!$J$17 -> 0.000270407005 | L33: =$F33/$F$43*AJ33*General!$J$17 -> 0.000270407005 | M33: =$F33/$F$43*AK33*General!$J$17 -> 0.000270407005 | N33: =$F33/$F$43*AL33*General!$J$17 -> 0.000270407005 | O33: =$F33/$F$43*AM33*General!$J$17 -> 0.000270407005 | P33: =$F33/$F$43*AN33*General!$J$17 -> 0.000270407005 | Q33: =$F33/$F$43*AO33*General!$J$17 -> 0.000270407005 | R33: =$F33/$F$43*AP33*General!$J$17 -> 0.000270407005 | S33: =$F33/$F$43*AQ33*General!$J$17 -> 0.000270407005 | U33: =VLOOKUP($D33,Table!$A$4:$L$34,COLUMN(Table!J:J),FALSE) -> 252.9302058 | V33: =(1-MIN(0,VLOOKUP($E33,OLTC_Taps!$D$147:$H$173,6-1,FALSE)+VLOOKUP($E33,OLTC_Taps!$D$147:$N$173,12-1,FALSE)*(V$10-$V$10+1)))*$U33 -> 252.9302058 | W33: =(1-MIN(0,VLOOKUP($E33,OLTC_Taps!$D$147:$H$173,6-1,FALSE)+VLOOKUP($E33,OLTC_Taps!$D$147:$N$173,12-1,FALSE)*(W$10-$V$10+1)))*$U33 -> 252.9302058 | X33: =(1-MIN(0,VLOOKUP($E33,OLTC_Taps!$D$147:$H$173,6-1,FALSE)+VLOOKUP($E33,OLTC_Taps!$D$147:$N$173,12-1,FALSE)*(X$10-$V$10+1)))*$U33 -> 252.9302058 | Y33: =(1-MIN(0,VLOOKUP($E33,OLTC_Taps!$D$147:$H$173,6-1,FALSE)+VLOOKUP($E33,OLTC_Taps!$D$147:$N$173,12-1,FALSE)*(Y$10-$V$10+1)))*$U33 -> 252.9302058 | Z33: =(1-MIN(0,VLOOKUP($E33,OLTC_Taps!$D$147:$H$173,6-1,FALSE)+VLOOKUP($E33,OLTC_Taps!$D$147:$O$173,13-1,FALSE)*(Z$10-$V$10+1)))*$U33 -> 252.9302058 | AA33: =(1-MIN(0,VLOOKUP($E33,OLTC_Taps!$D$147:$H$173,6-1,FALSE)+VLOOKUP($E33,OLTC_Taps!$D$147:$O$173,13-1,FALSE)*(AA$10-$V$10+1)))*$U33 -> 252.9302058 | AB33: =(1-MIN(0,VLOOKUP($E33,OLTC_Taps!$D$147:$H$173,6-1,FALSE)+VLOOKUP($E33,OLTC_Taps!$D$147:$O$173,13-1,FALSE)*(AB$10-$V$10+1)))*$U33 -> 252.9302058 | AC33: =(1-MIN(0,VLOOKUP($E33,OLTC_Taps!$D$147:$H$173,6-1,FALSE)+VLOOKUP($E33,OLTC_Taps!$D$147:$O$173,13-1,FALSE)*(AC$10-$V$10+1)))*$U33 -> 252.9302058 | AD33: =(1-MIN(0,VLOOKUP($E33,OLTC_Taps!$D$147:$H$173,6-1,FALSE)+VLOOKUP($E33,OLTC_Taps!$D$147:$O$173,13-1,FALSE)*(AD$10-$V$10+1)))*$U33 -> 252.9302058 | AE33: =(1-MIN(0,VLOOKUP($E33,OLTC_Taps!$D$147:$H$173,6-1,FALSE)+VLOOKUP($E33,OLTC_Taps!$D$147:$O$173,13-1,FALSE)*(AE$10-$V$10+1)))*$U33 -> 252.9302058 | AG33: =COUNTIFS('06Dec24'!$E:$E,">"&253-U33+$U33-$BG33,'06Dec24'!$D:$D,$D33)/COUNTIF('06Dec24'!$D:$D,$D33) -> 0.009393012168 | AH33: =COUNTIFS('06Dec24'!$E:$E,">"&253-V33+$U33-$BG33,'06Dec24'!$D:$D,$D33)/COUNTIF('06Dec24'!$D:$D,$D33) -> 0.009393012168 | AI33: =COUNTIFS('06Dec24'!$E:$E,">"&253-W33+$U33-$BG33,'06Dec24'!$D:$D,$D33)/COUNTIF('06Dec24'!$D:$D,$D33) -> 0.009393012168 | AJ33: =COUNTIFS('06Dec24'!$E:$E,">"&253-X33+$U33-$BG33,'06Dec24'!$D:$D,$D33)/COUNTIF('06Dec24'!$D:$D,$D33) -> 0.009393012168 | AK33: =COUNTIFS('06Dec24'!$E:$E,">"&253-Y33+$U33-$BG33,'06Dec24'!$D:$D,$D33)/COUNTIF('06Dec24'!$D:$D,$D33) -> 0.009393012168 | AL33: =COUNTIFS('06Dec24'!$E:$E,">"&253-Z33+$U33-$BG33,'06Dec24'!$D:$D,$D33)/COUNTIF('06Dec24'!$D:$D,$D33) -> 0.009393012168 | AM33: =COUNTIFS('06Dec24'!$E:$E,">"&253-AA33+$U33-$BG33,'06Dec24'!$D:$D,$D33)/COUNTIF('06Dec24'!$D:$D,$D33) -> 0.009393012168 | AN33: =COUNTIFS('06Dec24'!$E:$E,">"&253-AB33+$U33-$BG33,'06Dec24'!$D:$D,$D33)/COUNTIF('06Dec24'!$D:$D,$D33) -> 0.009393012168 | AO33: =COUNTIFS('06Dec24'!$E:$E,">"&253-AC33+$U33-$BG33,'06Dec24'!$D:$D,$D33)/COUNTIF('06Dec24'!$D:$D,$D33) -> 0.009393012168 | AP33: =COUNTIFS('06Dec24'!$E:$E,">"&253-AD33+$U33-$BG33,'06Dec24'!$D:$D,$D33)/COUNTIF('06Dec24'!$D:$D,$D33) -> 0.009393012168 | AQ33: =COUNTIFS('06Dec24'!$E:$E,">"&253-AE33+$U33-$BG33,'06Dec24'!$D:$D,$D33)/COUNTIF('06Dec24'!$D:$D,$D33) -> 0.009393012168 | AU33: 1 | AW33: =IF(OR(SUM($AS33:AV33)>0,RANK(M33,M$11:M$41)>AW$6),"",1) ->  | AX33: =IF(OR(SUM($AS33:AW33)>0,RANK(N33,N$11:N$41)>AX$6),"",1) ->  | AY33: =IF(OR(SUM($AS33:AX33)>0,RANK(O33,O$11:O$41)>AY$6),"",1) ->  | AZ33: =IF(OR(SUM($AS33:AY33)>0,RANK(P33,P$11:P$41)>AZ$6),"",1) ->  | BA33: =IF(OR(SUM($AS33:AZ33)>0,RANK(Q33,Q$11:Q$41)>BA$6),"",1) ->  | BB33: =IF(OR(SUM($AS33:BA33)>0,RANK(R33,R$11:R$41)>BB$6),"",1) ->  | BC33: =IF(OR(SUM($AS33:BB33)>0,RANK(S33,S$11:S$41)>BC$6),"",1) ->  | BG33: =VLOOKUP($D33,Table!$A$4:$M$34,COLUMN(Table!$M:$M),FALSE) -> 0.06979420184
D34: YVE | E34: YVE | F34: =VLOOKUP($D34,Table!$A$4:$N$34,COLUMN(Table!$N:$N),FALSE) -> 8417 | G34: 2030 | H34: =_xlfn.RANK.EQ($G34,$G$11:$G$41,1)+COUNTIF($G$11:$G34,$G34)-1 -> 24 | I34: =$F34/$F$43*AG34*General!$J$17 -> 0.0002519701638 | J34: =$F34/$F$43*AH34*General!$J$17 -> 0.0002519701638 | K34: =$F34/$F$43*AI34*General!$J$17 -> 0.0002519701638 | L34: =$F34/$F$43*AJ34*General!$J$17 -> 0.0002519701638 | M34: =$F34/$F$43*AK34*General!$J$17 -> 0.0002519701638 | N34: =$F34/$F$43*AL34*General!$J$17 -> 0.0002519701638 | O34: =$F34/$F$43*AM34*General!$J$17 -> 0.0002519701638 | P34: =$F34/$F$43*AN34*General!$J$17 -> 0.0002519701638 | Q34: =$F34/$F$43*AO34*General!$J$17 -> 0.0002519701638 | R34: =$F34/$F$43*AP34*General!$J$17 -> 0.0002519701638 | S34: =$F34/$F$43*AQ34*General!$J$17 -> 0.0002519701638 | U34: =VLOOKUP($D34,Table!$A$4:$L$34,COLUMN(Table!J:J),FALSE) -> 253.6948485 | V34: =(1-MIN(0,VLOOKUP($E34,OLTC_Taps!$D$147:$H$173,6-1,FALSE)+VLOOKUP($E34,OLTC_Taps!$D$147:$N$173,12-1,FALSE)*(V$10-$V$10+1)))*$U34 -> 253.6948485 | W34: =(1-MIN(0,VLOOKUP($E34,OLTC_Taps!$D$147:$H$173,6-1,FALSE)+VLOOKUP($E34,OLTC_Taps!$D$147:$N$173,12-1,FALSE)*(W$10-$V$10+1)))*$U34 -> 253.6948485 | X34: =(1-MIN(0,VLOOKUP($E34,OLTC_Taps!$D$147:$H$173,6-1,FALSE)+VLOOKUP($E34,OLTC_Taps!$D$147:$N$173,12-1,FALSE)*(X$10-$V$10+1)))*$U34 -> 253.6948485 | Y34: =(1-MIN(0,VLOOKUP($E34,OLTC_Taps!$D$147:$H$173,6-1,FALSE)+VLOOKUP($E34,OLTC_Taps!$D$147:$N$173,12-1,FALSE)*(Y$10-$V$10+1)))*$U34 -> 253.6948485 | Z34: =(1-MIN(0,VLOOKUP($E34,OLTC_Taps!$D$147:$H$173,6-1,FALSE)+VLOOKUP($E34,OLTC_Taps!$D$147:$O$173,13-1,FALSE)*(Z$10-$V$10+1)))*$U34 -> 253.6948485 | AA34: =(1-MIN(0,VLOOKUP($E34,OLTC_Taps!$D$147:$H$173,6-1,FALSE)+VLOOKUP($E34,OLTC_Taps!$D$147:$O$173,13-1,FALSE)*(AA$10-$V$10+1)))*$U34 -> 253.6948485 | AB34: =(1-MIN(0,VLOOKUP($E34,OLTC_Taps!$D$147:$H$173,6-1,FALSE)+VLOOKUP($E34,OLTC_Taps!$D$147:$O$173,13-1,FALSE)*(AB$10-$V$10+1)))*$U34 -> 253.6948485 | AC34: =(1-MIN(0,VLOOKUP($E34,OLTC_Taps!$D$147:$H$173,6-1,FALSE)+VLOOKUP($E34,OLTC_Taps!$D$147:$O$173,13-1,FALSE)*(AC$10-$V$10+1)))*$U34 -> 253.6948485 | AD34: =(1-MIN(0,VLOOKUP($E34,OLTC_Taps!$D$147:$H$173,6-1,FALSE)+VLOOKUP($E34,OLTC_Taps!$D$147:$O$173,13-1,FALSE)*(AD$10-$V$10+1)))*$U34 -> 253.6948485 | AE34: =(1-MIN(0,VLOOKUP($E34,OLTC_Taps!$D$147:$H$173,6-1,FALSE)+VLOOKUP($E34,OLTC_Taps!$D$147:$O$173,13-1,FALSE)*(AE$10-$V$10+1)))*$U34 -> 253.6948485 | AG34: =COUNTIFS('06Dec24'!$E:$E,">"&253-U34+$U34-$BG34,'06Dec24'!$D:$D,$D34)/COUNTIF('06Dec24'!$D:$D,$D34) -> 0.01461328264 | AH34: =COUNTIFS('06Dec24'!$E:$E,">"&253-V34+$U34-$BG34,'06Dec24'!$D:$D,$D34)/COUNTIF('06Dec24'!$D:$D,$D34) -> 0.01461328264 | AI34: =COUNTIFS('06Dec24'!$E:$E,">"&253-W34+$U34-$BG34,'06Dec24'!$D:$D,$D34)/COUNTIF('06Dec24'!$D:$D,$D34) -> 0.01461328264 | AJ34: =COUNTIFS('06Dec24'!$E:$E,">"&253-X34+$U34-$BG34,'06Dec24'!$D:$D,$D34)/COUNTIF('06Dec24'!$D:$D,$D34) -> 0.01461328264 | AK34: =COUNTIFS('06Dec24'!$E:$E,">"&253-Y34+$U34-$BG34,'06Dec24'!$D:$D,$D34)/COUNTIF('06Dec24'!$D:$D,$D34) -> 0.01461328264 | AL34: =COUNTIFS('06Dec24'!$E:$E,">"&253-Z34+$U34-$BG34,'06Dec24'!$D:$D,$D34)/COUNTIF('06Dec24'!$D:$D,$D34) -> 0.01461328264 | AM34: =COUNTIFS('06Dec24'!$E:$E,">"&253-AA34+$U34-$BG34,'06Dec24'!$D:$D,$D34)/COUNTIF('06Dec24'!$D:$D,$D34) -> 0.01461328264 | AN34: =COUNTIFS('06Dec24'!$E:$E,">"&253-AB34+$U34-$BG34,'06Dec24'!$D:$D,$D34)/COUNTIF('06Dec24'!$D:$D,$D34) -> 0.01461328264 | AO34: =COUNTIFS('06Dec24'!$E:$E,">"&253-AC34+$U34-$BG34,'06Dec24'!$D:$D,$D34)/COUNTIF('06Dec24'!$D:$D,$D34) -> 0.01461328264 | AP34: =COUNTIFS('06Dec24'!$E:$E,">"&253-AD34+$U34-$BG34,'06Dec24'!$D:$D,$D34)/COUNTIF('06Dec24'!$D:$D,$D34) -> 0.01461328264 | AQ34: =COUNTIFS('06Dec24'!$E:$E,">"&253-AE34+$U34-$BG34,'06Dec24'!$D:$D,$D34)/COUNTIF('06Dec24'!$D:$D,$D34) -> 0.01461328264 | AW34: =IF(OR(SUM($AS34:AV34)>0,RANK(M34,M$11:M$41)>AW$6),"",1) ->  | AX34: =IF(OR(SUM($AS34:AW34)>0,RANK(N34,N$11:N$41)>AX$6),"",1) ->  | AY34: =IF(OR(SUM($AS34:AX34)>0,RANK(O34,O$11:O$41)>AY$6),"",1) ->  | AZ34: =IF(OR(SUM($AS34:AY34)>0,RANK(P34,P$11:P$41)>AZ$6),"",1) -> 1 | BA34: =IF(OR(SUM($AS34:AZ34)>0,RANK(Q34,Q$11:Q$41)>BA$6),"",1) ->  | BB34: =IF(OR(SUM($AS34:BA34)>0,RANK(R34,R$11:R$41)>BB$6),"",1) ->  | BC34: =IF(OR(SUM($AS34:BB34)>0,RANK(S34,S$11:S$41)>BC$6),"",1) ->  | BG34: =VLOOKUP($D34,Table!$A$4:$M$34,COLUMN(Table!$M:$M),FALSE) -> 0
D35: FW0 | E35: FW | F35: =VLOOKUP($D35,Table!$A$4:$N$34,COLUMN(Table!$N:$N),FALSE) -> 16756 | G35: 2030 | H35: =_xlfn.RANK.EQ($G35,$G$11:$G$41,1)+COUNTIF($G$11:$G35,$G35)-1 -> 25 | I35: =$F35/$F$43*AG35*General!$J$17 -> 0.0002499216259 | J35: =$F35/$F$43*AH35*General!$J$17 -> 0.0002499216259 | K35: =$F35/$F$43*AI35*General!$J$17 -> 0.0002499216259 | L35: =$F35/$F$43*AJ35*General!$J$17 -> 0.0002499216259 | M35: =$F35/$F$43*AK35*General!$J$17 -> 0.0002499216259 | N35: =$F35/$F$43*AL35*General!$J$17 -> 0.0002499216259 | O35: =$F35/$F$43*AM35*General!$J$17 -> 0.0002499216259 | P35: =$F35/$F$43*AN35*General!$J$17 -> 0.0002499216259 | Q35: =$F35/$F$43*AO35*General!$J$17 -> 0.0002499216259 | R35: =$F35/$F$43*AP35*General!$J$17 -> 0.0002499216259 | S35: =$F35/$F$43*AQ35*General!$J$17 -> 0.0002499216259 | U35: =VLOOKUP($D35,Table!$A$4:$L$34,COLUMN(Table!J:J),FALSE) -> 252.282848 | V35: =(1-MIN(0,VLOOKUP($E35,OLTC_Taps!$D$147:$H$173,6-1,FALSE)+VLOOKUP($E35,OLTC_Taps!$D$147:$N$173,12-1,FALSE)*(V$10-$V$10+1)))*$U35 -> 252.282848 | W35: =(1-MIN(0,VLOOKUP($E35,OLTC_Taps!$D$147:$H$173,6-1,FALSE)+VLOOKUP($E35,OLTC_Taps!$D$147:$N$173,12-1,FALSE)*(W$10-$V$10+1)))*$U35 -> 252.282848 | X35: =(1-MIN(0,VLOOKUP($E35,OLTC_Taps!$D$147:$H$173,6-1,FALSE)+VLOOKUP($E35,OLTC_Taps!$D$147:$N$173,12-1,FALSE)*(X$10-$V$10+1)))*$U35 -> 252.282848 | Y35: =(1-MIN(0,VLOOKUP($E35,OLTC_Taps!$D$147:$H$173,6-1,FALSE)+VLOOKUP($E35,OLTC_Taps!$D$147:$N$173,12-1,FALSE)*(Y$10-$V$10+1)))*$U35 -> 252.282848 | Z35: =(1-MIN(0,VLOOKUP($E35,OLTC_Taps!$D$147:$H$173,6-1,FALSE)+VLOOKUP($E35,OLTC_Taps!$D$147:$O$173,13-1,FALSE)*(Z$10-$V$10+1)))*$U35 -> 252.282848 | AA35: =(1-MIN(0,VLOOKUP($E35,OLTC_Taps!$D$147:$H$173,6-1,FALSE)+VLOOKUP($E35,OLTC_Taps!$D$147:$O$173,13-1,FALSE)*(AA$10-$V$10+1)))*$U35 -> 252.282848 | AB35: =(1-MIN(0,VLOOKUP($E35,OLTC_Taps!$D$147:$H$173,6-1,FALSE)+VLOOKUP($E35,OLTC_Taps!$D$147:$O$173,13-1,FALSE)*(AB$10-$V$10+1)))*$U35 -> 252.282848 | AC35: =(1-MIN(0,VLOOKUP($E35,OLTC_Taps!$D$147:$H$173,6-1,FALSE)+VLOOKUP($E35,OLTC_Taps!$D$147:$O$173,13-1,FALSE)*(AC$10-$V$10+1)))*$U35 -> 252.282848 | AD35: =(1-MIN(0,VLOOKUP($E35,OLTC_Taps!$D$147:$H$173,6-1,FALSE)+VLOOKUP($E35,OLTC_Taps!$D$147:$O$173,13-1,FALSE)*(AD$10-$V$10+1)))*$U35 -> 252.282848 | AE35: =(1-MIN(0,VLOOKUP($E35,OLTC_Taps!$D$147:$H$173,6-1,FALSE)+VLOOKUP($E35,OLTC_Taps!$D$147:$O$173,13-1,FALSE)*(AE$10-$V$10+1)))*$U35 -> 252.282848 | AG35: =COUNTIFS('06Dec24'!$E:$E,">"&253-U35+$U35-$BG35,'06Dec24'!$D:$D,$D35)/COUNTIF('06Dec24'!$D:$D,$D35) -> 0.007280973979 | AH35: =COUNTIFS('06Dec24'!$E:$E,">"&253-V35+$U35-$BG35,'06Dec24'!$D:$D,$D35)/COUNTIF('06Dec24'!$D:$D,$D35) -> 0.007280973979 | AI35: =COUNTIFS('06Dec24'!$E:$E,">"&253-W35+$U35-$BG35,'06Dec24'!$D:$D,$D35)/COUNTIF('06Dec24'!$D:$D,$D35) -> 0.007280973979 | AJ35: =COUNTIFS('06Dec24'!$E:$E,">"&253-X35+$U35-$BG35,'06Dec24'!$D:$D,$D35)/COUNTIF('06Dec24'!$D:$D,$D35) -> 0.007280973979 | AK35: =COUNTIFS('06Dec24'!$E:$E,">"&253-Y35+$U35-$BG35,'06Dec24'!$D:$D,$D35)/COUNTIF('06Dec24'!$D:$D,$D35) -> 0.007280973979 | AL35: =COUNTIFS('06Dec24'!$E:$E,">"&253-Z35+$U35-$BG35,'06Dec24'!$D:$D,$D35)/COUNTIF('06Dec24'!$D:$D,$D35) -> 0.007280973979 | AM35: =COUNTIFS('06Dec24'!$E:$E,">"&253-AA35+$U35-$BG35,'06Dec24'!$D:$D,$D35)/COUNTIF('06Dec24'!$D:$D,$D35) -> 0.007280973979 | AN35: =COUNTIFS('06Dec24'!$E:$E,">"&253-AB35+$U35-$BG35,'06Dec24'!$D:$D,$D35)/COUNTIF('06Dec24'!$D:$D,$D35) -> 0.007280973979 | AO35: =COUNTIFS('06Dec24'!$E:$E,">"&253-AC35+$U35-$BG35,'06Dec24'!$D:$D,$D35)/COUNTIF('06Dec24'!$D:$D,$D35) -> 0.007280973979 | AP35: =COUNTIFS('06Dec24'!$E:$E,">"&253-AD35+$U35-$BG35,'06Dec24'!$D:$D,$D35)/COUNTIF('06Dec24'!$D:$D,$D35) -> 0.007280973979 | AQ35: =COUNTIFS('06Dec24'!$E:$E,">"&253-AE35+$U35-$BG35,'06Dec24'!$D:$D,$D35)/COUNTIF('06Dec24'!$D:$D,$D35) -> 0.007280973979 | AW35: =IF(OR(SUM($AS35:AV35)>0,RANK(M35,M$11:M$41)>AW$6),"",1) ->  | AX35: =IF(OR(SUM($AS35:AW35)>0,RANK(N35,N$11:N$41)>AX$6),"",1) ->  | AY35: =IF(OR(SUM($AS35:AX35)>0,RANK(O35,O$11:O$41)>AY$6),"",1) ->  | AZ35: =IF(OR(SUM($AS35:AY35)>0,RANK(P35,P$11:P$41)>AZ$6),"",1) -> 1 | BA35: =IF(OR(SUM($AS35:AZ35)>0,RANK(Q35,Q$11:Q$41)>BA$6),"",1) ->  | BB35: =IF(OR(SUM($AS35:BA35)>0,RANK(R35,R$11:R$41)>BB$6),"",1) ->  | BC35: =IF(OR(SUM($AS35:BB35)>0,RANK(S35,S$11:S$41)>BC$6),"",1) ->  | BG35: =VLOOKUP($D35,Table!$A$4:$M$34,COLUMN(Table!$M:$M),FALSE) -> 0.7171519798
D36: BY0 | E36: BY | F36: =VLOOKUP($D36,Table!$A$4:$N$34,COLUMN(Table!$N:$N),FALSE) -> 15297 | G36: 2031 | H36: =_xlfn.RANK.EQ($G36,$G$11:$G$41,1)+COUNTIF($G$11:$G36,$G36)-1 -> 26 | I36: =$F36/$F$43*AG36*General!$J$17 -> 0.0001618344954 | J36: =$F36/$F$43*AH36*General!$J$17 -> 0.0001618344954 | K36: =$F36/$F$43*AI36*General!$J$17 -> 0.0001618344954 | L36: =$F36/$F$43*AJ36*General!$J$17 -> 0.0001618344954 | M36: =$F36/$F$43*AK36*General!$J$17 -> 0.0001618344954 | N36: =$F36/$F$43*AL36*General!$J$17 -> 0.0001618344954 | O36: =$F36/$F$43*AM36*General!$J$17 -> 0.0001618344954 | P36: =$F36/$F$43*AN36*General!$J$17 -> 0.0001618344954 | Q36: =$F36/$F$43*AO36*General!$J$17 -> 0.0001618344954 | R36: =$F36/$F$43*AP36*General!$J$17 -> 0.0001618344954 | S36: =$F36/$F$43*AQ36*General!$J$17 -> 0.0001618344954 | U36: =VLOOKUP($D36,Table!$A$4:$L$34,COLUMN(Table!J:J),FALSE) -> 253.1579576 | V36: =(1-MIN(0,VLOOKUP($E36,OLTC_Taps!$D$147:$H$173,6-1,FALSE)+VLOOKUP($E36,OLTC_Taps!$D$147:$N$173,12-1,FALSE)*(V$10-$V$10+1)))*$U36 -> 253.1579576 | W36: =(1-MIN(0,VLOOKUP($E36,OLTC_Taps!$D$147:$H$173,6-1,FALSE)+VLOOKUP($E36,OLTC_Taps!$D$147:$N$173,12-1,FALSE)*(W$10-$V$10+1)))*$U36 -> 253.1579576 | X36: =(1-MIN(0,VLOOKUP($E36,OLTC_Taps!$D$147:$H$173,6-1,FALSE)+VLOOKUP($E36,OLTC_Taps!$D$147:$N$173,12-1,FALSE)*(X$10-$V$10+1)))*$U36 -> 253.1579576 | Y36: =(1-MIN(0,VLOOKUP($E36,OLTC_Taps!$D$147:$H$173,6-1,FALSE)+VLOOKUP($E36,OLTC_Taps!$D$147:$N$173,12-1,FALSE)*(Y$10-$V$10+1)))*$U36 -> 253.1579576 | Z36: =(1-MIN(0,VLOOKUP($E36,OLTC_Taps!$D$147:$H$173,6-1,FALSE)+VLOOKUP($E36,OLTC_Taps!$D$147:$O$173,13-1,FALSE)*(Z$10-$V$10+1)))*$U36 -> 253.1579576 | AA36: =(1-MIN(0,VLOOKUP($E36,OLTC_Taps!$D$147:$H$173,6-1,FALSE)+VLOOKUP($E36,OLTC_Taps!$D$147:$O$173,13-1,FALSE)*(AA$10-$V$10+1)))*$U36 -> 253.1579576 | AB36: =(1-MIN(0,VLOOKUP($E36,OLTC_Taps!$D$147:$H$173,6-1,FALSE)+VLOOKUP($E36,OLTC_Taps!$D$147:$O$173,13-1,FALSE)*(AB$10-$V$10+1)))*$U36 -> 253.1579576 | AC36: =(1-MIN(0,VLOOKUP($E36,OLTC_Taps!$D$147:$H$173,6-1,FALSE)+VLOOKUP($E36,OLTC_Taps!$D$147:$O$173,13-1,FALSE)*(AC$10-$V$10+1)))*$U36 -> 253.1579576 | AD36: =(1-MIN(0,VLOOKUP($E36,OLTC_Taps!$D$147:$H$173,6-1,FALSE)+VLOOKUP($E36,OLTC_Taps!$D$147:$O$173,13-1,FALSE)*(AD$10-$V$10+1)))*$U36 -> 253.1579576 | AE36: =(1-MIN(0,VLOOKUP($E36,OLTC_Taps!$D$147:$H$173,6-1,FALSE)+VLOOKUP($E36,OLTC_Taps!$D$147:$O$173,13-1,FALSE)*(AE$10-$V$10+1)))*$U36 -> 253.1579576 | AG36: =COUNTIFS('06Dec24'!$E:$E,">"&253-U36+$U36-$BG36,'06Dec24'!$D:$D,$D36)/COUNTIF('06Dec24'!$D:$D,$D36) -> 0.005164411322 | AH36: =COUNTIFS('06Dec24'!$E:$E,">"&253-V36+$U36-$BG36,'06Dec24'!$D:$D,$D36)/COUNTIF('06Dec24'!$D:$D,$D36) -> 0.005164411322 | AI36: =COUNTIFS('06Dec24'!$E:$E,">"&253-W36+$U36-$BG36,'06Dec24'!$D:$D,$D36)/COUNTIF('06Dec24'!$D:$D,$D36) -> 0.005164411322 | AJ36: =COUNTIFS('06Dec24'!$E:$E,">"&253-X36+$U36-$BG36,'06Dec24'!$D:$D,$D36)/COUNTIF('06Dec24'!$D:$D,$D36) -> 0.005164411322 | AK36: =COUNTIFS('06Dec24'!$E:$E,">"&253-Y36+$U36-$BG36,'06Dec24'!$D:$D,$D36)/COUNTIF('06Dec24'!$D:$D,$D36) -> 0.005164411322 | AL36: =COUNTIFS('06Dec24'!$E:$E,">"&253-Z36+$U36-$BG36,'06Dec24'!$D:$D,$D36)/COUNTIF('06Dec24'!$D:$D,$D36) -> 0.005164411322 | AM36: =COUNTIFS('06Dec24'!$E:$E,">"&253-AA36+$U36-$BG36,'06Dec24'!$D:$D,$D36)/COUNTIF('06Dec24'!$D:$D,$D36) -> 0.005164411322 | AN36: =COUNTIFS('06Dec24'!$E:$E,">"&253-AB36+$U36-$BG36,'06Dec24'!$D:$D,$D36)/COUNTIF('06Dec24'!$D:$D,$D36) -> 0.005164411322 | AO36: =COUNTIFS('06Dec24'!$E:$E,">"&253-AC36+$U36-$BG36,'06Dec24'!$D:$D,$D36)/COUNTIF('06Dec24'!$D:$D,$D36) -> 0.005164411322 | AP36: =COUNTIFS('06Dec24'!$E:$E,">"&253-AD36+$U36-$BG36,'06Dec24'!$D:$D,$D36)/COUNTIF('06Dec24'!$D:$D,$D36) -> 0.005164411322 | AQ36: =COUNTIFS('06Dec24'!$E:$E,">"&253-AE36+$U36-$BG36,'06Dec24'!$D:$D,$D36)/COUNTIF('06Dec24'!$D:$D,$D36) -> 0.005164411322 | AW36: =IF(OR(SUM($AS36:AV36)>0,RANK(M36,M$11:M$41)>AW$6),"",1) ->  | AX36: =IF(OR(SUM($AS36:AW36)>0,RANK(N36,N$11:N$41)>AX$6),"",1) ->  | AY36: =IF(OR(SUM($AS36:AX36)>0,RANK(O36,O$11:O$41)>AY$6),"",1) ->  | AZ36: =IF(OR(SUM($AS36:AY36)>0,RANK(P36,P$11:P$41)>AZ$6),"",1) ->  | BA36: =IF(OR(SUM($AS36:AZ36)>0,RANK(Q36,Q$11:Q$41)>BA$6),"",1) -> 1 | BB36: =IF(OR(SUM($AS36:BA36)>0,RANK(R36,R$11:R$41)>BB$6),"",1) ->  | BC36: =IF(OR(SUM($AS36:BB36)>0,RANK(S36,S$11:S$41)>BC$6),"",1) ->  | BG36: =VLOOKUP($D36,Table!$A$4:$M$34,COLUMN(Table!$M:$M),FALSE) -> 0
D37: SA0 | E37: SA | F37: =VLOOKUP($D37,Table!$A$4:$N$34,COLUMN(Table!$N:$N),FALSE) -> 2372 | G37: 2031 | H37: =_xlfn.RANK.EQ($G37,$G$11:$G$41,1)+COUNTIF($G$11:$G37,$G37)-1 -> 27 | I37: =$F37/$F$43*AG37*General!$J$17 -> 0.0001085725096 | J37: =$F37/$F$43*AH37*General!$J$17 -> 0.0001085725096 | K37: =$F37/$F$43*AI37*General!$J$17 -> 0.0001085725096 | L37: =$F37/$F$43*AJ37*General!$J$17 -> 0.0001085725096 | M37: =$F37/$F$43*AK37*General!$J$17 -> 0.0001085725096 | N37: =$F37/$F$43*AL37*General!$J$17 -> 0.0001085725096 | O37: =$F37/$F$43*AM37*General!$J$17 -> 0.0001085725096 | P37: =$F37/$F$43*AN37*General!$J$17 -> 0.0001085725096 | Q37: =$F37/$F$43*AO37*General!$J$17 -> 0.0001085725096 | R37: =$F37/$F$43*AP37*General!$J$17 -> 0.0001085725096 | S37: =$F37/$F$43*AQ37*General!$J$17 -> 0.0001085725096 | U37: =VLOOKUP($D37,Table!$A$4:$L$34,COLUMN(Table!J:J),FALSE) -> 255.2813053 | V37: =U37 -> 255.2813053 | W37: 255.2813053 | X37: 255.2813053 | Y37: 255.2813053 | Z37: 255.2813053 | AA37: 255.2813053 | AB37: 255.2813053 | AC37: 255.2813053 | AD37: 255.2813053 | AE37: 255.2813053 | AG37: =COUNTIFS('06Dec24'!$E:$E,">"&253-U37+$U37-$BG37,'06Dec24'!$D:$D,$D37)/COUNTIF('06Dec24'!$D:$D,$D37) -> 0.02234401349 | AH37: =COUNTIFS('06Dec24'!$E:$E,">"&253-V37+$U37-$BG37,'06Dec24'!$D:$D,$D37)/COUNTIF('06Dec24'!$D:$D,$D37) -> 0.02234401349 | AI37: =COUNTIFS('06Dec24'!$E:$E,">"&253-W37+$U37-$BG37,'06Dec24'!$D:$D,$D37)/COUNTIF('06Dec24'!$D:$D,$D37) -> 0.02234401349 | AJ37: =COUNTIFS('06Dec24'!$E:$E,">"&253-X37+$U37-$BG37,'06Dec24'!$D:$D,$D37)/COUNTIF('06Dec24'!$D:$D,$D37) -> 0.02234401349 | AK37: =COUNTIFS('06Dec24'!$E:$E,">"&253-Y37+$U37-$BG37,'06Dec24'!$D:$D,$D37)/COUNTIF('06Dec24'!$D:$D,$D37) -> 0.02234401349 | AL37: =COUNTIFS('06Dec24'!$E:$E,">"&253-Z37+$U37-$BG37,'06Dec24'!$D:$D,$D37)/COUNTIF('06Dec24'!$D:$D,$D37) -> 0.02234401349 | AM37: =COUNTIFS('06Dec24'!$E:$E,">"&253-AA37+$U37-$BG37,'06Dec24'!$D:$D,$D37)/COUNTIF('06Dec24'!$D:$D,$D37) -> 0.02234401349 | AN37: =COUNTIFS('06Dec24'!$E:$E,">"&253-AB37+$U37-$BG37,'06Dec24'!$D:$D,$D37)/COUNTIF('06Dec24'!$D:$D,$D37) -> 0.02234401349 | AO37: =COUNTIFS('06Dec24'!$E:$E,">"&253-AC37+$U37-$BG37,'06Dec24'!$D:$D,$D37)/COUNTIF('06Dec24'!$D:$D,$D37) -> 0.02234401349 | AP37: =COUNTIFS('06Dec24'!$E:$E,">"&253-AD37+$U37-$BG37,'06Dec24'!$D:$D,$D37)/COUNTIF('06Dec24'!$D:$D,$D37) -> 0.02234401349 | AQ37: =COUNTIFS('06Dec24'!$E:$E,">"&253-AE37+$U37-$BG37,'06Dec24'!$D:$D,$D37)/COUNTIF('06Dec24'!$D:$D,$D37) -> 0.02234401349 | AW37: =IF(OR(SUM($AS37:AV37)>0,RANK(M37,M$11:M$41)>AW$6),"",1) ->  | AX37: =IF(OR(SUM($AS37:AW37)>0,RANK(N37,N$11:N$41)>AX$6),"",1) ->  | AY37: =IF(OR(SUM($AS37:AX37)>0,RANK(O37,O$11:O$41)>AY$6),"",1) ->  | AZ37: =IF(OR(SUM($AS37:AY37)>0,RANK(P37,P$11:P$41)>AZ$6),"",1) ->  | BA37: =IF(OR(SUM($AS37:AZ37)>0,RANK(Q37,Q$11:Q$41)>BA$6),"",1) -> 1 | BB37: =IF(OR(SUM($AS37:BA37)>0,RANK(R37,R$11:R$41)>BB$6),"",1) ->  | BC37: =IF(OR(SUM($AS37:BB37)>0,RANK(S37,S$11:S$41)>BC$6),"",1) ->  | BG37: =VLOOKUP($D37,Table!$A$4:$M$34,COLUMN(Table!$M:$M),FALSE) -> 0
